Workbook

Sheet Aux. (hidden)
D1: MOD. COMPOS. | E1: COMPOSIÇÕES/ LISTA AUXILIAR | F1: INDEXADO | G1: ORÇAMENTO | H1: Unidades Planilha Auxiliar | I1: BDI Desonerado | J1: BDI Não desonerado
B2: material | C2: SINAPI | D2: SINAPI | E2: SINAPI | F2: SINAPI | G2: SINAPI | H2: H | I2: =BDI!C21 -> 0.2878 | J2: =BDI!C22 -> 0.2267
B3: mão de obra | C3: SICRO | D3: SICRO | E3: SICRO | F3: SICRO | G3: SICRO | H3: KM | I3: =BDI!D21 -> 0.2821 | J3: =BDI!D22 -> 0.2215
B4: insumo | C4: SICRO EQUIP. | D4: SMOV | E4: SICRO EQUIP. | F4: SICRO EQUIP. | G4: MERCADO | H4: L | I4: =BDI!E21 -> 0.1988 | J4: =BDI!E22 -> 0.1418
B5: equipamento | C5: SMOV | D5: DAER | E5: MERCADO | F5: MERCADO | G5: CCU | H5: M | I5: =BDI!F21 -> 0.1935 | J5: =BDI!F22 -> 0.137
C6: MERCADO | D6: TCPO | E6: INDEXADO | F6: CCU | G6: - | H6: M2 | I6: =BDI!C43 -> 0.1538 | J6: =BDI!C43 -> 0.1538
C7: DAER | D7: PLEO | E7: CCU | F7: - | G7: INDEXADO | H7: M2XMES | I7: =BDI!E43 -> 0.1917 | J7: =BDI!E43 -> 0.1917
C8: CCU | D8: ORSE | E8: - | F8: ANP | G8: ANP | H8: M3 | I8: - | J8: =I8 -> -
D9: SEINFRA | E9: ANP | F9: DAER | G9: DAER | H9: M3XKM
C10: INDEXADO | D10: CEHOP | E10: DAER | F10: CONSULTORIA DNIT | G10: CONSULTORIA DNIT | H10: MES
D11: SUDECAP | E11: CONSULTORIA DNIT | F11: PREGÃO ELETRÔNICO | G11: PREGÃO ELETRÔNICO | H11: MXMES
B12: CREA/RS | D12: DER-PR | E12: PREGÃO ELETRÔNICO | F12: DMLU | G12: DMLU | H12: T
B13: CAU/RS | D13: SIURB | E13: DMLU | F13: DMAE | G13: DMAE | H13: TXKM
D14: - | E14: DMAE | F14: CEEE | G14: CEEE | H14: UN
E15: CEEE | F15: EPTC | G15: EPTC | H15: ADES
B16: Tabela Desonerada | E16: EPTC | F16: CREA | G16: CREA | H16: AMP
B17: Tabela Não Desonerada | E17: CREA | F17: CAU | G17: CAU | H17: ANO
E18: CAU | F18: ORSE | G18: ORSE | H18: BAND
E19: ORSE | F19: SEINFRA | G19: SEINFRA | H19: BAST
B20: nº ART: | E20: SEINFRA | F20: CEHOP | G20: CEHOP | H20: BG
B21: nº RRT: | E21: CEHOP | F21: SUDECAP | G21: SUDECAP | H21: BL
E22: SUDECAP | F22: DER-PR | G22: DER-PR | H22: BLD
E23: DER-PR | F23: SIURB | G23: SIURB | H23: BLI
E24: SIURB | F24: =E25 -> COMPOSICAO_PROPRIA | G24: =E25 -> COMPOSICAO_PROPRIA | H24: BLS
E25: COMPOSICAO_PROPRIA | F25: SICFER | G25: SICFER | H25: BOB
E26: SICFER | H26: BOMB
H27: BOT
H28: BRR
H29: CAP
H30: CARR
H31: CART
H32: CENTO
H33: CH
H34: CHI
H35: CHP
H36: CIL
H37: CJ
H38: CM
H39: CMCOL
H40: CN
H41: COL
H42: COM
H43: CR
H44: CRG
H45: CX
H46: DIA
H47: DOSE
H48: DRG
H49: DZ
H50: EIXO
H51: EMB
H52: ENV
H53: ES
H54: FA
H55: FD
H56: FITA
H57: FL
H58: FLAC
H59: FR
H60: FX
H61: FXMES
H62: G
H63: GAL
H64: GFA
H65: HA
H66: JG
H67: KCAL
H68: KG
H69: KIT
H70: KM2
H71: KMROD
H72: KWH
H73: KWP
H74: LB
H75: LDIL
H76: LT
H77: MB
H78: MC
H79: MD
H80: MG
H81: MIL
H82: MIN
H83: ML
H84: MOL
H85: MWH
H86: NOV
H87: PAC
H88: PAR
H89: PAS
H90: PC
H91: PF
H92: PG
H93: POS
H94: POT
H95: PT
H96: RD
H97: REF
H98: RL
H99: RLT
H100: RM
H101: SC
H102: SCH
H103: SECAO
H104: SEM
H105: SEMAN
H106: SER
H107: SUP
H108: TB
H109: TBT
H110: TIRA
H111: TL
H112: TM
H113: TO
H114: TRN
H115: TST
H116: TX
H117: UNXMES
H118: UST
H119: VD
H120: VG
H121: KGXKM
H122: UNXKM
H123: M2XKM
H124: LXKM

Sheet Comparativo (hidden)
A2: Tipo de Orçamento | B2: Valor
A3: orçamento não desonerado | B3: ='Orçamento N_DESON.'!$S$80 -> 42004.1 | C3: =A3 -> orçamento não desonerado | E3: Tabela Não Desonerada
A4: orçamento desonerado | B4: =#REF! ->  | C4: orçamento desonerado | E4: Tabela Desonerada
A6: =CONCATENATE("Valor adotado: ",VLOOKUP(B6,B3:C4,2,FALSE)) ->  | B6: =SMALL(B3:B4,1) ->  | E6: =VLOOKUP(B6,B3:E4,4,FALSE) -> 

Sheet Identificação-TCE (hidden)
A1: IDENTIFICAÇÃO
A2: Modalidade* | D2: N° * | F2: Ano *
A3: Descrição do Objeto | B3: =Dados!C5 -> Contratação Projetos - Cozinha Comunitária
A4: Órgão | B4: =Dados!C3 -> Secretaria Municipal de Desenvolvimento Social | F4: CNPJ *
A5: Tipo de Objeto* | C5: N° CENTRAL DE COMPRAS
A6: Preço Total Estimado | B6: ='Orçamento-TCE'!C6 -> 42004.1
A7: Preço Total Proposto | B7: ='Proposta-TCE'!C6 -> 42004.1
A8: Qtd. Itens Orçamento | B8: =COUNTIF('Orçamento-TCE'!$H$12:$H$1687,"<>0") -> 25
A9: Atenção! Para incluir mais de 50 lotes, selecione as células A62 a G62 e arraste as fórmulas para baixo, de acordo com o número de lotes necessário.
A10: *Campos de preenchimento obrigatório | C10: **Campos de preenchimento obrigatório para licitação composta por lotes
A11: Nº do lote** | B11: Descrição do Lote** | C11: Estimativa | G11: Proposta
C12: Valor do lote (R$) | G12: Valor do lote (R$)
A13: 1 | B13: =B3 -> Contratação Projetos - Cozinha Comunitária | C13: =B6 -> 42004.1 | G13: =B7 -> 42004.1
C14: 0 | G14: 0
C15: 0 | G15: 0
C16: 0 | G16: 0
C17: 0 | G17: 0
C18: 0 | G18: 0
C19: 0 | G19: 0
C20: 0 | G20: 0
C21: 0 | G21: 0
C22: 0 | G22: 0
C23: 0 | G23: 0
C24: 0 | G24: 0
C25: 0 | G25: 0
C26: 0 | G26: 0
C27: 0 | G27: 0
C28: 0 | G28: 0
C29: 0 | G29: 0
C30: 0 | G30: 0
C31: 0 | G31: 0
C32: 0 | G32: 0
C33: 0 | G33: 0
C34: 0 | G34: 0
C35: 0 | G35: 0
C36: 0 | G36: 0
C37: 0 | G37: 0
C38: 0 | G38: 0
C39: 0 | G39: 0
C40: 0 | G40: 0
C41: 0 | G41: 0
C42: 0 | G42: 0
C43: 0 | G43: 0
C44: 0 | G44: 0
C45: 0 | G45: 0
C46: 0 | G46: 0
C47: 0 | G47: 0
C48: 0 | G48: 0
C49: 0 | G49: 0
C50: 0 | G50: 0
C51: 0 | G51: 0
C52: 0 | G52: 0
C53: 0 | G53: 0
C54: 0 | G54: 0
C55: 0 | G55: 0
C56: 0 | G56: 0
C57: 0 | G57: 0
C58: 0 | G58: 0
C59: 0 | G59: 0
C60: 0 | G60: 0
C61: 0 | G61: 0
C62: 0 | G62: 0

Sheet Orçamento-TCE (hidden)
A1: ORÇAMENTO
A2: Modalidade | H2: N° | J2: Ano
A3: Descrição do Objeto | C3: =Dados!C5 -> Contratação Projetos - Cozinha Comunitária
A4: Órgão | C4: =Dados!C3 -> Secretaria Municipal de Desenvolvimento Social | J4: CNPJ
A5: Tipo de Objeto
A6: Preço T. Estimado | C6: =SUM(K12:K1687) -> 42004.1
A8: Atenção! Para incluir mais de 100 linhas de itens, selecione as células A113 a R113 e arraste as fórmulas para baixo, de acordo com o número de itens necessário.
A9: *Preenchimento obrigatório | F9: **Obrigatório só para Obras e Serviços de Engenharia | H9: ***Obrigatório só para licitação composta por Lotes
A10: Nº do Lote*** | B10: N° Ordem | C10: Nº Item* | D10: Fonte de Referência** | E10: Código de Referência** | F10: Data de Referência** | G10: Descrição do item* | H10: Estimativa | N10: Família | P10: Subfamília | R10: Tipo de Orçamento | S10: Pr. Unit. Material | T10: Pr. Unit. Mão de obra
H11: Qtd.* | I11: Unid.* | J11: Preço unitário (R$)* | K11: Preço Total (R$) | L11: % BDI** | M11: % Encargos Sociais** | N11: Código | O11: Descrição | P11: Código | Q11: Descrição
A12: ='Identificação-TCE'!$A$13 -> 1 | B12: =IF(AND(G12<>"",H12>0,I12<>"",J12<>0,K12<>0),COUNT($B$11:B11)+1,"") -> 1 | C12: =IF('Orçamento N_DESON.'!$M11=0,0,'Orçamento N_DESON.'!$D11) -> 1.1 | D12: =IF('Orçamento N_DESON.'!$F11=Aux.!$G$11,"CONTRATACAO_PUBLICA",IF(VLOOKUP($C12,'Orçamento N_DESON.'!$D$11:$G$525,3,FALSE)="INDEXADO",VLOOKUP(VLOOKUP($C12,'Orçamento N_DESON.'!$D$11:$G$525,2,FALSE),#REF!,2),VLOOKUP($C12,'Orçamento N_DESON.'!$D$11:$G$525,3,FALSE))) -> CCU | E12: =VLOOKUP($C12,'Orçamento N_DESON.'!$D$11:$S$82,2,FALSE) -> CCU-01 | F12: =Dados!$C$7 -> 2022-03-01 | G12: =VLOOKUP($C12,'Orçamento N_DESON.'!$D$11:$S$82,4,FALSE) -> Anteprojeto | H12: =IFERROR(VLOOKUP($C12,'Orçamento N_DESON.'!$D$11:$S$82,6,FALSE),0) -> 1 | I12: =VLOOKUP($C12,'Orçamento N_DESON.'!$D$11:$S$82,5,FALSE) -> UN | J12: =VLOOKUP($C12,'Orçamento N_DESON.'!$D$11:$S$82,12,FALSE) -> 2058.56 | K12: =IFERROR(VLOOKUP($C12,'Orçamento N_DESON.'!$D$11:$S$82,16,FALSE),0) -> 2058.56 | L12: =VLOOKUP($C12,'Orçamento N_DESON.'!$D$11:$S$82,11,FALSE) -> 0.1538 | M12: =Encargos!$F$44 -> 1.1122
A13: ='Identificação-TCE'!$A$13 -> 1 | B13: =IF(AND(G13<>"",H13>0,I13<>"",J13<>0,K13<>0),COUNT($B$11:B12)+1,"") -> 2 | C13: =IF('Orçamento N_DESON.'!$M12=0,0,'Orçamento N_DESON.'!$D12) -> 1.2 | D13: =IF('Orçamento N_DESON.'!$F12=Aux.!$G$11,"CONTRATACAO_PUBLICA",IF(VLOOKUP($C13,'Orçamento N_DESON.'!$D$11:$G$525,3,FALSE)="INDEXADO",VLOOKUP(VLOOKUP($C13,'Orçamento N_DESON.'!$D$11:$G$525,2,FALSE),#REF!,2),VLOOKUP($C13,'Orçamento N_DESON.'!$D$11:$G$525,3,FALSE))) -> CCU | E13: =VLOOKUP($C13,'Orçamento N_DESON.'!$D$11:$S$82,2,FALSE) -> CCU-02 | F13: =Dados!$C$7 -> 2022-03-01 | G13: =VLOOKUP($C13,'Orçamento N_DESON.'!$D$11:$S$82,4,FALSE) -> Projeto Legal | H13: =IFERROR(VLOOKUP($C13,'Orçamento N_DESON.'!$D$11:$S$82,6,FALSE),0) -> 1 | I13: =VLOOKUP($C13,'Orçamento N_DESON.'!$D$11:$S$82,5,FALSE) -> UN | J13: =VLOOKUP($C13,'Orçamento N_DESON.'!$D$11:$S$82,12,FALSE) -> 2744.75 | K13: =IFERROR(VLOOKUP($C13,'Orçamento N_DESON.'!$D$11:$S$82,16,FALSE),0) -> 2744.75 | L13: =VLOOKUP($C13,'Orçamento N_DESON.'!$D$11:$S$82,11,FALSE) -> 0.1538 | M13: =Encargos!$F$44 -> 1.1122
A14: ='Identificação-TCE'!$A$13 -> 1 | B14: =IF(AND(G14<>"",H14>0,I14<>"",J14<>0,K14<>0),COUNT($B$11:B13)+1,"") -> 3 | C14: =IF('Orçamento N_DESON.'!$M13=0,0,'Orçamento N_DESON.'!$D13) -> 1.3 | D14: =IF('Orçamento N_DESON.'!$F13=Aux.!$G$11,"CONTRATACAO_PUBLICA",IF(VLOOKUP($C14,'Orçamento N_DESON.'!$D$11:$G$525,3,FALSE)="INDEXADO",VLOOKUP(VLOOKUP($C14,'Orçamento N_DESON.'!$D$11:$G$525,2,FALSE),#REF!,2),VLOOKUP($C14,'Orçamento N_DESON.'!$D$11:$G$525,3,FALSE))) -> ORSE | E14: =VLOOKUP($C14,'Orçamento N_DESON.'!$D$11:$S$82,2,FALSE) -> 7027 | F14: =Dados!$C$7 -> 2022-03-01 | G14: =VLOOKUP($C14,'Orçamento N_DESON.'!$D$11:$S$82,4,FALSE) -> Projeto executivo de arquitetura | H14: =IFERROR(VLOOKUP($C14,'Orçamento N_DESON.'!$D$11:$S$82,6,FALSE),0) -> 250 | I14: =VLOOKUP($C14,'Orçamento N_DESON.'!$D$11:$S$82,5,FALSE) -> M2 | J14: =VLOOKUP($C14,'Orçamento N_DESON.'!$D$11:$S$82,12,FALSE) -> 11.12 | K14: =IFERROR(VLOOKUP($C14,'Orçamento N_DESON.'!$D$11:$S$82,16,FALSE),0) -> 2780 | L14: =VLOOKUP($C14,'Orçamento N_DESON.'!$D$11:$S$82,11,FALSE) -> 0.1538 | M14: =Encargos!$F$44 -> 1.1122
A15: ='Identificação-TCE'!$A$13 -> 1 | B15: =IF(AND(G15<>"",H15>0,I15<>"",J15<>0,K15<>0),COUNT($B$11:B14)+1,"") -> 4 | C15: =IF('Orçamento N_DESON.'!$M14=0,0,'Orçamento N_DESON.'!$D14) -> 1.4 | D15: =IF('Orçamento N_DESON.'!$F14=Aux.!$G$11,"CONTRATACAO_PUBLICA",IF(VLOOKUP($C15,'Orçamento N_DESON.'!$D$11:$G$525,3,FALSE)="INDEXADO",VLOOKUP(VLOOKUP($C15,'Orçamento N_DESON.'!$D$11:$G$525,2,FALSE),#REF!,2),VLOOKUP($C15,'Orçamento N_DESON.'!$D$11:$G$525,3,FALSE))) -> ORSE | E15: =VLOOKUP($C15,'Orçamento N_DESON.'!$D$11:$S$82,2,FALSE) -> 12819 | F15: =Dados!$C$7 -> 2022-03-01 | G15: =VLOOKUP($C15,'Orçamento N_DESON.'!$D$11:$S$82,4,FALSE) -> Projeto de paisagismo - 0m² a 2.000m² | H15: =IFERROR(VLOOKUP($C15,'Orçamento N_DESON.'!$D$11:$S$82,6,FALSE),0) -> 1000 | I15: =VLOOKUP($C15,'Orçamento N_DESON.'!$D$11:$S$82,5,FALSE) -> M2 | J15: =VLOOKUP($C15,'Orçamento N_DESON.'!$D$11:$S$82,12,FALSE) -> 3.18 | K15: =IFERROR(VLOOKUP($C15,'Orçamento N_DESON.'!$D$11:$S$82,16,FALSE),0) -> 3180 | L15: =VLOOKUP($C15,'Orçamento N_DESON.'!$D$11:$S$82,11,FALSE) -> 0.1538 | M15: =Encargos!$F$44 -> 1.1122
A16: ='Identificação-TCE'!$A$13 -> 1 | B16: =IF(AND(G16<>"",H16>0,I16<>"",J16<>0,K16<>0),COUNT($B$11:B15)+1,"") ->  | C16: =IF('Orçamento N_DESON.'!#REF!=0,0,'Orçamento N_DESON.'!#REF!) ->  | D16: =IF('Orçamento N_DESON.'!#REF!=Aux.!$G$11,"CONTRATACAO_PUBLICA",IF(VLOOKUP($C16,'Orçamento N_DESON.'!$D$11:$G$525,3,FALSE)="INDEXADO",VLOOKUP(VLOOKUP($C16,'Orçamento N_DESON.'!$D$11:$G$525,2,FALSE),#REF!,2),VLOOKUP($C16,'Orçamento N_DESON.'!$D$11:$G$525,3,FALSE))) ->  | E16: =VLOOKUP($C16,'Orçamento N_DESON.'!$D$11:$S$82,2,FALSE) ->  | F16: =Dados!$C$7 -> 2022-03-01 | G16: =VLOOKUP($C16,'Orçamento N_DESON.'!$D$11:$S$82,4,FALSE) ->  | H16: =IFERROR(VLOOKUP($C16,'Orçamento N_DESON.'!$D$11:$S$82,6,FALSE),0) -> 0 | I16: =VLOOKUP($C16,'Orçamento N_DESON.'!$D$11:$S$82,5,FALSE) ->  | J16: =VLOOKUP($C16,'Orçamento N_DESON.'!$D$11:$S$82,12,FALSE) ->  | K16: =IFERROR(VLOOKUP($C16,'Orçamento N_DESON.'!$D$11:$S$82,16,FALSE),0) -> 0 | L16: =VLOOKUP($C16,'Orçamento N_DESON.'!$D$11:$S$82,11,FALSE) ->  | M16: =Encargos!$F$44 -> 1.1122
A17: ='Identificação-TCE'!$A$13 -> 1 | B17: =IF(AND(G17<>"",H17>0,I17<>"",J17<>0,K17<>0),COUNT($B$11:B16)+1,"") ->  | C17: =IF('Orçamento N_DESON.'!#REF!=0,0,'Orçamento N_DESON.'!#REF!) ->  | D17: =IF('Orçamento N_DESON.'!#REF!=Aux.!$G$11,"CONTRATACAO_PUBLICA",IF(VLOOKUP($C17,'Orçamento N_DESON.'!$D$11:$G$525,3,FALSE)="INDEXADO",VLOOKUP(VLOOKUP($C17,'Orçamento N_DESON.'!$D$11:$G$525,2,FALSE),#REF!,2),VLOOKUP($C17,'Orçamento N_DESON.'!$D$11:$G$525,3,FALSE))) ->  | E17: =VLOOKUP($C17,'Orçamento N_DESON.'!$D$11:$S$82,2,FALSE) ->  | F17: =Dados!$C$7 -> 2022-03-01 | G17: =VLOOKUP($C17,'Orçamento N_DESON.'!$D$11:$S$82,4,FALSE) ->  | H17: =IFERROR(VLOOKUP($C17,'Orçamento N_DESON.'!$D$11:$S$82,6,FALSE),0) -> 0 | I17: =VLOOKUP($C17,'Orçamento N_DESON.'!$D$11:$S$82,5,FALSE) ->  | J17: =VLOOKUP($C17,'Orçamento N_DESON.'!$D$11:$S$82,12,FALSE) ->  | K17: =IFERROR(VLOOKUP($C17,'Orçamento N_DESON.'!$D$11:$S$82,16,FALSE),0) -> 0 | L17: =VLOOKUP($C17,'Orçamento N_DESON.'!$D$11:$S$82,11,FALSE) ->  | M17: =Encargos!$F$44 -> 1.1122
A18: ='Identificação-TCE'!$A$13 -> 1 | B18: =IF(AND(G18<>"",H18>0,I18<>"",J18<>0,K18<>0),COUNT($B$11:B17)+1,"") ->  | C18: =IF('Orçamento N_DESON.'!#REF!=0,0,'Orçamento N_DESON.'!#REF!) ->  | D18: =IF('Orçamento N_DESON.'!#REF!=Aux.!$G$11,"CONTRATACAO_PUBLICA",IF(VLOOKUP($C18,'Orçamento N_DESON.'!$D$11:$G$525,3,FALSE)="INDEXADO",VLOOKUP(VLOOKUP($C18,'Orçamento N_DESON.'!$D$11:$G$525,2,FALSE),#REF!,2),VLOOKUP($C18,'Orçamento N_DESON.'!$D$11:$G$525,3,FALSE))) ->  | E18: =VLOOKUP($C18,'Orçamento N_DESON.'!$D$11:$S$82,2,FALSE) ->  | F18: =Dados!$C$7 -> 2022-03-01 | G18: =VLOOKUP($C18,'Orçamento N_DESON.'!$D$11:$S$82,4,FALSE) ->  | H18: =IFERROR(VLOOKUP($C18,'Orçamento N_DESON.'!$D$11:$S$82,6,FALSE),0) -> 0 | I18: =VLOOKUP($C18,'Orçamento N_DESON.'!$D$11:$S$82,5,FALSE) ->  | J18: =VLOOKUP($C18,'Orçamento N_DESON.'!$D$11:$S$82,12,FALSE) ->  | K18: =IFERROR(VLOOKUP($C18,'Orçamento N_DESON.'!$D$11:$S$82,16,FALSE),0) -> 0 | L18: =VLOOKUP($C18,'Orçamento N_DESON.'!$D$11:$S$82,11,FALSE) ->  | M18: =Encargos!$F$44 -> 1.1122
A19: ='Identificação-TCE'!$A$13 -> 1 | B19: =IF(AND(G19<>"",H19>0,I19<>"",J19<>0,K19<>0),COUNT($B$11:B18)+1,"") ->  | C19: =IF('Orçamento N_DESON.'!#REF!=0,0,'Orçamento N_DESON.'!#REF!) ->  | D19: =IF('Orçamento N_DESON.'!#REF!=Aux.!$G$11,"CONTRATACAO_PUBLICA",IF(VLOOKUP($C19,'Orçamento N_DESON.'!$D$11:$G$525,3,FALSE)="INDEXADO",VLOOKUP(VLOOKUP($C19,'Orçamento N_DESON.'!$D$11:$G$525,2,FALSE),#REF!,2),VLOOKUP($C19,'Orçamento N_DESON.'!$D$11:$G$525,3,FALSE))) ->  | E19: =VLOOKUP($C19,'Orçamento N_DESON.'!$D$11:$S$82,2,FALSE) ->  | F19: =Dados!$C$7 -> 2022-03-01 | G19: =VLOOKUP($C19,'Orçamento N_DESON.'!$D$11:$S$82,4,FALSE) ->  | H19: =IFERROR(VLOOKUP($C19,'Orçamento N_DESON.'!$D$11:$S$82,6,FALSE),0) -> 0 | I19: =VLOOKUP($C19,'Orçamento N_DESON.'!$D$11:$S$82,5,FALSE) ->  | J19: =VLOOKUP($C19,'Orçamento N_DESON.'!$D$11:$S$82,12,FALSE) ->  | K19: =IFERROR(VLOOKUP($C19,'Orçamento N_DESON.'!$D$11:$S$82,16,FALSE),0) -> 0 | L19: =VLOOKUP($C19,'Orçamento N_DESON.'!$D$11:$S$82,11,FALSE) ->  | M19: =Encargos!$F$44 -> 1.1122
A20: ='Identificação-TCE'!$A$13 -> 1 | B20: =IF(AND(G20<>"",H20>0,I20<>"",J20<>0,K20<>0),COUNT($B$11:B19)+1,"") ->  | C20: =IF('Orçamento N_DESON.'!#REF!=0,0,'Orçamento N_DESON.'!#REF!) ->  | D20: =IF('Orçamento N_DESON.'!#REF!=Aux.!$G$11,"CONTRATACAO_PUBLICA",IF(VLOOKUP($C20,'Orçamento N_DESON.'!$D$11:$G$525,3,FALSE)="INDEXADO",VLOOKUP(VLOOKUP($C20,'Orçamento N_DESON.'!$D$11:$G$525,2,FALSE),#REF!,2),VLOOKUP($C20,'Orçamento N_DESON.'!$D$11:$G$525,3,FALSE))) ->  | E20: =VLOOKUP($C20,'Orçamento N_DESON.'!$D$11:$S$82,2,FALSE) ->  | F20: =Dados!$C$7 -> 2022-03-01 | G20: =VLOOKUP($C20,'Orçamento N_DESON.'!$D$11:$S$82,4,FALSE) ->  | H20: =IFERROR(VLOOKUP($C20,'Orçamento N_DESON.'!$D$11:$S$82,6,FALSE),0) -> 0 | I20: =VLOOKUP($C20,'Orçamento N_DESON.'!$D$11:$S$82,5,FALSE) ->  | J20: =VLOOKUP($C20,'Orçamento N_DESON.'!$D$11:$S$82,12,FALSE) ->  | K20: =IFERROR(VLOOKUP($C20,'Orçamento N_DESON.'!$D$11:$S$82,16,FALSE),0) -> 0 | L20: =VLOOKUP($C20,'Orçamento N_DESON.'!$D$11:$S$82,11,FALSE) ->  | M20: =Encargos!$F$44 -> 1.1122
A21: ='Identificação-TCE'!$A$13 -> 1 | B21: =IF(AND(G21<>"",H21>0,I21<>"",J21<>0,K21<>0),COUNT($B$11:B20)+1,"") ->  | C21: =IF('Orçamento N_DESON.'!#REF!=0,0,'Orçamento N_DESON.'!#REF!) ->  | D21: =IF('Orçamento N_DESON.'!#REF!=Aux.!$G$11,"CONTRATACAO_PUBLICA",IF(VLOOKUP($C21,'Orçamento N_DESON.'!$D$11:$G$525,3,FALSE)="INDEXADO",VLOOKUP(VLOOKUP($C21,'Orçamento N_DESON.'!$D$11:$G$525,2,FALSE),#REF!,2),VLOOKUP($C21,'Orçamento N_DESON.'!$D$11:$G$525,3,FALSE))) ->  | E21: =VLOOKUP($C21,'Orçamento N_DESON.'!$D$11:$S$82,2,FALSE) ->  | F21: =Dados!$C$7 -> 2022-03-01 | G21: =VLOOKUP($C21,'Orçamento N_DESON.'!$D$11:$S$82,4,FALSE) ->  | H21: =IFERROR(VLOOKUP($C21,'Orçamento N_DESON.'!$D$11:$S$82,6,FALSE),0) -> 0 | I21: =VLOOKUP($C21,'Orçamento N_DESON.'!$D$11:$S$82,5,FALSE) ->  | J21: =VLOOKUP($C21,'Orçamento N_DESON.'!$D$11:$S$82,12,FALSE) ->  | K21: =IFERROR(VLOOKUP($C21,'Orçamento N_DESON.'!$D$11:$S$82,16,FALSE),0) -> 0 | L21: =VLOOKUP($C21,'Orçamento N_DESON.'!$D$11:$S$82,11,FALSE) ->  | M21: =Encargos!$F$44 -> 1.1122
A22: ='Identificação-TCE'!$A$13 -> 1 | B22: =IF(AND(G22<>"",H22>0,I22<>"",J22<>0,K22<>0),COUNT($B$11:B21)+1,"") ->  | C22: =IF('Orçamento N_DESON.'!#REF!=0,0,'Orçamento N_DESON.'!#REF!) ->  | D22: =IF('Orçamento N_DESON.'!#REF!=Aux.!$G$11,"CONTRATACAO_PUBLICA",IF(VLOOKUP($C22,'Orçamento N_DESON.'!$D$11:$G$525,3,FALSE)="INDEXADO",VLOOKUP(VLOOKUP($C22,'Orçamento N_DESON.'!$D$11:$G$525,2,FALSE),#REF!,2),VLOOKUP($C22,'Orçamento N_DESON.'!$D$11:$G$525,3,FALSE))) ->  | E22: =VLOOKUP($C22,'Orçamento N_DESON.'!$D$11:$S$82,2,FALSE) ->  | F22: =Dados!$C$7 -> 2022-03-01 | G22: =VLOOKUP($C22,'Orçamento N_DESON.'!$D$11:$S$82,4,FALSE) ->  | H22: =IFERROR(VLOOKUP($C22,'Orçamento N_DESON.'!$D$11:$S$82,6,FALSE),0) -> 0 | I22: =VLOOKUP($C22,'Orçamento N_DESON.'!$D$11:$S$82,5,FALSE) ->  | J22: =VLOOKUP($C22,'Orçamento N_DESON.'!$D$11:$S$82,12,FALSE) ->  | K22: =IFERROR(VLOOKUP($C22,'Orçamento N_DESON.'!$D$11:$S$82,16,FALSE),0) -> 0 | L22: =VLOOKUP($C22,'Orçamento N_DESON.'!$D$11:$S$82,11,FALSE) ->  | M22: =Encargos!$F$44 -> 1.1122
A23: ='Identificação-TCE'!$A$13 -> 1 | B23: =IF(AND(G23<>"",H23>0,I23<>"",J23<>0,K23<>0),COUNT($B$11:B22)+1,"") ->  | C23: =IF('Orçamento N_DESON.'!#REF!=0,0,'Orçamento N_DESON.'!#REF!) ->  | D23: =IF('Orçamento N_DESON.'!#REF!=Aux.!$G$11,"CONTRATACAO_PUBLICA",IF(VLOOKUP($C23,'Orçamento N_DESON.'!$D$11:$G$525,3,FALSE)="INDEXADO",VLOOKUP(VLOOKUP($C23,'Orçamento N_DESON.'!$D$11:$G$525,2,FALSE),#REF!,2),VLOOKUP($C23,'Orçamento N_DESON.'!$D$11:$G$525,3,FALSE))) ->  | E23: =VLOOKUP($C23,'Orçamento N_DESON.'!$D$11:$S$82,2,FALSE) ->  | F23: =Dados!$C$7 -> 2022-03-01 | G23: =VLOOKUP($C23,'Orçamento N_DESON.'!$D$11:$S$82,4,FALSE) ->  | H23: =IFERROR(VLOOKUP($C23,'Orçamento N_DESON.'!$D$11:$S$82,6,FALSE),0) -> 0 | I23: =VLOOKUP($C23,'Orçamento N_DESON.'!$D$11:$S$82,5,FALSE) ->  | J23: =VLOOKUP($C23,'Orçamento N_DESON.'!$D$11:$S$82,12,FALSE) ->  | K23: =IFERROR(VLOOKUP($C23,'Orçamento N_DESON.'!$D$11:$S$82,16,FALSE),0) -> 0 | L23: =VLOOKUP($C23,'Orçamento N_DESON.'!$D$11:$S$82,11,FALSE) ->  | M23: =Encargos!$F$44 -> 1.1122
A24: ='Identificação-TCE'!$A$13 -> 1 | B24: =IF(AND(G24<>"",H24>0,I24<>"",J24<>0,K24<>0),COUNT($B$11:B23)+1,"") ->  | C24: =IF('Orçamento N_DESON.'!#REF!=0,0,'Orçamento N_DESON.'!#REF!) ->  | D24: =IF('Orçamento N_DESON.'!#REF!=Aux.!$G$11,"CONTRATACAO_PUBLICA",IF(VLOOKUP($C24,'Orçamento N_DESON.'!$D$11:$G$525,3,FALSE)="INDEXADO",VLOOKUP(VLOOKUP($C24,'Orçamento N_DESON.'!$D$11:$G$525,2,FALSE),#REF!,2),VLOOKUP($C24,'Orçamento N_DESON.'!$D$11:$G$525,3,FALSE))) ->  | E24: =VLOOKUP($C24,'Orçamento N_DESON.'!$D$11:$S$82,2,FALSE) ->  | F24: =Dados!$C$7 -> 2022-03-01 | G24: =VLOOKUP($C24,'Orçamento N_DESON.'!$D$11:$S$82,4,FALSE) ->  | H24: =IFERROR(VLOOKUP($C24,'Orçamento N_DESON.'!$D$11:$S$82,6,FALSE),0) -> 0 | I24: =VLOOKUP($C24,'Orçamento N_DESON.'!$D$11:$S$82,5,FALSE) ->  | J24: =VLOOKUP($C24,'Orçamento N_DESON.'!$D$11:$S$82,12,FALSE) ->  | K24: =IFERROR(VLOOKUP($C24,'Orçamento N_DESON.'!$D$11:$S$82,16,FALSE),0) -> 0 | L24: =VLOOKUP($C24,'Orçamento N_DESON.'!$D$11:$S$82,11,FALSE) ->  | M24: =Encargos!$F$44 -> 1.1122
A25: ='Identificação-TCE'!$A$13 -> 1 | B25: =IF(AND(G25<>"",H25>0,I25<>"",J25<>0,K25<>0),COUNT($B$11:B24)+1,"") ->  | C25: =IF('Orçamento N_DESON.'!#REF!=0,0,'Orçamento N_DESON.'!#REF!) ->  | D25: =IF('Orçamento N_DESON.'!#REF!=Aux.!$G$11,"CONTRATACAO_PUBLICA",IF(VLOOKUP($C25,'Orçamento N_DESON.'!$D$11:$G$525,3,FALSE)="INDEXADO",VLOOKUP(VLOOKUP($C25,'Orçamento N_DESON.'!$D$11:$G$525,2,FALSE),#REF!,2),VLOOKUP($C25,'Orçamento N_DESON.'!$D$11:$G$525,3,FALSE))) ->  | E25: =VLOOKUP($C25,'Orçamento N_DESON.'!$D$11:$S$82,2,FALSE) ->  | F25: =Dados!$C$7 -> 2022-03-01 | G25: =VLOOKUP($C25,'Orçamento N_DESON.'!$D$11:$S$82,4,FALSE) ->  | H25: =IFERROR(VLOOKUP($C25,'Orçamento N_DESON.'!$D$11:$S$82,6,FALSE),0) -> 0 | I25: =VLOOKUP($C25,'Orçamento N_DESON.'!$D$11:$S$82,5,FALSE) ->  | J25: =VLOOKUP($C25,'Orçamento N_DESON.'!$D$11:$S$82,12,FALSE) ->  | K25: =IFERROR(VLOOKUP($C25,'Orçamento N_DESON.'!$D$11:$S$82,16,FALSE),0) -> 0 | L25: =VLOOKUP($C25,'Orçamento N_DESON.'!$D$11:$S$82,11,FALSE) ->  | M25: =Encargos!$F$44 -> 1.1122
A26: ='Identificação-TCE'!$A$13 -> 1 | B26: =IF(AND(G26<>"",H26>0,I26<>"",J26<>0,K26<>0),COUNT($B$11:B25)+1,"") ->  | C26: =IF('Orçamento N_DESON.'!#REF!=0,0,'Orçamento N_DESON.'!#REF!) ->  | D26: =IF('Orçamento N_DESON.'!#REF!=Aux.!$G$11,"CONTRATACAO_PUBLICA",IF(VLOOKUP($C26,'Orçamento N_DESON.'!$D$11:$G$525,3,FALSE)="INDEXADO",VLOOKUP(VLOOKUP($C26,'Orçamento N_DESON.'!$D$11:$G$525,2,FALSE),#REF!,2),VLOOKUP($C26,'Orçamento N_DESON.'!$D$11:$G$525,3,FALSE))) ->  | E26: =VLOOKUP($C26,'Orçamento N_DESON.'!$D$11:$S$82,2,FALSE) ->  | F26: =Dados!$C$7 -> 2022-03-01 | G26: =VLOOKUP($C26,'Orçamento N_DESON.'!$D$11:$S$82,4,FALSE) ->  | H26: =IFERROR(VLOOKUP($C26,'Orçamento N_DESON.'!$D$11:$S$82,6,FALSE),0) -> 0 | I26: =VLOOKUP($C26,'Orçamento N_DESON.'!$D$11:$S$82,5,FALSE) ->  | J26: =VLOOKUP($C26,'Orçamento N_DESON.'!$D$11:$S$82,12,FALSE) ->  | K26: =IFERROR(VLOOKUP($C26,'Orçamento N_DESON.'!$D$11:$S$82,16,FALSE),0) -> 0 | L26: =VLOOKUP($C26,'Orçamento N_DESON.'!$D$11:$S$82,11,FALSE) ->  | M26: =Encargos!$F$44 -> 1.1122
A27: ='Identificação-TCE'!$A$13 -> 1 | B27: =IF(AND(G27<>"",H27>0,I27<>"",J27<>0,K27<>0),COUNT($B$11:B26)+1,"") ->  | C27: =IF('Orçamento N_DESON.'!#REF!=0,0,'Orçamento N_DESON.'!#REF!) ->  | D27: =IF('Orçamento N_DESON.'!#REF!=Aux.!$G$11,"CONTRATACAO_PUBLICA",IF(VLOOKUP($C27,'Orçamento N_DESON.'!$D$11:$G$525,3,FALSE)="INDEXADO",VLOOKUP(VLOOKUP($C27,'Orçamento N_DESON.'!$D$11:$G$525,2,FALSE),#REF!,2),VLOOKUP($C27,'Orçamento N_DESON.'!$D$11:$G$525,3,FALSE))) ->  | E27: =VLOOKUP($C27,'Orçamento N_DESON.'!$D$11:$S$82,2,FALSE) ->  | F27: =Dados!$C$7 -> 2022-03-01 | G27: =VLOOKUP($C27,'Orçamento N_DESON.'!$D$11:$S$82,4,FALSE) ->  | H27: =IFERROR(VLOOKUP($C27,'Orçamento N_DESON.'!$D$11:$S$82,6,FALSE),0) -> 0 | I27: =VLOOKUP($C27,'Orçamento N_DESON.'!$D$11:$S$82,5,FALSE) ->  | J27: =VLOOKUP($C27,'Orçamento N_DESON.'!$D$11:$S$82,12,FALSE) ->  | K27: =IFERROR(VLOOKUP($C27,'Orçamento N_DESON.'!$D$11:$S$82,16,FALSE),0) -> 0 | L27: =VLOOKUP($C27,'Orçamento N_DESON.'!$D$11:$S$82,11,FALSE) ->  | M27: =Encargos!$F$44 -> 1.1122
A28: ='Identificação-TCE'!$A$13 -> 1 | B28: =IF(AND(G28<>"",H28>0,I28<>"",J28<>0,K28<>0),COUNT($B$11:B27)+1,"") ->  | C28: =IF('Orçamento N_DESON.'!#REF!=0,0,'Orçamento N_DESON.'!#REF!) ->  | D28: =IF('Orçamento N_DESON.'!#REF!=Aux.!$G$11,"CONTRATACAO_PUBLICA",IF(VLOOKUP($C28,'Orçamento N_DESON.'!$D$11:$G$525,3,FALSE)="INDEXADO",VLOOKUP(VLOOKUP($C28,'Orçamento N_DESON.'!$D$11:$G$525,2,FALSE),#REF!,2),VLOOKUP($C28,'Orçamento N_DESON.'!$D$11:$G$525,3,FALSE))) ->  | E28: =VLOOKUP($C28,'Orçamento N_DESON.'!$D$11:$S$82,2,FALSE) ->  | F28: =Dados!$C$7 -> 2022-03-01 | G28: =VLOOKUP($C28,'Orçamento N_DESON.'!$D$11:$S$82,4,FALSE) ->  | H28: =IFERROR(VLOOKUP($C28,'Orçamento N_DESON.'!$D$11:$S$82,6,FALSE),0) -> 0 | I28: =VLOOKUP($C28,'Orçamento N_DESON.'!$D$11:$S$82,5,FALSE) ->  | J28: =VLOOKUP($C28,'Orçamento N_DESON.'!$D$11:$S$82,12,FALSE) ->  | K28: =IFERROR(VLOOKUP($C28,'Orçamento N_DESON.'!$D$11:$S$82,16,FALSE),0) -> 0 | L28: =VLOOKUP($C28,'Orçamento N_DESON.'!$D$11:$S$82,11,FALSE) ->  | M28: =Encargos!$F$44 -> 1.1122
A29: ='Identificação-TCE'!$A$13 -> 1 | B29: =IF(AND(G29<>"",H29>0,I29<>"",J29<>0,K29<>0),COUNT($B$11:B28)+1,"") ->  | C29: =IF('Orçamento N_DESON.'!#REF!=0,0,'Orçamento N_DESON.'!#REF!) ->  | D29: =IF('Orçamento N_DESON.'!#REF!=Aux.!$G$11,"CONTRATACAO_PUBLICA",IF(VLOOKUP($C29,'Orçamento N_DESON.'!$D$11:$G$525,3,FALSE)="INDEXADO",VLOOKUP(VLOOKUP($C29,'Orçamento N_DESON.'!$D$11:$G$525,2,FALSE),#REF!,2),VLOOKUP($C29,'Orçamento N_DESON.'!$D$11:$G$525,3,FALSE))) ->  | E29: =VLOOKUP($C29,'Orçamento N_DESON.'!$D$11:$S$82,2,FALSE) ->  | F29: =Dados!$C$7 -> 2022-03-01 | G29: =VLOOKUP($C29,'Orçamento N_DESON.'!$D$11:$S$82,4,FALSE) ->  | H29: =IFERROR(VLOOKUP($C29,'Orçamento N_DESON.'!$D$11:$S$82,6,FALSE),0) -> 0 | I29: =VLOOKUP($C29,'Orçamento N_DESON.'!$D$11:$S$82,5,FALSE) ->  | J29: =VLOOKUP($C29,'Orçamento N_DESON.'!$D$11:$S$82,12,FALSE) ->  | K29: =IFERROR(VLOOKUP($C29,'Orçamento N_DESON.'!$D$11:$S$82,16,FALSE),0) -> 0 | L29: =VLOOKUP($C29,'Orçamento N_DESON.'!$D$11:$S$82,11,FALSE) ->  | M29: =Encargos!$F$44 -> 1.1122
A30: ='Identificação-TCE'!$A$13 -> 1 | B30: =IF(AND(G30<>"",H30>0,I30<>"",J30<>0,K30<>0),COUNT($B$11:B29)+1,"") ->  | C30: =IF('Orçamento N_DESON.'!#REF!=0,0,'Orçamento N_DESON.'!#REF!) ->  | D30: =IF('Orçamento N_DESON.'!#REF!=Aux.!$G$11,"CONTRATACAO_PUBLICA",IF(VLOOKUP($C30,'Orçamento N_DESON.'!$D$11:$G$525,3,FALSE)="INDEXADO",VLOOKUP(VLOOKUP($C30,'Orçamento N_DESON.'!$D$11:$G$525,2,FALSE),#REF!,2),VLOOKUP($C30,'Orçamento N_DESON.'!$D$11:$G$525,3,FALSE))) ->  | E30: =VLOOKUP($C30,'Orçamento N_DESON.'!$D$11:$S$82,2,FALSE) ->  | F30: =Dados!$C$7 -> 2022-03-01 | G30: =VLOOKUP($C30,'Orçamento N_DESON.'!$D$11:$S$82,4,FALSE) ->  | H30: =IFERROR(VLOOKUP($C30,'Orçamento N_DESON.'!$D$11:$S$82,6,FALSE),0) -> 0 | I30: =VLOOKUP($C30,'Orçamento N_DESON.'!$D$11:$S$82,5,FALSE) ->  | J30: =VLOOKUP($C30,'Orçamento N_DESON.'!$D$11:$S$82,12,FALSE) ->  | K30: =IFERROR(VLOOKUP($C30,'Orçamento N_DESON.'!$D$11:$S$82,16,FALSE),0) -> 0 | L30: =VLOOKUP($C30,'Orçamento N_DESON.'!$D$11:$S$82,11,FALSE) ->  | M30: =Encargos!$F$44 -> 1.1122
A31: ='Identificação-TCE'!$A$13 -> 1 | B31: =IF(AND(G31<>"",H31>0,I31<>"",J31<>0,K31<>0),COUNT($B$11:B30)+1,"") ->  | C31: =IF('Orçamento N_DESON.'!#REF!=0,0,'Orçamento N_DESON.'!#REF!) ->  | D31: =IF('Orçamento N_DESON.'!#REF!=Aux.!$G$11,"CONTRATACAO_PUBLICA",IF(VLOOKUP($C31,'Orçamento N_DESON.'!$D$11:$G$525,3,FALSE)="INDEXADO",VLOOKUP(VLOOKUP($C31,'Orçamento N_DESON.'!$D$11:$G$525,2,FALSE),#REF!,2),VLOOKUP($C31,'Orçamento N_DESON.'!$D$11:$G$525,3,FALSE))) ->  | E31: =VLOOKUP($C31,'Orçamento N_DESON.'!$D$11:$S$82,2,FALSE) ->  | F31: =Dados!$C$7 -> 2022-03-01 | G31: =VLOOKUP($C31,'Orçamento N_DESON.'!$D$11:$S$82,4,FALSE) ->  | H31: =IFERROR(VLOOKUP($C31,'Orçamento N_DESON.'!$D$11:$S$82,6,FALSE),0) -> 0 | I31: =VLOOKUP($C31,'Orçamento N_DESON.'!$D$11:$S$82,5,FALSE) ->  | J31: =VLOOKUP($C31,'Orçamento N_DESON.'!$D$11:$S$82,12,FALSE) ->  | K31: =IFERROR(VLOOKUP($C31,'Orçamento N_DESON.'!$D$11:$S$82,16,FALSE),0) -> 0 | L31: =VLOOKUP($C31,'Orçamento N_DESON.'!$D$11:$S$82,11,FALSE) ->  | M31: =Encargos!$F$44 -> 1.1122
A32: ='Identificação-TCE'!$A$13 -> 1 | B32: =IF(AND(G32<>"",H32>0,I32<>"",J32<>0,K32<>0),COUNT($B$11:B31)+1,"") ->  | C32: =IF('Orçamento N_DESON.'!#REF!=0,0,'Orçamento N_DESON.'!#REF!) ->  | D32: =IF('Orçamento N_DESON.'!#REF!=Aux.!$G$11,"CONTRATACAO_PUBLICA",IF(VLOOKUP($C32,'Orçamento N_DESON.'!$D$11:$G$525,3,FALSE)="INDEXADO",VLOOKUP(VLOOKUP($C32,'Orçamento N_DESON.'!$D$11:$G$525,2,FALSE),#REF!,2),VLOOKUP($C32,'Orçamento N_DESON.'!$D$11:$G$525,3,FALSE))) ->  | E32: =VLOOKUP($C32,'Orçamento N_DESON.'!$D$11:$S$82,2,FALSE) ->  | F32: =Dados!$C$7 -> 2022-03-01 | G32: =VLOOKUP($C32,'Orçamento N_DESON.'!$D$11:$S$82,4,FALSE) ->  | H32: =IFERROR(VLOOKUP($C32,'Orçamento N_DESON.'!$D$11:$S$82,6,FALSE),0) -> 0 | I32: =VLOOKUP($C32,'Orçamento N_DESON.'!$D$11:$S$82,5,FALSE) ->  | J32: =VLOOKUP($C32,'Orçamento N_DESON.'!$D$11:$S$82,12,FALSE) ->  | K32: =IFERROR(VLOOKUP($C32,'Orçamento N_DESON.'!$D$11:$S$82,16,FALSE),0) -> 0 | L32: =VLOOKUP($C32,'Orçamento N_DESON.'!$D$11:$S$82,11,FALSE) ->  | M32: =Encargos!$F$44 -> 1.1122
A33: ='Identificação-TCE'!$A$13 -> 1 | B33: =IF(AND(G33<>"",H33>0,I33<>"",J33<>0,K33<>0),COUNT($B$11:B32)+1,"") ->  | C33: =IF('Orçamento N_DESON.'!#REF!=0,0,'Orçamento N_DESON.'!#REF!) ->  | D33: =IF('Orçamento N_DESON.'!#REF!=Aux.!$G$11,"CONTRATACAO_PUBLICA",IF(VLOOKUP($C33,'Orçamento N_DESON.'!$D$11:$G$525,3,FALSE)="INDEXADO",VLOOKUP(VLOOKUP($C33,'Orçamento N_DESON.'!$D$11:$G$525,2,FALSE),#REF!,2),VLOOKUP($C33,'Orçamento N_DESON.'!$D$11:$G$525,3,FALSE))) ->  | E33: =VLOOKUP($C33,'Orçamento N_DESON.'!$D$11:$S$82,2,FALSE) ->  | F33: =Dados!$C$7 -> 2022-03-01 | G33: =VLOOKUP($C33,'Orçamento N_DESON.'!$D$11:$S$82,4,FALSE) ->  | H33: =IFERROR(VLOOKUP($C33,'Orçamento N_DESON.'!$D$11:$S$82,6,FALSE),0) -> 0 | I33: =VLOOKUP($C33,'Orçamento N_DESON.'!$D$11:$S$82,5,FALSE) ->  | J33: =VLOOKUP($C33,'Orçamento N_DESON.'!$D$11:$S$82,12,FALSE) ->  | K33: =IFERROR(VLOOKUP($C33,'Orçamento N_DESON.'!$D$11:$S$82,16,FALSE),0) -> 0 | L33: =VLOOKUP($C33,'Orçamento N_DESON.'!$D$11:$S$82,11,FALSE) ->  | M33: =Encargos!$F$44 -> 1.1122
A34: ='Identificação-TCE'!$A$13 -> 1 | B34: =IF(AND(G34<>"",H34>0,I34<>"",J34<>0,K34<>0),COUNT($B$11:B33)+1,"") ->  | C34: =IF('Orçamento N_DESON.'!#REF!=0,0,'Orçamento N_DESON.'!#REF!) ->  | D34: =IF('Orçamento N_DESON.'!#REF!=Aux.!$G$11,"CONTRATACAO_PUBLICA",IF(VLOOKUP($C34,'Orçamento N_DESON.'!$D$11:$G$525,3,FALSE)="INDEXADO",VLOOKUP(VLOOKUP($C34,'Orçamento N_DESON.'!$D$11:$G$525,2,FALSE),#REF!,2),VLOOKUP($C34,'Orçamento N_DESON.'!$D$11:$G$525,3,FALSE))) ->  | E34: =VLOOKUP($C34,'Orçamento N_DESON.'!$D$11:$S$82,2,FALSE) ->  | F34: =Dados!$C$7 -> 2022-03-01 | G34: =VLOOKUP($C34,'Orçamento N_DESON.'!$D$11:$S$82,4,FALSE) ->  | H34: =IFERROR(VLOOKUP($C34,'Orçamento N_DESON.'!$D$11:$S$82,6,FALSE),0) -> 0 | I34: =VLOOKUP($C34,'Orçamento N_DESON.'!$D$11:$S$82,5,FALSE) ->  | J34: =VLOOKUP($C34,'Orçamento N_DESON.'!$D$11:$S$82,12,FALSE) ->  | K34: =IFERROR(VLOOKUP($C34,'Orçamento N_DESON.'!$D$11:$S$82,16,FALSE),0) -> 0 | L34: =VLOOKUP($C34,'Orçamento N_DESON.'!$D$11:$S$82,11,FALSE) ->  | M34: =Encargos!$F$44 -> 1.1122
A35: ='Identificação-TCE'!$A$13 -> 1 | B35: =IF(AND(G35<>"",H35>0,I35<>"",J35<>0,K35<>0),COUNT($B$11:B34)+1,"") ->  | C35: =IF('Orçamento N_DESON.'!#REF!=0,0,'Orçamento N_DESON.'!#REF!) ->  | D35: =IF('Orçamento N_DESON.'!#REF!=Aux.!$G$11,"CONTRATACAO_PUBLICA",IF(VLOOKUP($C35,'Orçamento N_DESON.'!$D$11:$G$525,3,FALSE)="INDEXADO",VLOOKUP(VLOOKUP($C35,'Orçamento N_DESON.'!$D$11:$G$525,2,FALSE),#REF!,2),VLOOKUP($C35,'Orçamento N_DESON.'!$D$11:$G$525,3,FALSE))) ->  | E35: =VLOOKUP($C35,'Orçamento N_DESON.'!$D$11:$S$82,2,FALSE) ->  | F35: =Dados!$C$7 -> 2022-03-01 | G35: =VLOOKUP($C35,'Orçamento N_DESON.'!$D$11:$S$82,4,FALSE) ->  | H35: =IFERROR(VLOOKUP($C35,'Orçamento N_DESON.'!$D$11:$S$82,6,FALSE),0) -> 0 | I35: =VLOOKUP($C35,'Orçamento N_DESON.'!$D$11:$S$82,5,FALSE) ->  | J35: =VLOOKUP($C35,'Orçamento N_DESON.'!$D$11:$S$82,12,FALSE) ->  | K35: =IFERROR(VLOOKUP($C35,'Orçamento N_DESON.'!$D$11:$S$82,16,FALSE),0) -> 0 | L35: =VLOOKUP($C35,'Orçamento N_DESON.'!$D$11:$S$82,11,FALSE) ->  | M35: =Encargos!$F$44 -> 1.1122
A36: ='Identificação-TCE'!$A$13 -> 1 | B36: =IF(AND(G36<>"",H36>0,I36<>"",J36<>0,K36<>0),COUNT($B$11:B35)+1,"") ->  | C36: =IF('Orçamento N_DESON.'!#REF!=0,0,'Orçamento N_DESON.'!#REF!) ->  | D36: =IF('Orçamento N_DESON.'!#REF!=Aux.!$G$11,"CONTRATACAO_PUBLICA",IF(VLOOKUP($C36,'Orçamento N_DESON.'!$D$11:$G$525,3,FALSE)="INDEXADO",VLOOKUP(VLOOKUP($C36,'Orçamento N_DESON.'!$D$11:$G$525,2,FALSE),#REF!,2),VLOOKUP($C36,'Orçamento N_DESON.'!$D$11:$G$525,3,FALSE))) ->  | E36: =VLOOKUP($C36,'Orçamento N_DESON.'!$D$11:$S$82,2,FALSE) ->  | F36: =Dados!$C$7 -> 2022-03-01 | G36: =VLOOKUP($C36,'Orçamento N_DESON.'!$D$11:$S$82,4,FALSE) ->  | H36: =IFERROR(VLOOKUP($C36,'Orçamento N_DESON.'!$D$11:$S$82,6,FALSE),0) -> 0 | I36: =VLOOKUP($C36,'Orçamento N_DESON.'!$D$11:$S$82,5,FALSE) ->  | J36: =VLOOKUP($C36,'Orçamento N_DESON.'!$D$11:$S$82,12,FALSE) ->  | K36: =IFERROR(VLOOKUP($C36,'Orçamento N_DESON.'!$D$11:$S$82,16,FALSE),0) -> 0 | L36: =VLOOKUP($C36,'Orçamento N_DESON.'!$D$11:$S$82,11,FALSE) ->  | M36: =Encargos!$F$44 -> 1.1122
A37: ='Identificação-TCE'!$A$13 -> 1 | B37: =IF(AND(G37<>"",H37>0,I37<>"",J37<>0,K37<>0),COUNT($B$11:B36)+1,"") ->  | C37: =IF('Orçamento N_DESON.'!#REF!=0,0,'Orçamento N_DESON.'!#REF!) ->  | D37: =IF('Orçamento N_DESON.'!#REF!=Aux.!$G$11,"CONTRATACAO_PUBLICA",IF(VLOOKUP($C37,'Orçamento N_DESON.'!$D$11:$G$525,3,FALSE)="INDEXADO",VLOOKUP(VLOOKUP($C37,'Orçamento N_DESON.'!$D$11:$G$525,2,FALSE),#REF!,2),VLOOKUP($C37,'Orçamento N_DESON.'!$D$11:$G$525,3,FALSE))) ->  | E37: =VLOOKUP($C37,'Orçamento N_DESON.'!$D$11:$S$82,2,FALSE) ->  | F37: =Dados!$C$7 -> 2022-03-01 | G37: =VLOOKUP($C37,'Orçamento N_DESON.'!$D$11:$S$82,4,FALSE) ->  | H37: =IFERROR(VLOOKUP($C37,'Orçamento N_DESON.'!$D$11:$S$82,6,FALSE),0) -> 0 | I37: =VLOOKUP($C37,'Orçamento N_DESON.'!$D$11:$S$82,5,FALSE) ->  | J37: =VLOOKUP($C37,'Orçamento N_DESON.'!$D$11:$S$82,12,FALSE) ->  | K37: =IFERROR(VLOOKUP($C37,'Orçamento N_DESON.'!$D$11:$S$82,16,FALSE),0) -> 0 | L37: =VLOOKUP($C37,'Orçamento N_DESON.'!$D$11:$S$82,11,FALSE) ->  | M37: =Encargos!$F$44 -> 1.1122
A38: ='Identificação-TCE'!$A$13 -> 1 | B38: =IF(AND(G38<>"",H38>0,I38<>"",J38<>0,K38<>0),COUNT($B$11:B37)+1,"") ->  | C38: =IF('Orçamento N_DESON.'!#REF!=0,0,'Orçamento N_DESON.'!#REF!) ->  | D38: =IF('Orçamento N_DESON.'!#REF!=Aux.!$G$11,"CONTRATACAO_PUBLICA",IF(VLOOKUP($C38,'Orçamento N_DESON.'!$D$11:$G$525,3,FALSE)="INDEXADO",VLOOKUP(VLOOKUP($C38,'Orçamento N_DESON.'!$D$11:$G$525,2,FALSE),#REF!,2),VLOOKUP($C38,'Orçamento N_DESON.'!$D$11:$G$525,3,FALSE))) ->  | E38: =VLOOKUP($C38,'Orçamento N_DESON.'!$D$11:$S$82,2,FALSE) ->  | F38: =Dados!$C$7 -> 2022-03-01 | G38: =VLOOKUP($C38,'Orçamento N_DESON.'!$D$11:$S$82,4,FALSE) ->  | H38: =IFERROR(VLOOKUP($C38,'Orçamento N_DESON.'!$D$11:$S$82,6,FALSE),0) -> 0 | I38: =VLOOKUP($C38,'Orçamento N_DESON.'!$D$11:$S$82,5,FALSE) ->  | J38: =VLOOKUP($C38,'Orçamento N_DESON.'!$D$11:$S$82,12,FALSE) ->  | K38: =IFERROR(VLOOKUP($C38,'Orçamento N_DESON.'!$D$11:$S$82,16,FALSE),0) -> 0 | L38: =VLOOKUP($C38,'Orçamento N_DESON.'!$D$11:$S$82,11,FALSE) ->  | M38: =Encargos!$F$44 -> 1.1122
A39: ='Identificação-TCE'!$A$13 -> 1 | B39: =IF(AND(G39<>"",H39>0,I39<>"",J39<>0,K39<>0),COUNT($B$11:B38)+1,"") ->  | C39: =IF('Orçamento N_DESON.'!#REF!=0,0,'Orçamento N_DESON.'!#REF!) ->  | D39: =IF('Orçamento N_DESON.'!#REF!=Aux.!$G$11,"CONTRATACAO_PUBLICA",IF(VLOOKUP($C39,'Orçamento N_DESON.'!$D$11:$G$525,3,FALSE)="INDEXADO",VLOOKUP(VLOOKUP($C39,'Orçamento N_DESON.'!$D$11:$G$525,2,FALSE),#REF!,2),VLOOKUP($C39,'Orçamento N_DESON.'!$D$11:$G$525,3,FALSE))) ->  | E39: =VLOOKUP($C39,'Orçamento N_DESON.'!$D$11:$S$82,2,FALSE) ->  | F39: =Dados!$C$7 -> 2022-03-01 | G39: =VLOOKUP($C39,'Orçamento N_DESON.'!$D$11:$S$82,4,FALSE) ->  | H39: =IFERROR(VLOOKUP($C39,'Orçamento N_DESON.'!$D$11:$S$82,6,FALSE),0) -> 0 | I39: =VLOOKUP($C39,'Orçamento N_DESON.'!$D$11:$S$82,5,FALSE) ->  | J39: =VLOOKUP($C39,'Orçamento N_DESON.'!$D$11:$S$82,12,FALSE) ->  | K39: =IFERROR(VLOOKUP($C39,'Orçamento N_DESON.'!$D$11:$S$82,16,FALSE),0) -> 0 | L39: =VLOOKUP($C39,'Orçamento N_DESON.'!$D$11:$S$82,11,FALSE) ->  | M39: =Encargos!$F$44 -> 1.1122
A40: ='Identificação-TCE'!$A$13 -> 1 | B40: =IF(AND(G40<>"",H40>0,I40<>"",J40<>0,K40<>0),COUNT($B$11:B39)+1,"") ->  | C40: =IF('Orçamento N_DESON.'!#REF!=0,0,'Orçamento N_DESON.'!#REF!) ->  | D40: =IF('Orçamento N_DESON.'!#REF!=Aux.!$G$11,"CONTRATACAO_PUBLICA",IF(VLOOKUP($C40,'Orçamento N_DESON.'!$D$11:$G$525,3,FALSE)="INDEXADO",VLOOKUP(VLOOKUP($C40,'Orçamento N_DESON.'!$D$11:$G$525,2,FALSE),#REF!,2),VLOOKUP($C40,'Orçamento N_DESON.'!$D$11:$G$525,3,FALSE))) ->  | E40: =VLOOKUP($C40,'Orçamento N_DESON.'!$D$11:$S$82,2,FALSE) ->  | F40: =Dados!$C$7 -> 2022-03-01 | G40: =VLOOKUP($C40,'Orçamento N_DESON.'!$D$11:$S$82,4,FALSE) ->  | H40: =IFERROR(VLOOKUP($C40,'Orçamento N_DESON.'!$D$11:$S$82,6,FALSE),0) -> 0 | I40: =VLOOKUP($C40,'Orçamento N_DESON.'!$D$11:$S$82,5,FALSE) ->  | J40: =VLOOKUP($C40,'Orçamento N_DESON.'!$D$11:$S$82,12,FALSE) ->  | K40: =IFERROR(VLOOKUP($C40,'Orçamento N_DESON.'!$D$11:$S$82,16,FALSE),0) -> 0 | L40: =VLOOKUP($C40,'Orçamento N_DESON.'!$D$11:$S$82,11,FALSE) ->  | M40: =Encargos!$F$44 -> 1.1122
A41: ='Identificação-TCE'!$A$13 -> 1 | B41: =IF(AND(G41<>"",H41>0,I41<>"",J41<>0,K41<>0),COUNT($B$11:B40)+1,"") ->  | C41: =IF('Orçamento N_DESON.'!#REF!=0,0,'Orçamento N_DESON.'!#REF!) ->  | D41: =IF('Orçamento N_DESON.'!#REF!=Aux.!$G$11,"CONTRATACAO_PUBLICA",IF(VLOOKUP($C41,'Orçamento N_DESON.'!$D$11:$G$525,3,FALSE)="INDEXADO",VLOOKUP(VLOOKUP($C41,'Orçamento N_DESON.'!$D$11:$G$525,2,FALSE),#REF!,2),VLOOKUP($C41,'Orçamento N_DESON.'!$D$11:$G$525,3,FALSE))) ->  | E41: =VLOOKUP($C41,'Orçamento N_DESON.'!$D$11:$S$82,2,FALSE) ->  | F41: =Dados!$C$7 -> 2022-03-01 | G41: =VLOOKUP($C41,'Orçamento N_DESON.'!$D$11:$S$82,4,FALSE) ->  | H41: =IFERROR(VLOOKUP($C41,'Orçamento N_DESON.'!$D$11:$S$82,6,FALSE),0) -> 0 | I41: =VLOOKUP($C41,'Orçamento N_DESON.'!$D$11:$S$82,5,FALSE) ->  | J41: =VLOOKUP($C41,'Orçamento N_DESON.'!$D$11:$S$82,12,FALSE) ->  | K41: =IFERROR(VLOOKUP($C41,'Orçamento N_DESON.'!$D$11:$S$82,16,FALSE),0) -> 0 | L41: =VLOOKUP($C41,'Orçamento N_DESON.'!$D$11:$S$82,11,FALSE) ->  | M41: =Encargos!$F$44 -> 1.1122
A42: ='Identificação-TCE'!$A$13 -> 1 | B42: =IF(AND(G42<>"",H42>0,I42<>"",J42<>0,K42<>0),COUNT($B$11:B41)+1,"") ->  | C42: =IF('Orçamento N_DESON.'!#REF!=0,0,'Orçamento N_DESON.'!#REF!) ->  | D42: =IF('Orçamento N_DESON.'!#REF!=Aux.!$G$11,"CONTRATACAO_PUBLICA",IF(VLOOKUP($C42,'Orçamento N_DESON.'!$D$11:$G$525,3,FALSE)="INDEXADO",VLOOKUP(VLOOKUP($C42,'Orçamento N_DESON.'!$D$11:$G$525,2,FALSE),#REF!,2),VLOOKUP($C42,'Orçamento N_DESON.'!$D$11:$G$525,3,FALSE))) ->  | E42: =VLOOKUP($C42,'Orçamento N_DESON.'!$D$11:$S$82,2,FALSE) ->  | F42: =Dados!$C$7 -> 2022-03-01 | G42: =VLOOKUP($C42,'Orçamento N_DESON.'!$D$11:$S$82,4,FALSE) ->  | H42: =IFERROR(VLOOKUP($C42,'Orçamento N_DESON.'!$D$11:$S$82,6,FALSE),0) -> 0 | I42: =VLOOKUP($C42,'Orçamento N_DESON.'!$D$11:$S$82,5,FALSE) ->  | J42: =VLOOKUP($C42,'Orçamento N_DESON.'!$D$11:$S$82,12,FALSE) ->  | K42: =IFERROR(VLOOKUP($C42,'Orçamento N_DESON.'!$D$11:$S$82,16,FALSE),0) -> 0 | L42: =VLOOKUP($C42,'Orçamento N_DESON.'!$D$11:$S$82,11,FALSE) ->  | M42: =Encargos!$F$44 -> 1.1122
A43: ='Identificação-TCE'!$A$13 -> 1 | B43: =IF(AND(G43<>"",H43>0,I43<>"",J43<>0,K43<>0),COUNT($B$11:B42)+1,"") ->  | C43: =IF('Orçamento N_DESON.'!#REF!=0,0,'Orçamento N_DESON.'!#REF!) ->  | D43: =IF('Orçamento N_DESON.'!#REF!=Aux.!$G$11,"CONTRATACAO_PUBLICA",IF(VLOOKUP($C43,'Orçamento N_DESON.'!$D$11:$G$525,3,FALSE)="INDEXADO",VLOOKUP(VLOOKUP($C43,'Orçamento N_DESON.'!$D$11:$G$525,2,FALSE),#REF!,2),VLOOKUP($C43,'Orçamento N_DESON.'!$D$11:$G$525,3,FALSE))) ->  | E43: =VLOOKUP($C43,'Orçamento N_DESON.'!$D$11:$S$82,2,FALSE) ->  | F43: =Dados!$C$7 -> 2022-03-01 | G43: =VLOOKUP($C43,'Orçamento N_DESON.'!$D$11:$S$82,4,FALSE) ->  | H43: =IFERROR(VLOOKUP($C43,'Orçamento N_DESON.'!$D$11:$S$82,6,FALSE),0) -> 0 | I43: =VLOOKUP($C43,'Orçamento N_DESON.'!$D$11:$S$82,5,FALSE) ->  | J43: =VLOOKUP($C43,'Orçamento N_DESON.'!$D$11:$S$82,12,FALSE) ->  | K43: =IFERROR(VLOOKUP($C43,'Orçamento N_DESON.'!$D$11:$S$82,16,FALSE),0) -> 0 | L43: =VLOOKUP($C43,'Orçamento N_DESON.'!$D$11:$S$82,11,FALSE) ->  | M43: =Encargos!$F$44 -> 1.1122
A44: ='Identificação-TCE'!$A$13 -> 1 | B44: =IF(AND(G44<>"",H44>0,I44<>"",J44<>0,K44<>0),COUNT($B$11:B43)+1,"") ->  | C44: =IF('Orçamento N_DESON.'!#REF!=0,0,'Orçamento N_DESON.'!#REF!) ->  | D44: =IF('Orçamento N_DESON.'!#REF!=Aux.!$G$11,"CONTRATACAO_PUBLICA",IF(VLOOKUP($C44,'Orçamento N_DESON.'!$D$11:$G$525,3,FALSE)="INDEXADO",VLOOKUP(VLOOKUP($C44,'Orçamento N_DESON.'!$D$11:$G$525,2,FALSE),#REF!,2),VLOOKUP($C44,'Orçamento N_DESON.'!$D$11:$G$525,3,FALSE))) ->  | E44: =VLOOKUP($C44,'Orçamento N_DESON.'!$D$11:$S$82,2,FALSE) ->  | F44: =Dados!$C$7 -> 2022-03-01 | G44: =VLOOKUP($C44,'Orçamento N_DESON.'!$D$11:$S$82,4,FALSE) ->  | H44: =IFERROR(VLOOKUP($C44,'Orçamento N_DESON.'!$D$11:$S$82,6,FALSE),0) -> 0 | I44: =VLOOKUP($C44,'Orçamento N_DESON.'!$D$11:$S$82,5,FALSE) ->  | J44: =VLOOKUP($C44,'Orçamento N_DESON.'!$D$11:$S$82,12,FALSE) ->  | K44: =IFERROR(VLOOKUP($C44,'Orçamento N_DESON.'!$D$11:$S$82,16,FALSE),0) -> 0 | L44: =VLOOKUP($C44,'Orçamento N_DESON.'!$D$11:$S$82,11,FALSE) ->  | M44: =Encargos!$F$44 -> 1.1122
A45: ='Identificação-TCE'!$A$13 -> 1 | B45: =IF(AND(G45<>"",H45>0,I45<>"",J45<>0,K45<>0),COUNT($B$11:B44)+1,"") ->  | C45: =IF('Orçamento N_DESON.'!#REF!=0,0,'Orçamento N_DESON.'!#REF!) ->  | D45: =IF('Orçamento N_DESON.'!#REF!=Aux.!$G$11,"CONTRATACAO_PUBLICA",IF(VLOOKUP($C45,'Orçamento N_DESON.'!$D$11:$G$525,3,FALSE)="INDEXADO",VLOOKUP(VLOOKUP($C45,'Orçamento N_DESON.'!$D$11:$G$525,2,FALSE),#REF!,2),VLOOKUP($C45,'Orçamento N_DESON.'!$D$11:$G$525,3,FALSE))) ->  | E45: =VLOOKUP($C45,'Orçamento N_DESON.'!$D$11:$S$82,2,FALSE) ->  | F45: =Dados!$C$7 -> 2022-03-01 | G45: =VLOOKUP($C45,'Orçamento N_DESON.'!$D$11:$S$82,4,FALSE) ->  | H45: =IFERROR(VLOOKUP($C45,'Orçamento N_DESON.'!$D$11:$S$82,6,FALSE),0) -> 0 | I45: =VLOOKUP($C45,'Orçamento N_DESON.'!$D$11:$S$82,5,FALSE) ->  | J45: =VLOOKUP($C45,'Orçamento N_DESON.'!$D$11:$S$82,12,FALSE) ->  | K45: =IFERROR(VLOOKUP($C45,'Orçamento N_DESON.'!$D$11:$S$82,16,FALSE),0) -> 0 | L45: =VLOOKUP($C45,'Orçamento N_DESON.'!$D$11:$S$82,11,FALSE) ->  | M45: =Encargos!$F$44 -> 1.1122
A46: ='Identificação-TCE'!$A$13 -> 1 | B46: =IF(AND(G46<>"",H46>0,I46<>"",J46<>0,K46<>0),COUNT($B$11:B45)+1,"") ->  | C46: =IF('Orçamento N_DESON.'!#REF!=0,0,'Orçamento N_DESON.'!#REF!) ->  | D46: =IF('Orçamento N_DESON.'!#REF!=Aux.!$G$11,"CONTRATACAO_PUBLICA",IF(VLOOKUP($C46,'Orçamento N_DESON.'!$D$11:$G$525,3,FALSE)="INDEXADO",VLOOKUP(VLOOKUP($C46,'Orçamento N_DESON.'!$D$11:$G$525,2,FALSE),#REF!,2),VLOOKUP($C46,'Orçamento N_DESON.'!$D$11:$G$525,3,FALSE))) ->  | E46: =VLOOKUP($C46,'Orçamento N_DESON.'!$D$11:$S$82,2,FALSE) ->  | F46: =Dados!$C$7 -> 2022-03-01 | G46: =VLOOKUP($C46,'Orçamento N_DESON.'!$D$11:$S$82,4,FALSE) ->  | H46: =IFERROR(VLOOKUP($C46,'Orçamento N_DESON.'!$D$11:$S$82,6,FALSE),0) -> 0 | I46: =VLOOKUP($C46,'Orçamento N_DESON.'!$D$11:$S$82,5,FALSE) ->  | J46: =VLOOKUP($C46,'Orçamento N_DESON.'!$D$11:$S$82,12,FALSE) ->  | K46: =IFERROR(VLOOKUP($C46,'Orçamento N_DESON.'!$D$11:$S$82,16,FALSE),0) -> 0 | L46: =VLOOKUP($C46,'Orçamento N_DESON.'!$D$11:$S$82,11,FALSE) ->  | M46: =Encargos!$F$44 -> 1.1122
A47: ='Identificação-TCE'!$A$13 -> 1 | B47: =IF(AND(G47<>"",H47>0,I47<>"",J47<>0,K47<>0),COUNT($B$11:B46)+1,"") ->  | C47: =IF('Orçamento N_DESON.'!#REF!=0,0,'Orçamento N_DESON.'!#REF!) ->  | D47: =IF('Orçamento N_DESON.'!#REF!=Aux.!$G$11,"CONTRATACAO_PUBLICA",IF(VLOOKUP($C47,'Orçamento N_DESON.'!$D$11:$G$525,3,FALSE)="INDEXADO",VLOOKUP(VLOOKUP($C47,'Orçamento N_DESON.'!$D$11:$G$525,2,FALSE),#REF!,2),VLOOKUP($C47,'Orçamento N_DESON.'!$D$11:$G$525,3,FALSE))) ->  | E47: =VLOOKUP($C47,'Orçamento N_DESON.'!$D$11:$S$82,2,FALSE) ->  | F47: =Dados!$C$7 -> 2022-03-01 | G47: =VLOOKUP($C47,'Orçamento N_DESON.'!$D$11:$S$82,4,FALSE) ->  | H47: =IFERROR(VLOOKUP($C47,'Orçamento N_DESON.'!$D$11:$S$82,6,FALSE),0) -> 0 | I47: =VLOOKUP($C47,'Orçamento N_DESON.'!$D$11:$S$82,5,FALSE) ->  | J47: =VLOOKUP($C47,'Orçamento N_DESON.'!$D$11:$S$82,12,FALSE) ->  | K47: =IFERROR(VLOOKUP($C47,'Orçamento N_DESON.'!$D$11:$S$82,16,FALSE),0) -> 0 | L47: =VLOOKUP($C47,'Orçamento N_DESON.'!$D$11:$S$82,11,FALSE) ->  | M47: =Encargos!$F$44 -> 1.1122
A48: ='Identificação-TCE'!$A$13 -> 1 | B48: =IF(AND(G48<>"",H48>0,I48<>"",J48<>0,K48<>0),COUNT($B$11:B47)+1,"") ->  | C48: =IF('Orçamento N_DESON.'!#REF!=0,0,'Orçamento N_DESON.'!#REF!) ->  | D48: =IF('Orçamento N_DESON.'!#REF!=Aux.!$G$11,"CONTRATACAO_PUBLICA",IF(VLOOKUP($C48,'Orçamento N_DESON.'!$D$11:$G$525,3,FALSE)="INDEXADO",VLOOKUP(VLOOKUP($C48,'Orçamento N_DESON.'!$D$11:$G$525,2,FALSE),#REF!,2),VLOOKUP($C48,'Orçamento N_DESON.'!$D$11:$G$525,3,FALSE))) ->  | E48: =VLOOKUP($C48,'Orçamento N_DESON.'!$D$11:$S$82,2,FALSE) ->  | F48: =Dados!$C$7 -> 2022-03-01 | G48: =VLOOKUP($C48,'Orçamento N_DESON.'!$D$11:$S$82,4,FALSE) ->  | H48: =IFERROR(VLOOKUP($C48,'Orçamento N_DESON.'!$D$11:$S$82,6,FALSE),0) -> 0 | I48: =VLOOKUP($C48,'Orçamento N_DESON.'!$D$11:$S$82,5,FALSE) ->  | J48: =VLOOKUP($C48,'Orçamento N_DESON.'!$D$11:$S$82,12,FALSE) ->  | K48: =IFERROR(VLOOKUP($C48,'Orçamento N_DESON.'!$D$11:$S$82,16,FALSE),0) -> 0 | L48: =VLOOKUP($C48,'Orçamento N_DESON.'!$D$11:$S$82,11,FALSE) ->  | M48: =Encargos!$F$44 -> 1.1122
A49: ='Identificação-TCE'!$A$13 -> 1 | B49: =IF(AND(G49<>"",H49>0,I49<>"",J49<>0,K49<>0),COUNT($B$11:B48)+1,"") ->  | C49: =IF('Orçamento N_DESON.'!#REF!=0,0,'Orçamento N_DESON.'!#REF!) ->  | D49: =IF('Orçamento N_DESON.'!#REF!=Aux.!$G$11,"CONTRATACAO_PUBLICA",IF(VLOOKUP($C49,'Orçamento N_DESON.'!$D$11:$G$525,3,FALSE)="INDEXADO",VLOOKUP(VLOOKUP($C49,'Orçamento N_DESON.'!$D$11:$G$525,2,FALSE),#REF!,2),VLOOKUP($C49,'Orçamento N_DESON.'!$D$11:$G$525,3,FALSE))) ->  | E49: =VLOOKUP($C49,'Orçamento N_DESON.'!$D$11:$S$82,2,FALSE) ->  | F49: =Dados!$C$7 -> 2022-03-01 | G49: =VLOOKUP($C49,'Orçamento N_DESON.'!$D$11:$S$82,4,FALSE) ->  | H49: =IFERROR(VLOOKUP($C49,'Orçamento N_DESON.'!$D$11:$S$82,6,FALSE),0) -> 0 | I49: =VLOOKUP($C49,'Orçamento N_DESON.'!$D$11:$S$82,5,FALSE) ->  | J49: =VLOOKUP($C49,'Orçamento N_DESON.'!$D$11:$S$82,12,FALSE) ->  | K49: =IFERROR(VLOOKUP($C49,'Orçamento N_DESON.'!$D$11:$S$82,16,FALSE),0) -> 0 | L49: =VLOOKUP($C49,'Orçamento N_DESON.'!$D$11:$S$82,11,FALSE) ->  | M49: =Encargos!$F$44 -> 1.1122
A50: ='Identificação-TCE'!$A$13 -> 1 | B50: =IF(AND(G50<>"",H50>0,I50<>"",J50<>0,K50<>0),COUNT($B$11:B49)+1,"") ->  | C50: =IF('Orçamento N_DESON.'!#REF!=0,0,'Orçamento N_DESON.'!#REF!) ->  | D50: =IF('Orçamento N_DESON.'!#REF!=Aux.!$G$11,"CONTRATACAO_PUBLICA",IF(VLOOKUP($C50,'Orçamento N_DESON.'!$D$11:$G$525,3,FALSE)="INDEXADO",VLOOKUP(VLOOKUP($C50,'Orçamento N_DESON.'!$D$11:$G$525,2,FALSE),#REF!,2),VLOOKUP($C50,'Orçamento N_DESON.'!$D$11:$G$525,3,FALSE))) ->  | E50: =VLOOKUP($C50,'Orçamento N_DESON.'!$D$11:$S$82,2,FALSE) ->  | F50: =Dados!$C$7 -> 2022-03-01 | G50: =VLOOKUP($C50,'Orçamento N_DESON.'!$D$11:$S$82,4,FALSE) ->  | H50: =IFERROR(VLOOKUP($C50,'Orçamento N_DESON.'!$D$11:$S$82,6,FALSE),0) -> 0 | I50: =VLOOKUP($C50,'Orçamento N_DESON.'!$D$11:$S$82,5,FALSE) ->  | J50: =VLOOKUP($C50,'Orçamento N_DESON.'!$D$11:$S$82,12,FALSE) ->  | K50: =IFERROR(VLOOKUP($C50,'Orçamento N_DESON.'!$D$11:$S$82,16,FALSE),0) -> 0 | L50: =VLOOKUP($C50,'Orçamento N_DESON.'!$D$11:$S$82,11,FALSE) ->  | M50: =Encargos!$F$44 -> 1.1122
A51: ='Identificação-TCE'!$A$13 -> 1 | B51: =IF(AND(G51<>"",H51>0,I51<>"",J51<>0,K51<>0),COUNT($B$11:B50)+1,"") ->  | C51: =IF('Orçamento N_DESON.'!#REF!=0,0,'Orçamento N_DESON.'!#REF!) ->  | D51: =IF('Orçamento N_DESON.'!#REF!=Aux.!$G$11,"CONTRATACAO_PUBLICA",IF(VLOOKUP($C51,'Orçamento N_DESON.'!$D$11:$G$525,3,FALSE)="INDEXADO",VLOOKUP(VLOOKUP($C51,'Orçamento N_DESON.'!$D$11:$G$525,2,FALSE),#REF!,2),VLOOKUP($C51,'Orçamento N_DESON.'!$D$11:$G$525,3,FALSE))) ->  | E51: =VLOOKUP($C51,'Orçamento N_DESON.'!$D$11:$S$82,2,FALSE) ->  | F51: =Dados!$C$7 -> 2022-03-01 | G51: =VLOOKUP($C51,'Orçamento N_DESON.'!$D$11:$S$82,4,FALSE) ->  | H51: =IFERROR(VLOOKUP($C51,'Orçamento N_DESON.'!$D$11:$S$82,6,FALSE),0) -> 0 | I51: =VLOOKUP($C51,'Orçamento N_DESON.'!$D$11:$S$82,5,FALSE) ->  | J51: =VLOOKUP($C51,'Orçamento N_DESON.'!$D$11:$S$82,12,FALSE) ->  | K51: =IFERROR(VLOOKUP($C51,'Orçamento N_DESON.'!$D$11:$S$82,16,FALSE),0) -> 0 | L51: =VLOOKUP($C51,'Orçamento N_DESON.'!$D$11:$S$82,11,FALSE) ->  | M51: =Encargos!$F$44 -> 1.1122
A52: ='Identificação-TCE'!$A$13 -> 1 | B52: =IF(AND(G52<>"",H52>0,I52<>"",J52<>0,K52<>0),COUNT($B$11:B51)+1,"") ->  | C52: =IF('Orçamento N_DESON.'!#REF!=0,0,'Orçamento N_DESON.'!#REF!) ->  | D52: =IF('Orçamento N_DESON.'!#REF!=Aux.!$G$11,"CONTRATACAO_PUBLICA",IF(VLOOKUP($C52,'Orçamento N_DESON.'!$D$11:$G$525,3,FALSE)="INDEXADO",VLOOKUP(VLOOKUP($C52,'Orçamento N_DESON.'!$D$11:$G$525,2,FALSE),#REF!,2),VLOOKUP($C52,'Orçamento N_DESON.'!$D$11:$G$525,3,FALSE))) ->  | E52: =VLOOKUP($C52,'Orçamento N_DESON.'!$D$11:$S$82,2,FALSE) ->  | F52: =Dados!$C$7 -> 2022-03-01 | G52: =VLOOKUP($C52,'Orçamento N_DESON.'!$D$11:$S$82,4,FALSE) ->  | H52: =IFERROR(VLOOKUP($C52,'Orçamento N_DESON.'!$D$11:$S$82,6,FALSE),0) -> 0 | I52: =VLOOKUP($C52,'Orçamento N_DESON.'!$D$11:$S$82,5,FALSE) ->  | J52: =VLOOKUP($C52,'Orçamento N_DESON.'!$D$11:$S$82,12,FALSE) ->  | K52: =IFERROR(VLOOKUP($C52,'Orçamento N_DESON.'!$D$11:$S$82,16,FALSE),0) -> 0 | L52: =VLOOKUP($C52,'Orçamento N_DESON.'!$D$11:$S$82,11,FALSE) ->  | M52: =Encargos!$F$44 -> 1.1122
A53: ='Identificação-TCE'!$A$13 -> 1 | B53: =IF(AND(G53<>"",H53>0,I53<>"",J53<>0,K53<>0),COUNT($B$11:B52)+1,"") ->  | C53: =IF('Orçamento N_DESON.'!#REF!=0,0,'Orçamento N_DESON.'!#REF!) ->  | D53: =IF('Orçamento N_DESON.'!#REF!=Aux.!$G$11,"CONTRATACAO_PUBLICA",IF(VLOOKUP($C53,'Orçamento N_DESON.'!$D$11:$G$525,3,FALSE)="INDEXADO",VLOOKUP(VLOOKUP($C53,'Orçamento N_DESON.'!$D$11:$G$525,2,FALSE),#REF!,2),VLOOKUP($C53,'Orçamento N_DESON.'!$D$11:$G$525,3,FALSE))) ->  | E53: =VLOOKUP($C53,'Orçamento N_DESON.'!$D$11:$S$82,2,FALSE) ->  | F53: =Dados!$C$7 -> 2022-03-01 | G53: =VLOOKUP($C53,'Orçamento N_DESON.'!$D$11:$S$82,4,FALSE) ->  | H53: =IFERROR(VLOOKUP($C53,'Orçamento N_DESON.'!$D$11:$S$82,6,FALSE),0) -> 0 | I53: =VLOOKUP($C53,'Orçamento N_DESON.'!$D$11:$S$82,5,FALSE) ->  | J53: =VLOOKUP($C53,'Orçamento N_DESON.'!$D$11:$S$82,12,FALSE) ->  | K53: =IFERROR(VLOOKUP($C53,'Orçamento N_DESON.'!$D$11:$S$82,16,FALSE),0) -> 0 | L53: =VLOOKUP($C53,'Orçamento N_DESON.'!$D$11:$S$82,11,FALSE) ->  | M53: =Encargos!$F$44 -> 1.1122
A54: ='Identificação-TCE'!$A$13 -> 1 | B54: =IF(AND(G54<>"",H54>0,I54<>"",J54<>0,K54<>0),COUNT($B$11:B53)+1,"") ->  | C54: =IF('Orçamento N_DESON.'!#REF!=0,0,'Orçamento N_DESON.'!#REF!) ->  | D54: =IF('Orçamento N_DESON.'!#REF!=Aux.!$G$11,"CONTRATACAO_PUBLICA",IF(VLOOKUP($C54,'Orçamento N_DESON.'!$D$11:$G$525,3,FALSE)="INDEXADO",VLOOKUP(VLOOKUP($C54,'Orçamento N_DESON.'!$D$11:$G$525,2,FALSE),#REF!,2),VLOOKUP($C54,'Orçamento N_DESON.'!$D$11:$G$525,3,FALSE))) ->  | E54: =VLOOKUP($C54,'Orçamento N_DESON.'!$D$11:$S$82,2,FALSE) ->  | F54: =Dados!$C$7 -> 2022-03-01 | G54: =VLOOKUP($C54,'Orçamento N_DESON.'!$D$11:$S$82,4,FALSE) ->  | H54: =IFERROR(VLOOKUP($C54,'Orçamento N_DESON.'!$D$11:$S$82,6,FALSE),0) -> 0 | I54: =VLOOKUP($C54,'Orçamento N_DESON.'!$D$11:$S$82,5,FALSE) ->  | J54: =VLOOKUP($C54,'Orçamento N_DESON.'!$D$11:$S$82,12,FALSE) ->  | K54: =IFERROR(VLOOKUP($C54,'Orçamento N_DESON.'!$D$11:$S$82,16,FALSE),0) -> 0 | L54: =VLOOKUP($C54,'Orçamento N_DESON.'!$D$11:$S$82,11,FALSE) ->  | M54: =Encargos!$F$44 -> 1.1122
A55: ='Identificação-TCE'!$A$13 -> 1 | B55: =IF(AND(G55<>"",H55>0,I55<>"",J55<>0,K55<>0),COUNT($B$11:B54)+1,"") ->  | C55: =IF('Orçamento N_DESON.'!#REF!=0,0,'Orçamento N_DESON.'!#REF!) ->  | D55: =IF('Orçamento N_DESON.'!#REF!=Aux.!$G$11,"CONTRATACAO_PUBLICA",IF(VLOOKUP($C55,'Orçamento N_DESON.'!$D$11:$G$525,3,FALSE)="INDEXADO",VLOOKUP(VLOOKUP($C55,'Orçamento N_DESON.'!$D$11:$G$525,2,FALSE),#REF!,2),VLOOKUP($C55,'Orçamento N_DESON.'!$D$11:$G$525,3,FALSE))) ->  | E55: =VLOOKUP($C55,'Orçamento N_DESON.'!$D$11:$S$82,2,FALSE) ->  | F55: =Dados!$C$7 -> 2022-03-01 | G55: =VLOOKUP($C55,'Orçamento N_DESON.'!$D$11:$S$82,4,FALSE) ->  | H55: =IFERROR(VLOOKUP($C55,'Orçamento N_DESON.'!$D$11:$S$82,6,FALSE),0) -> 0 | I55: =VLOOKUP($C55,'Orçamento N_DESON.'!$D$11:$S$82,5,FALSE) ->  | J55: =VLOOKUP($C55,'Orçamento N_DESON.'!$D$11:$S$82,12,FALSE) ->  | K55: =IFERROR(VLOOKUP($C55,'Orçamento N_DESON.'!$D$11:$S$82,16,FALSE),0) -> 0 | L55: =VLOOKUP($C55,'Orçamento N_DESON.'!$D$11:$S$82,11,FALSE) ->  | M55: =Encargos!$F$44 -> 1.1122
A56: ='Identificação-TCE'!$A$13 -> 1 | B56: =IF(AND(G56<>"",H56>0,I56<>"",J56<>0,K56<>0),COUNT($B$11:B55)+1,"") ->  | C56: =IF('Orçamento N_DESON.'!#REF!=0,0,'Orçamento N_DESON.'!#REF!) ->  | D56: =IF('Orçamento N_DESON.'!#REF!=Aux.!$G$11,"CONTRATACAO_PUBLICA",IF(VLOOKUP($C56,'Orçamento N_DESON.'!$D$11:$G$525,3,FALSE)="INDEXADO",VLOOKUP(VLOOKUP($C56,'Orçamento N_DESON.'!$D$11:$G$525,2,FALSE),#REF!,2),VLOOKUP($C56,'Orçamento N_DESON.'!$D$11:$G$525,3,FALSE))) ->  | E56: =VLOOKUP($C56,'Orçamento N_DESON.'!$D$11:$S$82,2,FALSE) ->  | F56: =Dados!$C$7 -> 2022-03-01 | G56: =VLOOKUP($C56,'Orçamento N_DESON.'!$D$11:$S$82,4,FALSE) ->  | H56: =IFERROR(VLOOKUP($C56,'Orçamento N_DESON.'!$D$11:$S$82,6,FALSE),0) -> 0 | I56: =VLOOKUP($C56,'Orçamento N_DESON.'!$D$11:$S$82,5,FALSE) ->  | J56: =VLOOKUP($C56,'Orçamento N_DESON.'!$D$11:$S$82,12,FALSE) ->  | K56: =IFERROR(VLOOKUP($C56,'Orçamento N_DESON.'!$D$11:$S$82,16,FALSE),0) -> 0 | L56: =VLOOKUP($C56,'Orçamento N_DESON.'!$D$11:$S$82,11,FALSE) ->  | M56: =Encargos!$F$44 -> 1.1122
A57: ='Identificação-TCE'!$A$13 -> 1 | B57: =IF(AND(G57<>"",H57>0,I57<>"",J57<>0,K57<>0),COUNT($B$11:B56)+1,"") ->  | C57: =IF('Orçamento N_DESON.'!#REF!=0,0,'Orçamento N_DESON.'!#REF!) ->  | D57: =IF('Orçamento N_DESON.'!#REF!=Aux.!$G$11,"CONTRATACAO_PUBLICA",IF(VLOOKUP($C57,'Orçamento N_DESON.'!$D$11:$G$525,3,FALSE)="INDEXADO",VLOOKUP(VLOOKUP($C57,'Orçamento N_DESON.'!$D$11:$G$525,2,FALSE),#REF!,2),VLOOKUP($C57,'Orçamento N_DESON.'!$D$11:$G$525,3,FALSE))) ->  | E57: =VLOOKUP($C57,'Orçamento N_DESON.'!$D$11:$S$82,2,FALSE) ->  | F57: =Dados!$C$7 -> 2022-03-01 | G57: =VLOOKUP($C57,'Orçamento N_DESON.'!$D$11:$S$82,4,FALSE) ->  | H57: =IFERROR(VLOOKUP($C57,'Orçamento N_DESON.'!$D$11:$S$82,6,FALSE),0) -> 0 | I57: =VLOOKUP($C57,'Orçamento N_DESON.'!$D$11:$S$82,5,FALSE) ->  | J57: =VLOOKUP($C57,'Orçamento N_DESON.'!$D$11:$S$82,12,FALSE) ->  | K57: =IFERROR(VLOOKUP($C57,'Orçamento N_DESON.'!$D$11:$S$82,16,FALSE),0) -> 0 | L57: =VLOOKUP($C57,'Orçamento N_DESON.'!$D$11:$S$82,11,FALSE) ->  | M57: =Encargos!$F$44 -> 1.1122
A58: ='Identificação-TCE'!$A$13 -> 1 | B58: =IF(AND(G58<>"",H58>0,I58<>"",J58<>0,K58<>0),COUNT($B$11:B57)+1,"") ->  | C58: =IF('Orçamento N_DESON.'!#REF!=0,0,'Orçamento N_DESON.'!#REF!) ->  | D58: =IF('Orçamento N_DESON.'!#REF!=Aux.!$G$11,"CONTRATACAO_PUBLICA",IF(VLOOKUP($C58,'Orçamento N_DESON.'!$D$11:$G$525,3,FALSE)="INDEXADO",VLOOKUP(VLOOKUP($C58,'Orçamento N_DESON.'!$D$11:$G$525,2,FALSE),#REF!,2),VLOOKUP($C58,'Orçamento N_DESON.'!$D$11:$G$525,3,FALSE))) ->  | E58: =VLOOKUP($C58,'Orçamento N_DESON.'!$D$11:$S$82,2,FALSE) ->  | F58: =Dados!$C$7 -> 2022-03-01 | G58: =VLOOKUP($C58,'Orçamento N_DESON.'!$D$11:$S$82,4,FALSE) ->  | H58: =IFERROR(VLOOKUP($C58,'Orçamento N_DESON.'!$D$11:$S$82,6,FALSE),0) -> 0 | I58: =VLOOKUP($C58,'Orçamento N_DESON.'!$D$11:$S$82,5,FALSE) ->  | J58: =VLOOKUP($C58,'Orçamento N_DESON.'!$D$11:$S$82,12,FALSE) ->  | K58: =IFERROR(VLOOKUP($C58,'Orçamento N_DESON.'!$D$11:$S$82,16,FALSE),0) -> 0 | L58: =VLOOKUP($C58,'Orçamento N_DESON.'!$D$11:$S$82,11,FALSE) ->  | M58: =Encargos!$F$44 -> 1.1122
A59: ='Identificação-TCE'!$A$13 -> 1 | B59: =IF(AND(G59<>"",H59>0,I59<>"",J59<>0,K59<>0),COUNT($B$11:B58)+1,"") ->  | C59: =IF('Orçamento N_DESON.'!#REF!=0,0,'Orçamento N_DESON.'!#REF!) ->  | D59: =IF('Orçamento N_DESON.'!#REF!=Aux.!$G$11,"CONTRATACAO_PUBLICA",IF(VLOOKUP($C59,'Orçamento N_DESON.'!$D$11:$G$525,3,FALSE)="INDEXADO",VLOOKUP(VLOOKUP($C59,'Orçamento N_DESON.'!$D$11:$G$525,2,FALSE),#REF!,2),VLOOKUP($C59,'Orçamento N_DESON.'!$D$11:$G$525,3,FALSE))) ->  | E59: =VLOOKUP($C59,'Orçamento N_DESON.'!$D$11:$S$82,2,FALSE) ->  | F59: =Dados!$C$7 -> 2022-03-01 | G59: =VLOOKUP($C59,'Orçamento N_DESON.'!$D$11:$S$82,4,FALSE) ->  | H59: =IFERROR(VLOOKUP($C59,'Orçamento N_DESON.'!$D$11:$S$82,6,FALSE),0) -> 0 | I59: =VLOOKUP($C59,'Orçamento N_DESON.'!$D$11:$S$82,5,FALSE) ->  | J59: =VLOOKUP($C59,'Orçamento N_DESON.'!$D$11:$S$82,12,FALSE) ->  | K59: =IFERROR(VLOOKUP($C59,'Orçamento N_DESON.'!$D$11:$S$82,16,FALSE),0) -> 0 | L59: =VLOOKUP($C59,'Orçamento N_DESON.'!$D$11:$S$82,11,FALSE) ->  | M59: =Encargos!$F$44 -> 1.1122
A60: ='Identificação-TCE'!$A$13 -> 1 | B60: =IF(AND(G60<>"",H60>0,I60<>"",J60<>0,K60<>0),COUNT($B$11:B59)+1,"") ->  | C60: =IF('Orçamento N_DESON.'!#REF!=0,0,'Orçamento N_DESON.'!#REF!) ->  | D60: =IF('Orçamento N_DESON.'!#REF!=Aux.!$G$11,"CONTRATACAO_PUBLICA",IF(VLOOKUP($C60,'Orçamento N_DESON.'!$D$11:$G$525,3,FALSE)="INDEXADO",VLOOKUP(VLOOKUP($C60,'Orçamento N_DESON.'!$D$11:$G$525,2,FALSE),#REF!,2),VLOOKUP($C60,'Orçamento N_DESON.'!$D$11:$G$525,3,FALSE))) ->  | E60: =VLOOKUP($C60,'Orçamento N_DESON.'!$D$11:$S$82,2,FALSE) ->  | F60: =Dados!$C$7 -> 2022-03-01 | G60: =VLOOKUP($C60,'Orçamento N_DESON.'!$D$11:$S$82,4,FALSE) ->  | H60: =IFERROR(VLOOKUP($C60,'Orçamento N_DESON.'!$D$11:$S$82,6,FALSE),0) -> 0 | I60: =VLOOKUP($C60,'Orçamento N_DESON.'!$D$11:$S$82,5,FALSE) ->  | J60: =VLOOKUP($C60,'Orçamento N_DESON.'!$D$11:$S$82,12,FALSE) ->  | K60: =IFERROR(VLOOKUP($C60,'Orçamento N_DESON.'!$D$11:$S$82,16,FALSE),0) -> 0 | L60: =VLOOKUP($C60,'Orçamento N_DESON.'!$D$11:$S$82,11,FALSE) ->  | M60: =Encargos!$F$44 -> 1.1122
A61: ='Identificação-TCE'!$A$13 -> 1 | B61: =IF(AND(G61<>"",H61>0,I61<>"",J61<>0,K61<>0),COUNT($B$11:B60)+1,"") ->  | C61: =IF('Orçamento N_DESON.'!#REF!=0,0,'Orçamento N_DESON.'!#REF!) ->  | D61: =IF('Orçamento N_DESON.'!#REF!=Aux.!$G$11,"CONTRATACAO_PUBLICA",IF(VLOOKUP($C61,'Orçamento N_DESON.'!$D$11:$G$525,3,FALSE)="INDEXADO",VLOOKUP(VLOOKUP($C61,'Orçamento N_DESON.'!$D$11:$G$525,2,FALSE),#REF!,2),VLOOKUP($C61,'Orçamento N_DESON.'!$D$11:$G$525,3,FALSE))) ->  | E61: =VLOOKUP($C61,'Orçamento N_DESON.'!$D$11:$S$82,2,FALSE) ->  | F61: =Dados!$C$7 -> 2022-03-01 | G61: =VLOOKUP($C61,'Orçamento N_DESON.'!$D$11:$S$82,4,FALSE) ->  | H61: =IFERROR(VLOOKUP($C61,'Orçamento N_DESON.'!$D$11:$S$82,6,FALSE),0) -> 0 | I61: =VLOOKUP($C61,'Orçamento N_DESON.'!$D$11:$S$82,5,FALSE) ->  | J61: =VLOOKUP($C61,'Orçamento N_DESON.'!$D$11:$S$82,12,FALSE) ->  | K61: =IFERROR(VLOOKUP($C61,'Orçamento N_DESON.'!$D$11:$S$82,16,FALSE),0) -> 0 | L61: =VLOOKUP($C61,'Orçamento N_DESON.'!$D$11:$S$82,11,FALSE) ->  | M61: =Encargos!$F$44 -> 1.1122
A62: ='Identificação-TCE'!$A$13 -> 1 | B62: =IF(AND(G62<>"",H62>0,I62<>"",J62<>0,K62<>0),COUNT($B$11:B61)+1,"") ->  | C62: =IF('Orçamento N_DESON.'!$M15=0,0,'Orçamento N_DESON.'!$D15) -> 0 | D62: =IF('Orçamento N_DESON.'!$F15=Aux.!$G$11,"CONTRATACAO_PUBLICA",IF(VLOOKUP($C62,'Orçamento N_DESON.'!$D$11:$G$525,3,FALSE)="INDEXADO",VLOOKUP(VLOOKUP($C62,'Orçamento N_DESON.'!$D$11:$G$525,2,FALSE),#REF!,2),VLOOKUP($C62,'Orçamento N_DESON.'!$D$11:$G$525,3,FALSE))) ->  | E62: =VLOOKUP($C62,'Orçamento N_DESON.'!$D$11:$S$82,2,FALSE) ->  | F62: =Dados!$C$7 -> 2022-03-01 | G62: =VLOOKUP($C62,'Orçamento N_DESON.'!$D$11:$S$82,4,FALSE) ->  | H62: =IFERROR(VLOOKUP($C62,'Orçamento N_DESON.'!$D$11:$S$82,6,FALSE),0) -> 0 | I62: =VLOOKUP($C62,'Orçamento N_DESON.'!$D$11:$S$82,5,FALSE) ->  | J62: =VLOOKUP($C62,'Orçamento N_DESON.'!$D$11:$S$82,12,FALSE) ->  | K62: =IFERROR(VLOOKUP($C62,'Orçamento N_DESON.'!$D$11:$S$82,16,FALSE),0) -> 0 | L62: =VLOOKUP($C62,'Orçamento N_DESON.'!$D$11:$S$82,11,FALSE) ->  | M62: =Encargos!$F$44 -> 1.1122
A63: ='Identificação-TCE'!$A$13 -> 1 | B63: =IF(AND(G63<>"",H63>0,I63<>"",J63<>0,K63<>0),COUNT($B$11:B62)+1,"") ->  | C63: =IF('Orçamento N_DESON.'!$M16=0,0,'Orçamento N_DESON.'!$D16) -> 0 | D63: =IF('Orçamento N_DESON.'!$F16=Aux.!$G$11,"CONTRATACAO_PUBLICA",IF(VLOOKUP($C63,'Orçamento N_DESON.'!$D$11:$G$525,3,FALSE)="INDEXADO",VLOOKUP(VLOOKUP($C63,'Orçamento N_DESON.'!$D$11:$G$525,2,FALSE),#REF!,2),VLOOKUP($C63,'Orçamento N_DESON.'!$D$11:$G$525,3,FALSE))) ->  | E63: =VLOOKUP($C63,'Orçamento N_DESON.'!$D$11:$S$82,2,FALSE) ->  | F63: =Dados!$C$7 -> 2022-03-01 | G63: =VLOOKUP($C63,'Orçamento N_DESON.'!$D$11:$S$82,4,FALSE) ->  | H63: =IFERROR(VLOOKUP($C63,'Orçamento N_DESON.'!$D$11:$S$82,6,FALSE),0) -> 0 | I63: =VLOOKUP($C63,'Orçamento N_DESON.'!$D$11:$S$82,5,FALSE) ->  | J63: =VLOOKUP($C63,'Orçamento N_DESON.'!$D$11:$S$82,12,FALSE) ->  | K63: =IFERROR(VLOOKUP($C63,'Orçamento N_DESON.'!$D$11:$S$82,16,FALSE),0) -> 0 | L63: =VLOOKUP($C63,'Orçamento N_DESON.'!$D$11:$S$82,11,FALSE) ->  | M63: =Encargos!$F$44 -> 1.1122
A64: ='Identificação-TCE'!$A$13 -> 1 | B64: =IF(AND(G64<>"",H64>0,I64<>"",J64<>0,K64<>0),COUNT($B$11:B63)+1,"") ->  | C64: =IF('Orçamento N_DESON.'!$M17=0,0,'Orçamento N_DESON.'!$D17) -> 0 | D64: =IF('Orçamento N_DESON.'!$F17=Aux.!$G$11,"CONTRATACAO_PUBLICA",IF(VLOOKUP($C64,'Orçamento N_DESON.'!$D$11:$G$525,3,FALSE)="INDEXADO",VLOOKUP(VLOOKUP($C64,'Orçamento N_DESON.'!$D$11:$G$525,2,FALSE),#REF!,2),VLOOKUP($C64,'Orçamento N_DESON.'!$D$11:$G$525,3,FALSE))) ->  | E64: =VLOOKUP($C64,'Orçamento N_DESON.'!$D$11:$S$82,2,FALSE) ->  | F64: =Dados!$C$7 -> 2022-03-01 | G64: =VLOOKUP($C64,'Orçamento N_DESON.'!$D$11:$S$82,4,FALSE) ->  | H64: =IFERROR(VLOOKUP($C64,'Orçamento N_DESON.'!$D$11:$S$82,6,FALSE),0) -> 0 | I64: =VLOOKUP($C64,'Orçamento N_DESON.'!$D$11:$S$82,5,FALSE) ->  | J64: =VLOOKUP($C64,'Orçamento N_DESON.'!$D$11:$S$82,12,FALSE) ->  | K64: =IFERROR(VLOOKUP($C64,'Orçamento N_DESON.'!$D$11:$S$82,16,FALSE),0) -> 0 | L64: =VLOOKUP($C64,'Orçamento N_DESON.'!$D$11:$S$82,11,FALSE) ->  | M64: =Encargos!$F$44 -> 1.1122
A65: ='Identificação-TCE'!$A$13 -> 1 | B65: =IF(AND(G65<>"",H65>0,I65<>"",J65<>0,K65<>0),COUNT($B$11:B64)+1,"") ->  | C65: =IF('Orçamento N_DESON.'!$M18=0,0,'Orçamento N_DESON.'!$D18) -> 0 | D65: =IF('Orçamento N_DESON.'!$F18=Aux.!$G$11,"CONTRATACAO_PUBLICA",IF(VLOOKUP($C65,'Orçamento N_DESON.'!$D$11:$G$525,3,FALSE)="INDEXADO",VLOOKUP(VLOOKUP($C65,'Orçamento N_DESON.'!$D$11:$G$525,2,FALSE),#REF!,2),VLOOKUP($C65,'Orçamento N_DESON.'!$D$11:$G$525,3,FALSE))) ->  | E65: =VLOOKUP($C65,'Orçamento N_DESON.'!$D$11:$S$82,2,FALSE) ->  | F65: =Dados!$C$7 -> 2022-03-01 | G65: =VLOOKUP($C65,'Orçamento N_DESON.'!$D$11:$S$82,4,FALSE) ->  | H65: =IFERROR(VLOOKUP($C65,'Orçamento N_DESON.'!$D$11:$S$82,6,FALSE),0) -> 0 | I65: =VLOOKUP($C65,'Orçamento N_DESON.'!$D$11:$S$82,5,FALSE) ->  | J65: =VLOOKUP($C65,'Orçamento N_DESON.'!$D$11:$S$82,12,FALSE) ->  | K65: =IFERROR(VLOOKUP($C65,'Orçamento N_DESON.'!$D$11:$S$82,16,FALSE),0) -> 0 | L65: =VLOOKUP($C65,'Orçamento N_DESON.'!$D$11:$S$82,11,FALSE) ->  | M65: =Encargos!$F$44 -> 1.1122
A66: ='Identificação-TCE'!$A$13 -> 1 | B66: =IF(AND(G66<>"",H66>0,I66<>"",J66<>0,K66<>0),COUNT($B$11:B65)+1,"") -> 5 | C66: =IF('Orçamento N_DESON.'!$M19=0,0,'Orçamento N_DESON.'!$D19) -> 2.1 | D66: =IF('Orçamento N_DESON.'!$F19=Aux.!$G$11,"CONTRATACAO_PUBLICA",IF(VLOOKUP($C66,'Orçamento N_DESON.'!$D$11:$G$525,3,FALSE)="INDEXADO",VLOOKUP(VLOOKUP($C66,'Orçamento N_DESON.'!$D$11:$G$525,2,FALSE),#REF!,2),VLOOKUP($C66,'Orçamento N_DESON.'!$D$11:$G$525,3,FALSE))) -> ORSE | E66: =VLOOKUP($C66,'Orçamento N_DESON.'!$D$11:$S$82,2,FALSE) -> 7102 | F66: =Dados!$C$7 -> 2022-03-01 | G66: =VLOOKUP($C66,'Orçamento N_DESON.'!$D$11:$S$82,4,FALSE) -> Projeto estrutural, incluindo fundações de concreto armado. Obs:o cálculo da área equivale à área construída acrescida da área de cobertura (para compensar a fundação) | H66: =IFERROR(VLOOKUP($C66,'Orçamento N_DESON.'!$D$11:$S$82,6,FALSE),0) -> 500 | I66: =VLOOKUP($C66,'Orçamento N_DESON.'!$D$11:$S$82,5,FALSE) -> M2 | J66: =VLOOKUP($C66,'Orçamento N_DESON.'!$D$11:$S$82,12,FALSE) -> 10.37 | K66: =IFERROR(VLOOKUP($C66,'Orçamento N_DESON.'!$D$11:$S$82,16,FALSE),0) -> 5185 | L66: =VLOOKUP($C66,'Orçamento N_DESON.'!$D$11:$S$82,11,FALSE) -> 0.1538 | M66: =Encargos!$F$44 -> 1.1122
A67: ='Identificação-TCE'!$A$13 -> 1 | B67: =IF(AND(G67<>"",H67>0,I67<>"",J67<>0,K67<>0),COUNT($B$11:B66)+1,"") -> 6 | C67: =IF('Orçamento N_DESON.'!$M20=0,0,'Orçamento N_DESON.'!$D20) -> 2.2 | D67: =IF('Orçamento N_DESON.'!$F20=Aux.!$G$11,"CONTRATACAO_PUBLICA",IF(VLOOKUP($C67,'Orçamento N_DESON.'!$D$11:$G$525,3,FALSE)="INDEXADO",VLOOKUP(VLOOKUP($C67,'Orçamento N_DESON.'!$D$11:$G$525,2,FALSE),#REF!,2),VLOOKUP($C67,'Orçamento N_DESON.'!$D$11:$G$525,3,FALSE))) -> ORSE | E67: =VLOOKUP($C67,'Orçamento N_DESON.'!$D$11:$S$82,2,FALSE) -> 7344 | F67: =Dados!$C$7 -> 2022-03-01 | G67: =VLOOKUP($C67,'Orçamento N_DESON.'!$D$11:$S$82,4,FALSE) -> Projeto hidráulico - água fria | H67: =IFERROR(VLOOKUP($C67,'Orçamento N_DESON.'!$D$11:$S$82,6,FALSE),0) -> 250 | I67: =VLOOKUP($C67,'Orçamento N_DESON.'!$D$11:$S$82,5,FALSE) -> M2 | J67: =VLOOKUP($C67,'Orçamento N_DESON.'!$D$11:$S$82,12,FALSE) -> 3.12 | K67: =IFERROR(VLOOKUP($C67,'Orçamento N_DESON.'!$D$11:$S$82,16,FALSE),0) -> 780 | L67: =VLOOKUP($C67,'Orçamento N_DESON.'!$D$11:$S$82,11,FALSE) -> 0.1538 | M67: =Encargos!$F$44 -> 1.1122
A68: ='Identificação-TCE'!$A$13 -> 1 | B68: =IF(AND(G68<>"",H68>0,I68<>"",J68<>0,K68<>0),COUNT($B$11:B67)+1,"") -> 7 | C68: =IF('Orçamento N_DESON.'!$M21=0,0,'Orçamento N_DESON.'!$D21) -> 2.3 | D68: =IF('Orçamento N_DESON.'!$F21=Aux.!$G$11,"CONTRATACAO_PUBLICA",IF(VLOOKUP($C68,'Orçamento N_DESON.'!$D$11:$G$525,3,FALSE)="INDEXADO",VLOOKUP(VLOOKUP($C68,'Orçamento N_DESON.'!$D$11:$G$525,2,FALSE),#REF!,2),VLOOKUP($C68,'Orçamento N_DESON.'!$D$11:$G$525,3,FALSE))) -> CCU | E68: =VLOOKUP($C68,'Orçamento N_DESON.'!$D$11:$S$82,2,FALSE) -> CCU-03 | F68: =Dados!$C$7 -> 2022-03-01 | G68: =VLOOKUP($C68,'Orçamento N_DESON.'!$D$11:$S$82,4,FALSE) -> Projeto Hidráulico - Àgua Quente | H68: =IFERROR(VLOOKUP($C68,'Orçamento N_DESON.'!$D$11:$S$82,6,FALSE),0) -> 1 | I68: =VLOOKUP($C68,'Orçamento N_DESON.'!$D$11:$S$82,5,FALSE) -> UN | J68: =VLOOKUP($C68,'Orçamento N_DESON.'!$D$11:$S$82,12,FALSE) -> 1029.28 | K68: =IFERROR(VLOOKUP($C68,'Orçamento N_DESON.'!$D$11:$S$82,16,FALSE),0) -> 1029.28 | L68: =VLOOKUP($C68,'Orçamento N_DESON.'!$D$11:$S$82,11,FALSE) -> 0.1538 | M68: =Encargos!$F$44 -> 1.1122
A69: ='Identificação-TCE'!$A$13 -> 1 | B69: =IF(AND(G69<>"",H69>0,I69<>"",J69<>0,K69<>0),COUNT($B$11:B68)+1,"") -> 8 | C69: =IF('Orçamento N_DESON.'!$M22=0,0,'Orçamento N_DESON.'!$D22) -> 2.4 | D69: =IF('Orçamento N_DESON.'!$F22=Aux.!$G$11,"CONTRATACAO_PUBLICA",IF(VLOOKUP($C69,'Orçamento N_DESON.'!$D$11:$G$525,3,FALSE)="INDEXADO",VLOOKUP(VLOOKUP($C69,'Orçamento N_DESON.'!$D$11:$G$525,2,FALSE),#REF!,2),VLOOKUP($C69,'Orçamento N_DESON.'!$D$11:$G$525,3,FALSE))) -> ORSE | E69: =VLOOKUP($C69,'Orçamento N_DESON.'!$D$11:$S$82,2,FALSE) -> 7340 | F69: =Dados!$C$7 -> 2022-03-01 | G69: =VLOOKUP($C69,'Orçamento N_DESON.'!$D$11:$S$82,4,FALSE) -> Projeto de rede de esgoto eanitário com tratamento simples - (fossa e filtro, sumidouro ou DAFA) | H69: =IFERROR(VLOOKUP($C69,'Orçamento N_DESON.'!$D$11:$S$82,6,FALSE),0) -> 250 | I69: =VLOOKUP($C69,'Orçamento N_DESON.'!$D$11:$S$82,5,FALSE) -> M2 | J69: =VLOOKUP($C69,'Orçamento N_DESON.'!$D$11:$S$82,12,FALSE) -> 3.12 | K69: =IFERROR(VLOOKUP($C69,'Orçamento N_DESON.'!$D$11:$S$82,16,FALSE),0) -> 780 | L69: =VLOOKUP($C69,'Orçamento N_DESON.'!$D$11:$S$82,11,FALSE) -> 0.1538 | M69: =Encargos!$F$44 -> 1.1122
A70: ='Identificação-TCE'!$A$13 -> 1 | B70: =IF(AND(G70<>"",H70>0,I70<>"",J70<>0,K70<>0),COUNT($B$11:B69)+1,"") -> 9 | C70: =IF('Orçamento N_DESON.'!$M23=0,0,'Orçamento N_DESON.'!$D23) -> 2.5 | D70: =IF('Orçamento N_DESON.'!$F23=Aux.!$G$11,"CONTRATACAO_PUBLICA",IF(VLOOKUP($C70,'Orçamento N_DESON.'!$D$11:$G$525,3,FALSE)="INDEXADO",VLOOKUP(VLOOKUP($C70,'Orçamento N_DESON.'!$D$11:$G$525,2,FALSE),#REF!,2),VLOOKUP($C70,'Orçamento N_DESON.'!$D$11:$G$525,3,FALSE))) -> ORSE | E70: =VLOOKUP($C70,'Orçamento N_DESON.'!$D$11:$S$82,2,FALSE) -> 7346 | F70: =Dados!$C$7 -> 2022-03-01 | G70: =VLOOKUP($C70,'Orçamento N_DESON.'!$D$11:$S$82,4,FALSE) -> Projeto de Drenagem Pluvial. Obs: incluindo a drenagem da climatização | H70: =IFERROR(VLOOKUP($C70,'Orçamento N_DESON.'!$D$11:$S$82,6,FALSE),0) -> 500 | I70: =VLOOKUP($C70,'Orçamento N_DESON.'!$D$11:$S$82,5,FALSE) -> M2 | J70: =VLOOKUP($C70,'Orçamento N_DESON.'!$D$11:$S$82,12,FALSE) -> 1.74 | K70: =IFERROR(VLOOKUP($C70,'Orçamento N_DESON.'!$D$11:$S$82,16,FALSE),0) -> 870 | L70: =VLOOKUP($C70,'Orçamento N_DESON.'!$D$11:$S$82,11,FALSE) -> 0.1538 | M70: =Encargos!$F$44 -> 1.1122
A71: ='Identificação-TCE'!$A$13 -> 1 | B71: =IF(AND(G71<>"",H71>0,I71<>"",J71<>0,K71<>0),COUNT($B$11:B70)+1,"") -> 10 | C71: =IF('Orçamento N_DESON.'!$M24=0,0,'Orçamento N_DESON.'!$D24) -> 2.6 | D71: =IF('Orçamento N_DESON.'!$F24=Aux.!$G$11,"CONTRATACAO_PUBLICA",IF(VLOOKUP($C71,'Orçamento N_DESON.'!$D$11:$G$525,3,FALSE)="INDEXADO",VLOOKUP(VLOOKUP($C71,'Orçamento N_DESON.'!$D$11:$G$525,2,FALSE),#REF!,2),VLOOKUP($C71,'Orçamento N_DESON.'!$D$11:$G$525,3,FALSE))) -> CCU | E71: =VLOOKUP($C71,'Orçamento N_DESON.'!$D$11:$S$82,2,FALSE) -> CCU-04 | F71: =Dados!$C$7 -> 2022-03-01 | G71: =VLOOKUP($C71,'Orçamento N_DESON.'!$D$11:$S$82,4,FALSE) -> Projeto de Captação e Reaproveitamento de Águas Pluviais | H71: =IFERROR(VLOOKUP($C71,'Orçamento N_DESON.'!$D$11:$S$82,6,FALSE),0) -> 1 | I71: =VLOOKUP($C71,'Orçamento N_DESON.'!$D$11:$S$82,5,FALSE) -> UN | J71: =VLOOKUP($C71,'Orçamento N_DESON.'!$D$11:$S$82,12,FALSE) -> 1543.92 | K71: =IFERROR(VLOOKUP($C71,'Orçamento N_DESON.'!$D$11:$S$82,16,FALSE),0) -> 1543.92 | L71: =VLOOKUP($C71,'Orçamento N_DESON.'!$D$11:$S$82,11,FALSE) -> 0.1538 | M71: =Encargos!$F$44 -> 1.1122
A72: ='Identificação-TCE'!$A$13 -> 1 | B72: =IF(AND(G72<>"",H72>0,I72<>"",J72<>0,K72<>0),COUNT($B$11:B71)+1,"") -> 11 | C72: =IF('Orçamento N_DESON.'!$M25=0,0,'Orçamento N_DESON.'!$D25) -> 2.7 | D72: =IF('Orçamento N_DESON.'!$F25=Aux.!$G$11,"CONTRATACAO_PUBLICA",IF(VLOOKUP($C72,'Orçamento N_DESON.'!$D$11:$G$525,3,FALSE)="INDEXADO",VLOOKUP(VLOOKUP($C72,'Orçamento N_DESON.'!$D$11:$G$525,2,FALSE),#REF!,2),VLOOKUP($C72,'Orçamento N_DESON.'!$D$11:$G$525,3,FALSE))) -> CCU | E72: =VLOOKUP($C72,'Orçamento N_DESON.'!$D$11:$S$82,2,FALSE) -> CCU-05 | F72: =Dados!$C$7 -> 2022-03-01 | G72: =VLOOKUP($C72,'Orçamento N_DESON.'!$D$11:$S$82,4,FALSE) -> Projeto de Bacia de Amortecimento | H72: =IFERROR(VLOOKUP($C72,'Orçamento N_DESON.'!$D$11:$S$82,6,FALSE),0) -> 1 | I72: =VLOOKUP($C72,'Orçamento N_DESON.'!$D$11:$S$82,5,FALSE) -> UN | J72: =VLOOKUP($C72,'Orçamento N_DESON.'!$D$11:$S$82,12,FALSE) -> 2094.28 | K72: =IFERROR(VLOOKUP($C72,'Orçamento N_DESON.'!$D$11:$S$82,16,FALSE),0) -> 2094.28 | L72: =VLOOKUP($C72,'Orçamento N_DESON.'!$D$11:$S$82,11,FALSE) -> 0.1538 | M72: =Encargos!$F$44 -> 1.1122
A73: ='Identificação-TCE'!$A$13 -> 1 | B73: =IF(AND(G73<>"",H73>0,I73<>"",J73<>0,K73<>0),COUNT($B$11:B72)+1,"") -> 12 | C73: =IF('Orçamento N_DESON.'!$M26=0,0,'Orçamento N_DESON.'!$D26) -> 2.8 | D73: =IF('Orçamento N_DESON.'!$F26=Aux.!$G$11,"CONTRATACAO_PUBLICA",IF(VLOOKUP($C73,'Orçamento N_DESON.'!$D$11:$G$525,3,FALSE)="INDEXADO",VLOOKUP(VLOOKUP($C73,'Orçamento N_DESON.'!$D$11:$G$525,2,FALSE),#REF!,2),VLOOKUP($C73,'Orçamento N_DESON.'!$D$11:$G$525,3,FALSE))) -> CCU | E73: =VLOOKUP($C73,'Orçamento N_DESON.'!$D$11:$S$82,2,FALSE) -> CCU-06 | F73: =Dados!$C$7 -> 2022-03-01 | G73: =VLOOKUP($C73,'Orçamento N_DESON.'!$D$11:$S$82,4,FALSE) -> Projeto de Ventilação e Exaustão dos Ambientes Internos | H73: =IFERROR(VLOOKUP($C73,'Orçamento N_DESON.'!$D$11:$S$82,6,FALSE),0) -> 1 | I73: =VLOOKUP($C73,'Orçamento N_DESON.'!$D$11:$S$82,5,FALSE) -> UN | J73: =VLOOKUP($C73,'Orçamento N_DESON.'!$D$11:$S$82,12,FALSE) -> 1163.49 | K73: =IFERROR(VLOOKUP($C73,'Orçamento N_DESON.'!$D$11:$S$82,16,FALSE),0) -> 1163.49 | L73: =VLOOKUP($C73,'Orçamento N_DESON.'!$D$11:$S$82,11,FALSE) -> 0.1538 | M73: =Encargos!$F$44 -> 1.1122
A74: ='Identificação-TCE'!$A$13 -> 1 | B74: =IF(AND(G74<>"",H74>0,I74<>"",J74<>0,K74<>0),COUNT($B$11:B73)+1,"") -> 13 | C74: =IF('Orçamento N_DESON.'!$M27=0,0,'Orçamento N_DESON.'!$D27) -> 2.9 | D74: =IF('Orçamento N_DESON.'!$F27=Aux.!$G$11,"CONTRATACAO_PUBLICA",IF(VLOOKUP($C74,'Orçamento N_DESON.'!$D$11:$G$525,3,FALSE)="INDEXADO",VLOOKUP(VLOOKUP($C74,'Orçamento N_DESON.'!$D$11:$G$525,2,FALSE),#REF!,2),VLOOKUP($C74,'Orçamento N_DESON.'!$D$11:$G$525,3,FALSE))) -> CCU | E74: =VLOOKUP($C74,'Orçamento N_DESON.'!$D$11:$S$82,2,FALSE) -> CCU-07 | F74: =Dados!$C$7 -> 2022-03-01 | G74: =VLOOKUP($C74,'Orçamento N_DESON.'!$D$11:$S$82,4,FALSE) -> Projeto de GLP | H74: =IFERROR(VLOOKUP($C74,'Orçamento N_DESON.'!$D$11:$S$82,6,FALSE),0) -> 1 | I74: =VLOOKUP($C74,'Orçamento N_DESON.'!$D$11:$S$82,5,FALSE) -> UN | J74: =VLOOKUP($C74,'Orçamento N_DESON.'!$D$11:$S$82,12,FALSE) -> 1163.49 | K74: =IFERROR(VLOOKUP($C74,'Orçamento N_DESON.'!$D$11:$S$82,16,FALSE),0) -> 1163.49 | L74: =VLOOKUP($C74,'Orçamento N_DESON.'!$D$11:$S$82,11,FALSE) -> 0.1538 | M74: =Encargos!$F$44 -> 1.1122
A75: ='Identificação-TCE'!$A$13 -> 1 | B75: =IF(AND(G75<>"",H75>0,I75<>"",J75<>0,K75<>0),COUNT($B$11:B74)+1,"") -> 14 | C75: =IF('Orçamento N_DESON.'!$M28=0,0,'Orçamento N_DESON.'!$D28) -> 2.10 | D75: =IF('Orçamento N_DESON.'!$F28=Aux.!$G$11,"CONTRATACAO_PUBLICA",IF(VLOOKUP($C75,'Orçamento N_DESON.'!$D$11:$G$525,3,FALSE)="INDEXADO",VLOOKUP(VLOOKUP($C75,'Orçamento N_DESON.'!$D$11:$G$525,2,FALSE),#REF!,2),VLOOKUP($C75,'Orçamento N_DESON.'!$D$11:$G$525,3,FALSE))) -> ORSE | E75: =VLOOKUP($C75,'Orçamento N_DESON.'!$D$11:$S$82,2,FALSE) -> 7316 | F75: =Dados!$C$7 -> 2022-03-01 | G75: =VLOOKUP($C75,'Orçamento N_DESON.'!$D$11:$S$82,4,FALSE) -> Projeto de instalação elétrica de baixa tensão | H75: =IFERROR(VLOOKUP($C75,'Orçamento N_DESON.'!$D$11:$S$82,6,FALSE),0) -> 400 | I75: =VLOOKUP($C75,'Orçamento N_DESON.'!$D$11:$S$82,5,FALSE) -> M2 | J75: =VLOOKUP($C75,'Orçamento N_DESON.'!$D$11:$S$82,12,FALSE) -> 7.24 | K75: =IFERROR(VLOOKUP($C75,'Orçamento N_DESON.'!$D$11:$S$82,16,FALSE),0) -> 2896 | L75: =VLOOKUP($C75,'Orçamento N_DESON.'!$D$11:$S$82,11,FALSE) -> 0.1538 | M75: =Encargos!$F$44 -> 1.1122
A76: ='Identificação-TCE'!$A$13 -> 1 | B76: =IF(AND(G76<>"",H76>0,I76<>"",J76<>0,K76<>0),COUNT($B$11:B75)+1,"") -> 15 | C76: =IF('Orçamento N_DESON.'!$M29=0,0,'Orçamento N_DESON.'!$D29) -> 2.11 | D76: =IF('Orçamento N_DESON.'!$F29=Aux.!$G$11,"CONTRATACAO_PUBLICA",IF(VLOOKUP($C76,'Orçamento N_DESON.'!$D$11:$G$525,3,FALSE)="INDEXADO",VLOOKUP(VLOOKUP($C76,'Orçamento N_DESON.'!$D$11:$G$525,2,FALSE),#REF!,2),VLOOKUP($C76,'Orçamento N_DESON.'!$D$11:$G$525,3,FALSE))) -> CCU | E76: =VLOOKUP($C76,'Orçamento N_DESON.'!$D$11:$S$82,2,FALSE) -> CCU-08 | F76: =Dados!$C$7 -> 2022-03-01 | G76: =VLOOKUP($C76,'Orçamento N_DESON.'!$D$11:$S$82,4,FALSE) -> Projeto Luminotécnico | H76: =IFERROR(VLOOKUP($C76,'Orçamento N_DESON.'!$D$11:$S$82,6,FALSE),0) -> 1 | I76: =VLOOKUP($C76,'Orçamento N_DESON.'!$D$11:$S$82,5,FALSE) -> UN | J76: =VLOOKUP($C76,'Orçamento N_DESON.'!$D$11:$S$82,12,FALSE) -> 2030.11 | K76: =IFERROR(VLOOKUP($C76,'Orçamento N_DESON.'!$D$11:$S$82,16,FALSE),0) -> 2030.11 | L76: =VLOOKUP($C76,'Orçamento N_DESON.'!$D$11:$S$82,11,FALSE) -> 0.1538 | M76: =Encargos!$F$44 -> 1.1122
A77: ='Identificação-TCE'!$A$13 -> 1 | B77: =IF(AND(G77<>"",H77>0,I77<>"",J77<>0,K77<>0),COUNT($B$11:B76)+1,"") -> 16 | C77: =IF('Orçamento N_DESON.'!$M30=0,0,'Orçamento N_DESON.'!$D30) -> 2.12 | D77: =IF('Orçamento N_DESON.'!$F30=Aux.!$G$11,"CONTRATACAO_PUBLICA",IF(VLOOKUP($C77,'Orçamento N_DESON.'!$D$11:$G$525,3,FALSE)="INDEXADO",VLOOKUP(VLOOKUP($C77,'Orçamento N_DESON.'!$D$11:$G$525,2,FALSE),#REF!,2),VLOOKUP($C77,'Orçamento N_DESON.'!$D$11:$G$525,3,FALSE))) -> ORSE | E77: =VLOOKUP($C77,'Orçamento N_DESON.'!$D$11:$S$82,2,FALSE) -> 11500 | F77: =Dados!$C$7 -> 2022-03-01 | G77: =VLOOKUP($C77,'Orçamento N_DESON.'!$D$11:$S$82,4,FALSE) -> Projeto de sistema de proteção contra descargas atmosféricas | H77: =IFERROR(VLOOKUP($C77,'Orçamento N_DESON.'!$D$11:$S$82,6,FALSE),0) -> 250 | I77: =VLOOKUP($C77,'Orçamento N_DESON.'!$D$11:$S$82,5,FALSE) -> M2 | J77: =VLOOKUP($C77,'Orçamento N_DESON.'!$D$11:$S$82,12,FALSE) -> 1.15 | K77: =IFERROR(VLOOKUP($C77,'Orçamento N_DESON.'!$D$11:$S$82,16,FALSE),0) -> 287.5 | L77: =VLOOKUP($C77,'Orçamento N_DESON.'!$D$11:$S$82,11,FALSE) -> 0.1538 | M77: =Encargos!$F$44 -> 1.1122
A78: ='Identificação-TCE'!$A$13 -> 1 | B78: =IF(AND(G78<>"",H78>0,I78<>"",J78<>0,K78<>0),COUNT($B$11:B77)+1,"") -> 17 | C78: =IF('Orçamento N_DESON.'!$M31=0,0,'Orçamento N_DESON.'!$D31) -> 2.13 | D78: =IF('Orçamento N_DESON.'!$F31=Aux.!$G$11,"CONTRATACAO_PUBLICA",IF(VLOOKUP($C78,'Orçamento N_DESON.'!$D$11:$G$525,3,FALSE)="INDEXADO",VLOOKUP(VLOOKUP($C78,'Orçamento N_DESON.'!$D$11:$G$525,2,FALSE),#REF!,2),VLOOKUP($C78,'Orçamento N_DESON.'!$D$11:$G$525,3,FALSE))) -> CCU | E78: =VLOOKUP($C78,'Orçamento N_DESON.'!$D$11:$S$82,2,FALSE) -> CCU-09 | F78: =Dados!$C$7 -> 2022-03-01 | G78: =VLOOKUP($C78,'Orçamento N_DESON.'!$D$11:$S$82,4,FALSE) -> Projeto de Lógica | H78: =IFERROR(VLOOKUP($C78,'Orçamento N_DESON.'!$D$11:$S$82,6,FALSE),0) -> 1 | I78: =VLOOKUP($C78,'Orçamento N_DESON.'!$D$11:$S$82,5,FALSE) -> UN | J78: =VLOOKUP($C78,'Orçamento N_DESON.'!$D$11:$S$82,12,FALSE) -> 1127.83 | K78: =IFERROR(VLOOKUP($C78,'Orçamento N_DESON.'!$D$11:$S$82,16,FALSE),0) -> 1127.83 | L78: =VLOOKUP($C78,'Orçamento N_DESON.'!$D$11:$S$82,11,FALSE) -> 0.1538 | M78: =Encargos!$F$44 -> 1.1122
A79: ='Identificação-TCE'!$A$13 -> 1 | B79: =IF(AND(G79<>"",H79>0,I79<>"",J79<>0,K79<>0),COUNT($B$11:B78)+1,"") -> 18 | C79: =IF('Orçamento N_DESON.'!$M32=0,0,'Orçamento N_DESON.'!$D32) -> 2.14 | D79: =IF('Orçamento N_DESON.'!$F32=Aux.!$G$11,"CONTRATACAO_PUBLICA",IF(VLOOKUP($C79,'Orçamento N_DESON.'!$D$11:$G$525,3,FALSE)="INDEXADO",VLOOKUP(VLOOKUP($C79,'Orçamento N_DESON.'!$D$11:$G$525,2,FALSE),#REF!,2),VLOOKUP($C79,'Orçamento N_DESON.'!$D$11:$G$525,3,FALSE))) -> ORSE | E79: =VLOOKUP($C79,'Orçamento N_DESON.'!$D$11:$S$82,2,FALSE) -> 7351 | F79: =Dados!$C$7 -> 2022-03-01 | G79: =VLOOKUP($C79,'Orçamento N_DESON.'!$D$11:$S$82,4,FALSE) -> Projeto de combate a incêndio (com extintor) | H79: =IFERROR(VLOOKUP($C79,'Orçamento N_DESON.'!$D$11:$S$82,6,FALSE),0) -> 250 | I79: =VLOOKUP($C79,'Orçamento N_DESON.'!$D$11:$S$82,5,FALSE) -> M2 | J79: =VLOOKUP($C79,'Orçamento N_DESON.'!$D$11:$S$82,12,FALSE) -> 2.24 | K79: =IFERROR(VLOOKUP($C79,'Orçamento N_DESON.'!$D$11:$S$82,16,FALSE),0) -> 560 | L79: =VLOOKUP($C79,'Orçamento N_DESON.'!$D$11:$S$82,11,FALSE) -> 0.1538 | M79: =Encargos!$F$44 -> 1.1122
A80: ='Identificação-TCE'!$A$13 -> 1 | B80: =IF(AND(G80<>"",H80>0,I80<>"",J80<>0,K80<>0),COUNT($B$11:B79)+1,"") -> 19 | C80: =IF('Orçamento N_DESON.'!$M33=0,0,'Orçamento N_DESON.'!$D33) -> 2.15 | D80: =IF('Orçamento N_DESON.'!$F33=Aux.!$G$11,"CONTRATACAO_PUBLICA",IF(VLOOKUP($C80,'Orçamento N_DESON.'!$D$11:$G$525,3,FALSE)="INDEXADO",VLOOKUP(VLOOKUP($C80,'Orçamento N_DESON.'!$D$11:$G$525,2,FALSE),#REF!,2),VLOOKUP($C80,'Orçamento N_DESON.'!$D$11:$G$525,3,FALSE))) -> CCU | E80: =VLOOKUP($C80,'Orçamento N_DESON.'!$D$11:$S$82,2,FALSE) -> CCU-10 | F80: =Dados!$C$7 -> 2022-03-01 | G80: =VLOOKUP($C80,'Orçamento N_DESON.'!$D$11:$S$82,4,FALSE) -> Projeto de Sistema de Iluminação de Emergência | H80: =IFERROR(VLOOKUP($C80,'Orçamento N_DESON.'!$D$11:$S$82,6,FALSE),0) -> 1 | I80: =VLOOKUP($C80,'Orçamento N_DESON.'!$D$11:$S$82,5,FALSE) -> UN | J80: =VLOOKUP($C80,'Orçamento N_DESON.'!$D$11:$S$82,12,FALSE) -> 1127.83 | K80: =IFERROR(VLOOKUP($C80,'Orçamento N_DESON.'!$D$11:$S$82,16,FALSE),0) -> 1127.83 | L80: =VLOOKUP($C80,'Orçamento N_DESON.'!$D$11:$S$82,11,FALSE) -> 0.1538 | M80: =Encargos!$F$44 -> 1.1122
A81: ='Identificação-TCE'!$A$13 -> 1 | B81: =IF(AND(G81<>"",H81>0,I81<>"",J81<>0,K81<>0),COUNT($B$11:B80)+1,"") -> 20 | C81: =IF('Orçamento N_DESON.'!$M34=0,0,'Orçamento N_DESON.'!$D34) -> 2.16 | D81: =IF('Orçamento N_DESON.'!$F34=Aux.!$G$11,"CONTRATACAO_PUBLICA",IF(VLOOKUP($C81,'Orçamento N_DESON.'!$D$11:$G$525,3,FALSE)="INDEXADO",VLOOKUP(VLOOKUP($C81,'Orçamento N_DESON.'!$D$11:$G$525,2,FALSE),#REF!,2),VLOOKUP($C81,'Orçamento N_DESON.'!$D$11:$G$525,3,FALSE))) -> CCU | E81: =VLOOKUP($C81,'Orçamento N_DESON.'!$D$11:$S$82,2,FALSE) -> CCU-11 | F81: =Dados!$C$7 -> 2022-03-01 | G81: =VLOOKUP($C81,'Orçamento N_DESON.'!$D$11:$S$82,4,FALSE) -> Laudo Técnico de Instalações Elétricas | H81: =IFERROR(VLOOKUP($C81,'Orçamento N_DESON.'!$D$11:$S$82,6,FALSE),0) -> 1 | I81: =VLOOKUP($C81,'Orçamento N_DESON.'!$D$11:$S$82,5,FALSE) -> UN | J81: =VLOOKUP($C81,'Orçamento N_DESON.'!$D$11:$S$82,12,FALSE) -> 902.27 | K81: =IFERROR(VLOOKUP($C81,'Orçamento N_DESON.'!$D$11:$S$82,16,FALSE),0) -> 902.27 | L81: =VLOOKUP($C81,'Orçamento N_DESON.'!$D$11:$S$82,11,FALSE) -> 0.1538 | M81: =Encargos!$F$44 -> 1.1122
A82: ='Identificação-TCE'!$A$13 -> 1 | B82: =IF(AND(G82<>"",H82>0,I82<>"",J82<>0,K82<>0),COUNT($B$11:B81)+1,"") -> 21 | C82: =IF('Orçamento N_DESON.'!$M35=0,0,'Orçamento N_DESON.'!$D35) -> 2.17 | D82: =IF('Orçamento N_DESON.'!$F35=Aux.!$G$11,"CONTRATACAO_PUBLICA",IF(VLOOKUP($C82,'Orçamento N_DESON.'!$D$11:$G$525,3,FALSE)="INDEXADO",VLOOKUP(VLOOKUP($C82,'Orçamento N_DESON.'!$D$11:$G$525,2,FALSE),#REF!,2),VLOOKUP($C82,'Orçamento N_DESON.'!$D$11:$G$525,3,FALSE))) -> CCU | E82: =VLOOKUP($C82,'Orçamento N_DESON.'!$D$11:$S$82,2,FALSE) -> CCU-12 | F82: =Dados!$C$7 -> 2022-03-01 | G82: =VLOOKUP($C82,'Orçamento N_DESON.'!$D$11:$S$82,4,FALSE) -> Laudo Técnico de Estabilidade Estrutural | H82: =IFERROR(VLOOKUP($C82,'Orçamento N_DESON.'!$D$11:$S$82,6,FALSE),0) -> 1 | I82: =VLOOKUP($C82,'Orçamento N_DESON.'!$D$11:$S$82,5,FALSE) -> UN | J82: =VLOOKUP($C82,'Orçamento N_DESON.'!$D$11:$S$82,12,FALSE) -> 1057.52 | K82: =IFERROR(VLOOKUP($C82,'Orçamento N_DESON.'!$D$11:$S$82,16,FALSE),0) -> 1057.52 | L82: =VLOOKUP($C82,'Orçamento N_DESON.'!$D$11:$S$82,11,FALSE) -> 0.1538 | M82: =Encargos!$F$44 -> 1.1122
A83: ='Identificação-TCE'!$A$13 -> 1 | B83: =IF(AND(G83<>"",H83>0,I83<>"",J83<>0,K83<>0),COUNT($B$11:B82)+1,"") -> 22 | C83: =IF('Orçamento N_DESON.'!$M36=0,0,'Orçamento N_DESON.'!$D36) -> 2.18 | D83: =IF('Orçamento N_DESON.'!$F36=Aux.!$G$11,"CONTRATACAO_PUBLICA",IF(VLOOKUP($C83,'Orçamento N_DESON.'!$D$11:$G$525,3,FALSE)="INDEXADO",VLOOKUP(VLOOKUP($C83,'Orçamento N_DESON.'!$D$11:$G$525,2,FALSE),#REF!,2),VLOOKUP($C83,'Orçamento N_DESON.'!$D$11:$G$525,3,FALSE))) -> CCU | E83: =VLOOKUP($C83,'Orçamento N_DESON.'!$D$11:$S$82,2,FALSE) -> CCU-13 | F83: =Dados!$C$7 -> 2022-03-01 | G83: =VLOOKUP($C83,'Orçamento N_DESON.'!$D$11:$S$82,4,FALSE) -> Laudo Técnico de Controle de Materiais de Acabamento e Revestimento | H83: =IFERROR(VLOOKUP($C83,'Orçamento N_DESON.'!$D$11:$S$82,6,FALSE),0) -> 1 | I83: =VLOOKUP($C83,'Orçamento N_DESON.'!$D$11:$S$82,5,FALSE) -> UN | J83: =VLOOKUP($C83,'Orçamento N_DESON.'!$D$11:$S$82,12,FALSE) -> 1057.52 | K83: =IFERROR(VLOOKUP($C83,'Orçamento N_DESON.'!$D$11:$S$82,16,FALSE),0) -> 1057.52 | L83: =VLOOKUP($C83,'Orçamento N_DESON.'!$D$11:$S$82,11,FALSE) -> 0.1538 | M83: =Encargos!$F$44 -> 1.1122
A84: ='Identificação-TCE'!$A$13 -> 1 | B84: =IF(AND(G84<>"",H84>0,I84<>"",J84<>0,K84<>0),COUNT($B$11:B83)+1,"") ->  | C84: =IF('Orçamento N_DESON.'!$M37=0,0,'Orçamento N_DESON.'!$D37) -> 2.19 | D84: =IF('Orçamento N_DESON.'!$F37=Aux.!$G$11,"CONTRATACAO_PUBLICA",IF(VLOOKUP($C84,'Orçamento N_DESON.'!$D$11:$G$525,3,FALSE)="INDEXADO",VLOOKUP(VLOOKUP($C84,'Orçamento N_DESON.'!$D$11:$G$525,2,FALSE),#REF!,2),VLOOKUP($C84,'Orçamento N_DESON.'!$D$11:$G$525,3,FALSE))) -> 0 | E84: =VLOOKUP($C84,'Orçamento N_DESON.'!$D$11:$S$82,2,FALSE) -> 0 | F84: =Dados!$C$7 -> 2022-03-01 | G84: =VLOOKUP($C84,'Orçamento N_DESON.'!$D$11:$S$82,4,FALSE) -> - | H84: =IFERROR(VLOOKUP($C84,'Orçamento N_DESON.'!$D$11:$S$82,6,FALSE),0) -> 0 | I84: =VLOOKUP($C84,'Orçamento N_DESON.'!$D$11:$S$82,5,FALSE) -> - | J84: =VLOOKUP($C84,'Orçamento N_DESON.'!$D$11:$S$82,12,FALSE) -> - | K84: =IFERROR(VLOOKUP($C84,'Orçamento N_DESON.'!$D$11:$S$82,16,FALSE),0) -> 0 | L84: =VLOOKUP($C84,'Orçamento N_DESON.'!$D$11:$S$82,11,FALSE) -> - | M84: =Encargos!$F$44 -> 1.1122
A85: ='Identificação-TCE'!$A$13 -> 1 | B85: =IF(AND(G85<>"",H85>0,I85<>"",J85<>0,K85<>0),COUNT($B$11:B84)+1,"") ->  | C85: =IF('Orçamento N_DESON.'!$M38=0,0,'Orçamento N_DESON.'!$D38) -> 2.20 | D85: =IF('Orçamento N_DESON.'!$F38=Aux.!$G$11,"CONTRATACAO_PUBLICA",IF(VLOOKUP($C85,'Orçamento N_DESON.'!$D$11:$G$525,3,FALSE)="INDEXADO",VLOOKUP(VLOOKUP($C85,'Orçamento N_DESON.'!$D$11:$G$525,2,FALSE),#REF!,2),VLOOKUP($C85,'Orçamento N_DESON.'!$D$11:$G$525,3,FALSE))) -> 0 | E85: =VLOOKUP($C85,'Orçamento N_DESON.'!$D$11:$S$82,2,FALSE) -> 0 | F85: =Dados!$C$7 -> 2022-03-01 | G85: =VLOOKUP($C85,'Orçamento N_DESON.'!$D$11:$S$82,4,FALSE) -> - | H85: =IFERROR(VLOOKUP($C85,'Orçamento N_DESON.'!$D$11:$S$82,6,FALSE),0) -> 0 | I85: =VLOOKUP($C85,'Orçamento N_DESON.'!$D$11:$S$82,5,FALSE) -> - | J85: =VLOOKUP($C85,'Orçamento N_DESON.'!$D$11:$S$82,12,FALSE) -> - | K85: =IFERROR(VLOOKUP($C85,'Orçamento N_DESON.'!$D$11:$S$82,16,FALSE),0) -> 0 | L85: =VLOOKUP($C85,'Orçamento N_DESON.'!$D$11:$S$82,11,FALSE) -> - | M85: =Encargos!$F$44 -> 1.1122
A86: ='Identificação-TCE'!$A$13 -> 1 | B86: =IF(AND(G86<>"",H86>0,I86<>"",J86<>0,K86<>0),COUNT($B$11:B85)+1,"") ->  | C86: =IF('Orçamento N_DESON.'!$M39=0,0,'Orçamento N_DESON.'!$D39) -> 2.21 | D86: =IF('Orçamento N_DESON.'!$F39=Aux.!$G$11,"CONTRATACAO_PUBLICA",IF(VLOOKUP($C86,'Orçamento N_DESON.'!$D$11:$G$525,3,FALSE)="INDEXADO",VLOOKUP(VLOOKUP($C86,'Orçamento N_DESON.'!$D$11:$G$525,2,FALSE),#REF!,2),VLOOKUP($C86,'Orçamento N_DESON.'!$D$11:$G$525,3,FALSE))) -> 0 | E86: =VLOOKUP($C86,'Orçamento N_DESON.'!$D$11:$S$82,2,FALSE) -> 0 | F86: =Dados!$C$7 -> 2022-03-01 | G86: =VLOOKUP($C86,'Orçamento N_DESON.'!$D$11:$S$82,4,FALSE) -> - | H86: =IFERROR(VLOOKUP($C86,'Orçamento N_DESON.'!$D$11:$S$82,6,FALSE),0) -> 0 | I86: =VLOOKUP($C86,'Orçamento N_DESON.'!$D$11:$S$82,5,FALSE) -> - | J86: =VLOOKUP($C86,'Orçamento N_DESON.'!$D$11:$S$82,12,FALSE) -> - | K86: =IFERROR(VLOOKUP($C86,'Orçamento N_DESON.'!$D$11:$S$82,16,FALSE),0) -> 0 | L86: =VLOOKUP($C86,'Orçamento N_DESON.'!$D$11:$S$82,11,FALSE) -> - | M86: =Encargos!$F$44 -> 1.1122
A87: ='Identificação-TCE'!$A$13 -> 1 | B87: =IF(AND(G87<>"",H87>0,I87<>"",J87<>0,K87<>0),COUNT($B$11:B86)+1,"") ->  | C87: =IF('Orçamento N_DESON.'!$M40=0,0,'Orçamento N_DESON.'!$D40) -> 2.22 | D87: =IF('Orçamento N_DESON.'!$F40=Aux.!$G$11,"CONTRATACAO_PUBLICA",IF(VLOOKUP($C87,'Orçamento N_DESON.'!$D$11:$G$525,3,FALSE)="INDEXADO",VLOOKUP(VLOOKUP($C87,'Orçamento N_DESON.'!$D$11:$G$525,2,FALSE),#REF!,2),VLOOKUP($C87,'Orçamento N_DESON.'!$D$11:$G$525,3,FALSE))) -> 0 | E87: =VLOOKUP($C87,'Orçamento N_DESON.'!$D$11:$S$82,2,FALSE) -> 0 | F87: =Dados!$C$7 -> 2022-03-01 | G87: =VLOOKUP($C87,'Orçamento N_DESON.'!$D$11:$S$82,4,FALSE) -> - | H87: =IFERROR(VLOOKUP($C87,'Orçamento N_DESON.'!$D$11:$S$82,6,FALSE),0) -> 0 | I87: =VLOOKUP($C87,'Orçamento N_DESON.'!$D$11:$S$82,5,FALSE) -> - | J87: =VLOOKUP($C87,'Orçamento N_DESON.'!$D$11:$S$82,12,FALSE) -> - | K87: =IFERROR(VLOOKUP($C87,'Orçamento N_DESON.'!$D$11:$S$82,16,FALSE),0) -> 0 | L87: =VLOOKUP($C87,'Orçamento N_DESON.'!$D$11:$S$82,11,FALSE) -> - | M87: =Encargos!$F$44 -> 1.1122
A88: ='Identificação-TCE'!$A$13 -> 1 | B88: =IF(AND(G88<>"",H88>0,I88<>"",J88<>0,K88<>0),COUNT($B$11:B87)+1,"") ->  | C88: =IF('Orçamento N_DESON.'!$M41=0,0,'Orçamento N_DESON.'!$D41) -> 2.23 | D88: =IF('Orçamento N_DESON.'!$F41=Aux.!$G$11,"CONTRATACAO_PUBLICA",IF(VLOOKUP($C88,'Orçamento N_DESON.'!$D$11:$G$525,3,FALSE)="INDEXADO",VLOOKUP(VLOOKUP($C88,'Orçamento N_DESON.'!$D$11:$G$525,2,FALSE),#REF!,2),VLOOKUP($C88,'Orçamento N_DESON.'!$D$11:$G$525,3,FALSE))) -> 0 | E88: =VLOOKUP($C88,'Orçamento N_DESON.'!$D$11:$S$82,2,FALSE) -> 0 | F88: =Dados!$C$7 -> 2022-03-01 | G88: =VLOOKUP($C88,'Orçamento N_DESON.'!$D$11:$S$82,4,FALSE) -> - | H88: =IFERROR(VLOOKUP($C88,'Orçamento N_DESON.'!$D$11:$S$82,6,FALSE),0) -> 0 | I88: =VLOOKUP($C88,'Orçamento N_DESON.'!$D$11:$S$82,5,FALSE) -> - | J88: =VLOOKUP($C88,'Orçamento N_DESON.'!$D$11:$S$82,12,FALSE) -> - | K88: =IFERROR(VLOOKUP($C88,'Orçamento N_DESON.'!$D$11:$S$82,16,FALSE),0) -> 0 | L88: =VLOOKUP($C88,'Orçamento N_DESON.'!$D$11:$S$82,11,FALSE) -> - | M88: =Encargos!$F$44 -> 1.1122
A89: ='Identificação-TCE'!$A$13 -> 1 | B89: =IF(AND(G89<>"",H89>0,I89<>"",J89<>0,K89<>0),COUNT($B$11:B88)+1,"") ->  | C89: =IF('Orçamento N_DESON.'!$M42=0,0,'Orçamento N_DESON.'!$D42) -> 2.24 | D89: =IF('Orçamento N_DESON.'!$F42=Aux.!$G$11,"CONTRATACAO_PUBLICA",IF(VLOOKUP($C89,'Orçamento N_DESON.'!$D$11:$G$525,3,FALSE)="INDEXADO",VLOOKUP(VLOOKUP($C89,'Orçamento N_DESON.'!$D$11:$G$525,2,FALSE),#REF!,2),VLOOKUP($C89,'Orçamento N_DESON.'!$D$11:$G$525,3,FALSE))) -> 0 | E89: =VLOOKUP($C89,'Orçamento N_DESON.'!$D$11:$S$82,2,FALSE) -> 0 | F89: =Dados!$C$7 -> 2022-03-01 | G89: =VLOOKUP($C89,'Orçamento N_DESON.'!$D$11:$S$82,4,FALSE) -> - | H89: =IFERROR(VLOOKUP($C89,'Orçamento N_DESON.'!$D$11:$S$82,6,FALSE),0) -> 0 | I89: =VLOOKUP($C89,'Orçamento N_DESON.'!$D$11:$S$82,5,FALSE) -> - | J89: =VLOOKUP($C89,'Orçamento N_DESON.'!$D$11:$S$82,12,FALSE) -> - | K89: =IFERROR(VLOOKUP($C89,'Orçamento N_DESON.'!$D$11:$S$82,16,FALSE),0) -> 0 | L89: =VLOOKUP($C89,'Orçamento N_DESON.'!$D$11:$S$82,11,FALSE) -> - | M89: =Encargos!$F$44 -> 1.1122
A90: ='Identificação-TCE'!$A$13 -> 1 | B90: =IF(AND(G90<>"",H90>0,I90<>"",J90<>0,K90<>0),COUNT($B$11:B89)+1,"") ->  | C90: =IF('Orçamento N_DESON.'!$M43=0,0,'Orçamento N_DESON.'!$D43) -> 2.25 | D90: =IF('Orçamento N_DESON.'!$F43=Aux.!$G$11,"CONTRATACAO_PUBLICA",IF(VLOOKUP($C90,'Orçamento N_DESON.'!$D$11:$G$525,3,FALSE)="INDEXADO",VLOOKUP(VLOOKUP($C90,'Orçamento N_DESON.'!$D$11:$G$525,2,FALSE),#REF!,2),VLOOKUP($C90,'Orçamento N_DESON.'!$D$11:$G$525,3,FALSE))) -> 0 | E90: =VLOOKUP($C90,'Orçamento N_DESON.'!$D$11:$S$82,2,FALSE) -> 0 | F90: =Dados!$C$7 -> 2022-03-01 | G90: =VLOOKUP($C90,'Orçamento N_DESON.'!$D$11:$S$82,4,FALSE) -> - | H90: =IFERROR(VLOOKUP($C90,'Orçamento N_DESON.'!$D$11:$S$82,6,FALSE),0) -> 0 | I90: =VLOOKUP($C90,'Orçamento N_DESON.'!$D$11:$S$82,5,FALSE) -> - | J90: =VLOOKUP($C90,'Orçamento N_DESON.'!$D$11:$S$82,12,FALSE) -> - | K90: =IFERROR(VLOOKUP($C90,'Orçamento N_DESON.'!$D$11:$S$82,16,FALSE),0) -> 0 | L90: =VLOOKUP($C90,'Orçamento N_DESON.'!$D$11:$S$82,11,FALSE) -> - | M90: =Encargos!$F$44 -> 1.1122
A91: ='Identificação-TCE'!$A$13 -> 1 | B91: =IF(AND(G91<>"",H91>0,I91<>"",J91<>0,K91<>0),COUNT($B$11:B90)+1,"") ->  | C91: =IF('Orçamento N_DESON.'!$M44=0,0,'Orçamento N_DESON.'!$D44) -> 2.26 | D91: =IF('Orçamento N_DESON.'!$F44=Aux.!$G$11,"CONTRATACAO_PUBLICA",IF(VLOOKUP($C91,'Orçamento N_DESON.'!$D$11:$G$525,3,FALSE)="INDEXADO",VLOOKUP(VLOOKUP($C91,'Orçamento N_DESON.'!$D$11:$G$525,2,FALSE),#REF!,2),VLOOKUP($C91,'Orçamento N_DESON.'!$D$11:$G$525,3,FALSE))) -> 0 | E91: =VLOOKUP($C91,'Orçamento N_DESON.'!$D$11:$S$82,2,FALSE) -> 0 | F91: =Dados!$C$7 -> 2022-03-01 | G91: =VLOOKUP($C91,'Orçamento N_DESON.'!$D$11:$S$82,4,FALSE) -> - | H91: =IFERROR(VLOOKUP($C91,'Orçamento N_DESON.'!$D$11:$S$82,6,FALSE),0) -> 0 | I91: =VLOOKUP($C91,'Orçamento N_DESON.'!$D$11:$S$82,5,FALSE) -> - | J91: =VLOOKUP($C91,'Orçamento N_DESON.'!$D$11:$S$82,12,FALSE) -> - | K91: =IFERROR(VLOOKUP($C91,'Orçamento N_DESON.'!$D$11:$S$82,16,FALSE),0) -> 0 | L91: =VLOOKUP($C91,'Orçamento N_DESON.'!$D$11:$S$82,11,FALSE) -> - | M91: =Encargos!$F$44 -> 1.1122
A92: ='Identificação-TCE'!$A$13 -> 1 | B92: =IF(AND(G92<>"",H92>0,I92<>"",J92<>0,K92<>0),COUNT($B$11:B91)+1,"") ->  | C92: =IF('Orçamento N_DESON.'!$M45=0,0,'Orçamento N_DESON.'!$D45) -> 2.27 | D92: =IF('Orçamento N_DESON.'!$F45=Aux.!$G$11,"CONTRATACAO_PUBLICA",IF(VLOOKUP($C92,'Orçamento N_DESON.'!$D$11:$G$525,3,FALSE)="INDEXADO",VLOOKUP(VLOOKUP($C92,'Orçamento N_DESON.'!$D$11:$G$525,2,FALSE),#REF!,2),VLOOKUP($C92,'Orçamento N_DESON.'!$D$11:$G$525,3,FALSE))) -> 0 | E92: =VLOOKUP($C92,'Orçamento N_DESON.'!$D$11:$S$82,2,FALSE) -> 0 | F92: =Dados!$C$7 -> 2022-03-01 | G92: =VLOOKUP($C92,'Orçamento N_DESON.'!$D$11:$S$82,4,FALSE) -> - | H92: =IFERROR(VLOOKUP($C92,'Orçamento N_DESON.'!$D$11:$S$82,6,FALSE),0) -> 0 | I92: =VLOOKUP($C92,'Orçamento N_DESON.'!$D$11:$S$82,5,FALSE) -> - | J92: =VLOOKUP($C92,'Orçamento N_DESON.'!$D$11:$S$82,12,FALSE) -> - | K92: =IFERROR(VLOOKUP($C92,'Orçamento N_DESON.'!$D$11:$S$82,16,FALSE),0) -> 0 | L92: =VLOOKUP($C92,'Orçamento N_DESON.'!$D$11:$S$82,11,FALSE) -> - | M92: =Encargos!$F$44 -> 1.1122
A93: ='Identificação-TCE'!$A$13 -> 1 | B93: =IF(AND(G93<>"",H93>0,I93<>"",J93<>0,K93<>0),COUNT($B$11:B92)+1,"") ->  | C93: =IF('Orçamento N_DESON.'!$M46=0,0,'Orçamento N_DESON.'!$D46) -> 2.28 | D93: =IF('Orçamento N_DESON.'!$F46=Aux.!$G$11,"CONTRATACAO_PUBLICA",IF(VLOOKUP($C93,'Orçamento N_DESON.'!$D$11:$G$525,3,FALSE)="INDEXADO",VLOOKUP(VLOOKUP($C93,'Orçamento N_DESON.'!$D$11:$G$525,2,FALSE),#REF!,2),VLOOKUP($C93,'Orçamento N_DESON.'!$D$11:$G$525,3,FALSE))) -> 0 | E93: =VLOOKUP($C93,'Orçamento N_DESON.'!$D$11:$S$82,2,FALSE) -> 0 | F93: =Dados!$C$7 -> 2022-03-01 | G93: =VLOOKUP($C93,'Orçamento N_DESON.'!$D$11:$S$82,4,FALSE) -> - | H93: =IFERROR(VLOOKUP($C93,'Orçamento N_DESON.'!$D$11:$S$82,6,FALSE),0) -> 0 | I93: =VLOOKUP($C93,'Orçamento N_DESON.'!$D$11:$S$82,5,FALSE) -> - | J93: =VLOOKUP($C93,'Orçamento N_DESON.'!$D$11:$S$82,12,FALSE) -> - | K93: =IFERROR(VLOOKUP($C93,'Orçamento N_DESON.'!$D$11:$S$82,16,FALSE),0) -> 0 | L93: =VLOOKUP($C93,'Orçamento N_DESON.'!$D$11:$S$82,11,FALSE) -> - | M93: =Encargos!$F$44 -> 1.1122
A94: ='Identificação-TCE'!$A$13 -> 1 | B94: =IF(AND(G94<>"",H94>0,I94<>"",J94<>0,K94<>0),COUNT($B$11:B93)+1,"") ->  | C94: =IF('Orçamento N_DESON.'!$M47=0,0,'Orçamento N_DESON.'!$D47) -> 2.29 | D94: =IF('Orçamento N_DESON.'!$F47=Aux.!$G$11,"CONTRATACAO_PUBLICA",IF(VLOOKUP($C94,'Orçamento N_DESON.'!$D$11:$G$525,3,FALSE)="INDEXADO",VLOOKUP(VLOOKUP($C94,'Orçamento N_DESON.'!$D$11:$G$525,2,FALSE),#REF!,2),VLOOKUP($C94,'Orçamento N_DESON.'!$D$11:$G$525,3,FALSE))) -> 0 | E94: =VLOOKUP($C94,'Orçamento N_DESON.'!$D$11:$S$82,2,FALSE) -> 0 | F94: =Dados!$C$7 -> 2022-03-01 | G94: =VLOOKUP($C94,'Orçamento N_DESON.'!$D$11:$S$82,4,FALSE) -> - | H94: =IFERROR(VLOOKUP($C94,'Orçamento N_DESON.'!$D$11:$S$82,6,FALSE),0) -> 0 | I94: =VLOOKUP($C94,'Orçamento N_DESON.'!$D$11:$S$82,5,FALSE) -> - | J94: =VLOOKUP($C94,'Orçamento N_DESON.'!$D$11:$S$82,12,FALSE) -> - | K94: =IFERROR(VLOOKUP($C94,'Orçamento N_DESON.'!$D$11:$S$82,16,FALSE),0) -> 0 | L94: =VLOOKUP($C94,'Orçamento N_DESON.'!$D$11:$S$82,11,FALSE) -> - | M94: =Encargos!$F$44 -> 1.1122
A95: ='Identificação-TCE'!$A$13 -> 1 | B95: =IF(AND(G95<>"",H95>0,I95<>"",J95<>0,K95<>0),COUNT($B$11:B94)+1,"") ->  | C95: =IF('Orçamento N_DESON.'!$M48=0,0,'Orçamento N_DESON.'!$D48) -> 2.30 | D95: =IF('Orçamento N_DESON.'!$F48=Aux.!$G$11,"CONTRATACAO_PUBLICA",IF(VLOOKUP($C95,'Orçamento N_DESON.'!$D$11:$G$525,3,FALSE)="INDEXADO",VLOOKUP(VLOOKUP($C95,'Orçamento N_DESON.'!$D$11:$G$525,2,FALSE),#REF!,2),VLOOKUP($C95,'Orçamento N_DESON.'!$D$11:$G$525,3,FALSE))) -> 0 | E95: =VLOOKUP($C95,'Orçamento N_DESON.'!$D$11:$S$82,2,FALSE) -> 0 | F95: =Dados!$C$7 -> 2022-03-01 | G95: =VLOOKUP($C95,'Orçamento N_DESON.'!$D$11:$S$82,4,FALSE) -> - | H95: =IFERROR(VLOOKUP($C95,'Orçamento N_DESON.'!$D$11:$S$82,6,FALSE),0) -> 0 | I95: =VLOOKUP($C95,'Orçamento N_DESON.'!$D$11:$S$82,5,FALSE) -> - | J95: =VLOOKUP($C95,'Orçamento N_DESON.'!$D$11:$S$82,12,FALSE) -> - | K95: =IFERROR(VLOOKUP($C95,'Orçamento N_DESON.'!$D$11:$S$82,16,FALSE),0) -> 0 | L95: =VLOOKUP($C95,'Orçamento N_DESON.'!$D$11:$S$82,11,FALSE) -> - | M95: =Encargos!$F$44 -> 1.1122
A96: ='Identificação-TCE'!$A$13 -> 1 | B96: =IF(AND(G96<>"",H96>0,I96<>"",J96<>0,K96<>0),COUNT($B$11:B95)+1,"") ->  | C96: =IF('Orçamento N_DESON.'!$M49=0,0,'Orçamento N_DESON.'!$D49) -> 2.31 | D96: =IF('Orçamento N_DESON.'!$F49=Aux.!$G$11,"CONTRATACAO_PUBLICA",IF(VLOOKUP($C96,'Orçamento N_DESON.'!$D$11:$G$525,3,FALSE)="INDEXADO",VLOOKUP(VLOOKUP($C96,'Orçamento N_DESON.'!$D$11:$G$525,2,FALSE),#REF!,2),VLOOKUP($C96,'Orçamento N_DESON.'!$D$11:$G$525,3,FALSE))) -> 0 | E96: =VLOOKUP($C96,'Orçamento N_DESON.'!$D$11:$S$82,2,FALSE) -> 0 | F96: =Dados!$C$7 -> 2022-03-01 | G96: =VLOOKUP($C96,'Orçamento N_DESON.'!$D$11:$S$82,4,FALSE) -> - | H96: =IFERROR(VLOOKUP($C96,'Orçamento N_DESON.'!$D$11:$S$82,6,FALSE),0) -> 0 | I96: =VLOOKUP($C96,'Orçamento N_DESON.'!$D$11:$S$82,5,FALSE) -> - | J96: =VLOOKUP($C96,'Orçamento N_DESON.'!$D$11:$S$82,12,FALSE) -> - | K96: =IFERROR(VLOOKUP($C96,'Orçamento N_DESON.'!$D$11:$S$82,16,FALSE),0) -> 0 | L96: =VLOOKUP($C96,'Orçamento N_DESON.'!$D$11:$S$82,11,FALSE) -> - | M96: =Encargos!$F$44 -> 1.1122
A97: ='Identificação-TCE'!$A$13 -> 1 | B97: =IF(AND(G97<>"",H97>0,I97<>"",J97<>0,K97<>0),COUNT($B$11:B96)+1,"") ->  | C97: =IF('Orçamento N_DESON.'!$M50=0,0,'Orçamento N_DESON.'!$D50) -> 2.32 | D97: =IF('Orçamento N_DESON.'!$F50=Aux.!$G$11,"CONTRATACAO_PUBLICA",IF(VLOOKUP($C97,'Orçamento N_DESON.'!$D$11:$G$525,3,FALSE)="INDEXADO",VLOOKUP(VLOOKUP($C97,'Orçamento N_DESON.'!$D$11:$G$525,2,FALSE),#REF!,2),VLOOKUP($C97,'Orçamento N_DESON.'!$D$11:$G$525,3,FALSE))) -> 0 | E97: =VLOOKUP($C97,'Orçamento N_DESON.'!$D$11:$S$82,2,FALSE) -> 0 | F97: =Dados!$C$7 -> 2022-03-01 | G97: =VLOOKUP($C97,'Orçamento N_DESON.'!$D$11:$S$82,4,FALSE) -> - | H97: =IFERROR(VLOOKUP($C97,'Orçamento N_DESON.'!$D$11:$S$82,6,FALSE),0) -> 0 | I97: =VLOOKUP($C97,'Orçamento N_DESON.'!$D$11:$S$82,5,FALSE) -> - | J97: =VLOOKUP($C97,'Orçamento N_DESON.'!$D$11:$S$82,12,FALSE) -> - | K97: =IFERROR(VLOOKUP($C97,'Orçamento N_DESON.'!$D$11:$S$82,16,FALSE),0) -> 0 | L97: =VLOOKUP($C97,'Orçamento N_DESON.'!$D$11:$S$82,11,FALSE) -> - | M97: =Encargos!$F$44 -> 1.1122
A98: ='Identificação-TCE'!$A$13 -> 1 | B98: =IF(AND(G98<>"",H98>0,I98<>"",J98<>0,K98<>0),COUNT($B$11:B97)+1,"") ->  | C98: =IF('Orçamento N_DESON.'!$M51=0,0,'Orçamento N_DESON.'!$D51) -> 2.33 | D98: =IF('Orçamento N_DESON.'!$F51=Aux.!$G$11,"CONTRATACAO_PUBLICA",IF(VLOOKUP($C98,'Orçamento N_DESON.'!$D$11:$G$525,3,FALSE)="INDEXADO",VLOOKUP(VLOOKUP($C98,'Orçamento N_DESON.'!$D$11:$G$525,2,FALSE),#REF!,2),VLOOKUP($C98,'Orçamento N_DESON.'!$D$11:$G$525,3,FALSE))) -> 0 | E98: =VLOOKUP($C98,'Orçamento N_DESON.'!$D$11:$S$82,2,FALSE) -> 0 | F98: =Dados!$C$7 -> 2022-03-01 | G98: =VLOOKUP($C98,'Orçamento N_DESON.'!$D$11:$S$82,4,FALSE) -> - | H98: =IFERROR(VLOOKUP($C98,'Orçamento N_DESON.'!$D$11:$S$82,6,FALSE),0) -> 0 | I98: =VLOOKUP($C98,'Orçamento N_DESON.'!$D$11:$S$82,5,FALSE) -> - | J98: =VLOOKUP($C98,'Orçamento N_DESON.'!$D$11:$S$82,12,FALSE) -> - | K98: =IFERROR(VLOOKUP($C98,'Orçamento N_DESON.'!$D$11:$S$82,16,FALSE),0) -> 0 | L98: =VLOOKUP($C98,'Orçamento N_DESON.'!$D$11:$S$82,11,FALSE) -> - | M98: =Encargos!$F$44 -> 1.1122
A99: ='Identificação-TCE'!$A$13 -> 1 | B99: =IF(AND(G99<>"",H99>0,I99<>"",J99<>0,K99<>0),COUNT($B$11:B98)+1,"") ->  | C99: =IF('Orçamento N_DESON.'!$M52=0,0,'Orçamento N_DESON.'!$D52) -> 2.34 | D99: =IF('Orçamento N_DESON.'!$F52=Aux.!$G$11,"CONTRATACAO_PUBLICA",IF(VLOOKUP($C99,'Orçamento N_DESON.'!$D$11:$G$525,3,FALSE)="INDEXADO",VLOOKUP(VLOOKUP($C99,'Orçamento N_DESON.'!$D$11:$G$525,2,FALSE),#REF!,2),VLOOKUP($C99,'Orçamento N_DESON.'!$D$11:$G$525,3,FALSE))) -> 0 | E99: =VLOOKUP($C99,'Orçamento N_DESON.'!$D$11:$S$82,2,FALSE) -> 0 | F99: =Dados!$C$7 -> 2022-03-01 | G99: =VLOOKUP($C99,'Orçamento N_DESON.'!$D$11:$S$82,4,FALSE) -> - | H99: =IFERROR(VLOOKUP($C99,'Orçamento N_DESON.'!$D$11:$S$82,6,FALSE),0) -> 0 | I99: =VLOOKUP($C99,'Orçamento N_DESON.'!$D$11:$S$82,5,FALSE) -> - | J99: =VLOOKUP($C99,'Orçamento N_DESON.'!$D$11:$S$82,12,FALSE) -> - | K99: =IFERROR(VLOOKUP($C99,'Orçamento N_DESON.'!$D$11:$S$82,16,FALSE),0) -> 0 | L99: =VLOOKUP($C99,'Orçamento N_DESON.'!$D$11:$S$82,11,FALSE) -> - | M99: =Encargos!$F$44 -> 1.1122
A100: ='Identificação-TCE'!$A$13 -> 1 | B100: =IF(AND(G100<>"",H100>0,I100<>"",J100<>0,K100<>0),COUNT($B$11:B99)+1,"") ->  | C100: =IF('Orçamento N_DESON.'!$M53=0,0,'Orçamento N_DESON.'!$D53) -> 2.35 | D100: =IF('Orçamento N_DESON.'!$F53=Aux.!$G$11,"CONTRATACAO_PUBLICA",IF(VLOOKUP($C100,'Orçamento N_DESON.'!$D$11:$G$525,3,FALSE)="INDEXADO",VLOOKUP(VLOOKUP($C100,'Orçamento N_DESON.'!$D$11:$G$525,2,FALSE),#REF!,2),VLOOKUP($C100,'Orçamento N_DESON.'!$D$11:$G$525,3,FALSE))) -> 0 | E100: =VLOOKUP($C100,'Orçamento N_DESON.'!$D$11:$S$82,2,FALSE) -> 0 | F100: =Dados!$C$7 -> 2022-03-01 | G100: =VLOOKUP($C100,'Orçamento N_DESON.'!$D$11:$S$82,4,FALSE) -> - | H100: =IFERROR(VLOOKUP($C100,'Orçamento N_DESON.'!$D$11:$S$82,6,FALSE),0) -> 0 | I100: =VLOOKUP($C100,'Orçamento N_DESON.'!$D$11:$S$82,5,FALSE) -> - | J100: =VLOOKUP($C100,'Orçamento N_DESON.'!$D$11:$S$82,12,FALSE) -> - | K100: =IFERROR(VLOOKUP($C100,'Orçamento N_DESON.'!$D$11:$S$82,16,FALSE),0) -> 0 | L100: =VLOOKUP($C100,'Orçamento N_DESON.'!$D$11:$S$82,11,FALSE) -> - | M100: =Encargos!$F$44 -> 1.1122
A101: ='Identificação-TCE'!$A$13 -> 1 | B101: =IF(AND(G101<>"",H101>0,I101<>"",J101<>0,K101<>0),COUNT($B$11:B100)+1,"") ->  | C101: =IF('Orçamento N_DESON.'!$M54=0,0,'Orçamento N_DESON.'!$D54) -> 2.36 | D101: =IF('Orçamento N_DESON.'!$F54=Aux.!$G$11,"CONTRATACAO_PUBLICA",IF(VLOOKUP($C101,'Orçamento N_DESON.'!$D$11:$G$525,3,FALSE)="INDEXADO",VLOOKUP(VLOOKUP($C101,'Orçamento N_DESON.'!$D$11:$G$525,2,FALSE),#REF!,2),VLOOKUP($C101,'Orçamento N_DESON.'!$D$11:$G$525,3,FALSE))) -> 0 | E101: =VLOOKUP($C101,'Orçamento N_DESON.'!$D$11:$S$82,2,FALSE) -> 0 | F101: =Dados!$C$7 -> 2022-03-01 | G101: =VLOOKUP($C101,'Orçamento N_DESON.'!$D$11:$S$82,4,FALSE) -> - | H101: =IFERROR(VLOOKUP($C101,'Orçamento N_DESON.'!$D$11:$S$82,6,FALSE),0) -> 0 | I101: =VLOOKUP($C101,'Orçamento N_DESON.'!$D$11:$S$82,5,FALSE) -> - | J101: =VLOOKUP($C101,'Orçamento N_DESON.'!$D$11:$S$82,12,FALSE) -> - | K101: =IFERROR(VLOOKUP($C101,'Orçamento N_DESON.'!$D$11:$S$82,16,FALSE),0) -> 0 | L101: =VLOOKUP($C101,'Orçamento N_DESON.'!$D$11:$S$82,11,FALSE) -> - | M101: =Encargos!$F$44 -> 1.1122
A102: ='Identificação-TCE'!$A$13 -> 1 | B102: =IF(AND(G102<>"",H102>0,I102<>"",J102<>0,K102<>0),COUNT($B$11:B101)+1,"") ->  | C102: =IF('Orçamento N_DESON.'!$M55=0,0,'Orçamento N_DESON.'!$D55) -> 2.37 | D102: =IF('Orçamento N_DESON.'!$F55=Aux.!$G$11,"CONTRATACAO_PUBLICA",IF(VLOOKUP($C102,'Orçamento N_DESON.'!$D$11:$G$525,3,FALSE)="INDEXADO",VLOOKUP(VLOOKUP($C102,'Orçamento N_DESON.'!$D$11:$G$525,2,FALSE),#REF!,2),VLOOKUP($C102,'Orçamento N_DESON.'!$D$11:$G$525,3,FALSE))) -> 0 | E102: =VLOOKUP($C102,'Orçamento N_DESON.'!$D$11:$S$82,2,FALSE) -> 0 | F102: =Dados!$C$7 -> 2022-03-01 | G102: =VLOOKUP($C102,'Orçamento N_DESON.'!$D$11:$S$82,4,FALSE) -> - | H102: =IFERROR(VLOOKUP($C102,'Orçamento N_DESON.'!$D$11:$S$82,6,FALSE),0) -> 0 | I102: =VLOOKUP($C102,'Orçamento N_DESON.'!$D$11:$S$82,5,FALSE) -> - | J102: =VLOOKUP($C102,'Orçamento N_DESON.'!$D$11:$S$82,12,FALSE) -> - | K102: =IFERROR(VLOOKUP($C102,'Orçamento N_DESON.'!$D$11:$S$82,16,FALSE),0) -> 0 | L102: =VLOOKUP($C102,'Orçamento N_DESON.'!$D$11:$S$82,11,FALSE) -> - | M102: =Encargos!$F$44 -> 1.1122
A103: ='Identificação-TCE'!$A$13 -> 1 | B103: =IF(AND(G103<>"",H103>0,I103<>"",J103<>0,K103<>0),COUNT($B$11:B102)+1,"") ->  | C103: =IF('Orçamento N_DESON.'!$M56=0,0,'Orçamento N_DESON.'!$D56) -> 2.38 | D103: =IF('Orçamento N_DESON.'!$F56=Aux.!$G$11,"CONTRATACAO_PUBLICA",IF(VLOOKUP($C103,'Orçamento N_DESON.'!$D$11:$G$525,3,FALSE)="INDEXADO",VLOOKUP(VLOOKUP($C103,'Orçamento N_DESON.'!$D$11:$G$525,2,FALSE),#REF!,2),VLOOKUP($C103,'Orçamento N_DESON.'!$D$11:$G$525,3,FALSE))) -> 0 | E103: =VLOOKUP($C103,'Orçamento N_DESON.'!$D$11:$S$82,2,FALSE) -> 0 | F103: =Dados!$C$7 -> 2022-03-01 | G103: =VLOOKUP($C103,'Orçamento N_DESON.'!$D$11:$S$82,4,FALSE) -> - | H103: =IFERROR(VLOOKUP($C103,'Orçamento N_DESON.'!$D$11:$S$82,6,FALSE),0) -> 0 | I103: =VLOOKUP($C103,'Orçamento N_DESON.'!$D$11:$S$82,5,FALSE) -> - | J103: =VLOOKUP($C103,'Orçamento N_DESON.'!$D$11:$S$82,12,FALSE) -> - | K103: =IFERROR(VLOOKUP($C103,'Orçamento N_DESON.'!$D$11:$S$82,16,FALSE),0) -> 0 | L103: =VLOOKUP($C103,'Orçamento N_DESON.'!$D$11:$S$82,11,FALSE) -> - | M103: =Encargos!$F$44 -> 1.1122
A104: ='Identificação-TCE'!$A$13 -> 1 | B104: =IF(AND(G104<>"",H104>0,I104<>"",J104<>0,K104<>0),COUNT($B$11:B103)+1,"") ->  | C104: =IF('Orçamento N_DESON.'!$M57=0,0,'Orçamento N_DESON.'!$D57) -> 2.39 | D104: =IF('Orçamento N_DESON.'!$F57=Aux.!$G$11,"CONTRATACAO_PUBLICA",IF(VLOOKUP($C104,'Orçamento N_DESON.'!$D$11:$G$525,3,FALSE)="INDEXADO",VLOOKUP(VLOOKUP($C104,'Orçamento N_DESON.'!$D$11:$G$525,2,FALSE),#REF!,2),VLOOKUP($C104,'Orçamento N_DESON.'!$D$11:$G$525,3,FALSE))) -> 0 | E104: =VLOOKUP($C104,'Orçamento N_DESON.'!$D$11:$S$82,2,FALSE) -> 0 | F104: =Dados!$C$7 -> 2022-03-01 | G104: =VLOOKUP($C104,'Orçamento N_DESON.'!$D$11:$S$82,4,FALSE) -> - | H104: =IFERROR(VLOOKUP($C104,'Orçamento N_DESON.'!$D$11:$S$82,6,FALSE),0) -> 0 | I104: =VLOOKUP($C104,'Orçamento N_DESON.'!$D$11:$S$82,5,FALSE) -> - | J104: =VLOOKUP($C104,'Orçamento N_DESON.'!$D$11:$S$82,12,FALSE) -> - | K104: =IFERROR(VLOOKUP($C104,'Orçamento N_DESON.'!$D$11:$S$82,16,FALSE),0) -> 0 | L104: =VLOOKUP($C104,'Orçamento N_DESON.'!$D$11:$S$82,11,FALSE) -> - | M104: =Encargos!$F$44 -> 1.1122
A105: ='Identificação-TCE'!$A$13 -> 1 | B105: =IF(AND(G105<>"",H105>0,I105<>"",J105<>0,K105<>0),COUNT($B$11:B104)+1,"") ->  | C105: =IF('Orçamento N_DESON.'!$M58=0,0,'Orçamento N_DESON.'!$D58) -> 2.40 | D105: =IF('Orçamento N_DESON.'!$F58=Aux.!$G$11,"CONTRATACAO_PUBLICA",IF(VLOOKUP($C105,'Orçamento N_DESON.'!$D$11:$G$525,3,FALSE)="INDEXADO",VLOOKUP(VLOOKUP($C105,'Orçamento N_DESON.'!$D$11:$G$525,2,FALSE),#REF!,2),VLOOKUP($C105,'Orçamento N_DESON.'!$D$11:$G$525,3,FALSE))) -> 0 | E105: =VLOOKUP($C105,'Orçamento N_DESON.'!$D$11:$S$82,2,FALSE) -> 0 | F105: =Dados!$C$7 -> 2022-03-01 | G105: =VLOOKUP($C105,'Orçamento N_DESON.'!$D$11:$S$82,4,FALSE) -> - | H105: =IFERROR(VLOOKUP($C105,'Orçamento N_DESON.'!$D$11:$S$82,6,FALSE),0) -> 0 | I105: =VLOOKUP($C105,'Orçamento N_DESON.'!$D$11:$S$82,5,FALSE) -> - | J105: =VLOOKUP($C105,'Orçamento N_DESON.'!$D$11:$S$82,12,FALSE) -> - | K105: =IFERROR(VLOOKUP($C105,'Orçamento N_DESON.'!$D$11:$S$82,16,FALSE),0) -> 0 | L105: =VLOOKUP($C105,'Orçamento N_DESON.'!$D$11:$S$82,11,FALSE) -> - | M105: =Encargos!$F$44 -> 1.1122
A106: ='Identificação-TCE'!$A$13 -> 1 | B106: =IF(AND(G106<>"",H106>0,I106<>"",J106<>0,K106<>0),COUNT($B$11:B105)+1,"") ->  | C106: =IF('Orçamento N_DESON.'!$M59=0,0,'Orçamento N_DESON.'!$D59) -> 2.41 | D106: =IF('Orçamento N_DESON.'!$F59=Aux.!$G$11,"CONTRATACAO_PUBLICA",IF(VLOOKUP($C106,'Orçamento N_DESON.'!$D$11:$G$525,3,FALSE)="INDEXADO",VLOOKUP(VLOOKUP($C106,'Orçamento N_DESON.'!$D$11:$G$525,2,FALSE),#REF!,2),VLOOKUP($C106,'Orçamento N_DESON.'!$D$11:$G$525,3,FALSE))) -> 0 | E106: =VLOOKUP($C106,'Orçamento N_DESON.'!$D$11:$S$82,2,FALSE) -> 0 | F106: =Dados!$C$7 -> 2022-03-01 | G106: =VLOOKUP($C106,'Orçamento N_DESON.'!$D$11:$S$82,4,FALSE) -> - | H106: =IFERROR(VLOOKUP($C106,'Orçamento N_DESON.'!$D$11:$S$82,6,FALSE),0) -> 0 | I106: =VLOOKUP($C106,'Orçamento N_DESON.'!$D$11:$S$82,5,FALSE) -> - | J106: =VLOOKUP($C106,'Orçamento N_DESON.'!$D$11:$S$82,12,FALSE) -> - | K106: =IFERROR(VLOOKUP($C106,'Orçamento N_DESON.'!$D$11:$S$82,16,FALSE),0) -> 0 | L106: =VLOOKUP($C106,'Orçamento N_DESON.'!$D$11:$S$82,11,FALSE) -> - | M106: =Encargos!$F$44 -> 1.1122
A107: ='Identificação-TCE'!$A$13 -> 1 | B107: =IF(AND(G107<>"",H107>0,I107<>"",J107<>0,K107<>0),COUNT($B$11:B106)+1,"") ->  | C107: =IF('Orçamento N_DESON.'!$M60=0,0,'Orçamento N_DESON.'!$D60) -> 2.42 | D107: =IF('Orçamento N_DESON.'!$F60=Aux.!$G$11,"CONTRATACAO_PUBLICA",IF(VLOOKUP($C107,'Orçamento N_DESON.'!$D$11:$G$525,3,FALSE)="INDEXADO",VLOOKUP(VLOOKUP($C107,'Orçamento N_DESON.'!$D$11:$G$525,2,FALSE),#REF!,2),VLOOKUP($C107,'Orçamento N_DESON.'!$D$11:$G$525,3,FALSE))) -> 0 | E107: =VLOOKUP($C107,'Orçamento N_DESON.'!$D$11:$S$82,2,FALSE) -> 0 | F107: =Dados!$C$7 -> 2022-03-01 | G107: =VLOOKUP($C107,'Orçamento N_DESON.'!$D$11:$S$82,4,FALSE) -> - | H107: =IFERROR(VLOOKUP($C107,'Orçamento N_DESON.'!$D$11:$S$82,6,FALSE),0) -> 0 | I107: =VLOOKUP($C107,'Orçamento N_DESON.'!$D$11:$S$82,5,FALSE) -> - | J107: =VLOOKUP($C107,'Orçamento N_DESON.'!$D$11:$S$82,12,FALSE) -> - | K107: =IFERROR(VLOOKUP($C107,'Orçamento N_DESON.'!$D$11:$S$82,16,FALSE),0) -> 0 | L107: =VLOOKUP($C107,'Orçamento N_DESON.'!$D$11:$S$82,11,FALSE) -> - | M107: =Encargos!$F$44 -> 1.1122
A108: ='Identificação-TCE'!$A$13 -> 1 | B108: =IF(AND(G108<>"",H108>0,I108<>"",J108<>0,K108<>0),COUNT($B$11:B107)+1,"") ->  | C108: =IF('Orçamento N_DESON.'!$M61=0,0,'Orçamento N_DESON.'!$D61) -> 2.43 | D108: =IF('Orçamento N_DESON.'!$F61=Aux.!$G$11,"CONTRATACAO_PUBLICA",IF(VLOOKUP($C108,'Orçamento N_DESON.'!$D$11:$G$525,3,FALSE)="INDEXADO",VLOOKUP(VLOOKUP($C108,'Orçamento N_DESON.'!$D$11:$G$525,2,FALSE),#REF!,2),VLOOKUP($C108,'Orçamento N_DESON.'!$D$11:$G$525,3,FALSE))) -> 0 | E108: =VLOOKUP($C108,'Orçamento N_DESON.'!$D$11:$S$82,2,FALSE) -> 0 | F108: =Dados!$C$7 -> 2022-03-01 | G108: =VLOOKUP($C108,'Orçamento N_DESON.'!$D$11:$S$82,4,FALSE) -> - | H108: =IFERROR(VLOOKUP($C108,'Orçamento N_DESON.'!$D$11:$S$82,6,FALSE),0) -> 0 | I108: =VLOOKUP($C108,'Orçamento N_DESON.'!$D$11:$S$82,5,FALSE) -> - | J108: =VLOOKUP($C108,'Orçamento N_DESON.'!$D$11:$S$82,12,FALSE) -> - | K108: =IFERROR(VLOOKUP($C108,'Orçamento N_DESON.'!$D$11:$S$82,16,FALSE),0) -> 0 | L108: =VLOOKUP($C108,'Orçamento N_DESON.'!$D$11:$S$82,11,FALSE) -> - | M108: =Encargos!$F$44 -> 1.1122
A109: ='Identificação-TCE'!$A$13 -> 1 | B109: =IF(AND(G109<>"",H109>0,I109<>"",J109<>0,K109<>0),COUNT($B$11:B108)+1,"") ->  | C109: =IF('Orçamento N_DESON.'!$M62=0,0,'Orçamento N_DESON.'!$D62) -> 2.44 | D109: =IF('Orçamento N_DESON.'!$F62=Aux.!$G$11,"CONTRATACAO_PUBLICA",IF(VLOOKUP($C109,'Orçamento N_DESON.'!$D$11:$G$525,3,FALSE)="INDEXADO",VLOOKUP(VLOOKUP($C109,'Orçamento N_DESON.'!$D$11:$G$525,2,FALSE),#REF!,2),VLOOKUP($C109,'Orçamento N_DESON.'!$D$11:$G$525,3,FALSE))) -> 0 | E109: =VLOOKUP($C109,'Orçamento N_DESON.'!$D$11:$S$82,2,FALSE) -> 0 | F109: =Dados!$C$7 -> 2022-03-01 | G109: =VLOOKUP($C109,'Orçamento N_DESON.'!$D$11:$S$82,4,FALSE) -> - | H109: =IFERROR(VLOOKUP($C109,'Orçamento N_DESON.'!$D$11:$S$82,6,FALSE),0) -> 0 | I109: =VLOOKUP($C109,'Orçamento N_DESON.'!$D$11:$S$82,5,FALSE) -> - | J109: =VLOOKUP($C109,'Orçamento N_DESON.'!$D$11:$S$82,12,FALSE) -> - | K109: =IFERROR(VLOOKUP($C109,'Orçamento N_DESON.'!$D$11:$S$82,16,FALSE),0) -> 0 | L109: =VLOOKUP($C109,'Orçamento N_DESON.'!$D$11:$S$82,11,FALSE) -> - | M109: =Encargos!$F$44 -> 1.1122
A110: ='Identificação-TCE'!$A$13 -> 1 | B110: =IF(AND(G110<>"",H110>0,I110<>"",J110<>0,K110<>0),COUNT($B$11:B109)+1,"") ->  | C110: =IF('Orçamento N_DESON.'!$M63=0,0,'Orçamento N_DESON.'!$D63) -> 2.45 | D110: =IF('Orçamento N_DESON.'!$F63=Aux.!$G$11,"CONTRATACAO_PUBLICA",IF(VLOOKUP($C110,'Orçamento N_DESON.'!$D$11:$G$525,3,FALSE)="INDEXADO",VLOOKUP(VLOOKUP($C110,'Orçamento N_DESON.'!$D$11:$G$525,2,FALSE),#REF!,2),VLOOKUP($C110,'Orçamento N_DESON.'!$D$11:$G$525,3,FALSE))) -> 0 | E110: =VLOOKUP($C110,'Orçamento N_DESON.'!$D$11:$S$82,2,FALSE) -> 0 | F110: =Dados!$C$7 -> 2022-03-01 | G110: =VLOOKUP($C110,'Orçamento N_DESON.'!$D$11:$S$82,4,FALSE) -> - | H110: =IFERROR(VLOOKUP($C110,'Orçamento N_DESON.'!$D$11:$S$82,6,FALSE),0) -> 0 | I110: =VLOOKUP($C110,'Orçamento N_DESON.'!$D$11:$S$82,5,FALSE) -> - | J110: =VLOOKUP($C110,'Orçamento N_DESON.'!$D$11:$S$82,12,FALSE) -> - | K110: =IFERROR(VLOOKUP($C110,'Orçamento N_DESON.'!$D$11:$S$82,16,FALSE),0) -> 0 | L110: =VLOOKUP($C110,'Orçamento N_DESON.'!$D$11:$S$82,11,FALSE) -> - | M110: =Encargos!$F$44 -> 1.1122
A111: ='Identificação-TCE'!$A$13 -> 1 | B111: =IF(AND(G111<>"",H111>0,I111<>"",J111<>0,K111<>0),COUNT($B$11:B110)+1,"") ->  | C111: =IF('Orçamento N_DESON.'!$M64=0,0,'Orçamento N_DESON.'!$D64) -> 2.46 | D111: =IF('Orçamento N_DESON.'!$F64=Aux.!$G$11,"CONTRATACAO_PUBLICA",IF(VLOOKUP($C111,'Orçamento N_DESON.'!$D$11:$G$525,3,FALSE)="INDEXADO",VLOOKUP(VLOOKUP($C111,'Orçamento N_DESON.'!$D$11:$G$525,2,FALSE),#REF!,2),VLOOKUP($C111,'Orçamento N_DESON.'!$D$11:$G$525,3,FALSE))) -> 0 | E111: =VLOOKUP($C111,'Orçamento N_DESON.'!$D$11:$S$82,2,FALSE) -> 0 | F111: =Dados!$C$7 -> 2022-03-01 | G111: =VLOOKUP($C111,'Orçamento N_DESON.'!$D$11:$S$82,4,FALSE) -> - | H111: =IFERROR(VLOOKUP($C111,'Orçamento N_DESON.'!$D$11:$S$82,6,FALSE),0) -> 0 | I111: =VLOOKUP($C111,'Orçamento N_DESON.'!$D$11:$S$82,5,FALSE) -> - | J111: =VLOOKUP($C111,'Orçamento N_DESON.'!$D$11:$S$82,12,FALSE) -> - | K111: =IFERROR(VLOOKUP($C111,'Orçamento N_DESON.'!$D$11:$S$82,16,FALSE),0) -> 0 | L111: =VLOOKUP($C111,'Orçamento N_DESON.'!$D$11:$S$82,11,FALSE) -> - | M111: =Encargos!$F$44 -> 1.1122
A112: ='Identificação-TCE'!$A$13 -> 1 | B112: =IF(AND(G112<>"",H112>0,I112<>"",J112<>0,K112<>0),COUNT($B$11:B111)+1,"") ->  | C112: =IF('Orçamento N_DESON.'!$M65=0,0,'Orçamento N_DESON.'!$D65) -> 2.47 | D112: =IF('Orçamento N_DESON.'!$F65=Aux.!$G$11,"CONTRATACAO_PUBLICA",IF(VLOOKUP($C112,'Orçamento N_DESON.'!$D$11:$G$525,3,FALSE)="INDEXADO",VLOOKUP(VLOOKUP($C112,'Orçamento N_DESON.'!$D$11:$G$525,2,FALSE),#REF!,2),VLOOKUP($C112,'Orçamento N_DESON.'!$D$11:$G$525,3,FALSE))) -> 0 | E112: =VLOOKUP($C112,'Orçamento N_DESON.'!$D$11:$S$82,2,FALSE) -> 0 | F112: =Dados!$C$7 -> 2022-03-01 | G112: =VLOOKUP($C112,'Orçamento N_DESON.'!$D$11:$S$82,4,FALSE) -> - | H112: =IFERROR(VLOOKUP($C112,'Orçamento N_DESON.'!$D$11:$S$82,6,FALSE),0) -> 0 | I112: =VLOOKUP($C112,'Orçamento N_DESON.'!$D$11:$S$82,5,FALSE) -> - | J112: =VLOOKUP($C112,'Orçamento N_DESON.'!$D$11:$S$82,12,FALSE) -> - | K112: =IFERROR(VLOOKUP($C112,'Orçamento N_DESON.'!$D$11:$S$82,16,FALSE),0) -> 0 | L112: =VLOOKUP($C112,'Orçamento N_DESON.'!$D$11:$S$82,11,FALSE) -> - | M112: =Encargos!$F$44 -> 1.1122
A113: ='Identificação-TCE'!$A$13 -> 1 | B113: =IF(AND(G113<>"",H113>0,I113<>"",J113<>0,K113<>0),COUNT($B$11:B112)+1,"") ->  | C113: =IF('Orçamento N_DESON.'!$M66=0,0,'Orçamento N_DESON.'!$D66) -> 2.48 | D113: =IF('Orçamento N_DESON.'!$F66=Aux.!$G$11,"CONTRATACAO_PUBLICA",IF(VLOOKUP($C113,'Orçamento N_DESON.'!$D$11:$G$525,3,FALSE)="INDEXADO",VLOOKUP(VLOOKUP($C113,'Orçamento N_DESON.'!$D$11:$G$525,2,FALSE),#REF!,2),VLOOKUP($C113,'Orçamento N_DESON.'!$D$11:$G$525,3,FALSE))) -> 0 | E113: =VLOOKUP($C113,'Orçamento N_DESON.'!$D$11:$S$82,2,FALSE) -> 0 | F113: =Dados!$C$7 -> 2022-03-01 | G113: =VLOOKUP($C113,'Orçamento N_DESON.'!$D$11:$S$82,4,FALSE) -> - | H113: =IFERROR(VLOOKUP($C113,'Orçamento N_DESON.'!$D$11:$S$82,6,FALSE),0) -> 0 | I113: =VLOOKUP($C113,'Orçamento N_DESON.'!$D$11:$S$82,5,FALSE) -> - | J113: =VLOOKUP($C113,'Orçamento N_DESON.'!$D$11:$S$82,12,FALSE) -> - | K113: =IFERROR(VLOOKUP($C113,'Orçamento N_DESON.'!$D$11:$S$82,16,FALSE),0) -> 0 | L113: =VLOOKUP($C113,'Orçamento N_DESON.'!$D$11:$S$82,11,FALSE) -> - | M113: =Encargos!$F$44 -> 1.1122
A114: ='Identificação-TCE'!$A$13 -> 1 | B114: =IF(AND(G114<>"",H114>0,I114<>"",J114<>0,K114<>0),COUNT($B$11:B113)+1,"") ->  | C114: =IF('Orçamento N_DESON.'!$M67=0,0,'Orçamento N_DESON.'!$D67) -> 2.49 | D114: =IF('Orçamento N_DESON.'!$F67=Aux.!$G$11,"CONTRATACAO_PUBLICA",IF(VLOOKUP($C114,'Orçamento N_DESON.'!$D$11:$G$525,3,FALSE)="INDEXADO",VLOOKUP(VLOOKUP($C114,'Orçamento N_DESON.'!$D$11:$G$525,2,FALSE),#REF!,2),VLOOKUP($C114,'Orçamento N_DESON.'!$D$11:$G$525,3,FALSE))) -> 0 | E114: =VLOOKUP($C114,'Orçamento N_DESON.'!$D$11:$S$82,2,FALSE) -> 0 | F114: =Dados!$C$7 -> 2022-03-01 | G114: =VLOOKUP($C114,'Orçamento N_DESON.'!$D$11:$S$82,4,FALSE) -> - | H114: =IFERROR(VLOOKUP($C114,'Orçamento N_DESON.'!$D$11:$S$82,6,FALSE),0) -> 0 | I114: =VLOOKUP($C114,'Orçamento N_DESON.'!$D$11:$S$82,5,FALSE) -> - | J114: =VLOOKUP($C114,'Orçamento N_DESON.'!$D$11:$S$82,12,FALSE) -> - | K114: =IFERROR(VLOOKUP($C114,'Orçamento N_DESON.'!$D$11:$S$82,16,FALSE),0) -> 0 | L114: =VLOOKUP($C114,'Orçamento N_DESON.'!$D$11:$S$82,11,FALSE) -> - | M114: =Encargos!$F$44 -> 1.1122
A115: ='Identificação-TCE'!$A$13 -> 1 | B115: =IF(AND(G115<>"",H115>0,I115<>"",J115<>0,K115<>0),COUNT($B$11:B114)+1,"") ->  | C115: =IF('Orçamento N_DESON.'!$M68=0,0,'Orçamento N_DESON.'!$D68) -> 2.50 | D115: =IF('Orçamento N_DESON.'!$F68=Aux.!$G$11,"CONTRATACAO_PUBLICA",IF(VLOOKUP($C115,'Orçamento N_DESON.'!$D$11:$G$525,3,FALSE)="INDEXADO",VLOOKUP(VLOOKUP($C115,'Orçamento N_DESON.'!$D$11:$G$525,2,FALSE),#REF!,2),VLOOKUP($C115,'Orçamento N_DESON.'!$D$11:$G$525,3,FALSE))) -> 0 | E115: =VLOOKUP($C115,'Orçamento N_DESON.'!$D$11:$S$82,2,FALSE) -> 0 | F115: =Dados!$C$7 -> 2022-03-01 | G115: =VLOOKUP($C115,'Orçamento N_DESON.'!$D$11:$S$82,4,FALSE) -> - | H115: =IFERROR(VLOOKUP($C115,'Orçamento N_DESON.'!$D$11:$S$82,6,FALSE),0) -> 0 | I115: =VLOOKUP($C115,'Orçamento N_DESON.'!$D$11:$S$82,5,FALSE) -> - | J115: =VLOOKUP($C115,'Orçamento N_DESON.'!$D$11:$S$82,12,FALSE) -> - | K115: =IFERROR(VLOOKUP($C115,'Orçamento N_DESON.'!$D$11:$S$82,16,FALSE),0) -> 0 | L115: =VLOOKUP($C115,'Orçamento N_DESON.'!$D$11:$S$82,11,FALSE) -> - | M115: =Encargos!$F$44 -> 1.1122
A116: ='Identificação-TCE'!$A$13 -> 1 | B116: =IF(AND(G116<>"",H116>0,I116<>"",J116<>0,K116<>0),COUNT($B$11:B115)+1,"") ->  | C116: =IF('Orçamento N_DESON.'!$M69=0,0,'Orçamento N_DESON.'!$D69) -> 0 | D116: =IF('Orçamento N_DESON.'!$F69=Aux.!$G$11,"CONTRATACAO_PUBLICA",IF(VLOOKUP($C116,'Orçamento N_DESON.'!$D$11:$G$525,3,FALSE)="INDEXADO",VLOOKUP(VLOOKUP($C116,'Orçamento N_DESON.'!$D$11:$G$525,2,FALSE),#REF!,2),VLOOKUP($C116,'Orçamento N_DESON.'!$D$11:$G$525,3,FALSE))) ->  | E116: =VLOOKUP($C116,'Orçamento N_DESON.'!$D$11:$S$82,2,FALSE) ->  | F116: =Dados!$C$7 -> 2022-03-01 | G116: =VLOOKUP($C116,'Orçamento N_DESON.'!$D$11:$S$82,4,FALSE) ->  | H116: =IFERROR(VLOOKUP($C116,'Orçamento N_DESON.'!$D$11:$S$82,6,FALSE),0) -> 0 | I116: =VLOOKUP($C116,'Orçamento N_DESON.'!$D$11:$S$82,5,FALSE) ->  | J116: =VLOOKUP($C116,'Orçamento N_DESON.'!$D$11:$S$82,12,FALSE) ->  | K116: =IFERROR(VLOOKUP($C116,'Orçamento N_DESON.'!$D$11:$S$82,16,FALSE),0) -> 0 | L116: =VLOOKUP($C116,'Orçamento N_DESON.'!$D$11:$S$82,11,FALSE) ->  | M116: =Encargos!$F$44 -> 1.1122
A117: ='Identificação-TCE'!$A$13 -> 1 | B117: =IF(AND(G117<>"",H117>0,I117<>"",J117<>0,K117<>0),COUNT($B$11:B116)+1,"") ->  | C117: =IF('Orçamento N_DESON.'!$M70=0,0,'Orçamento N_DESON.'!$D70) -> 0 | D117: =IF('Orçamento N_DESON.'!$F70=Aux.!$G$11,"CONTRATACAO_PUBLICA",IF(VLOOKUP($C117,'Orçamento N_DESON.'!$D$11:$G$525,3,FALSE)="INDEXADO",VLOOKUP(VLOOKUP($C117,'Orçamento N_DESON.'!$D$11:$G$525,2,FALSE),#REF!,2),VLOOKUP($C117,'Orçamento N_DESON.'!$D$11:$G$525,3,FALSE))) ->  | E117: =VLOOKUP($C117,'Orçamento N_DESON.'!$D$11:$S$82,2,FALSE) ->  | F117: =Dados!$C$7 -> 2022-03-01 | G117: =VLOOKUP($C117,'Orçamento N_DESON.'!$D$11:$S$82,4,FALSE) ->  | H117: =IFERROR(VLOOKUP($C117,'Orçamento N_DESON.'!$D$11:$S$82,6,FALSE),0) -> 0 | I117: =VLOOKUP($C117,'Orçamento N_DESON.'!$D$11:$S$82,5,FALSE) ->  | J117: =VLOOKUP($C117,'Orçamento N_DESON.'!$D$11:$S$82,12,FALSE) ->  | K117: =IFERROR(VLOOKUP($C117,'Orçamento N_DESON.'!$D$11:$S$82,16,FALSE),0) -> 0 | L117: =VLOOKUP($C117,'Orçamento N_DESON.'!$D$11:$S$82,11,FALSE) ->  | M117: =Encargos!$F$44 -> 1.1122
A118: ='Identificação-TCE'!$A$13 -> 1 | B118: =IF(AND(G118<>"",H118>0,I118<>"",J118<>0,K118<>0),COUNT($B$11:B117)+1,"") ->  | C118: =IF('Orçamento N_DESON.'!$M71=0,0,'Orçamento N_DESON.'!$D71) -> 0 | D118: =IF('Orçamento N_DESON.'!$F71=Aux.!$G$11,"CONTRATACAO_PUBLICA",IF(VLOOKUP($C118,'Orçamento N_DESON.'!$D$11:$G$525,3,FALSE)="INDEXADO",VLOOKUP(VLOOKUP($C118,'Orçamento N_DESON.'!$D$11:$G$525,2,FALSE),#REF!,2),VLOOKUP($C118,'Orçamento N_DESON.'!$D$11:$G$525,3,FALSE))) ->  | E118: =VLOOKUP($C118,'Orçamento N_DESON.'!$D$11:$S$82,2,FALSE) ->  | F118: =Dados!$C$7 -> 2022-03-01 | G118: =VLOOKUP($C118,'Orçamento N_DESON.'!$D$11:$S$82,4,FALSE) ->  | H118: =IFERROR(VLOOKUP($C118,'Orçamento N_DESON.'!$D$11:$S$82,6,FALSE),0) -> 0 | I118: =VLOOKUP($C118,'Orçamento N_DESON.'!$D$11:$S$82,5,FALSE) ->  | J118: =VLOOKUP($C118,'Orçamento N_DESON.'!$D$11:$S$82,12,FALSE) ->  | K118: =IFERROR(VLOOKUP($C118,'Orçamento N_DESON.'!$D$11:$S$82,16,FALSE),0) -> 0 | L118: =VLOOKUP($C118,'Orçamento N_DESON.'!$D$11:$S$82,11,FALSE) ->  | M118: =Encargos!$F$44 -> 1.1122
A119: ='Identificação-TCE'!$A$13 -> 1 | B119: =IF(AND(G119<>"",H119>0,I119<>"",J119<>0,K119<>0),COUNT($B$11:B118)+1,"") ->  | C119: =IF('Orçamento N_DESON.'!$M72=0,0,'Orçamento N_DESON.'!$D72) -> 0 | D119: =IF('Orçamento N_DESON.'!$F72=Aux.!$G$11,"CONTRATACAO_PUBLICA",IF(VLOOKUP($C119,'Orçamento N_DESON.'!$D$11:$G$525,3,FALSE)="INDEXADO",VLOOKUP(VLOOKUP($C119,'Orçamento N_DESON.'!$D$11:$G$525,2,FALSE),#REF!,2),VLOOKUP($C119,'Orçamento N_DESON.'!$D$11:$G$525,3,FALSE))) ->  | E119: =VLOOKUP($C119,'Orçamento N_DESON.'!$D$11:$S$82,2,FALSE) ->  | F119: =Dados!$C$7 -> 2022-03-01 | G119: =VLOOKUP($C119,'Orçamento N_DESON.'!$D$11:$S$82,4,FALSE) ->  | H119: =IFERROR(VLOOKUP($C119,'Orçamento N_DESON.'!$D$11:$S$82,6,FALSE),0) -> 0 | I119: =VLOOKUP($C119,'Orçamento N_DESON.'!$D$11:$S$82,5,FALSE) ->  | J119: =VLOOKUP($C119,'Orçamento N_DESON.'!$D$11:$S$82,12,FALSE) ->  | K119: =IFERROR(VLOOKUP($C119,'Orçamento N_DESON.'!$D$11:$S$82,16,FALSE),0) -> 0 | L119: =VLOOKUP($C119,'Orçamento N_DESON.'!$D$11:$S$82,11,FALSE) ->  | M119: =Encargos!$F$44 -> 1.1122
A120: ='Identificação-TCE'!$A$13 -> 1 | B120: =IF(AND(G120<>"",H120>0,I120<>"",J120<>0,K120<>0),COUNT($B$11:B119)+1,"") -> 23 | C120: =IF('Orçamento N_DESON.'!$M73=0,0,'Orçamento N_DESON.'!$D73) -> 3.1 | D120: =IF('Orçamento N_DESON.'!$F73=Aux.!$G$11,"CONTRATACAO_PUBLICA",IF(VLOOKUP($C120,'Orçamento N_DESON.'!$D$11:$G$525,3,FALSE)="INDEXADO",VLOOKUP(VLOOKUP($C120,'Orçamento N_DESON.'!$D$11:$G$525,2,FALSE),#REF!,2),VLOOKUP($C120,'Orçamento N_DESON.'!$D$11:$G$525,3,FALSE))) -> CCU | E120: =VLOOKUP($C120,'Orçamento N_DESON.'!$D$11:$S$82,2,FALSE) -> CCU-14 | F120: =Dados!$C$7 -> 2022-03-01 | G120: =VLOOKUP($C120,'Orçamento N_DESON.'!$D$11:$S$82,4,FALSE) -> Planilha Detalhada de Custos | H120: =IFERROR(VLOOKUP($C120,'Orçamento N_DESON.'!$D$11:$S$82,6,FALSE),0) -> 1 | I120: =VLOOKUP($C120,'Orçamento N_DESON.'!$D$11:$S$82,5,FALSE) -> UN | J120: =VLOOKUP($C120,'Orçamento N_DESON.'!$D$11:$S$82,12,FALSE) -> 3257.77 | K120: =IFERROR(VLOOKUP($C120,'Orçamento N_DESON.'!$D$11:$S$82,16,FALSE),0) -> 3257.77 | L120: =VLOOKUP($C120,'Orçamento N_DESON.'!$D$11:$S$82,11,FALSE) -> 0.1538 | M120: =Encargos!$F$44 -> 1.1122
A121: ='Identificação-TCE'!$A$13 -> 1 | B121: =IF(AND(G121<>"",H121>0,I121<>"",J121<>0,K121<>0),COUNT($B$11:B120)+1,"") -> 24 | C121: =IF('Orçamento N_DESON.'!$M74=0,0,'Orçamento N_DESON.'!$D74) -> 3.2 | D121: =IF('Orçamento N_DESON.'!$F74=Aux.!$G$11,"CONTRATACAO_PUBLICA",IF(VLOOKUP($C121,'Orçamento N_DESON.'!$D$11:$G$525,3,FALSE)="INDEXADO",VLOOKUP(VLOOKUP($C121,'Orçamento N_DESON.'!$D$11:$G$525,2,FALSE),#REF!,2),VLOOKUP($C121,'Orçamento N_DESON.'!$D$11:$G$525,3,FALSE))) -> CCU | E121: =VLOOKUP($C121,'Orçamento N_DESON.'!$D$11:$S$82,2,FALSE) -> CCU-15 | F121: =Dados!$C$7 -> 2022-03-01 | G121: =VLOOKUP($C121,'Orçamento N_DESON.'!$D$11:$S$82,4,FALSE) -> Cronograma Físico-Financeiro | H121: =IFERROR(VLOOKUP($C121,'Orçamento N_DESON.'!$D$11:$S$82,6,FALSE),0) -> 1 | I121: =VLOOKUP($C121,'Orçamento N_DESON.'!$D$11:$S$82,5,FALSE) -> UN | J121: =VLOOKUP($C121,'Orçamento N_DESON.'!$D$11:$S$82,12,FALSE) -> 930.79 | K121: =IFERROR(VLOOKUP($C121,'Orçamento N_DESON.'!$D$11:$S$82,16,FALSE),0) -> 930.79 | L121: =VLOOKUP($C121,'Orçamento N_DESON.'!$D$11:$S$82,11,FALSE) -> 0.1538 | M121: =Encargos!$F$44 -> 1.1122
A122: ='Identificação-TCE'!$A$13 -> 1 | B122: =IF(AND(G122<>"",H122>0,I122<>"",J122<>0,K122<>0),COUNT($B$11:B121)+1,"") -> 25 | C122: =IF('Orçamento N_DESON.'!$M75=0,0,'Orçamento N_DESON.'!$D75) -> 3.3 | D122: =IF('Orçamento N_DESON.'!$F75=Aux.!$G$11,"CONTRATACAO_PUBLICA",IF(VLOOKUP($C122,'Orçamento N_DESON.'!$D$11:$G$525,3,FALSE)="INDEXADO",VLOOKUP(VLOOKUP($C122,'Orçamento N_DESON.'!$D$11:$G$525,2,FALSE),#REF!,2),VLOOKUP($C122,'Orçamento N_DESON.'!$D$11:$G$525,3,FALSE))) -> CCU | E122: =VLOOKUP($C122,'Orçamento N_DESON.'!$D$11:$S$82,2,FALSE) -> CCU-16 | F122: =Dados!$C$7 -> 2022-03-01 | G122: =VLOOKUP($C122,'Orçamento N_DESON.'!$D$11:$S$82,4,FALSE) -> Memorial de Serviços Técnicos | H122: =IFERROR(VLOOKUP($C122,'Orçamento N_DESON.'!$D$11:$S$82,6,FALSE),0) -> 1 | I122: =VLOOKUP($C122,'Orçamento N_DESON.'!$D$11:$S$82,5,FALSE) -> UN | J122: =VLOOKUP($C122,'Orçamento N_DESON.'!$D$11:$S$82,12,FALSE) -> 1396.19 | K122: =IFERROR(VLOOKUP($C122,'Orçamento N_DESON.'!$D$11:$S$82,16,FALSE),0) -> 1396.19 | L122: =VLOOKUP($C122,'Orçamento N_DESON.'!$D$11:$S$82,11,FALSE) -> 0.1538 | M122: =Encargos!$F$44 -> 1.1122
A123: ='Identificação-TCE'!$A$13 -> 1 | B123: =IF(AND(G123<>"",H123>0,I123<>"",J123<>0,K123<>0),COUNT($B$11:B122)+1,"") ->  | C123: =IF('Orçamento N_DESON.'!#REF!=0,0,'Orçamento N_DESON.'!#REF!) ->  | D123: =IF('Orçamento N_DESON.'!#REF!=Aux.!$G$11,"CONTRATACAO_PUBLICA",IF(VLOOKUP($C123,'Orçamento N_DESON.'!$D$11:$G$525,3,FALSE)="INDEXADO",VLOOKUP(VLOOKUP($C123,'Orçamento N_DESON.'!$D$11:$G$525,2,FALSE),#REF!,2),VLOOKUP($C123,'Orçamento N_DESON.'!$D$11:$G$525,3,FALSE))) ->  | E123: =VLOOKUP($C123,'Orçamento N_DESON.'!$D$11:$S$82,2,FALSE) ->  | F123: =Dados!$C$7 -> 2022-03-01 | G123: =VLOOKUP($C123,'Orçamento N_DESON.'!$D$11:$S$82,4,FALSE) ->  | H123: =IFERROR(VLOOKUP($C123,'Orçamento N_DESON.'!$D$11:$S$82,6,FALSE),0) -> 0 | I123: =VLOOKUP($C123,'Orçamento N_DESON.'!$D$11:$S$82,5,FALSE) ->  | J123: =VLOOKUP($C123,'Orçamento N_DESON.'!$D$11:$S$82,12,FALSE) ->  | K123: =IFERROR(VLOOKUP($C123,'Orçamento N_DESON.'!$D$11:$S$82,16,FALSE),0) -> 0 | L123: =VLOOKUP($C123,'Orçamento N_DESON.'!$D$11:$S$82,11,FALSE) ->  | M123: =Encargos!$F$44 -> 1.1122
A124: ='Identificação-TCE'!$A$13 -> 1 | B124: =IF(AND(G124<>"",H124>0,I124<>"",J124<>0,K124<>0),COUNT($B$11:B123)+1,"") ->  | C124: =IF('Orçamento N_DESON.'!#REF!=0,0,'Orçamento N_DESON.'!#REF!) ->  | D124: =IF('Orçamento N_DESON.'!#REF!=Aux.!$G$11,"CONTRATACAO_PUBLICA",IF(VLOOKUP($C124,'Orçamento N_DESON.'!$D$11:$G$525,3,FALSE)="INDEXADO",VLOOKUP(VLOOKUP($C124,'Orçamento N_DESON.'!$D$11:$G$525,2,FALSE),#REF!,2),VLOOKUP($C124,'Orçamento N_DESON.'!$D$11:$G$525,3,FALSE))) ->  | E124: =VLOOKUP($C124,'Orçamento N_DESON.'!$D$11:$S$82,2,FALSE) ->  | F124: =Dados!$C$7 -> 2022-03-01 | G124: =VLOOKUP($C124,'Orçamento N_DESON.'!$D$11:$S$82,4,FALSE) ->  | H124: =IFERROR(VLOOKUP($C124,'Orçamento N_DESON.'!$D$11:$S$82,6,FALSE),0) -> 0 | I124: =VLOOKUP($C124,'Orçamento N_DESON.'!$D$11:$S$82,5,FALSE) ->  | J124: =VLOOKUP($C124,'Orçamento N_DESON.'!$D$11:$S$82,12,FALSE) ->  | K124: =IFERROR(VLOOKUP($C124,'Orçamento N_DESON.'!$D$11:$S$82,16,FALSE),0) -> 0 | L124: =VLOOKUP($C124,'Orçamento N_DESON.'!$D$11:$S$82,11,FALSE) ->  | M124: =Encargos!$F$44 -> 1.1122
A125: ='Identificação-TCE'!$A$13 -> 1 | B125: =IF(AND(G125<>"",H125>0,I125<>"",J125<>0,K125<>0),COUNT($B$11:B124)+1,"") ->  | C125: =IF('Orçamento N_DESON.'!#REF!=0,0,'Orçamento N_DESON.'!#REF!) ->  | D125: =IF('Orçamento N_DESON.'!#REF!=Aux.!$G$11,"CONTRATACAO_PUBLICA",IF(VLOOKUP($C125,'Orçamento N_DESON.'!$D$11:$G$525,3,FALSE)="INDEXADO",VLOOKUP(VLOOKUP($C125,'Orçamento N_DESON.'!$D$11:$G$525,2,FALSE),#REF!,2),VLOOKUP($C125,'Orçamento N_DESON.'!$D$11:$G$525,3,FALSE))) ->  | E125: =VLOOKUP($C125,'Orçamento N_DESON.'!$D$11:$S$82,2,FALSE) ->  | F125: =Dados!$C$7 -> 2022-03-01 | G125: =VLOOKUP($C125,'Orçamento N_DESON.'!$D$11:$S$82,4,FALSE) ->  | H125: =IFERROR(VLOOKUP($C125,'Orçamento N_DESON.'!$D$11:$S$82,6,FALSE),0) -> 0 | I125: =VLOOKUP($C125,'Orçamento N_DESON.'!$D$11:$S$82,5,FALSE) ->  | J125: =VLOOKUP($C125,'Orçamento N_DESON.'!$D$11:$S$82,12,FALSE) ->  | K125: =IFERROR(VLOOKUP($C125,'Orçamento N_DESON.'!$D$11:$S$82,16,FALSE),0) -> 0 | L125: =VLOOKUP($C125,'Orçamento N_DESON.'!$D$11:$S$82,11,FALSE) ->  | M125: =Encargos!$F$44 -> 1.1122
A126: ='Identificação-TCE'!$A$13 -> 1 | B126: =IF(AND(G126<>"",H126>0,I126<>"",J126<>0,K126<>0),COUNT($B$11:B125)+1,"") ->  | C126: =IF('Orçamento N_DESON.'!#REF!=0,0,'Orçamento N_DESON.'!#REF!) ->  | D126: =IF('Orçamento N_DESON.'!#REF!=Aux.!$G$11,"CONTRATACAO_PUBLICA",IF(VLOOKUP($C126,'Orçamento N_DESON.'!$D$11:$G$525,3,FALSE)="INDEXADO",VLOOKUP(VLOOKUP($C126,'Orçamento N_DESON.'!$D$11:$G$525,2,FALSE),#REF!,2),VLOOKUP($C126,'Orçamento N_DESON.'!$D$11:$G$525,3,FALSE))) ->  | E126: =VLOOKUP($C126,'Orçamento N_DESON.'!$D$11:$S$82,2,FALSE) ->  | F126: =Dados!$C$7 -> 2022-03-01 | G126: =VLOOKUP($C126,'Orçamento N_DESON.'!$D$11:$S$82,4,FALSE) ->  | H126: =IFERROR(VLOOKUP($C126,'Orçamento N_DESON.'!$D$11:$S$82,6,FALSE),0) -> 0 | I126: =VLOOKUP($C126,'Orçamento N_DESON.'!$D$11:$S$82,5,FALSE) ->  | J126: =VLOOKUP($C126,'Orçamento N_DESON.'!$D$11:$S$82,12,FALSE) ->  | K126: =IFERROR(VLOOKUP($C126,'Orçamento N_DESON.'!$D$11:$S$82,16,FALSE),0) -> 0 | L126: =VLOOKUP($C126,'Orçamento N_DESON.'!$D$11:$S$82,11,FALSE) ->  | M126: =Encargos!$F$44 -> 1.1122
A127: ='Identificação-TCE'!$A$13 -> 1 | B127: =IF(AND(G127<>"",H127>0,I127<>"",J127<>0,K127<>0),COUNT($B$11:B126)+1,"") ->  | C127: =IF('Orçamento N_DESON.'!#REF!=0,0,'Orçamento N_DESON.'!#REF!) ->  | D127: =IF('Orçamento N_DESON.'!#REF!=Aux.!$G$11,"CONTRATACAO_PUBLICA",IF(VLOOKUP($C127,'Orçamento N_DESON.'!$D$11:$G$525,3,FALSE)="INDEXADO",VLOOKUP(VLOOKUP($C127,'Orçamento N_DESON.'!$D$11:$G$525,2,FALSE),#REF!,2),VLOOKUP($C127,'Orçamento N_DESON.'!$D$11:$G$525,3,FALSE))) ->  | E127: =VLOOKUP($C127,'Orçamento N_DESON.'!$D$11:$S$82,2,FALSE) ->  | F127: =Dados!$C$7 -> 2022-03-01 | G127: =VLOOKUP($C127,'Orçamento N_DESON.'!$D$11:$S$82,4,FALSE) ->  | H127: =IFERROR(VLOOKUP($C127,'Orçamento N_DESON.'!$D$11:$S$82,6,FALSE),0) -> 0 | I127: =VLOOKUP($C127,'Orçamento N_DESON.'!$D$11:$S$82,5,FALSE) ->  | J127: =VLOOKUP($C127,'Orçamento N_DESON.'!$D$11:$S$82,12,FALSE) ->  | K127: =IFERROR(VLOOKUP($C127,'Orçamento N_DESON.'!$D$11:$S$82,16,FALSE),0) -> 0 | L127: =VLOOKUP($C127,'Orçamento N_DESON.'!$D$11:$S$82,11,FALSE) ->  | M127: =Encargos!$F$44 -> 1.1122
A128: ='Identificação-TCE'!$A$13 -> 1 | B128: =IF(AND(G128<>"",H128>0,I128<>"",J128<>0,K128<>0),COUNT($B$11:B127)+1,"") ->  | C128: =IF('Orçamento N_DESON.'!#REF!=0,0,'Orçamento N_DESON.'!#REF!) ->  | D128: =IF('Orçamento N_DESON.'!#REF!=Aux.!$G$11,"CONTRATACAO_PUBLICA",IF(VLOOKUP($C128,'Orçamento N_DESON.'!$D$11:$G$525,3,FALSE)="INDEXADO",VLOOKUP(VLOOKUP($C128,'Orçamento N_DESON.'!$D$11:$G$525,2,FALSE),#REF!,2),VLOOKUP($C128,'Orçamento N_DESON.'!$D$11:$G$525,3,FALSE))) ->  | E128: =VLOOKUP($C128,'Orçamento N_DESON.'!$D$11:$S$82,2,FALSE) ->  | F128: =Dados!$C$7 -> 2022-03-01 | G128: =VLOOKUP($C128,'Orçamento N_DESON.'!$D$11:$S$82,4,FALSE) ->  | H128: =IFERROR(VLOOKUP($C128,'Orçamento N_DESON.'!$D$11:$S$82,6,FALSE),0) -> 0 | I128: =VLOOKUP($C128,'Orçamento N_DESON.'!$D$11:$S$82,5,FALSE) ->  | J128: =VLOOKUP($C128,'Orçamento N_DESON.'!$D$11:$S$82,12,FALSE) ->  | K128: =IFERROR(VLOOKUP($C128,'Orçamento N_DESON.'!$D$11:$S$82,16,FALSE),0) -> 0 | L128: =VLOOKUP($C128,'Orçamento N_DESON.'!$D$11:$S$82,11,FALSE) ->  | M128: =Encargos!$F$44 -> 1.1122
A129: ='Identificação-TCE'!$A$13 -> 1 | B129: =IF(AND(G129<>"",H129>0,I129<>"",J129<>0,K129<>0),COUNT($B$11:B128)+1,"") ->  | C129: =IF('Orçamento N_DESON.'!#REF!=0,0,'Orçamento N_DESON.'!#REF!) ->  | D129: =IF('Orçamento N_DESON.'!#REF!=Aux.!$G$11,"CONTRATACAO_PUBLICA",IF(VLOOKUP($C129,'Orçamento N_DESON.'!$D$11:$G$525,3,FALSE)="INDEXADO",VLOOKUP(VLOOKUP($C129,'Orçamento N_DESON.'!$D$11:$G$525,2,FALSE),#REF!,2),VLOOKUP($C129,'Orçamento N_DESON.'!$D$11:$G$525,3,FALSE))) ->  | E129: =VLOOKUP($C129,'Orçamento N_DESON.'!$D$11:$S$82,2,FALSE) ->  | F129: =Dados!$C$7 -> 2022-03-01 | G129: =VLOOKUP($C129,'Orçamento N_DESON.'!$D$11:$S$82,4,FALSE) ->  | H129: =IFERROR(VLOOKUP($C129,'Orçamento N_DESON.'!$D$11:$S$82,6,FALSE),0) -> 0 | I129: =VLOOKUP($C129,'Orçamento N_DESON.'!$D$11:$S$82,5,FALSE) ->  | J129: =VLOOKUP($C129,'Orçamento N_DESON.'!$D$11:$S$82,12,FALSE) ->  | K129: =IFERROR(VLOOKUP($C129,'Orçamento N_DESON.'!$D$11:$S$82,16,FALSE),0) -> 0 | L129: =VLOOKUP($C129,'Orçamento N_DESON.'!$D$11:$S$82,11,FALSE) ->  | M129: =Encargos!$F$44 -> 1.1122
A130: ='Identificação-TCE'!$A$13 -> 1 | B130: =IF(AND(G130<>"",H130>0,I130<>"",J130<>0,K130<>0),COUNT($B$11:B129)+1,"") ->  | C130: =IF('Orçamento N_DESON.'!#REF!=0,0,'Orçamento N_DESON.'!#REF!) ->  | D130: =IF('Orçamento N_DESON.'!#REF!=Aux.!$G$11,"CONTRATACAO_PUBLICA",IF(VLOOKUP($C130,'Orçamento N_DESON.'!$D$11:$G$525,3,FALSE)="INDEXADO",VLOOKUP(VLOOKUP($C130,'Orçamento N_DESON.'!$D$11:$G$525,2,FALSE),#REF!,2),VLOOKUP($C130,'Orçamento N_DESON.'!$D$11:$G$525,3,FALSE))) ->  | E130: =VLOOKUP($C130,'Orçamento N_DESON.'!$D$11:$S$82,2,FALSE) ->  | F130: =Dados!$C$7 -> 2022-03-01 | G130: =VLOOKUP($C130,'Orçamento N_DESON.'!$D$11:$S$82,4,FALSE) ->  | H130: =IFERROR(VLOOKUP($C130,'Orçamento N_DESON.'!$D$11:$S$82,6,FALSE),0) -> 0 | I130: =VLOOKUP($C130,'Orçamento N_DESON.'!$D$11:$S$82,5,FALSE) ->  | J130: =VLOOKUP($C130,'Orçamento N_DESON.'!$D$11:$S$82,12,FALSE) ->  | K130: =IFERROR(VLOOKUP($C130,'Orçamento N_DESON.'!$D$11:$S$82,16,FALSE),0) -> 0 | L130: =VLOOKUP($C130,'Orçamento N_DESON.'!$D$11:$S$82,11,FALSE) ->  | M130: =Encargos!$F$44 -> 1.1122
A131: ='Identificação-TCE'!$A$13 -> 1 | B131: =IF(AND(G131<>"",H131>0,I131<>"",J131<>0,K131<>0),COUNT($B$11:B130)+1,"") ->  | C131: =IF('Orçamento N_DESON.'!#REF!=0,0,'Orçamento N_DESON.'!#REF!) ->  | D131: =IF('Orçamento N_DESON.'!#REF!=Aux.!$G$11,"CONTRATACAO_PUBLICA",IF(VLOOKUP($C131,'Orçamento N_DESON.'!$D$11:$G$525,3,FALSE)="INDEXADO",VLOOKUP(VLOOKUP($C131,'Orçamento N_DESON.'!$D$11:$G$525,2,FALSE),#REF!,2),VLOOKUP($C131,'Orçamento N_DESON.'!$D$11:$G$525,3,FALSE))) ->  | E131: =VLOOKUP($C131,'Orçamento N_DESON.'!$D$11:$S$82,2,FALSE) ->  | F131: =Dados!$C$7 -> 2022-03-01 | G131: =VLOOKUP($C131,'Orçamento N_DESON.'!$D$11:$S$82,4,FALSE) ->  | H131: =IFERROR(VLOOKUP($C131,'Orçamento N_DESON.'!$D$11:$S$82,6,FALSE),0) -> 0 | I131: =VLOOKUP($C131,'Orçamento N_DESON.'!$D$11:$S$82,5,FALSE) ->  | J131: =VLOOKUP($C131,'Orçamento N_DESON.'!$D$11:$S$82,12,FALSE) ->  | K131: =IFERROR(VLOOKUP($C131,'Orçamento N_DESON.'!$D$11:$S$82,16,FALSE),0) -> 0 | L131: =VLOOKUP($C131,'Orçamento N_DESON.'!$D$11:$S$82,11,FALSE) ->  | M131: =Encargos!$F$44 -> 1.1122
A132: ='Identificação-TCE'!$A$13 -> 1 | B132: =IF(AND(G132<>"",H132>0,I132<>"",J132<>0,K132<>0),COUNT($B$11:B131)+1,"") ->  | C132: =IF('Orçamento N_DESON.'!#REF!=0,0,'Orçamento N_DESON.'!#REF!) ->  | D132: =IF('Orçamento N_DESON.'!#REF!=Aux.!$G$11,"CONTRATACAO_PUBLICA",IF(VLOOKUP($C132,'Orçamento N_DESON.'!$D$11:$G$525,3,FALSE)="INDEXADO",VLOOKUP(VLOOKUP($C132,'Orçamento N_DESON.'!$D$11:$G$525,2,FALSE),#REF!,2),VLOOKUP($C132,'Orçamento N_DESON.'!$D$11:$G$525,3,FALSE))) ->  | E132: =VLOOKUP($C132,'Orçamento N_DESON.'!$D$11:$S$82,2,FALSE) ->  | F132: =Dados!$C$7 -> 2022-03-01 | G132: =VLOOKUP($C132,'Orçamento N_DESON.'!$D$11:$S$82,4,FALSE) ->  | H132: =IFERROR(VLOOKUP($C132,'Orçamento N_DESON.'!$D$11:$S$82,6,FALSE),0) -> 0 | I132: =VLOOKUP($C132,'Orçamento N_DESON.'!$D$11:$S$82,5,FALSE) ->  | J132: =VLOOKUP($C132,'Orçamento N_DESON.'!$D$11:$S$82,12,FALSE) ->  | K132: =IFERROR(VLOOKUP($C132,'Orçamento N_DESON.'!$D$11:$S$82,16,FALSE),0) -> 0 | L132: =VLOOKUP($C132,'Orçamento N_DESON.'!$D$11:$S$82,11,FALSE) ->  | M132: =Encargos!$F$44 -> 1.1122
A133: ='Identificação-TCE'!$A$13 -> 1 | B133: =IF(AND(G133<>"",H133>0,I133<>"",J133<>0,K133<>0),COUNT($B$11:B132)+1,"") ->  | C133: =IF('Orçamento N_DESON.'!#REF!=0,0,'Orçamento N_DESON.'!#REF!) ->  | D133: =IF('Orçamento N_DESON.'!#REF!=Aux.!$G$11,"CONTRATACAO_PUBLICA",IF(VLOOKUP($C133,'Orçamento N_DESON.'!$D$11:$G$525,3,FALSE)="INDEXADO",VLOOKUP(VLOOKUP($C133,'Orçamento N_DESON.'!$D$11:$G$525,2,FALSE),#REF!,2),VLOOKUP($C133,'Orçamento N_DESON.'!$D$11:$G$525,3,FALSE))) ->  | E133: =VLOOKUP($C133,'Orçamento N_DESON.'!$D$11:$S$82,2,FALSE) ->  | F133: =Dados!$C$7 -> 2022-03-01 | G133: =VLOOKUP($C133,'Orçamento N_DESON.'!$D$11:$S$82,4,FALSE) ->  | H133: =IFERROR(VLOOKUP($C133,'Orçamento N_DESON.'!$D$11:$S$82,6,FALSE),0) -> 0 | I133: =VLOOKUP($C133,'Orçamento N_DESON.'!$D$11:$S$82,5,FALSE) ->  | J133: =VLOOKUP($C133,'Orçamento N_DESON.'!$D$11:$S$82,12,FALSE) ->  | K133: =IFERROR(VLOOKUP($C133,'Orçamento N_DESON.'!$D$11:$S$82,16,FALSE),0) -> 0 | L133: =VLOOKUP($C133,'Orçamento N_DESON.'!$D$11:$S$82,11,FALSE) ->  | M133: =Encargos!$F$44 -> 1.1122
A134: ='Identificação-TCE'!$A$13 -> 1 | B134: =IF(AND(G134<>"",H134>0,I134<>"",J134<>0,K134<>0),COUNT($B$11:B133)+1,"") ->  | C134: =IF('Orçamento N_DESON.'!#REF!=0,0,'Orçamento N_DESON.'!#REF!) ->  | D134: =IF('Orçamento N_DESON.'!#REF!=Aux.!$G$11,"CONTRATACAO_PUBLICA",IF(VLOOKUP($C134,'Orçamento N_DESON.'!$D$11:$G$525,3,FALSE)="INDEXADO",VLOOKUP(VLOOKUP($C134,'Orçamento N_DESON.'!$D$11:$G$525,2,FALSE),#REF!,2),VLOOKUP($C134,'Orçamento N_DESON.'!$D$11:$G$525,3,FALSE))) ->  | E134: =VLOOKUP($C134,'Orçamento N_DESON.'!$D$11:$S$82,2,FALSE) ->  | F134: =Dados!$C$7 -> 2022-03-01 | G134: =VLOOKUP($C134,'Orçamento N_DESON.'!$D$11:$S$82,4,FALSE) ->  | H134: =IFERROR(VLOOKUP($C134,'Orçamento N_DESON.'!$D$11:$S$82,6,FALSE),0) -> 0 | I134: =VLOOKUP($C134,'Orçamento N_DESON.'!$D$11:$S$82,5,FALSE) ->  | J134: =VLOOKUP($C134,'Orçamento N_DESON.'!$D$11:$S$82,12,FALSE) ->  | K134: =IFERROR(VLOOKUP($C134,'Orçamento N_DESON.'!$D$11:$S$82,16,FALSE),0) -> 0 | L134: =VLOOKUP($C134,'Orçamento N_DESON.'!$D$11:$S$82,11,FALSE) ->  | M134: =Encargos!$F$44 -> 1.1122
A135: ='Identificação-TCE'!$A$13 -> 1 | B135: =IF(AND(G135<>"",H135>0,I135<>"",J135<>0,K135<>0),COUNT($B$11:B134)+1,"") ->  | C135: =IF('Orçamento N_DESON.'!#REF!=0,0,'Orçamento N_DESON.'!#REF!) ->  | D135: =IF('Orçamento N_DESON.'!#REF!=Aux.!$G$11,"CONTRATACAO_PUBLICA",IF(VLOOKUP($C135,'Orçamento N_DESON.'!$D$11:$G$525,3,FALSE)="INDEXADO",VLOOKUP(VLOOKUP($C135,'Orçamento N_DESON.'!$D$11:$G$525,2,FALSE),#REF!,2),VLOOKUP($C135,'Orçamento N_DESON.'!$D$11:$G$525,3,FALSE))) ->  | E135: =VLOOKUP($C135,'Orçamento N_DESON.'!$D$11:$S$82,2,FALSE) ->  | F135: =Dados!$C$7 -> 2022-03-01 | G135: =VLOOKUP($C135,'Orçamento N_DESON.'!$D$11:$S$82,4,FALSE) ->  | H135: =IFERROR(VLOOKUP($C135,'Orçamento N_DESON.'!$D$11:$S$82,6,FALSE),0) -> 0 | I135: =VLOOKUP($C135,'Orçamento N_DESON.'!$D$11:$S$82,5,FALSE) ->  | J135: =VLOOKUP($C135,'Orçamento N_DESON.'!$D$11:$S$82,12,FALSE) ->  | K135: =IFERROR(VLOOKUP($C135,'Orçamento N_DESON.'!$D$11:$S$82,16,FALSE),0) -> 0 | L135: =VLOOKUP($C135,'Orçamento N_DESON.'!$D$11:$S$82,11,FALSE) ->  | M135: =Encargos!$F$44 -> 1.1122
A136: ='Identificação-TCE'!$A$13 -> 1 | B136: =IF(AND(G136<>"",H136>0,I136<>"",J136<>0,K136<>0),COUNT($B$11:B135)+1,"") ->  | C136: =IF('Orçamento N_DESON.'!#REF!=0,0,'Orçamento N_DESON.'!#REF!) ->  | D136: =IF('Orçamento N_DESON.'!#REF!=Aux.!$G$11,"CONTRATACAO_PUBLICA",IF(VLOOKUP($C136,'Orçamento N_DESON.'!$D$11:$G$525,3,FALSE)="INDEXADO",VLOOKUP(VLOOKUP($C136,'Orçamento N_DESON.'!$D$11:$G$525,2,FALSE),#REF!,2),VLOOKUP($C136,'Orçamento N_DESON.'!$D$11:$G$525,3,FALSE))) ->  | E136: =VLOOKUP($C136,'Orçamento N_DESON.'!$D$11:$S$82,2,FALSE) ->  | F136: =Dados!$C$7 -> 2022-03-01 | G136: =VLOOKUP($C136,'Orçamento N_DESON.'!$D$11:$S$82,4,FALSE) ->  | H136: =IFERROR(VLOOKUP($C136,'Orçamento N_DESON.'!$D$11:$S$82,6,FALSE),0) -> 0 | I136: =VLOOKUP($C136,'Orçamento N_DESON.'!$D$11:$S$82,5,FALSE) ->  | J136: =VLOOKUP($C136,'Orçamento N_DESON.'!$D$11:$S$82,12,FALSE) ->  | K136: =IFERROR(VLOOKUP($C136,'Orçamento N_DESON.'!$D$11:$S$82,16,FALSE),0) -> 0 | L136: =VLOOKUP($C136,'Orçamento N_DESON.'!$D$11:$S$82,11,FALSE) ->  | M136: =Encargos!$F$44 -> 1.1122
A137: ='Identificação-TCE'!$A$13 -> 1 | B137: =IF(AND(G137<>"",H137>0,I137<>"",J137<>0,K137<>0),COUNT($B$11:B136)+1,"") ->  | C137: =IF('Orçamento N_DESON.'!#REF!=0,0,'Orçamento N_DESON.'!#REF!) ->  | D137: =IF('Orçamento N_DESON.'!#REF!=Aux.!$G$11,"CONTRATACAO_PUBLICA",IF(VLOOKUP($C137,'Orçamento N_DESON.'!$D$11:$G$525,3,FALSE)="INDEXADO",VLOOKUP(VLOOKUP($C137,'Orçamento N_DESON.'!$D$11:$G$525,2,FALSE),#REF!,2),VLOOKUP($C137,'Orçamento N_DESON.'!$D$11:$G$525,3,FALSE))) ->  | E137: =VLOOKUP($C137,'Orçamento N_DESON.'!$D$11:$S$82,2,FALSE) ->  | F137: =Dados!$C$7 -> 2022-03-01 | G137: =VLOOKUP($C137,'Orçamento N_DESON.'!$D$11:$S$82,4,FALSE) ->  | H137: =IFERROR(VLOOKUP($C137,'Orçamento N_DESON.'!$D$11:$S$82,6,FALSE),0) -> 0 | I137: =VLOOKUP($C137,'Orçamento N_DESON.'!$D$11:$S$82,5,FALSE) ->  | J137: =VLOOKUP($C137,'Orçamento N_DESON.'!$D$11:$S$82,12,FALSE) ->  | K137: =IFERROR(VLOOKUP($C137,'Orçamento N_DESON.'!$D$11:$S$82,16,FALSE),0) -> 0 | L137: =VLOOKUP($C137,'Orçamento N_DESON.'!$D$11:$S$82,11,FALSE) ->  | M137: =Encargos!$F$44 -> 1.1122
A138: ='Identificação-TCE'!$A$13 -> 1 | B138: =IF(AND(G138<>"",H138>0,I138<>"",J138<>0,K138<>0),COUNT($B$11:B137)+1,"") ->  | C138: =IF('Orçamento N_DESON.'!#REF!=0,0,'Orçamento N_DESON.'!#REF!) ->  | D138: =IF('Orçamento N_DESON.'!#REF!=Aux.!$G$11,"CONTRATACAO_PUBLICA",IF(VLOOKUP($C138,'Orçamento N_DESON.'!$D$11:$G$525,3,FALSE)="INDEXADO",VLOOKUP(VLOOKUP($C138,'Orçamento N_DESON.'!$D$11:$G$525,2,FALSE),#REF!,2),VLOOKUP($C138,'Orçamento N_DESON.'!$D$11:$G$525,3,FALSE))) ->  | E138: =VLOOKUP($C138,'Orçamento N_DESON.'!$D$11:$S$82,2,FALSE) ->  | F138: =Dados!$C$7 -> 2022-03-01 | G138: =VLOOKUP($C138,'Orçamento N_DESON.'!$D$11:$S$82,4,FALSE) ->  | H138: =IFERROR(VLOOKUP($C138,'Orçamento N_DESON.'!$D$11:$S$82,6,FALSE),0) -> 0 | I138: =VLOOKUP($C138,'Orçamento N_DESON.'!$D$11:$S$82,5,FALSE) ->  | J138: =VLOOKUP($C138,'Orçamento N_DESON.'!$D$11:$S$82,12,FALSE) ->  | K138: =IFERROR(VLOOKUP($C138,'Orçamento N_DESON.'!$D$11:$S$82,16,FALSE),0) -> 0 | L138: =VLOOKUP($C138,'Orçamento N_DESON.'!$D$11:$S$82,11,FALSE) ->  | M138: =Encargos!$F$44 -> 1.1122
A139: ='Identificação-TCE'!$A$13 -> 1 | B139: =IF(AND(G139<>"",H139>0,I139<>"",J139<>0,K139<>0),COUNT($B$11:B138)+1,"") ->  | C139: =IF('Orçamento N_DESON.'!#REF!=0,0,'Orçamento N_DESON.'!#REF!) ->  | D139: =IF('Orçamento N_DESON.'!#REF!=Aux.!$G$11,"CONTRATACAO_PUBLICA",IF(VLOOKUP($C139,'Orçamento N_DESON.'!$D$11:$G$525,3,FALSE)="INDEXADO",VLOOKUP(VLOOKUP($C139,'Orçamento N_DESON.'!$D$11:$G$525,2,FALSE),#REF!,2),VLOOKUP($C139,'Orçamento N_DESON.'!$D$11:$G$525,3,FALSE))) ->  | E139: =VLOOKUP($C139,'Orçamento N_DESON.'!$D$11:$S$82,2,FALSE) ->  | F139: =Dados!$C$7 -> 2022-03-01 | G139: =VLOOKUP($C139,'Orçamento N_DESON.'!$D$11:$S$82,4,FALSE) ->  | H139: =IFERROR(VLOOKUP($C139,'Orçamento N_DESON.'!$D$11:$S$82,6,FALSE),0) -> 0 | I139: =VLOOKUP($C139,'Orçamento N_DESON.'!$D$11:$S$82,5,FALSE) ->  | J139: =VLOOKUP($C139,'Orçamento N_DESON.'!$D$11:$S$82,12,FALSE) ->  | K139: =IFERROR(VLOOKUP($C139,'Orçamento N_DESON.'!$D$11:$S$82,16,FALSE),0) -> 0 | L139: =VLOOKUP($C139,'Orçamento N_DESON.'!$D$11:$S$82,11,FALSE) ->  | M139: =Encargos!$F$44 -> 1.1122
A140: ='Identificação-TCE'!$A$13 -> 1 | B140: =IF(AND(G140<>"",H140>0,I140<>"",J140<>0,K140<>0),COUNT($B$11:B139)+1,"") ->  | C140: =IF('Orçamento N_DESON.'!#REF!=0,0,'Orçamento N_DESON.'!#REF!) ->  | D140: =IF('Orçamento N_DESON.'!#REF!=Aux.!$G$11,"CONTRATACAO_PUBLICA",IF(VLOOKUP($C140,'Orçamento N_DESON.'!$D$11:$G$525,3,FALSE)="INDEXADO",VLOOKUP(VLOOKUP($C140,'Orçamento N_DESON.'!$D$11:$G$525,2,FALSE),#REF!,2),VLOOKUP($C140,'Orçamento N_DESON.'!$D$11:$G$525,3,FALSE))) ->  | E140: =VLOOKUP($C140,'Orçamento N_DESON.'!$D$11:$S$82,2,FALSE) ->  | F140: =Dados!$C$7 -> 2022-03-01 | G140: =VLOOKUP($C140,'Orçamento N_DESON.'!$D$11:$S$82,4,FALSE) ->  | H140: =IFERROR(VLOOKUP($C140,'Orçamento N_DESON.'!$D$11:$S$82,6,FALSE),0) -> 0 | I140: =VLOOKUP($C140,'Orçamento N_DESON.'!$D$11:$S$82,5,FALSE) ->  | J140: =VLOOKUP($C140,'Orçamento N_DESON.'!$D$11:$S$82,12,FALSE) ->  | K140: =IFERROR(VLOOKUP($C140,'Orçamento N_DESON.'!$D$11:$S$82,16,FALSE),0) -> 0 | L140: =VLOOKUP($C140,'Orçamento N_DESON.'!$D$11:$S$82,11,FALSE) ->  | M140: =Encargos!$F$44 -> 1.1122
A141: ='Identificação-TCE'!$A$13 -> 1 | B141: =IF(AND(G141<>"",H141>0,I141<>"",J141<>0,K141<>0),COUNT($B$11:B140)+1,"") ->  | C141: =IF('Orçamento N_DESON.'!#REF!=0,0,'Orçamento N_DESON.'!#REF!) ->  | D141: =IF('Orçamento N_DESON.'!#REF!=Aux.!$G$11,"CONTRATACAO_PUBLICA",IF(VLOOKUP($C141,'Orçamento N_DESON.'!$D$11:$G$525,3,FALSE)="INDEXADO",VLOOKUP(VLOOKUP($C141,'Orçamento N_DESON.'!$D$11:$G$525,2,FALSE),#REF!,2),VLOOKUP($C141,'Orçamento N_DESON.'!$D$11:$G$525,3,FALSE))) ->  | E141: =VLOOKUP($C141,'Orçamento N_DESON.'!$D$11:$S$82,2,FALSE) ->  | F141: =Dados!$C$7 -> 2022-03-01 | G141: =VLOOKUP($C141,'Orçamento N_DESON.'!$D$11:$S$82,4,FALSE) ->  | H141: =IFERROR(VLOOKUP($C141,'Orçamento N_DESON.'!$D$11:$S$82,6,FALSE),0) -> 0 | I141: =VLOOKUP($C141,'Orçamento N_DESON.'!$D$11:$S$82,5,FALSE) ->  | J141: =VLOOKUP($C141,'Orçamento N_DESON.'!$D$11:$S$82,12,FALSE) ->  | K141: =IFERROR(VLOOKUP($C141,'Orçamento N_DESON.'!$D$11:$S$82,16,FALSE),0) -> 0 | L141: =VLOOKUP($C141,'Orçamento N_DESON.'!$D$11:$S$82,11,FALSE) ->  | M141: =Encargos!$F$44 -> 1.1122
A142: ='Identificação-TCE'!$A$13 -> 1 | B142: =IF(AND(G142<>"",H142>0,I142<>"",J142<>0,K142<>0),COUNT($B$11:B141)+1,"") ->  | C142: =IF('Orçamento N_DESON.'!#REF!=0,0,'Orçamento N_DESON.'!#REF!) ->  | D142: =IF('Orçamento N_DESON.'!#REF!=Aux.!$G$11,"CONTRATACAO_PUBLICA",IF(VLOOKUP($C142,'Orçamento N_DESON.'!$D$11:$G$525,3,FALSE)="INDEXADO",VLOOKUP(VLOOKUP($C142,'Orçamento N_DESON.'!$D$11:$G$525,2,FALSE),#REF!,2),VLOOKUP($C142,'Orçamento N_DESON.'!$D$11:$G$525,3,FALSE))) ->  | E142: =VLOOKUP($C142,'Orçamento N_DESON.'!$D$11:$S$82,2,FALSE) ->  | F142: =Dados!$C$7 -> 2022-03-01 | G142: =VLOOKUP($C142,'Orçamento N_DESON.'!$D$11:$S$82,4,FALSE) ->  | H142: =IFERROR(VLOOKUP($C142,'Orçamento N_DESON.'!$D$11:$S$82,6,FALSE),0) -> 0 | I142: =VLOOKUP($C142,'Orçamento N_DESON.'!$D$11:$S$82,5,FALSE) ->  | J142: =VLOOKUP($C142,'Orçamento N_DESON.'!$D$11:$S$82,12,FALSE) ->  | K142: =IFERROR(VLOOKUP($C142,'Orçamento N_DESON.'!$D$11:$S$82,16,FALSE),0) -> 0 | L142: =VLOOKUP($C142,'Orçamento N_DESON.'!$D$11:$S$82,11,FALSE) ->  | M142: =Encargos!$F$44 -> 1.1122
A143: ='Identificação-TCE'!$A$13 -> 1 | B143: =IF(AND(G143<>"",H143>0,I143<>"",J143<>0,K143<>0),COUNT($B$11:B142)+1,"") ->  | C143: =IF('Orçamento N_DESON.'!#REF!=0,0,'Orçamento N_DESON.'!#REF!) ->  | D143: =IF('Orçamento N_DESON.'!#REF!=Aux.!$G$11,"CONTRATACAO_PUBLICA",IF(VLOOKUP($C143,'Orçamento N_DESON.'!$D$11:$G$525,3,FALSE)="INDEXADO",VLOOKUP(VLOOKUP($C143,'Orçamento N_DESON.'!$D$11:$G$525,2,FALSE),#REF!,2),VLOOKUP($C143,'Orçamento N_DESON.'!$D$11:$G$525,3,FALSE))) ->  | E143: =VLOOKUP($C143,'Orçamento N_DESON.'!$D$11:$S$82,2,FALSE) ->  | F143: =Dados!$C$7 -> 2022-03-01 | G143: =VLOOKUP($C143,'Orçamento N_DESON.'!$D$11:$S$82,4,FALSE) ->  | H143: =IFERROR(VLOOKUP($C143,'Orçamento N_DESON.'!$D$11:$S$82,6,FALSE),0) -> 0 | I143: =VLOOKUP($C143,'Orçamento N_DESON.'!$D$11:$S$82,5,FALSE) ->  | J143: =VLOOKUP($C143,'Orçamento N_DESON.'!$D$11:$S$82,12,FALSE) ->  | K143: =IFERROR(VLOOKUP($C143,'Orçamento N_DESON.'!$D$11:$S$82,16,FALSE),0) -> 0 | L143: =VLOOKUP($C143,'Orçamento N_DESON.'!$D$11:$S$82,11,FALSE) ->  | M143: =Encargos!$F$44 -> 1.1122
A144: ='Identificação-TCE'!$A$13 -> 1 | B144: =IF(AND(G144<>"",H144>0,I144<>"",J144<>0,K144<>0),COUNT($B$11:B143)+1,"") ->  | C144: =IF('Orçamento N_DESON.'!#REF!=0,0,'Orçamento N_DESON.'!#REF!) ->  | D144: =IF('Orçamento N_DESON.'!#REF!=Aux.!$G$11,"CONTRATACAO_PUBLICA",IF(VLOOKUP($C144,'Orçamento N_DESON.'!$D$11:$G$525,3,FALSE)="INDEXADO",VLOOKUP(VLOOKUP($C144,'Orçamento N_DESON.'!$D$11:$G$525,2,FALSE),#REF!,2),VLOOKUP($C144,'Orçamento N_DESON.'!$D$11:$G$525,3,FALSE))) ->  | E144: =VLOOKUP($C144,'Orçamento N_DESON.'!$D$11:$S$82,2,FALSE) ->  | F144: =Dados!$C$7 -> 2022-03-01 | G144: =VLOOKUP($C144,'Orçamento N_DESON.'!$D$11:$S$82,4,FALSE) ->  | H144: =IFERROR(VLOOKUP($C144,'Orçamento N_DESON.'!$D$11:$S$82,6,FALSE),0) -> 0 | I144: =VLOOKUP($C144,'Orçamento N_DESON.'!$D$11:$S$82,5,FALSE) ->  | J144: =VLOOKUP($C144,'Orçamento N_DESON.'!$D$11:$S$82,12,FALSE) ->  | K144: =IFERROR(VLOOKUP($C144,'Orçamento N_DESON.'!$D$11:$S$82,16,FALSE),0) -> 0 | L144: =VLOOKUP($C144,'Orçamento N_DESON.'!$D$11:$S$82,11,FALSE) ->  | M144: =Encargos!$F$44 -> 1.1122
A145: ='Identificação-TCE'!$A$13 -> 1 | B145: =IF(AND(G145<>"",H145>0,I145<>"",J145<>0,K145<>0),COUNT($B$11:B144)+1,"") ->  | C145: =IF('Orçamento N_DESON.'!#REF!=0,0,'Orçamento N_DESON.'!#REF!) ->  | D145: =IF('Orçamento N_DESON.'!#REF!=Aux.!$G$11,"CONTRATACAO_PUBLICA",IF(VLOOKUP($C145,'Orçamento N_DESON.'!$D$11:$G$525,3,FALSE)="INDEXADO",VLOOKUP(VLOOKUP($C145,'Orçamento N_DESON.'!$D$11:$G$525,2,FALSE),#REF!,2),VLOOKUP($C145,'Orçamento N_DESON.'!$D$11:$G$525,3,FALSE))) ->  | E145: =VLOOKUP($C145,'Orçamento N_DESON.'!$D$11:$S$82,2,FALSE) ->  | F145: =Dados!$C$7 -> 2022-03-01 | G145: =VLOOKUP($C145,'Orçamento N_DESON.'!$D$11:$S$82,4,FALSE) ->  | H145: =IFERROR(VLOOKUP($C145,'Orçamento N_DESON.'!$D$11:$S$82,6,FALSE),0) -> 0 | I145: =VLOOKUP($C145,'Orçamento N_DESON.'!$D$11:$S$82,5,FALSE) ->  | J145: =VLOOKUP($C145,'Orçamento N_DESON.'!$D$11:$S$82,12,FALSE) ->  | K145: =IFERROR(VLOOKUP($C145,'Orçamento N_DESON.'!$D$11:$S$82,16,FALSE),0) -> 0 | L145: =VLOOKUP($C145,'Orçamento N_DESON.'!$D$11:$S$82,11,FALSE) ->  | M145: =Encargos!$F$44 -> 1.1122
A146: ='Identificação-TCE'!$A$13 -> 1 | B146: =IF(AND(G146<>"",H146>0,I146<>"",J146<>0,K146<>0),COUNT($B$11:B145)+1,"") ->  | C146: =IF('Orçamento N_DESON.'!#REF!=0,0,'Orçamento N_DESON.'!#REF!) ->  | D146: =IF('Orçamento N_DESON.'!#REF!=Aux.!$G$11,"CONTRATACAO_PUBLICA",IF(VLOOKUP($C146,'Orçamento N_DESON.'!$D$11:$G$525,3,FALSE)="INDEXADO",VLOOKUP(VLOOKUP($C146,'Orçamento N_DESON.'!$D$11:$G$525,2,FALSE),#REF!,2),VLOOKUP($C146,'Orçamento N_DESON.'!$D$11:$G$525,3,FALSE))) ->  | E146: =VLOOKUP($C146,'Orçamento N_DESON.'!$D$11:$S$82,2,FALSE) ->  | F146: =Dados!$C$7 -> 2022-03-01 | G146: =VLOOKUP($C146,'Orçamento N_DESON.'!$D$11:$S$82,4,FALSE) ->  | H146: =IFERROR(VLOOKUP($C146,'Orçamento N_DESON.'!$D$11:$S$82,6,FALSE),0) -> 0 | I146: =VLOOKUP($C146,'Orçamento N_DESON.'!$D$11:$S$82,5,FALSE) ->  | J146: =VLOOKUP($C146,'Orçamento N_DESON.'!$D$11:$S$82,12,FALSE) ->  | K146: =IFERROR(VLOOKUP($C146,'Orçamento N_DESON.'!$D$11:$S$82,16,FALSE),0) -> 0 | L146: =VLOOKUP($C146,'Orçamento N_DESON.'!$D$11:$S$82,11,FALSE) ->  | M146: =Encargos!$F$44 -> 1.1122
A147: ='Identificação-TCE'!$A$13 -> 1 | B147: =IF(AND(G147<>"",H147>0,I147<>"",J147<>0,K147<>0),COUNT($B$11:B146)+1,"") ->  | C147: =IF('Orçamento N_DESON.'!#REF!=0,0,'Orçamento N_DESON.'!#REF!) ->  | D147: =IF('Orçamento N_DESON.'!#REF!=Aux.!$G$11,"CONTRATACAO_PUBLICA",IF(VLOOKUP($C147,'Orçamento N_DESON.'!$D$11:$G$525,3,FALSE)="INDEXADO",VLOOKUP(VLOOKUP($C147,'Orçamento N_DESON.'!$D$11:$G$525,2,FALSE),#REF!,2),VLOOKUP($C147,'Orçamento N_DESON.'!$D$11:$G$525,3,FALSE))) ->  | E147: =VLOOKUP($C147,'Orçamento N_DESON.'!$D$11:$S$82,2,FALSE) ->  | F147: =Dados!$C$7 -> 2022-03-01 | G147: =VLOOKUP($C147,'Orçamento N_DESON.'!$D$11:$S$82,4,FALSE) ->  | H147: =IFERROR(VLOOKUP($C147,'Orçamento N_DESON.'!$D$11:$S$82,6,FALSE),0) -> 0 | I147: =VLOOKUP($C147,'Orçamento N_DESON.'!$D$11:$S$82,5,FALSE) ->  | J147: =VLOOKUP($C147,'Orçamento N_DESON.'!$D$11:$S$82,12,FALSE) ->  | K147: =IFERROR(VLOOKUP($C147,'Orçamento N_DESON.'!$D$11:$S$82,16,FALSE),0) -> 0 | L147: =VLOOKUP($C147,'Orçamento N_DESON.'!$D$11:$S$82,11,FALSE) ->  | M147: =Encargos!$F$44 -> 1.1122
A148: ='Identificação-TCE'!$A$13 -> 1 | B148: =IF(AND(G148<>"",H148>0,I148<>"",J148<>0,K148<>0),COUNT($B$11:B147)+1,"") ->  | C148: =IF('Orçamento N_DESON.'!#REF!=0,0,'Orçamento N_DESON.'!#REF!) ->  | D148: =IF('Orçamento N_DESON.'!#REF!=Aux.!$G$11,"CONTRATACAO_PUBLICA",IF(VLOOKUP($C148,'Orçamento N_DESON.'!$D$11:$G$525,3,FALSE)="INDEXADO",VLOOKUP(VLOOKUP($C148,'Orçamento N_DESON.'!$D$11:$G$525,2,FALSE),#REF!,2),VLOOKUP($C148,'Orçamento N_DESON.'!$D$11:$G$525,3,FALSE))) ->  | E148: =VLOOKUP($C148,'Orçamento N_DESON.'!$D$11:$S$82,2,FALSE) ->  | F148: =Dados!$C$7 -> 2022-03-01 | G148: =VLOOKUP($C148,'Orçamento N_DESON.'!$D$11:$S$82,4,FALSE) ->  | H148: =IFERROR(VLOOKUP($C148,'Orçamento N_DESON.'!$D$11:$S$82,6,FALSE),0) -> 0 | I148: =VLOOKUP($C148,'Orçamento N_DESON.'!$D$11:$S$82,5,FALSE) ->  | J148: =VLOOKUP($C148,'Orçamento N_DESON.'!$D$11:$S$82,12,FALSE) ->  | K148: =IFERROR(VLOOKUP($C148,'Orçamento N_DESON.'!$D$11:$S$82,16,FALSE),0) -> 0 | L148: =VLOOKUP($C148,'Orçamento N_DESON.'!$D$11:$S$82,11,FALSE) ->  | M148: =Encargos!$F$44 -> 1.1122
A149: ='Identificação-TCE'!$A$13 -> 1 | B149: =IF(AND(G149<>"",H149>0,I149<>"",J149<>0,K149<>0),COUNT($B$11:B148)+1,"") ->  | C149: =IF('Orçamento N_DESON.'!#REF!=0,0,'Orçamento N_DESON.'!#REF!) ->  | D149: =IF('Orçamento N_DESON.'!#REF!=Aux.!$G$11,"CONTRATACAO_PUBLICA",IF(VLOOKUP($C149,'Orçamento N_DESON.'!$D$11:$G$525,3,FALSE)="INDEXADO",VLOOKUP(VLOOKUP($C149,'Orçamento N_DESON.'!$D$11:$G$525,2,FALSE),#REF!,2),VLOOKUP($C149,'Orçamento N_DESON.'!$D$11:$G$525,3,FALSE))) ->  | E149: =VLOOKUP($C149,'Orçamento N_DESON.'!$D$11:$S$82,2,FALSE) ->  | F149: =Dados!$C$7 -> 2022-03-01 | G149: =VLOOKUP($C149,'Orçamento N_DESON.'!$D$11:$S$82,4,FALSE) ->  | H149: =IFERROR(VLOOKUP($C149,'Orçamento N_DESON.'!$D$11:$S$82,6,FALSE),0) -> 0 | I149: =VLOOKUP($C149,'Orçamento N_DESON.'!$D$11:$S$82,5,FALSE) ->  | J149: =VLOOKUP($C149,'Orçamento N_DESON.'!$D$11:$S$82,12,FALSE) ->  | K149: =IFERROR(VLOOKUP($C149,'Orçamento N_DESON.'!$D$11:$S$82,16,FALSE),0) -> 0 | L149: =VLOOKUP($C149,'Orçamento N_DESON.'!$D$11:$S$82,11,FALSE) ->  | M149: =Encargos!$F$44 -> 1.1122
A150: ='Identificação-TCE'!$A$13 -> 1 | B150: =IF(AND(G150<>"",H150>0,I150<>"",J150<>0,K150<>0),COUNT($B$11:B149)+1,"") ->  | C150: =IF('Orçamento N_DESON.'!#REF!=0,0,'Orçamento N_DESON.'!#REF!) ->  | D150: =IF('Orçamento N_DESON.'!#REF!=Aux.!$G$11,"CONTRATACAO_PUBLICA",IF(VLOOKUP($C150,'Orçamento N_DESON.'!$D$11:$G$525,3,FALSE)="INDEXADO",VLOOKUP(VLOOKUP($C150,'Orçamento N_DESON.'!$D$11:$G$525,2,FALSE),#REF!,2),VLOOKUP($C150,'Orçamento N_DESON.'!$D$11:$G$525,3,FALSE))) ->  | E150: =VLOOKUP($C150,'Orçamento N_DESON.'!$D$11:$S$82,2,FALSE) ->  | F150: =Dados!$C$7 -> 2022-03-01 | G150: =VLOOKUP($C150,'Orçamento N_DESON.'!$D$11:$S$82,4,FALSE) ->  | H150: =IFERROR(VLOOKUP($C150,'Orçamento N_DESON.'!$D$11:$S$82,6,FALSE),0) -> 0 | I150: =VLOOKUP($C150,'Orçamento N_DESON.'!$D$11:$S$82,5,FALSE) ->  | J150: =VLOOKUP($C150,'Orçamento N_DESON.'!$D$11:$S$82,12,FALSE) ->  | K150: =IFERROR(VLOOKUP($C150,'Orçamento N_DESON.'!$D$11:$S$82,16,FALSE),0) -> 0 | L150: =VLOOKUP($C150,'Orçamento N_DESON.'!$D$11:$S$82,11,FALSE) ->  | M150: =Encargos!$F$44 -> 1.1122
A151: ='Identificação-TCE'!$A$13 -> 1 | B151: =IF(AND(G151<>"",H151>0,I151<>"",J151<>0,K151<>0),COUNT($B$11:B150)+1,"") ->  | C151: =IF('Orçamento N_DESON.'!#REF!=0,0,'Orçamento N_DESON.'!#REF!) ->  | D151: =IF('Orçamento N_DESON.'!#REF!=Aux.!$G$11,"CONTRATACAO_PUBLICA",IF(VLOOKUP($C151,'Orçamento N_DESON.'!$D$11:$G$525,3,FALSE)="INDEXADO",VLOOKUP(VLOOKUP($C151,'Orçamento N_DESON.'!$D$11:$G$525,2,FALSE),#REF!,2),VLOOKUP($C151,'Orçamento N_DESON.'!$D$11:$G$525,3,FALSE))) ->  | E151: =VLOOKUP($C151,'Orçamento N_DESON.'!$D$11:$S$82,2,FALSE) ->  | F151: =Dados!$C$7 -> 2022-03-01 | G151: =VLOOKUP($C151,'Orçamento N_DESON.'!$D$11:$S$82,4,FALSE) ->  | H151: =IFERROR(VLOOKUP($C151,'Orçamento N_DESON.'!$D$11:$S$82,6,FALSE),0) -> 0 | I151: =VLOOKUP($C151,'Orçamento N_DESON.'!$D$11:$S$82,5,FALSE) ->  | J151: =VLOOKUP($C151,'Orçamento N_DESON.'!$D$11:$S$82,12,FALSE) ->  | K151: =IFERROR(VLOOKUP($C151,'Orçamento N_DESON.'!$D$11:$S$82,16,FALSE),0) -> 0 | L151: =VLOOKUP($C151,'Orçamento N_DESON.'!$D$11:$S$82,11,FALSE) ->  | M151: =Encargos!$F$44 -> 1.1122
A152: ='Identificação-TCE'!$A$13 -> 1 | B152: =IF(AND(G152<>"",H152>0,I152<>"",J152<>0,K152<>0),COUNT($B$11:B151)+1,"") ->  | C152: =IF('Orçamento N_DESON.'!#REF!=0,0,'Orçamento N_DESON.'!#REF!) ->  | D152: =IF('Orçamento N_DESON.'!#REF!=Aux.!$G$11,"CONTRATACAO_PUBLICA",IF(VLOOKUP($C152,'Orçamento N_DESON.'!$D$11:$G$525,3,FALSE)="INDEXADO",VLOOKUP(VLOOKUP($C152,'Orçamento N_DESON.'!$D$11:$G$525,2,FALSE),#REF!,2),VLOOKUP($C152,'Orçamento N_DESON.'!$D$11:$G$525,3,FALSE))) ->  | E152: =VLOOKUP($C152,'Orçamento N_DESON.'!$D$11:$S$82,2,FALSE) ->  | F152: =Dados!$C$7 -> 2022-03-01 | G152: =VLOOKUP($C152,'Orçamento N_DESON.'!$D$11:$S$82,4,FALSE) ->  | H152: =IFERROR(VLOOKUP($C152,'Orçamento N_DESON.'!$D$11:$S$82,6,FALSE),0) -> 0 | I152: =VLOOKUP($C152,'Orçamento N_DESON.'!$D$11:$S$82,5,FALSE) ->  | J152: =VLOOKUP($C152,'Orçamento N_DESON.'!$D$11:$S$82,12,FALSE) ->  | K152: =IFERROR(VLOOKUP($C152,'Orçamento N_DESON.'!$D$11:$S$82,16,FALSE),0) -> 0 | L152: =VLOOKUP($C152,'Orçamento N_DESON.'!$D$11:$S$82,11,FALSE) ->  | M152: =Encargos!$F$44 -> 1.1122
A153: ='Identificação-TCE'!$A$13 -> 1 | B153: =IF(AND(G153<>"",H153>0,I153<>"",J153<>0,K153<>0),COUNT($B$11:B152)+1,"") ->  | C153: =IF('Orçamento N_DESON.'!#REF!=0,0,'Orçamento N_DESON.'!#REF!) ->  | D153: =IF('Orçamento N_DESON.'!#REF!=Aux.!$G$11,"CONTRATACAO_PUBLICA",IF(VLOOKUP($C153,'Orçamento N_DESON.'!$D$11:$G$525,3,FALSE)="INDEXADO",VLOOKUP(VLOOKUP($C153,'Orçamento N_DESON.'!$D$11:$G$525,2,FALSE),#REF!,2),VLOOKUP($C153,'Orçamento N_DESON.'!$D$11:$G$525,3,FALSE))) ->  | E153: =VLOOKUP($C153,'Orçamento N_DESON.'!$D$11:$S$82,2,FALSE) ->  | F153: =Dados!$C$7 -> 2022-03-01 | G153: =VLOOKUP($C153,'Orçamento N_DESON.'!$D$11:$S$82,4,FALSE) ->  | H153: =IFERROR(VLOOKUP($C153,'Orçamento N_DESON.'!$D$11:$S$82,6,FALSE),0) -> 0 | I153: =VLOOKUP($C153,'Orçamento N_DESON.'!$D$11:$S$82,5,FALSE) ->  | J153: =VLOOKUP($C153,'Orçamento N_DESON.'!$D$11:$S$82,12,FALSE) ->  | K153: =IFERROR(VLOOKUP($C153,'Orçamento N_DESON.'!$D$11:$S$82,16,FALSE),0) -> 0 | L153: =VLOOKUP($C153,'Orçamento N_DESON.'!$D$11:$S$82,11,FALSE) ->  | M153: =Encargos!$F$44 -> 1.1122
A154: ='Identificação-TCE'!$A$13 -> 1 | B154: =IF(AND(G154<>"",H154>0,I154<>"",J154<>0,K154<>0),COUNT($B$11:B153)+1,"") ->  | C154: =IF('Orçamento N_DESON.'!#REF!=0,0,'Orçamento N_DESON.'!#REF!) ->  | D154: =IF('Orçamento N_DESON.'!#REF!=Aux.!$G$11,"CONTRATACAO_PUBLICA",IF(VLOOKUP($C154,'Orçamento N_DESON.'!$D$11:$G$525,3,FALSE)="INDEXADO",VLOOKUP(VLOOKUP($C154,'Orçamento N_DESON.'!$D$11:$G$525,2,FALSE),#REF!,2),VLOOKUP($C154,'Orçamento N_DESON.'!$D$11:$G$525,3,FALSE))) ->  | E154: =VLOOKUP($C154,'Orçamento N_DESON.'!$D$11:$S$82,2,FALSE) ->  | F154: =Dados!$C$7 -> 2022-03-01 | G154: =VLOOKUP($C154,'Orçamento N_DESON.'!$D$11:$S$82,4,FALSE) ->  | H154: =IFERROR(VLOOKUP($C154,'Orçamento N_DESON.'!$D$11:$S$82,6,FALSE),0) -> 0 | I154: =VLOOKUP($C154,'Orçamento N_DESON.'!$D$11:$S$82,5,FALSE) ->  | J154: =VLOOKUP($C154,'Orçamento N_DESON.'!$D$11:$S$82,12,FALSE) ->  | K154: =IFERROR(VLOOKUP($C154,'Orçamento N_DESON.'!$D$11:$S$82,16,FALSE),0) -> 0 | L154: =VLOOKUP($C154,'Orçamento N_DESON.'!$D$11:$S$82,11,FALSE) ->  | M154: =Encargos!$F$44 -> 1.1122
A155: ='Identificação-TCE'!$A$13 -> 1 | B155: =IF(AND(G155<>"",H155>0,I155<>"",J155<>0,K155<>0),COUNT($B$11:B154)+1,"") ->  | C155: =IF('Orçamento N_DESON.'!#REF!=0,0,'Orçamento N_DESON.'!#REF!) ->  | D155: =IF('Orçamento N_DESON.'!#REF!=Aux.!$G$11,"CONTRATACAO_PUBLICA",IF(VLOOKUP($C155,'Orçamento N_DESON.'!$D$11:$G$525,3,FALSE)="INDEXADO",VLOOKUP(VLOOKUP($C155,'Orçamento N_DESON.'!$D$11:$G$525,2,FALSE),#REF!,2),VLOOKUP($C155,'Orçamento N_DESON.'!$D$11:$G$525,3,FALSE))) ->  | E155: =VLOOKUP($C155,'Orçamento N_DESON.'!$D$11:$S$82,2,FALSE) ->  | F155: =Dados!$C$7 -> 2022-03-01 | G155: =VLOOKUP($C155,'Orçamento N_DESON.'!$D$11:$S$82,4,FALSE) ->  | H155: =IFERROR(VLOOKUP($C155,'Orçamento N_DESON.'!$D$11:$S$82,6,FALSE),0) -> 0 | I155: =VLOOKUP($C155,'Orçamento N_DESON.'!$D$11:$S$82,5,FALSE) ->  | J155: =VLOOKUP($C155,'Orçamento N_DESON.'!$D$11:$S$82,12,FALSE) ->  | K155: =IFERROR(VLOOKUP($C155,'Orçamento N_DESON.'!$D$11:$S$82,16,FALSE),0) -> 0 | L155: =VLOOKUP($C155,'Orçamento N_DESON.'!$D$11:$S$82,11,FALSE) ->  | M155: =Encargos!$F$44 -> 1.1122
A156: ='Identificação-TCE'!$A$13 -> 1 | B156: =IF(AND(G156<>"",H156>0,I156<>"",J156<>0,K156<>0),COUNT($B$11:B155)+1,"") ->  | C156: =IF('Orçamento N_DESON.'!#REF!=0,0,'Orçamento N_DESON.'!#REF!) ->  | D156: =IF('Orçamento N_DESON.'!#REF!=Aux.!$G$11,"CONTRATACAO_PUBLICA",IF(VLOOKUP($C156,'Orçamento N_DESON.'!$D$11:$G$525,3,FALSE)="INDEXADO",VLOOKUP(VLOOKUP($C156,'Orçamento N_DESON.'!$D$11:$G$525,2,FALSE),#REF!,2),VLOOKUP($C156,'Orçamento N_DESON.'!$D$11:$G$525,3,FALSE))) ->  | E156: =VLOOKUP($C156,'Orçamento N_DESON.'!$D$11:$S$82,2,FALSE) ->  | F156: =Dados!$C$7 -> 2022-03-01 | G156: =VLOOKUP($C156,'Orçamento N_DESON.'!$D$11:$S$82,4,FALSE) ->  | H156: =IFERROR(VLOOKUP($C156,'Orçamento N_DESON.'!$D$11:$S$82,6,FALSE),0) -> 0 | I156: =VLOOKUP($C156,'Orçamento N_DESON.'!$D$11:$S$82,5,FALSE) ->  | J156: =VLOOKUP($C156,'Orçamento N_DESON.'!$D$11:$S$82,12,FALSE) ->  | K156: =IFERROR(VLOOKUP($C156,'Orçamento N_DESON.'!$D$11:$S$82,16,FALSE),0) -> 0 | L156: =VLOOKUP($C156,'Orçamento N_DESON.'!$D$11:$S$82,11,FALSE) ->  | M156: =Encargos!$F$44 -> 1.1122
A157: ='Identificação-TCE'!$A$13 -> 1 | B157: =IF(AND(G157<>"",H157>0,I157<>"",J157<>0,K157<>0),COUNT($B$11:B156)+1,"") ->  | C157: =IF('Orçamento N_DESON.'!#REF!=0,0,'Orçamento N_DESON.'!#REF!) ->  | D157: =IF('Orçamento N_DESON.'!#REF!=Aux.!$G$11,"CONTRATACAO_PUBLICA",IF(VLOOKUP($C157,'Orçamento N_DESON.'!$D$11:$G$525,3,FALSE)="INDEXADO",VLOOKUP(VLOOKUP($C157,'Orçamento N_DESON.'!$D$11:$G$525,2,FALSE),#REF!,2),VLOOKUP($C157,'Orçamento N_DESON.'!$D$11:$G$525,3,FALSE))) ->  | E157: =VLOOKUP($C157,'Orçamento N_DESON.'!$D$11:$S$82,2,FALSE) ->  | F157: =Dados!$C$7 -> 2022-03-01 | G157: =VLOOKUP($C157,'Orçamento N_DESON.'!$D$11:$S$82,4,FALSE) ->  | H157: =IFERROR(VLOOKUP($C157,'Orçamento N_DESON.'!$D$11:$S$82,6,FALSE),0) -> 0 | I157: =VLOOKUP($C157,'Orçamento N_DESON.'!$D$11:$S$82,5,FALSE) ->  | J157: =VLOOKUP($C157,'Orçamento N_DESON.'!$D$11:$S$82,12,FALSE) ->  | K157: =IFERROR(VLOOKUP($C157,'Orçamento N_DESON.'!$D$11:$S$82,16,FALSE),0) -> 0 | L157: =VLOOKUP($C157,'Orçamento N_DESON.'!$D$11:$S$82,11,FALSE) ->  | M157: =Encargos!$F$44 -> 1.1122
A158: ='Identificação-TCE'!$A$13 -> 1 | B158: =IF(AND(G158<>"",H158>0,I158<>"",J158<>0,K158<>0),COUNT($B$11:B157)+1,"") ->  | C158: =IF('Orçamento N_DESON.'!#REF!=0,0,'Orçamento N_DESON.'!#REF!) ->  | D158: =IF('Orçamento N_DESON.'!#REF!=Aux.!$G$11,"CONTRATACAO_PUBLICA",IF(VLOOKUP($C158,'Orçamento N_DESON.'!$D$11:$G$525,3,FALSE)="INDEXADO",VLOOKUP(VLOOKUP($C158,'Orçamento N_DESON.'!$D$11:$G$525,2,FALSE),#REF!,2),VLOOKUP($C158,'Orçamento N_DESON.'!$D$11:$G$525,3,FALSE))) ->  | E158: =VLOOKUP($C158,'Orçamento N_DESON.'!$D$11:$S$82,2,FALSE) ->  | F158: =Dados!$C$7 -> 2022-03-01 | G158: =VLOOKUP($C158,'Orçamento N_DESON.'!$D$11:$S$82,4,FALSE) ->  | H158: =IFERROR(VLOOKUP($C158,'Orçamento N_DESON.'!$D$11:$S$82,6,FALSE),0) -> 0 | I158: =VLOOKUP($C158,'Orçamento N_DESON.'!$D$11:$S$82,5,FALSE) ->  | J158: =VLOOKUP($C158,'Orçamento N_DESON.'!$D$11:$S$82,12,FALSE) ->  | K158: =IFERROR(VLOOKUP($C158,'Orçamento N_DESON.'!$D$11:$S$82,16,FALSE),0) -> 0 | L158: =VLOOKUP($C158,'Orçamento N_DESON.'!$D$11:$S$82,11,FALSE) ->  | M158: =Encargos!$F$44 -> 1.1122
A159: ='Identificação-TCE'!$A$13 -> 1 | B159: =IF(AND(G159<>"",H159>0,I159<>"",J159<>0,K159<>0),COUNT($B$11:B158)+1,"") ->  | C159: =IF('Orçamento N_DESON.'!#REF!=0,0,'Orçamento N_DESON.'!#REF!) ->  | D159: =IF('Orçamento N_DESON.'!#REF!=Aux.!$G$11,"CONTRATACAO_PUBLICA",IF(VLOOKUP($C159,'Orçamento N_DESON.'!$D$11:$G$525,3,FALSE)="INDEXADO",VLOOKUP(VLOOKUP($C159,'Orçamento N_DESON.'!$D$11:$G$525,2,FALSE),#REF!,2),VLOOKUP($C159,'Orçamento N_DESON.'!$D$11:$G$525,3,FALSE))) ->  | E159: =VLOOKUP($C159,'Orçamento N_DESON.'!$D$11:$S$82,2,FALSE) ->  | F159: =Dados!$C$7 -> 2022-03-01 | G159: =VLOOKUP($C159,'Orçamento N_DESON.'!$D$11:$S$82,4,FALSE) ->  | H159: =IFERROR(VLOOKUP($C159,'Orçamento N_DESON.'!$D$11:$S$82,6,FALSE),0) -> 0 | I159: =VLOOKUP($C159,'Orçamento N_DESON.'!$D$11:$S$82,5,FALSE) ->  | J159: =VLOOKUP($C159,'Orçamento N_DESON.'!$D$11:$S$82,12,FALSE) ->  | K159: =IFERROR(VLOOKUP($C159,'Orçamento N_DESON.'!$D$11:$S$82,16,FALSE),0) -> 0 | L159: =VLOOKUP($C159,'Orçamento N_DESON.'!$D$11:$S$82,11,FALSE) ->  | M159: =Encargos!$F$44 -> 1.1122
A160: ='Identificação-TCE'!$A$13 -> 1 | B160: =IF(AND(G160<>"",H160>0,I160<>"",J160<>0,K160<>0),COUNT($B$11:B159)+1,"") ->  | C160: =IF('Orçamento N_DESON.'!#REF!=0,0,'Orçamento N_DESON.'!#REF!) ->  | D160: =IF('Orçamento N_DESON.'!#REF!=Aux.!$G$11,"CONTRATACAO_PUBLICA",IF(VLOOKUP($C160,'Orçamento N_DESON.'!$D$11:$G$525,3,FALSE)="INDEXADO",VLOOKUP(VLOOKUP($C160,'Orçamento N_DESON.'!$D$11:$G$525,2,FALSE),#REF!,2),VLOOKUP($C160,'Orçamento N_DESON.'!$D$11:$G$525,3,FALSE))) ->  | E160: =VLOOKUP($C160,'Orçamento N_DESON.'!$D$11:$S$82,2,FALSE) ->  | F160: =Dados!$C$7 -> 2022-03-01 | G160: =VLOOKUP($C160,'Orçamento N_DESON.'!$D$11:$S$82,4,FALSE) ->  | H160: =IFERROR(VLOOKUP($C160,'Orçamento N_DESON.'!$D$11:$S$82,6,FALSE),0) -> 0 | I160: =VLOOKUP($C160,'Orçamento N_DESON.'!$D$11:$S$82,5,FALSE) ->  | J160: =VLOOKUP($C160,'Orçamento N_DESON.'!$D$11:$S$82,12,FALSE) ->  | K160: =IFERROR(VLOOKUP($C160,'Orçamento N_DESON.'!$D$11:$S$82,16,FALSE),0) -> 0 | L160: =VLOOKUP($C160,'Orçamento N_DESON.'!$D$11:$S$82,11,FALSE) ->  | M160: =Encargos!$F$44 -> 1.1122
A161: ='Identificação-TCE'!$A$13 -> 1 | B161: =IF(AND(G161<>"",H161>0,I161<>"",J161<>0,K161<>0),COUNT($B$11:B160)+1,"") ->  | C161: =IF('Orçamento N_DESON.'!#REF!=0,0,'Orçamento N_DESON.'!#REF!) ->  | D161: =IF('Orçamento N_DESON.'!#REF!=Aux.!$G$11,"CONTRATACAO_PUBLICA",IF(VLOOKUP($C161,'Orçamento N_DESON.'!$D$11:$G$525,3,FALSE)="INDEXADO",VLOOKUP(VLOOKUP($C161,'Orçamento N_DESON.'!$D$11:$G$525,2,FALSE),#REF!,2),VLOOKUP($C161,'Orçamento N_DESON.'!$D$11:$G$525,3,FALSE))) ->  | E161: =VLOOKUP($C161,'Orçamento N_DESON.'!$D$11:$S$82,2,FALSE) ->  | F161: =Dados!$C$7 -> 2022-03-01 | G161: =VLOOKUP($C161,'Orçamento N_DESON.'!$D$11:$S$82,4,FALSE) ->  | H161: =IFERROR(VLOOKUP($C161,'Orçamento N_DESON.'!$D$11:$S$82,6,FALSE),0) -> 0 | I161: =VLOOKUP($C161,'Orçamento N_DESON.'!$D$11:$S$82,5,FALSE) ->  | J161: =VLOOKUP($C161,'Orçamento N_DESON.'!$D$11:$S$82,12,FALSE) ->  | K161: =IFERROR(VLOOKUP($C161,'Orçamento N_DESON.'!$D$11:$S$82,16,FALSE),0) -> 0 | L161: =VLOOKUP($C161,'Orçamento N_DESON.'!$D$11:$S$82,11,FALSE) ->  | M161: =Encargos!$F$44 -> 1.1122
A162: ='Identificação-TCE'!$A$13 -> 1 | B162: =IF(AND(G162<>"",H162>0,I162<>"",J162<>0,K162<>0),COUNT($B$11:B161)+1,"") ->  | C162: =IF('Orçamento N_DESON.'!#REF!=0,0,'Orçamento N_DESON.'!#REF!) ->  | D162: =IF('Orçamento N_DESON.'!#REF!=Aux.!$G$11,"CONTRATACAO_PUBLICA",IF(VLOOKUP($C162,'Orçamento N_DESON.'!$D$11:$G$525,3,FALSE)="INDEXADO",VLOOKUP(VLOOKUP($C162,'Orçamento N_DESON.'!$D$11:$G$525,2,FALSE),#REF!,2),VLOOKUP($C162,'Orçamento N_DESON.'!$D$11:$G$525,3,FALSE))) ->  | E162: =VLOOKUP($C162,'Orçamento N_DESON.'!$D$11:$S$82,2,FALSE) ->  | F162: =Dados!$C$7 -> 2022-03-01 | G162: =VLOOKUP($C162,'Orçamento N_DESON.'!$D$11:$S$82,4,FALSE) ->  | H162: =IFERROR(VLOOKUP($C162,'Orçamento N_DESON.'!$D$11:$S$82,6,FALSE),0) -> 0 | I162: =VLOOKUP($C162,'Orçamento N_DESON.'!$D$11:$S$82,5,FALSE) ->  | J162: =VLOOKUP($C162,'Orçamento N_DESON.'!$D$11:$S$82,12,FALSE) ->  | K162: =IFERROR(VLOOKUP($C162,'Orçamento N_DESON.'!$D$11:$S$82,16,FALSE),0) -> 0 | L162: =VLOOKUP($C162,'Orçamento N_DESON.'!$D$11:$S$82,11,FALSE) ->  | M162: =Encargos!$F$44 -> 1.1122
A163: ='Identificação-TCE'!$A$13 -> 1 | B163: =IF(AND(G163<>"",H163>0,I163<>"",J163<>0,K163<>0),COUNT($B$11:B162)+1,"") ->  | C163: =IF('Orçamento N_DESON.'!#REF!=0,0,'Orçamento N_DESON.'!#REF!) ->  | D163: =IF('Orçamento N_DESON.'!#REF!=Aux.!$G$11,"CONTRATACAO_PUBLICA",IF(VLOOKUP($C163,'Orçamento N_DESON.'!$D$11:$G$525,3,FALSE)="INDEXADO",VLOOKUP(VLOOKUP($C163,'Orçamento N_DESON.'!$D$11:$G$525,2,FALSE),#REF!,2),VLOOKUP($C163,'Orçamento N_DESON.'!$D$11:$G$525,3,FALSE))) ->  | E163: =VLOOKUP($C163,'Orçamento N_DESON.'!$D$11:$S$82,2,FALSE) ->  | F163: =Dados!$C$7 -> 2022-03-01 | G163: =VLOOKUP($C163,'Orçamento N_DESON.'!$D$11:$S$82,4,FALSE) ->  | H163: =IFERROR(VLOOKUP($C163,'Orçamento N_DESON.'!$D$11:$S$82,6,FALSE),0) -> 0 | I163: =VLOOKUP($C163,'Orçamento N_DESON.'!$D$11:$S$82,5,FALSE) ->  | J163: =VLOOKUP($C163,'Orçamento N_DESON.'!$D$11:$S$82,12,FALSE) ->  | K163: =IFERROR(VLOOKUP($C163,'Orçamento N_DESON.'!$D$11:$S$82,16,FALSE),0) -> 0 | L163: =VLOOKUP($C163,'Orçamento N_DESON.'!$D$11:$S$82,11,FALSE) ->  | M163: =Encargos!$F$44 -> 1.1122
A164: ='Identificação-TCE'!$A$13 -> 1 | B164: =IF(AND(G164<>"",H164>0,I164<>"",J164<>0,K164<>0),COUNT($B$11:B163)+1,"") ->  | C164: =IF('Orçamento N_DESON.'!#REF!=0,0,'Orçamento N_DESON.'!#REF!) ->  | D164: =IF('Orçamento N_DESON.'!#REF!=Aux.!$G$11,"CONTRATACAO_PUBLICA",IF(VLOOKUP($C164,'Orçamento N_DESON.'!$D$11:$G$525,3,FALSE)="INDEXADO",VLOOKUP(VLOOKUP($C164,'Orçamento N_DESON.'!$D$11:$G$525,2,FALSE),#REF!,2),VLOOKUP($C164,'Orçamento N_DESON.'!$D$11:$G$525,3,FALSE))) ->  | E164: =VLOOKUP($C164,'Orçamento N_DESON.'!$D$11:$S$82,2,FALSE) ->  | F164: =Dados!$C$7 -> 2022-03-01 | G164: =VLOOKUP($C164,'Orçamento N_DESON.'!$D$11:$S$82,4,FALSE) ->  | H164: =IFERROR(VLOOKUP($C164,'Orçamento N_DESON.'!$D$11:$S$82,6,FALSE),0) -> 0 | I164: =VLOOKUP($C164,'Orçamento N_DESON.'!$D$11:$S$82,5,FALSE) ->  | J164: =VLOOKUP($C164,'Orçamento N_DESON.'!$D$11:$S$82,12,FALSE) ->  | K164: =IFERROR(VLOOKUP($C164,'Orçamento N_DESON.'!$D$11:$S$82,16,FALSE),0) -> 0 | L164: =VLOOKUP($C164,'Orçamento N_DESON.'!$D$11:$S$82,11,FALSE) ->  | M164: =Encargos!$F$44 -> 1.1122
A165: ='Identificação-TCE'!$A$13 -> 1 | B165: =IF(AND(G165<>"",H165>0,I165<>"",J165<>0,K165<>0),COUNT($B$11:B164)+1,"") ->  | C165: =IF('Orçamento N_DESON.'!#REF!=0,0,'Orçamento N_DESON.'!#REF!) ->  | D165: =IF('Orçamento N_DESON.'!#REF!=Aux.!$G$11,"CONTRATACAO_PUBLICA",IF(VLOOKUP($C165,'Orçamento N_DESON.'!$D$11:$G$525,3,FALSE)="INDEXADO",VLOOKUP(VLOOKUP($C165,'Orçamento N_DESON.'!$D$11:$G$525,2,FALSE),#REF!,2),VLOOKUP($C165,'Orçamento N_DESON.'!$D$11:$G$525,3,FALSE))) ->  | E165: =VLOOKUP($C165,'Orçamento N_DESON.'!$D$11:$S$82,2,FALSE) ->  | F165: =Dados!$C$7 -> 2022-03-01 | G165: =VLOOKUP($C165,'Orçamento N_DESON.'!$D$11:$S$82,4,FALSE) ->  | H165: =IFERROR(VLOOKUP($C165,'Orçamento N_DESON.'!$D$11:$S$82,6,FALSE),0) -> 0 | I165: =VLOOKUP($C165,'Orçamento N_DESON.'!$D$11:$S$82,5,FALSE) ->  | J165: =VLOOKUP($C165,'Orçamento N_DESON.'!$D$11:$S$82,12,FALSE) ->  | K165: =IFERROR(VLOOKUP($C165,'Orçamento N_DESON.'!$D$11:$S$82,16,FALSE),0) -> 0 | L165: =VLOOKUP($C165,'Orçamento N_DESON.'!$D$11:$S$82,11,FALSE) ->  | M165: =Encargos!$F$44 -> 1.1122
A166: ='Identificação-TCE'!$A$13 -> 1 | B166: =IF(AND(G166<>"",H166>0,I166<>"",J166<>0,K166<>0),COUNT($B$11:B165)+1,"") ->  | C166: =IF('Orçamento N_DESON.'!#REF!=0,0,'Orçamento N_DESON.'!#REF!) ->  | D166: =IF('Orçamento N_DESON.'!#REF!=Aux.!$G$11,"CONTRATACAO_PUBLICA",IF(VLOOKUP($C166,'Orçamento N_DESON.'!$D$11:$G$525,3,FALSE)="INDEXADO",VLOOKUP(VLOOKUP($C166,'Orçamento N_DESON.'!$D$11:$G$525,2,FALSE),#REF!,2),VLOOKUP($C166,'Orçamento N_DESON.'!$D$11:$G$525,3,FALSE))) ->  | E166: =VLOOKUP($C166,'Orçamento N_DESON.'!$D$11:$S$82,2,FALSE) ->  | F166: =Dados!$C$7 -> 2022-03-01 | G166: =VLOOKUP($C166,'Orçamento N_DESON.'!$D$11:$S$82,4,FALSE) ->  | H166: =IFERROR(VLOOKUP($C166,'Orçamento N_DESON.'!$D$11:$S$82,6,FALSE),0) -> 0 | I166: =VLOOKUP($C166,'Orçamento N_DESON.'!$D$11:$S$82,5,FALSE) ->  | J166: =VLOOKUP($C166,'Orçamento N_DESON.'!$D$11:$S$82,12,FALSE) ->  | K166: =IFERROR(VLOOKUP($C166,'Orçamento N_DESON.'!$D$11:$S$82,16,FALSE),0) -> 0 | L166: =VLOOKUP($C166,'Orçamento N_DESON.'!$D$11:$S$82,11,FALSE) ->  | M166: =Encargos!$F$44 -> 1.1122
A167: ='Identificação-TCE'!$A$13 -> 1 | B167: =IF(AND(G167<>"",H167>0,I167<>"",J167<>0,K167<>0),COUNT($B$11:B166)+1,"") ->  | C167: =IF('Orçamento N_DESON.'!#REF!=0,0,'Orçamento N_DESON.'!#REF!) ->  | D167: =IF('Orçamento N_DESON.'!#REF!=Aux.!$G$11,"CONTRATACAO_PUBLICA",IF(VLOOKUP($C167,'Orçamento N_DESON.'!$D$11:$G$525,3,FALSE)="INDEXADO",VLOOKUP(VLOOKUP($C167,'Orçamento N_DESON.'!$D$11:$G$525,2,FALSE),#REF!,2),VLOOKUP($C167,'Orçamento N_DESON.'!$D$11:$G$525,3,FALSE))) ->  | E167: =VLOOKUP($C167,'Orçamento N_DESON.'!$D$11:$S$82,2,FALSE) ->  | F167: =Dados!$C$7 -> 2022-03-01 | G167: =VLOOKUP($C167,'Orçamento N_DESON.'!$D$11:$S$82,4,FALSE) ->  | H167: =IFERROR(VLOOKUP($C167,'Orçamento N_DESON.'!$D$11:$S$82,6,FALSE),0) -> 0 | I167: =VLOOKUP($C167,'Orçamento N_DESON.'!$D$11:$S$82,5,FALSE) ->  | J167: =VLOOKUP($C167,'Orçamento N_DESON.'!$D$11:$S$82,12,FALSE) ->  | K167: =IFERROR(VLOOKUP($C167,'Orçamento N_DESON.'!$D$11:$S$82,16,FALSE),0) -> 0 | L167: =VLOOKUP($C167,'Orçamento N_DESON.'!$D$11:$S$82,11,FALSE) ->  | M167: =Encargos!$F$44 -> 1.1122
A168: ='Identificação-TCE'!$A$13 -> 1 | B168: =IF(AND(G168<>"",H168>0,I168<>"",J168<>0,K168<>0),COUNT($B$11:B167)+1,"") ->  | C168: =IF('Orçamento N_DESON.'!#REF!=0,0,'Orçamento N_DESON.'!#REF!) ->  | D168: =IF('Orçamento N_DESON.'!#REF!=Aux.!$G$11,"CONTRATACAO_PUBLICA",IF(VLOOKUP($C168,'Orçamento N_DESON.'!$D$11:$G$525,3,FALSE)="INDEXADO",VLOOKUP(VLOOKUP($C168,'Orçamento N_DESON.'!$D$11:$G$525,2,FALSE),#REF!,2),VLOOKUP($C168,'Orçamento N_DESON.'!$D$11:$G$525,3,FALSE))) ->  | E168: =VLOOKUP($C168,'Orçamento N_DESON.'!$D$11:$S$82,2,FALSE) ->  | F168: =Dados!$C$7 -> 2022-03-01 | G168: =VLOOKUP($C168,'Orçamento N_DESON.'!$D$11:$S$82,4,FALSE) ->  | H168: =IFERROR(VLOOKUP($C168,'Orçamento N_DESON.'!$D$11:$S$82,6,FALSE),0) -> 0 | I168: =VLOOKUP($C168,'Orçamento N_DESON.'!$D$11:$S$82,5,FALSE) ->  | J168: =VLOOKUP($C168,'Orçamento N_DESON.'!$D$11:$S$82,12,FALSE) ->  | K168: =IFERROR(VLOOKUP($C168,'Orçamento N_DESON.'!$D$11:$S$82,16,FALSE),0) -> 0 | L168: =VLOOKUP($C168,'Orçamento N_DESON.'!$D$11:$S$82,11,FALSE) ->  | M168: =Encargos!$F$44 -> 1.1122
A169: ='Identificação-TCE'!$A$13 -> 1 | B169: =IF(AND(G169<>"",H169>0,I169<>"",J169<>0,K169<>0),COUNT($B$11:B168)+1,"") ->  | C169: =IF('Orçamento N_DESON.'!#REF!=0,0,'Orçamento N_DESON.'!#REF!) ->  | D169: =IF('Orçamento N_DESON.'!#REF!=Aux.!$G$11,"CONTRATACAO_PUBLICA",IF(VLOOKUP($C169,'Orçamento N_DESON.'!$D$11:$G$525,3,FALSE)="INDEXADO",VLOOKUP(VLOOKUP($C169,'Orçamento N_DESON.'!$D$11:$G$525,2,FALSE),#REF!,2),VLOOKUP($C169,'Orçamento N_DESON.'!$D$11:$G$525,3,FALSE))) ->  | E169: =VLOOKUP($C169,'Orçamento N_DESON.'!$D$11:$S$82,2,FALSE) ->  | F169: =Dados!$C$7 -> 2022-03-01 | G169: =VLOOKUP($C169,'Orçamento N_DESON.'!$D$11:$S$82,4,FALSE) ->  | H169: =IFERROR(VLOOKUP($C169,'Orçamento N_DESON.'!$D$11:$S$82,6,FALSE),0) -> 0 | I169: =VLOOKUP($C169,'Orçamento N_DESON.'!$D$11:$S$82,5,FALSE) ->  | J169: =VLOOKUP($C169,'Orçamento N_DESON.'!$D$11:$S$82,12,FALSE) ->  | K169: =IFERROR(VLOOKUP($C169,'Orçamento N_DESON.'!$D$11:$S$82,16,FALSE),0) -> 0 | L169: =VLOOKUP($C169,'Orçamento N_DESON.'!$D$11:$S$82,11,FALSE) ->  | M169: =Encargos!$F$44 -> 1.1122
A170: ='Identificação-TCE'!$A$13 -> 1 | B170: =IF(AND(G170<>"",H170>0,I170<>"",J170<>0,K170<>0),COUNT($B$11:B169)+1,"") ->  | C170: =IF('Orçamento N_DESON.'!#REF!=0,0,'Orçamento N_DESON.'!#REF!) ->  | D170: =IF('Orçamento N_DESON.'!#REF!=Aux.!$G$11,"CONTRATACAO_PUBLICA",IF(VLOOKUP($C170,'Orçamento N_DESON.'!$D$11:$G$525,3,FALSE)="INDEXADO",VLOOKUP(VLOOKUP($C170,'Orçamento N_DESON.'!$D$11:$G$525,2,FALSE),#REF!,2),VLOOKUP($C170,'Orçamento N_DESON.'!$D$11:$G$525,3,FALSE))) ->  | E170: =VLOOKUP($C170,'Orçamento N_DESON.'!$D$11:$S$82,2,FALSE) ->  | F170: =Dados!$C$7 -> 2022-03-01 | G170: =VLOOKUP($C170,'Orçamento N_DESON.'!$D$11:$S$82,4,FALSE) ->  | H170: =IFERROR(VLOOKUP($C170,'Orçamento N_DESON.'!$D$11:$S$82,6,FALSE),0) -> 0 | I170: =VLOOKUP($C170,'Orçamento N_DESON.'!$D$11:$S$82,5,FALSE) ->  | J170: =VLOOKUP($C170,'Orçamento N_DESON.'!$D$11:$S$82,12,FALSE) ->  | K170: =IFERROR(VLOOKUP($C170,'Orçamento N_DESON.'!$D$11:$S$82,16,FALSE),0) -> 0 | L170: =VLOOKUP($C170,'Orçamento N_DESON.'!$D$11:$S$82,11,FALSE) ->  | M170: =Encargos!$F$44 -> 1.1122
A171: ='Identificação-TCE'!$A$13 -> 1 | B171: =IF(AND(G171<>"",H171>0,I171<>"",J171<>0,K171<>0),COUNT($B$11:B170)+1,"") ->  | C171: =IF('Orçamento N_DESON.'!#REF!=0,0,'Orçamento N_DESON.'!#REF!) ->  | D171: =IF('Orçamento N_DESON.'!#REF!=Aux.!$G$11,"CONTRATACAO_PUBLICA",IF(VLOOKUP($C171,'Orçamento N_DESON.'!$D$11:$G$525,3,FALSE)="INDEXADO",VLOOKUP(VLOOKUP($C171,'Orçamento N_DESON.'!$D$11:$G$525,2,FALSE),#REF!,2),VLOOKUP($C171,'Orçamento N_DESON.'!$D$11:$G$525,3,FALSE))) ->  | E171: =VLOOKUP($C171,'Orçamento N_DESON.'!$D$11:$S$82,2,FALSE) ->  | F171: =Dados!$C$7 -> 2022-03-01 | G171: =VLOOKUP($C171,'Orçamento N_DESON.'!$D$11:$S$82,4,FALSE) ->  | H171: =IFERROR(VLOOKUP($C171,'Orçamento N_DESON.'!$D$11:$S$82,6,FALSE),0) -> 0 | I171: =VLOOKUP($C171,'Orçamento N_DESON.'!$D$11:$S$82,5,FALSE) ->  | J171: =VLOOKUP($C171,'Orçamento N_DESON.'!$D$11:$S$82,12,FALSE) ->  | K171: =IFERROR(VLOOKUP($C171,'Orçamento N_DESON.'!$D$11:$S$82,16,FALSE),0) -> 0 | L171: =VLOOKUP($C171,'Orçamento N_DESON.'!$D$11:$S$82,11,FALSE) ->  | M171: =Encargos!$F$44 -> 1.1122
A172: ='Identificação-TCE'!$A$13 -> 1 | B172: =IF(AND(G172<>"",H172>0,I172<>"",J172<>0,K172<>0),COUNT($B$11:B171)+1,"") ->  | C172: =IF('Orçamento N_DESON.'!#REF!=0,0,'Orçamento N_DESON.'!#REF!) ->  | D172: =IF('Orçamento N_DESON.'!#REF!=Aux.!$G$11,"CONTRATACAO_PUBLICA",IF(VLOOKUP($C172,'Orçamento N_DESON.'!$D$11:$G$525,3,FALSE)="INDEXADO",VLOOKUP(VLOOKUP($C172,'Orçamento N_DESON.'!$D$11:$G$525,2,FALSE),#REF!,2),VLOOKUP($C172,'Orçamento N_DESON.'!$D$11:$G$525,3,FALSE))) ->  | E172: =VLOOKUP($C172,'Orçamento N_DESON.'!$D$11:$S$82,2,FALSE) ->  | F172: =Dados!$C$7 -> 2022-03-01 | G172: =VLOOKUP($C172,'Orçamento N_DESON.'!$D$11:$S$82,4,FALSE) ->  | H172: =IFERROR(VLOOKUP($C172,'Orçamento N_DESON.'!$D$11:$S$82,6,FALSE),0) -> 0 | I172: =VLOOKUP($C172,'Orçamento N_DESON.'!$D$11:$S$82,5,FALSE) ->  | J172: =VLOOKUP($C172,'Orçamento N_DESON.'!$D$11:$S$82,12,FALSE) ->  | K172: =IFERROR(VLOOKUP($C172,'Orçamento N_DESON.'!$D$11:$S$82,16,FALSE),0) -> 0 | L172: =VLOOKUP($C172,'Orçamento N_DESON.'!$D$11:$S$82,11,FALSE) ->  | M172: =Encargos!$F$44 -> 1.1122
A173: ='Identificação-TCE'!$A$13 -> 1 | B173: =IF(AND(G173<>"",H173>0,I173<>"",J173<>0,K173<>0),COUNT($B$11:B172)+1,"") ->  | C173: =IF('Orçamento N_DESON.'!#REF!=0,0,'Orçamento N_DESON.'!#REF!) ->  | D173: =IF('Orçamento N_DESON.'!#REF!=Aux.!$G$11,"CONTRATACAO_PUBLICA",IF(VLOOKUP($C173,'Orçamento N_DESON.'!$D$11:$G$525,3,FALSE)="INDEXADO",VLOOKUP(VLOOKUP($C173,'Orçamento N_DESON.'!$D$11:$G$525,2,FALSE),#REF!,2),VLOOKUP($C173,'Orçamento N_DESON.'!$D$11:$G$525,3,FALSE))) ->  | E173: =VLOOKUP($C173,'Orçamento N_DESON.'!$D$11:$S$82,2,FALSE) ->  | F173: =Dados!$C$7 -> 2022-03-01 | G173: =VLOOKUP($C173,'Orçamento N_DESON.'!$D$11:$S$82,4,FALSE) ->  | H173: =IFERROR(VLOOKUP($C173,'Orçamento N_DESON.'!$D$11:$S$82,6,FALSE),0) -> 0 | I173: =VLOOKUP($C173,'Orçamento N_DESON.'!$D$11:$S$82,5,FALSE) ->  | J173: =VLOOKUP($C173,'Orçamento N_DESON.'!$D$11:$S$82,12,FALSE) ->  | K173: =IFERROR(VLOOKUP($C173,'Orçamento N_DESON.'!$D$11:$S$82,16,FALSE),0) -> 0 | L173: =VLOOKUP($C173,'Orçamento N_DESON.'!$D$11:$S$82,11,FALSE) ->  | M173: =Encargos!$F$44 -> 1.1122
A174: ='Identificação-TCE'!$A$13 -> 1 | B174: =IF(AND(G174<>"",H174>0,I174<>"",J174<>0,K174<>0),COUNT($B$11:B173)+1,"") ->  | C174: =IF('Orçamento N_DESON.'!#REF!=0,0,'Orçamento N_DESON.'!#REF!) ->  | D174: =IF('Orçamento N_DESON.'!#REF!=Aux.!$G$11,"CONTRATACAO_PUBLICA",IF(VLOOKUP($C174,'Orçamento N_DESON.'!$D$11:$G$525,3,FALSE)="INDEXADO",VLOOKUP(VLOOKUP($C174,'Orçamento N_DESON.'!$D$11:$G$525,2,FALSE),#REF!,2),VLOOKUP($C174,'Orçamento N_DESON.'!$D$11:$G$525,3,FALSE))) ->  | E174: =VLOOKUP($C174,'Orçamento N_DESON.'!$D$11:$S$82,2,FALSE) ->  | F174: =Dados!$C$7 -> 2022-03-01 | G174: =VLOOKUP($C174,'Orçamento N_DESON.'!$D$11:$S$82,4,FALSE) ->  | H174: =IFERROR(VLOOKUP($C174,'Orçamento N_DESON.'!$D$11:$S$82,6,FALSE),0) -> 0 | I174: =VLOOKUP($C174,'Orçamento N_DESON.'!$D$11:$S$82,5,FALSE) ->  | J174: =VLOOKUP($C174,'Orçamento N_DESON.'!$D$11:$S$82,12,FALSE) ->  | K174: =IFERROR(VLOOKUP($C174,'Orçamento N_DESON.'!$D$11:$S$82,16,FALSE),0) -> 0 | L174: =VLOOKUP($C174,'Orçamento N_DESON.'!$D$11:$S$82,11,FALSE) ->  | M174: =Encargos!$F$44 -> 1.1122
A175: ='Identificação-TCE'!$A$13 -> 1 | B175: =IF(AND(G175<>"",H175>0,I175<>"",J175<>0,K175<>0),COUNT($B$11:B174)+1,"") ->  | C175: =IF('Orçamento N_DESON.'!#REF!=0,0,'Orçamento N_DESON.'!#REF!) ->  | D175: =IF('Orçamento N_DESON.'!#REF!=Aux.!$G$11,"CONTRATACAO_PUBLICA",IF(VLOOKUP($C175,'Orçamento N_DESON.'!$D$11:$G$525,3,FALSE)="INDEXADO",VLOOKUP(VLOOKUP($C175,'Orçamento N_DESON.'!$D$11:$G$525,2,FALSE),#REF!,2),VLOOKUP($C175,'Orçamento N_DESON.'!$D$11:$G$525,3,FALSE))) ->  | E175: =VLOOKUP($C175,'Orçamento N_DESON.'!$D$11:$S$82,2,FALSE) ->  | F175: =Dados!$C$7 -> 2022-03-01 | G175: =VLOOKUP($C175,'Orçamento N_DESON.'!$D$11:$S$82,4,FALSE) ->  | H175: =IFERROR(VLOOKUP($C175,'Orçamento N_DESON.'!$D$11:$S$82,6,FALSE),0) -> 0 | I175: =VLOOKUP($C175,'Orçamento N_DESON.'!$D$11:$S$82,5,FALSE) ->  | J175: =VLOOKUP($C175,'Orçamento N_DESON.'!$D$11:$S$82,12,FALSE) ->  | K175: =IFERROR(VLOOKUP($C175,'Orçamento N_DESON.'!$D$11:$S$82,16,FALSE),0) -> 0 | L175: =VLOOKUP($C175,'Orçamento N_DESON.'!$D$11:$S$82,11,FALSE) ->  | M175: =Encargos!$F$44 -> 1.1122
A176: ='Identificação-TCE'!$A$13 -> 1 | B176: =IF(AND(G176<>"",H176>0,I176<>"",J176<>0,K176<>0),COUNT($B$11:B175)+1,"") ->  | C176: =IF('Orçamento N_DESON.'!#REF!=0,0,'Orçamento N_DESON.'!#REF!) ->  | D176: =IF('Orçamento N_DESON.'!#REF!=Aux.!$G$11,"CONTRATACAO_PUBLICA",IF(VLOOKUP($C176,'Orçamento N_DESON.'!$D$11:$G$525,3,FALSE)="INDEXADO",VLOOKUP(VLOOKUP($C176,'Orçamento N_DESON.'!$D$11:$G$525,2,FALSE),#REF!,2),VLOOKUP($C176,'Orçamento N_DESON.'!$D$11:$G$525,3,FALSE))) ->  | E176: =VLOOKUP($C176,'Orçamento N_DESON.'!$D$11:$S$82,2,FALSE) ->  | F176: =Dados!$C$7 -> 2022-03-01 | G176: =VLOOKUP($C176,'Orçamento N_DESON.'!$D$11:$S$82,4,FALSE) ->  | H176: =IFERROR(VLOOKUP($C176,'Orçamento N_DESON.'!$D$11:$S$82,6,FALSE),0) -> 0 | I176: =VLOOKUP($C176,'Orçamento N_DESON.'!$D$11:$S$82,5,FALSE) ->  | J176: =VLOOKUP($C176,'Orçamento N_DESON.'!$D$11:$S$82,12,FALSE) ->  | K176: =IFERROR(VLOOKUP($C176,'Orçamento N_DESON.'!$D$11:$S$82,16,FALSE),0) -> 0 | L176: =VLOOKUP($C176,'Orçamento N_DESON.'!$D$11:$S$82,11,FALSE) ->  | M176: =Encargos!$F$44 -> 1.1122
A177: ='Identificação-TCE'!$A$13 -> 1 | B177: =IF(AND(G177<>"",H177>0,I177<>"",J177<>0,K177<>0),COUNT($B$11:B176)+1,"") ->  | C177: =IF('Orçamento N_DESON.'!#REF!=0,0,'Orçamento N_DESON.'!#REF!) ->  | D177: =IF('Orçamento N_DESON.'!#REF!=Aux.!$G$11,"CONTRATACAO_PUBLICA",IF(VLOOKUP($C177,'Orçamento N_DESON.'!$D$11:$G$525,3,FALSE)="INDEXADO",VLOOKUP(VLOOKUP($C177,'Orçamento N_DESON.'!$D$11:$G$525,2,FALSE),#REF!,2),VLOOKUP($C177,'Orçamento N_DESON.'!$D$11:$G$525,3,FALSE))) ->  | E177: =VLOOKUP($C177,'Orçamento N_DESON.'!$D$11:$S$82,2,FALSE) ->  | F177: =Dados!$C$7 -> 2022-03-01 | G177: =VLOOKUP($C177,'Orçamento N_DESON.'!$D$11:$S$82,4,FALSE) ->  | H177: =IFERROR(VLOOKUP($C177,'Orçamento N_DESON.'!$D$11:$S$82,6,FALSE),0) -> 0 | I177: =VLOOKUP($C177,'Orçamento N_DESON.'!$D$11:$S$82,5,FALSE) ->  | J177: =VLOOKUP($C177,'Orçamento N_DESON.'!$D$11:$S$82,12,FALSE) ->  | K177: =IFERROR(VLOOKUP($C177,'Orçamento N_DESON.'!$D$11:$S$82,16,FALSE),0) -> 0 | L177: =VLOOKUP($C177,'Orçamento N_DESON.'!$D$11:$S$82,11,FALSE) ->  | M177: =Encargos!$F$44 -> 1.1122
A178: ='Identificação-TCE'!$A$13 -> 1 | B178: =IF(AND(G178<>"",H178>0,I178<>"",J178<>0,K178<>0),COUNT($B$11:B177)+1,"") ->  | C178: =IF('Orçamento N_DESON.'!#REF!=0,0,'Orçamento N_DESON.'!#REF!) ->  | D178: =IF('Orçamento N_DESON.'!#REF!=Aux.!$G$11,"CONTRATACAO_PUBLICA",IF(VLOOKUP($C178,'Orçamento N_DESON.'!$D$11:$G$525,3,FALSE)="INDEXADO",VLOOKUP(VLOOKUP($C178,'Orçamento N_DESON.'!$D$11:$G$525,2,FALSE),#REF!,2),VLOOKUP($C178,'Orçamento N_DESON.'!$D$11:$G$525,3,FALSE))) ->  | E178: =VLOOKUP($C178,'Orçamento N_DESON.'!$D$11:$S$82,2,FALSE) ->  | F178: =Dados!$C$7 -> 2022-03-01 | G178: =VLOOKUP($C178,'Orçamento N_DESON.'!$D$11:$S$82,4,FALSE) ->  | H178: =IFERROR(VLOOKUP($C178,'Orçamento N_DESON.'!$D$11:$S$82,6,FALSE),0) -> 0 | I178: =VLOOKUP($C178,'Orçamento N_DESON.'!$D$11:$S$82,5,FALSE) ->  | J178: =VLOOKUP($C178,'Orçamento N_DESON.'!$D$11:$S$82,12,FALSE) ->  | K178: =IFERROR(VLOOKUP($C178,'Orçamento N_DESON.'!$D$11:$S$82,16,FALSE),0) -> 0 | L178: =VLOOKUP($C178,'Orçamento N_DESON.'!$D$11:$S$82,11,FALSE) ->  | M178: =Encargos!$F$44 -> 1.1122
A179: ='Identificação-TCE'!$A$13 -> 1 | B179: =IF(AND(G179<>"",H179>0,I179<>"",J179<>0,K179<>0),COUNT($B$11:B178)+1,"") ->  | C179: =IF('Orçamento N_DESON.'!#REF!=0,0,'Orçamento N_DESON.'!#REF!) ->  | D179: =IF('Orçamento N_DESON.'!#REF!=Aux.!$G$11,"CONTRATACAO_PUBLICA",IF(VLOOKUP($C179,'Orçamento N_DESON.'!$D$11:$G$525,3,FALSE)="INDEXADO",VLOOKUP(VLOOKUP($C179,'Orçamento N_DESON.'!$D$11:$G$525,2,FALSE),#REF!,2),VLOOKUP($C179,'Orçamento N_DESON.'!$D$11:$G$525,3,FALSE))) ->  | E179: =VLOOKUP($C179,'Orçamento N_DESON.'!$D$11:$S$82,2,FALSE) ->  | F179: =Dados!$C$7 -> 2022-03-01 | G179: =VLOOKUP($C179,'Orçamento N_DESON.'!$D$11:$S$82,4,FALSE) ->  | H179: =IFERROR(VLOOKUP($C179,'Orçamento N_DESON.'!$D$11:$S$82,6,FALSE),0) -> 0 | I179: =VLOOKUP($C179,'Orçamento N_DESON.'!$D$11:$S$82,5,FALSE) ->  | J179: =VLOOKUP($C179,'Orçamento N_DESON.'!$D$11:$S$82,12,FALSE) ->  | K179: =IFERROR(VLOOKUP($C179,'Orçamento N_DESON.'!$D$11:$S$82,16,FALSE),0) -> 0 | L179: =VLOOKUP($C179,'Orçamento N_DESON.'!$D$11:$S$82,11,FALSE) ->  | M179: =Encargos!$F$44 -> 1.1122
A180: ='Identificação-TCE'!$A$13 -> 1 | B180: =IF(AND(G180<>"",H180>0,I180<>"",J180<>0,K180<>0),COUNT($B$11:B179)+1,"") ->  | C180: =IF('Orçamento N_DESON.'!#REF!=0,0,'Orçamento N_DESON.'!#REF!) ->  | D180: =IF('Orçamento N_DESON.'!#REF!=Aux.!$G$11,"CONTRATACAO_PUBLICA",IF(VLOOKUP($C180,'Orçamento N_DESON.'!$D$11:$G$525,3,FALSE)="INDEXADO",VLOOKUP(VLOOKUP($C180,'Orçamento N_DESON.'!$D$11:$G$525,2,FALSE),#REF!,2),VLOOKUP($C180,'Orçamento N_DESON.'!$D$11:$G$525,3,FALSE))) ->  | E180: =VLOOKUP($C180,'Orçamento N_DESON.'!$D$11:$S$82,2,FALSE) ->  | F180: =Dados!$C$7 -> 2022-03-01 | G180: =VLOOKUP($C180,'Orçamento N_DESON.'!$D$11:$S$82,4,FALSE) ->  | H180: =IFERROR(VLOOKUP($C180,'Orçamento N_DESON.'!$D$11:$S$82,6,FALSE),0) -> 0 | I180: =VLOOKUP($C180,'Orçamento N_DESON.'!$D$11:$S$82,5,FALSE) ->  | J180: =VLOOKUP($C180,'Orçamento N_DESON.'!$D$11:$S$82,12,FALSE) ->  | K180: =IFERROR(VLOOKUP($C180,'Orçamento N_DESON.'!$D$11:$S$82,16,FALSE),0) -> 0 | L180: =VLOOKUP($C180,'Orçamento N_DESON.'!$D$11:$S$82,11,FALSE) ->  | M180: =Encargos!$F$44 -> 1.1122
A181: ='Identificação-TCE'!$A$13 -> 1 | B181: =IF(AND(G181<>"",H181>0,I181<>"",J181<>0,K181<>0),COUNT($B$11:B180)+1,"") ->  | C181: =IF('Orçamento N_DESON.'!#REF!=0,0,'Orçamento N_DESON.'!#REF!) ->  | D181: =IF('Orçamento N_DESON.'!#REF!=Aux.!$G$11,"CONTRATACAO_PUBLICA",IF(VLOOKUP($C181,'Orçamento N_DESON.'!$D$11:$G$525,3,FALSE)="INDEXADO",VLOOKUP(VLOOKUP($C181,'Orçamento N_DESON.'!$D$11:$G$525,2,FALSE),#REF!,2),VLOOKUP($C181,'Orçamento N_DESON.'!$D$11:$G$525,3,FALSE))) ->  | E181: =VLOOKUP($C181,'Orçamento N_DESON.'!$D$11:$S$82,2,FALSE) ->  | F181: =Dados!$C$7 -> 2022-03-01 | G181: =VLOOKUP($C181,'Orçamento N_DESON.'!$D$11:$S$82,4,FALSE) ->  | H181: =IFERROR(VLOOKUP($C181,'Orçamento N_DESON.'!$D$11:$S$82,6,FALSE),0) -> 0 | I181: =VLOOKUP($C181,'Orçamento N_DESON.'!$D$11:$S$82,5,FALSE) ->  | J181: =VLOOKUP($C181,'Orçamento N_DESON.'!$D$11:$S$82,12,FALSE) ->  | K181: =IFERROR(VLOOKUP($C181,'Orçamento N_DESON.'!$D$11:$S$82,16,FALSE),0) -> 0 | L181: =VLOOKUP($C181,'Orçamento N_DESON.'!$D$11:$S$82,11,FALSE) ->  | M181: =Encargos!$F$44 -> 1.1122
A182: ='Identificação-TCE'!$A$13 -> 1 | B182: =IF(AND(G182<>"",H182>0,I182<>"",J182<>0,K182<>0),COUNT($B$11:B181)+1,"") ->  | C182: =IF('Orçamento N_DESON.'!#REF!=0,0,'Orçamento N_DESON.'!#REF!) ->  | D182: =IF('Orçamento N_DESON.'!#REF!=Aux.!$G$11,"CONTRATACAO_PUBLICA",IF(VLOOKUP($C182,'Orçamento N_DESON.'!$D$11:$G$525,3,FALSE)="INDEXADO",VLOOKUP(VLOOKUP($C182,'Orçamento N_DESON.'!$D$11:$G$525,2,FALSE),#REF!,2),VLOOKUP($C182,'Orçamento N_DESON.'!$D$11:$G$525,3,FALSE))) ->  | E182: =VLOOKUP($C182,'Orçamento N_DESON.'!$D$11:$S$82,2,FALSE) ->  | F182: =Dados!$C$7 -> 2022-03-01 | G182: =VLOOKUP($C182,'Orçamento N_DESON.'!$D$11:$S$82,4,FALSE) ->  | H182: =IFERROR(VLOOKUP($C182,'Orçamento N_DESON.'!$D$11:$S$82,6,FALSE),0) -> 0 | I182: =VLOOKUP($C182,'Orçamento N_DESON.'!$D$11:$S$82,5,FALSE) ->  | J182: =VLOOKUP($C182,'Orçamento N_DESON.'!$D$11:$S$82,12,FALSE) ->  | K182: =IFERROR(VLOOKUP($C182,'Orçamento N_DESON.'!$D$11:$S$82,16,FALSE),0) -> 0 | L182: =VLOOKUP($C182,'Orçamento N_DESON.'!$D$11:$S$82,11,FALSE) ->  | M182: =Encargos!$F$44 -> 1.1122
A183: ='Identificação-TCE'!$A$13 -> 1 | B183: =IF(AND(G183<>"",H183>0,I183<>"",J183<>0,K183<>0),COUNT($B$11:B182)+1,"") ->  | C183: =IF('Orçamento N_DESON.'!#REF!=0,0,'Orçamento N_DESON.'!#REF!) ->  | D183: =IF('Orçamento N_DESON.'!#REF!=Aux.!$G$11,"CONTRATACAO_PUBLICA",IF(VLOOKUP($C183,'Orçamento N_DESON.'!$D$11:$G$525,3,FALSE)="INDEXADO",VLOOKUP(VLOOKUP($C183,'Orçamento N_DESON.'!$D$11:$G$525,2,FALSE),#REF!,2),VLOOKUP($C183,'Orçamento N_DESON.'!$D$11:$G$525,3,FALSE))) ->  | E183: =VLOOKUP($C183,'Orçamento N_DESON.'!$D$11:$S$82,2,FALSE) ->  | F183: =Dados!$C$7 -> 2022-03-01 | G183: =VLOOKUP($C183,'Orçamento N_DESON.'!$D$11:$S$82,4,FALSE) ->  | H183: =IFERROR(VLOOKUP($C183,'Orçamento N_DESON.'!$D$11:$S$82,6,FALSE),0) -> 0 | I183: =VLOOKUP($C183,'Orçamento N_DESON.'!$D$11:$S$82,5,FALSE) ->  | J183: =VLOOKUP($C183,'Orçamento N_DESON.'!$D$11:$S$82,12,FALSE) ->  | K183: =IFERROR(VLOOKUP($C183,'Orçamento N_DESON.'!$D$11:$S$82,16,FALSE),0) -> 0 | L183: =VLOOKUP($C183,'Orçamento N_DESON.'!$D$11:$S$82,11,FALSE) ->  | M183: =Encargos!$F$44 -> 1.1122
A184: ='Identificação-TCE'!$A$13 -> 1 | B184: =IF(AND(G184<>"",H184>0,I184<>"",J184<>0,K184<>0),COUNT($B$11:B183)+1,"") ->  | C184: =IF('Orçamento N_DESON.'!#REF!=0,0,'Orçamento N_DESON.'!#REF!) ->  | D184: =IF('Orçamento N_DESON.'!#REF!=Aux.!$G$11,"CONTRATACAO_PUBLICA",IF(VLOOKUP($C184,'Orçamento N_DESON.'!$D$11:$G$525,3,FALSE)="INDEXADO",VLOOKUP(VLOOKUP($C184,'Orçamento N_DESON.'!$D$11:$G$525,2,FALSE),#REF!,2),VLOOKUP($C184,'Orçamento N_DESON.'!$D$11:$G$525,3,FALSE))) ->  | E184: =VLOOKUP($C184,'Orçamento N_DESON.'!$D$11:$S$82,2,FALSE) ->  | F184: =Dados!$C$7 -> 2022-03-01 | G184: =VLOOKUP($C184,'Orçamento N_DESON.'!$D$11:$S$82,4,FALSE) ->  | H184: =IFERROR(VLOOKUP($C184,'Orçamento N_DESON.'!$D$11:$S$82,6,FALSE),0) -> 0 | I184: =VLOOKUP($C184,'Orçamento N_DESON.'!$D$11:$S$82,5,FALSE) ->  | J184: =VLOOKUP($C184,'Orçamento N_DESON.'!$D$11:$S$82,12,FALSE) ->  | K184: =IFERROR(VLOOKUP($C184,'Orçamento N_DESON.'!$D$11:$S$82,16,FALSE),0) -> 0 | L184: =VLOOKUP($C184,'Orçamento N_DESON.'!$D$11:$S$82,11,FALSE) ->  | M184: =Encargos!$F$44 -> 1.1122
A185: ='Identificação-TCE'!$A$13 -> 1 | B185: =IF(AND(G185<>"",H185>0,I185<>"",J185<>0,K185<>0),COUNT($B$11:B184)+1,"") ->  | C185: =IF('Orçamento N_DESON.'!#REF!=0,0,'Orçamento N_DESON.'!#REF!) ->  | D185: =IF('Orçamento N_DESON.'!#REF!=Aux.!$G$11,"CONTRATACAO_PUBLICA",IF(VLOOKUP($C185,'Orçamento N_DESON.'!$D$11:$G$525,3,FALSE)="INDEXADO",VLOOKUP(VLOOKUP($C185,'Orçamento N_DESON.'!$D$11:$G$525,2,FALSE),#REF!,2),VLOOKUP($C185,'Orçamento N_DESON.'!$D$11:$G$525,3,FALSE))) ->  | E185: =VLOOKUP($C185,'Orçamento N_DESON.'!$D$11:$S$82,2,FALSE) ->  | F185: =Dados!$C$7 -> 2022-03-01 | G185: =VLOOKUP($C185,'Orçamento N_DESON.'!$D$11:$S$82,4,FALSE) ->  | H185: =IFERROR(VLOOKUP($C185,'Orçamento N_DESON.'!$D$11:$S$82,6,FALSE),0) -> 0 | I185: =VLOOKUP($C185,'Orçamento N_DESON.'!$D$11:$S$82,5,FALSE) ->  | J185: =VLOOKUP($C185,'Orçamento N_DESON.'!$D$11:$S$82,12,FALSE) ->  | K185: =IFERROR(VLOOKUP($C185,'Orçamento N_DESON.'!$D$11:$S$82,16,FALSE),0) -> 0 | L185: =VLOOKUP($C185,'Orçamento N_DESON.'!$D$11:$S$82,11,FALSE) ->  | M185: =Encargos!$F$44 -> 1.1122
A186: ='Identificação-TCE'!$A$13 -> 1 | B186: =IF(AND(G186<>"",H186>0,I186<>"",J186<>0,K186<>0),COUNT($B$11:B185)+1,"") ->  | C186: =IF('Orçamento N_DESON.'!#REF!=0,0,'Orçamento N_DESON.'!#REF!) ->  | D186: =IF('Orçamento N_DESON.'!#REF!=Aux.!$G$11,"CONTRATACAO_PUBLICA",IF(VLOOKUP($C186,'Orçamento N_DESON.'!$D$11:$G$525,3,FALSE)="INDEXADO",VLOOKUP(VLOOKUP($C186,'Orçamento N_DESON.'!$D$11:$G$525,2,FALSE),#REF!,2),VLOOKUP($C186,'Orçamento N_DESON.'!$D$11:$G$525,3,FALSE))) ->  | E186: =VLOOKUP($C186,'Orçamento N_DESON.'!$D$11:$S$82,2,FALSE) ->  | F186: =Dados!$C$7 -> 2022-03-01 | G186: =VLOOKUP($C186,'Orçamento N_DESON.'!$D$11:$S$82,4,FALSE) ->  | H186: =IFERROR(VLOOKUP($C186,'Orçamento N_DESON.'!$D$11:$S$82,6,FALSE),0) -> 0 | I186: =VLOOKUP($C186,'Orçamento N_DESON.'!$D$11:$S$82,5,FALSE) ->  | J186: =VLOOKUP($C186,'Orçamento N_DESON.'!$D$11:$S$82,12,FALSE) ->  | K186: =IFERROR(VLOOKUP($C186,'Orçamento N_DESON.'!$D$11:$S$82,16,FALSE),0) -> 0 | L186: =VLOOKUP($C186,'Orçamento N_DESON.'!$D$11:$S$82,11,FALSE) ->  | M186: =Encargos!$F$44 -> 1.1122
A187: ='Identificação-TCE'!$A$13 -> 1 | B187: =IF(AND(G187<>"",H187>0,I187<>"",J187<>0,K187<>0),COUNT($B$11:B186)+1,"") ->  | C187: =IF('Orçamento N_DESON.'!#REF!=0,0,'Orçamento N_DESON.'!#REF!) ->  | D187: =IF('Orçamento N_DESON.'!#REF!=Aux.!$G$11,"CONTRATACAO_PUBLICA",IF(VLOOKUP($C187,'Orçamento N_DESON.'!$D$11:$G$525,3,FALSE)="INDEXADO",VLOOKUP(VLOOKUP($C187,'Orçamento N_DESON.'!$D$11:$G$525,2,FALSE),#REF!,2),VLOOKUP($C187,'Orçamento N_DESON.'!$D$11:$G$525,3,FALSE))) ->  | E187: =VLOOKUP($C187,'Orçamento N_DESON.'!$D$11:$S$82,2,FALSE) ->  | F187: =Dados!$C$7 -> 2022-03-01 | G187: =VLOOKUP($C187,'Orçamento N_DESON.'!$D$11:$S$82,4,FALSE) ->  | H187: =IFERROR(VLOOKUP($C187,'Orçamento N_DESON.'!$D$11:$S$82,6,FALSE),0) -> 0 | I187: =VLOOKUP($C187,'Orçamento N_DESON.'!$D$11:$S$82,5,FALSE) ->  | J187: =VLOOKUP($C187,'Orçamento N_DESON.'!$D$11:$S$82,12,FALSE) ->  | K187: =IFERROR(VLOOKUP($C187,'Orçamento N_DESON.'!$D$11:$S$82,16,FALSE),0) -> 0 | L187: =VLOOKUP($C187,'Orçamento N_DESON.'!$D$11:$S$82,11,FALSE) ->  | M187: =Encargos!$F$44 -> 1.1122
A188: ='Identificação-TCE'!$A$13 -> 1 | B188: =IF(AND(G188<>"",H188>0,I188<>"",J188<>0,K188<>0),COUNT($B$11:B187)+1,"") ->  | C188: =IF('Orçamento N_DESON.'!#REF!=0,0,'Orçamento N_DESON.'!#REF!) ->  | D188: =IF('Orçamento N_DESON.'!#REF!=Aux.!$G$11,"CONTRATACAO_PUBLICA",IF(VLOOKUP($C188,'Orçamento N_DESON.'!$D$11:$G$525,3,FALSE)="INDEXADO",VLOOKUP(VLOOKUP($C188,'Orçamento N_DESON.'!$D$11:$G$525,2,FALSE),#REF!,2),VLOOKUP($C188,'Orçamento N_DESON.'!$D$11:$G$525,3,FALSE))) ->  | E188: =VLOOKUP($C188,'Orçamento N_DESON.'!$D$11:$S$82,2,FALSE) ->  | F188: =Dados!$C$7 -> 2022-03-01 | G188: =VLOOKUP($C188,'Orçamento N_DESON.'!$D$11:$S$82,4,FALSE) ->  | H188: =IFERROR(VLOOKUP($C188,'Orçamento N_DESON.'!$D$11:$S$82,6,FALSE),0) -> 0 | I188: =VLOOKUP($C188,'Orçamento N_DESON.'!$D$11:$S$82,5,FALSE) ->  | J188: =VLOOKUP($C188,'Orçamento N_DESON.'!$D$11:$S$82,12,FALSE) ->  | K188: =IFERROR(VLOOKUP($C188,'Orçamento N_DESON.'!$D$11:$S$82,16,FALSE),0) -> 0 | L188: =VLOOKUP($C188,'Orçamento N_DESON.'!$D$11:$S$82,11,FALSE) ->  | M188: =Encargos!$F$44 -> 1.1122
A189: ='Identificação-TCE'!$A$13 -> 1 | B189: =IF(AND(G189<>"",H189>0,I189<>"",J189<>0,K189<>0),COUNT($B$11:B188)+1,"") ->  | C189: =IF('Orçamento N_DESON.'!#REF!=0,0,'Orçamento N_DESON.'!#REF!) ->  | D189: =IF('Orçamento N_DESON.'!#REF!=Aux.!$G$11,"CONTRATACAO_PUBLICA",IF(VLOOKUP($C189,'Orçamento N_DESON.'!$D$11:$G$525,3,FALSE)="INDEXADO",VLOOKUP(VLOOKUP($C189,'Orçamento N_DESON.'!$D$11:$G$525,2,FALSE),#REF!,2),VLOOKUP($C189,'Orçamento N_DESON.'!$D$11:$G$525,3,FALSE))) ->  | E189: =VLOOKUP($C189,'Orçamento N_DESON.'!$D$11:$S$82,2,FALSE) ->  | F189: =Dados!$C$7 -> 2022-03-01 | G189: =VLOOKUP($C189,'Orçamento N_DESON.'!$D$11:$S$82,4,FALSE) ->  | H189: =IFERROR(VLOOKUP($C189,'Orçamento N_DESON.'!$D$11:$S$82,6,FALSE),0) -> 0 | I189: =VLOOKUP($C189,'Orçamento N_DESON.'!$D$11:$S$82,5,FALSE) ->  | J189: =VLOOKUP($C189,'Orçamento N_DESON.'!$D$11:$S$82,12,FALSE) ->  | K189: =IFERROR(VLOOKUP($C189,'Orçamento N_DESON.'!$D$11:$S$82,16,FALSE),0) -> 0 | L189: =VLOOKUP($C189,'Orçamento N_DESON.'!$D$11:$S$82,11,FALSE) ->  | M189: =Encargos!$F$44 -> 1.1122
A190: ='Identificação-TCE'!$A$13 -> 1 | B190: =IF(AND(G190<>"",H190>0,I190<>"",J190<>0,K190<>0),COUNT($B$11:B189)+1,"") ->  | C190: =IF('Orçamento N_DESON.'!$M76=0,0,'Orçamento N_DESON.'!$D76) -> 0 | D190: =IF('Orçamento N_DESON.'!$F76=Aux.!$G$11,"CONTRATACAO_PUBLICA",IF(VLOOKUP($C190,'Orçamento N_DESON.'!$D$11:$G$525,3,FALSE)="INDEXADO",VLOOKUP(VLOOKUP($C190,'Orçamento N_DESON.'!$D$11:$G$525,2,FALSE),#REF!,2),VLOOKUP($C190,'Orçamento N_DESON.'!$D$11:$G$525,3,FALSE))) ->  | E190: =VLOOKUP($C190,'Orçamento N_DESON.'!$D$11:$S$82,2,FALSE) ->  | F190: =Dados!$C$7 -> 2022-03-01 | G190: =VLOOKUP($C190,'Orçamento N_DESON.'!$D$11:$S$82,4,FALSE) ->  | H190: =IFERROR(VLOOKUP($C190,'Orçamento N_DESON.'!$D$11:$S$82,6,FALSE),0) -> 0 | I190: =VLOOKUP($C190,'Orçamento N_DESON.'!$D$11:$S$82,5,FALSE) ->  | J190: =VLOOKUP($C190,'Orçamento N_DESON.'!$D$11:$S$82,12,FALSE) ->  | K190: =IFERROR(VLOOKUP($C190,'Orçamento N_DESON.'!$D$11:$S$82,16,FALSE),0) -> 0 | L190: =VLOOKUP($C190,'Orçamento N_DESON.'!$D$11:$S$82,11,FALSE) ->  | M190: =Encargos!$F$44 -> 1.1122
A191: ='Identificação-TCE'!$A$13 -> 1 | B191: =IF(AND(G191<>"",H191>0,I191<>"",J191<>0,K191<>0),COUNT($B$11:B190)+1,"") ->  | C191: =IF('Orçamento N_DESON.'!$M77=0,0,'Orçamento N_DESON.'!$D77) -> 0 | D191: =IF('Orçamento N_DESON.'!$F77=Aux.!$G$11,"CONTRATACAO_PUBLICA",IF(VLOOKUP($C191,'Orçamento N_DESON.'!$D$11:$G$525,3,FALSE)="INDEXADO",VLOOKUP(VLOOKUP($C191,'Orçamento N_DESON.'!$D$11:$G$525,2,FALSE),#REF!,2),VLOOKUP($C191,'Orçamento N_DESON.'!$D$11:$G$525,3,FALSE))) ->  | E191: =VLOOKUP($C191,'Orçamento N_DESON.'!$D$11:$S$82,2,FALSE) ->  | F191: =Dados!$C$7 -> 2022-03-01 | G191: =VLOOKUP($C191,'Orçamento N_DESON.'!$D$11:$S$82,4,FALSE) ->  | H191: =IFERROR(VLOOKUP($C191,'Orçamento N_DESON.'!$D$11:$S$82,6,FALSE),0) -> 0 | I191: =VLOOKUP($C191,'Orçamento N_DESON.'!$D$11:$S$82,5,FALSE) ->  | J191: =VLOOKUP($C191,'Orçamento N_DESON.'!$D$11:$S$82,12,FALSE) ->  | K191: =IFERROR(VLOOKUP($C191,'Orçamento N_DESON.'!$D$11:$S$82,16,FALSE),0) -> 0 | L191: =VLOOKUP($C191,'Orçamento N_DESON.'!$D$11:$S$82,11,FALSE) ->  | M191: =Encargos!$F$44 -> 1.1122
A192: ='Identificação-TCE'!$A$13 -> 1 | B192: =IF(AND(G192<>"",H192>0,I192<>"",J192<>0,K192<>0),COUNT($B$11:B191)+1,"") ->  | C192: =IF('Orçamento N_DESON.'!$M78=0,0,'Orçamento N_DESON.'!$D78) -> 0 | D192: =IF('Orçamento N_DESON.'!$F78=Aux.!$G$11,"CONTRATACAO_PUBLICA",IF(VLOOKUP($C192,'Orçamento N_DESON.'!$D$11:$G$525,3,FALSE)="INDEXADO",VLOOKUP(VLOOKUP($C192,'Orçamento N_DESON.'!$D$11:$G$525,2,FALSE),#REF!,2),VLOOKUP($C192,'Orçamento N_DESON.'!$D$11:$G$525,3,FALSE))) ->  | E192: =VLOOKUP($C192,'Orçamento N_DESON.'!$D$11:$S$82,2,FALSE) ->  | F192: =Dados!$C$7 -> 2022-03-01 | G192: =VLOOKUP($C192,'Orçamento N_DESON.'!$D$11:$S$82,4,FALSE) ->  | H192: =IFERROR(VLOOKUP($C192,'Orçamento N_DESON.'!$D$11:$S$82,6,FALSE),0) -> 0 | I192: =VLOOKUP($C192,'Orçamento N_DESON.'!$D$11:$S$82,5,FALSE) ->  | J192: =VLOOKUP($C192,'Orçamento N_DESON.'!$D$11:$S$82,12,FALSE) ->  | K192: =IFERROR(VLOOKUP($C192,'Orçamento N_DESON.'!$D$11:$S$82,16,FALSE),0) -> 0 | L192: =VLOOKUP($C192,'Orçamento N_DESON.'!$D$11:$S$82,11,FALSE) ->  | M192: =Encargos!$F$44 -> 1.1122
A193: ='Identificação-TCE'!$A$13 -> 1 | B193: =IF(AND(G193<>"",H193>0,I193<>"",J193<>0,K193<>0),COUNT($B$11:B192)+1,"") ->  | C193: =IF('Orçamento N_DESON.'!#REF!=0,0,'Orçamento N_DESON.'!#REF!) ->  | D193: =IF('Orçamento N_DESON.'!#REF!=Aux.!$G$11,"CONTRATACAO_PUBLICA",IF(VLOOKUP($C193,'Orçamento N_DESON.'!$D$11:$G$525,3,FALSE)="INDEXADO",VLOOKUP(VLOOKUP($C193,'Orçamento N_DESON.'!$D$11:$G$525,2,FALSE),#REF!,2),VLOOKUP($C193,'Orçamento N_DESON.'!$D$11:$G$525,3,FALSE))) ->  | E193: =VLOOKUP($C193,'Orçamento N_DESON.'!$D$11:$S$82,2,FALSE) ->  | F193: =Dados!$C$7 -> 2022-03-01 | G193: =VLOOKUP($C193,'Orçamento N_DESON.'!$D$11:$S$82,4,FALSE) ->  | H193: =IFERROR(VLOOKUP($C193,'Orçamento N_DESON.'!$D$11:$S$82,6,FALSE),0) -> 0 | I193: =VLOOKUP($C193,'Orçamento N_DESON.'!$D$11:$S$82,5,FALSE) ->  | J193: =VLOOKUP($C193,'Orçamento N_DESON.'!$D$11:$S$82,12,FALSE) ->  | K193: =IFERROR(VLOOKUP($C193,'Orçamento N_DESON.'!$D$11:$S$82,16,FALSE),0) -> 0 | L193: =VLOOKUP($C193,'Orçamento N_DESON.'!$D$11:$S$82,11,FALSE) ->  | M193: =Encargos!$F$44 -> 1.1122
A194: ='Identificação-TCE'!$A$13 -> 1 | B194: =IF(AND(G194<>"",H194>0,I194<>"",J194<>0,K194<>0),COUNT($B$11:B193)+1,"") ->  | C194: =IF('Orçamento N_DESON.'!#REF!=0,0,'Orçamento N_DESON.'!#REF!) ->  | D194: =IF('Orçamento N_DESON.'!#REF!=Aux.!$G$11,"CONTRATACAO_PUBLICA",IF(VLOOKUP($C194,'Orçamento N_DESON.'!$D$11:$G$525,3,FALSE)="INDEXADO",VLOOKUP(VLOOKUP($C194,'Orçamento N_DESON.'!$D$11:$G$525,2,FALSE),#REF!,2),VLOOKUP($C194,'Orçamento N_DESON.'!$D$11:$G$525,3,FALSE))) ->  | E194: =VLOOKUP($C194,'Orçamento N_DESON.'!$D$11:$S$82,2,FALSE) ->  | F194: =Dados!$C$7 -> 2022-03-01 | G194: =VLOOKUP($C194,'Orçamento N_DESON.'!$D$11:$S$82,4,FALSE) ->  | H194: =IFERROR(VLOOKUP($C194,'Orçamento N_DESON.'!$D$11:$S$82,6,FALSE),0) -> 0 | I194: =VLOOKUP($C194,'Orçamento N_DESON.'!$D$11:$S$82,5,FALSE) ->  | J194: =VLOOKUP($C194,'Orçamento N_DESON.'!$D$11:$S$82,12,FALSE) ->  | K194: =IFERROR(VLOOKUP($C194,'Orçamento N_DESON.'!$D$11:$S$82,16,FALSE),0) -> 0 | L194: =VLOOKUP($C194,'Orçamento N_DESON.'!$D$11:$S$82,11,FALSE) ->  | M194: =Encargos!$F$44 -> 1.1122
A195: ='Identificação-TCE'!$A$13 -> 1 | B195: =IF(AND(G195<>"",H195>0,I195<>"",J195<>0,K195<>0),COUNT($B$11:B194)+1,"") ->  | C195: =IF('Orçamento N_DESON.'!#REF!=0,0,'Orçamento N_DESON.'!#REF!) ->  | D195: =IF('Orçamento N_DESON.'!#REF!=Aux.!$G$11,"CONTRATACAO_PUBLICA",IF(VLOOKUP($C195,'Orçamento N_DESON.'!$D$11:$G$525,3,FALSE)="INDEXADO",VLOOKUP(VLOOKUP($C195,'Orçamento N_DESON.'!$D$11:$G$525,2,FALSE),#REF!,2),VLOOKUP($C195,'Orçamento N_DESON.'!$D$11:$G$525,3,FALSE))) ->  | E195: =VLOOKUP($C195,'Orçamento N_DESON.'!$D$11:$S$82,2,FALSE) ->  | F195: =Dados!$C$7 -> 2022-03-01 | G195: =VLOOKUP($C195,'Orçamento N_DESON.'!$D$11:$S$82,4,FALSE) ->  | H195: =IFERROR(VLOOKUP($C195,'Orçamento N_DESON.'!$D$11:$S$82,6,FALSE),0) -> 0 | I195: =VLOOKUP($C195,'Orçamento N_DESON.'!$D$11:$S$82,5,FALSE) ->  | J195: =VLOOKUP($C195,'Orçamento N_DESON.'!$D$11:$S$82,12,FALSE) ->  | K195: =IFERROR(VLOOKUP($C195,'Orçamento N_DESON.'!$D$11:$S$82,16,FALSE),0) -> 0 | L195: =VLOOKUP($C195,'Orçamento N_DESON.'!$D$11:$S$82,11,FALSE) ->  | M195: =Encargos!$F$44 -> 1.1122
A196: ='Identificação-TCE'!$A$13 -> 1 | B196: =IF(AND(G196<>"",H196>0,I196<>"",J196<>0,K196<>0),COUNT($B$11:B195)+1,"") ->  | C196: =IF('Orçamento N_DESON.'!#REF!=0,0,'Orçamento N_DESON.'!#REF!) ->  | D196: =IF('Orçamento N_DESON.'!#REF!=Aux.!$G$11,"CONTRATACAO_PUBLICA",IF(VLOOKUP($C196,'Orçamento N_DESON.'!$D$11:$G$525,3,FALSE)="INDEXADO",VLOOKUP(VLOOKUP($C196,'Orçamento N_DESON.'!$D$11:$G$525,2,FALSE),#REF!,2),VLOOKUP($C196,'Orçamento N_DESON.'!$D$11:$G$525,3,FALSE))) ->  | E196: =VLOOKUP($C196,'Orçamento N_DESON.'!$D$11:$S$82,2,FALSE) ->  | F196: =Dados!$C$7 -> 2022-03-01 | G196: =VLOOKUP($C196,'Orçamento N_DESON.'!$D$11:$S$82,4,FALSE) ->  | H196: =IFERROR(VLOOKUP($C196,'Orçamento N_DESON.'!$D$11:$S$82,6,FALSE),0) -> 0 | I196: =VLOOKUP($C196,'Orçamento N_DESON.'!$D$11:$S$82,5,FALSE) ->  | J196: =VLOOKUP($C196,'Orçamento N_DESON.'!$D$11:$S$82,12,FALSE) ->  | K196: =IFERROR(VLOOKUP($C196,'Orçamento N_DESON.'!$D$11:$S$82,16,FALSE),0) -> 0 | L196: =VLOOKUP($C196,'Orçamento N_DESON.'!$D$11:$S$82,11,FALSE) ->  | M196: =Encargos!$F$44 -> 1.1122
A197: ='Identificação-TCE'!$A$13 -> 1 | B197: =IF(AND(G197<>"",H197>0,I197<>"",J197<>0,K197<>0),COUNT($B$11:B196)+1,"") ->  | C197: =IF('Orçamento N_DESON.'!#REF!=0,0,'Orçamento N_DESON.'!#REF!) ->  | D197: =IF('Orçamento N_DESON.'!#REF!=Aux.!$G$11,"CONTRATACAO_PUBLICA",IF(VLOOKUP($C197,'Orçamento N_DESON.'!$D$11:$G$525,3,FALSE)="INDEXADO",VLOOKUP(VLOOKUP($C197,'Orçamento N_DESON.'!$D$11:$G$525,2,FALSE),#REF!,2),VLOOKUP($C197,'Orçamento N_DESON.'!$D$11:$G$525,3,FALSE))) ->  | E197: =VLOOKUP($C197,'Orçamento N_DESON.'!$D$11:$S$82,2,FALSE) ->  | F197: =Dados!$C$7 -> 2022-03-01 | G197: =VLOOKUP($C197,'Orçamento N_DESON.'!$D$11:$S$82,4,FALSE) ->  | H197: =IFERROR(VLOOKUP($C197,'Orçamento N_DESON.'!$D$11:$S$82,6,FALSE),0) -> 0 | I197: =VLOOKUP($C197,'Orçamento N_DESON.'!$D$11:$S$82,5,FALSE) ->  | J197: =VLOOKUP($C197,'Orçamento N_DESON.'!$D$11:$S$82,12,FALSE) ->  | K197: =IFERROR(VLOOKUP($C197,'Orçamento N_DESON.'!$D$11:$S$82,16,FALSE),0) -> 0 | L197: =VLOOKUP($C197,'Orçamento N_DESON.'!$D$11:$S$82,11,FALSE) ->  | M197: =Encargos!$F$44 -> 1.1122
A198: ='Identificação-TCE'!$A$13 -> 1 | B198: =IF(AND(G198<>"",H198>0,I198<>"",J198<>0,K198<>0),COUNT($B$11:B197)+1,"") ->  | C198: =IF('Orçamento N_DESON.'!#REF!=0,0,'Orçamento N_DESON.'!#REF!) ->  | D198: =IF('Orçamento N_DESON.'!#REF!=Aux.!$G$11,"CONTRATACAO_PUBLICA",IF(VLOOKUP($C198,'Orçamento N_DESON.'!$D$11:$G$525,3,FALSE)="INDEXADO",VLOOKUP(VLOOKUP($C198,'Orçamento N_DESON.'!$D$11:$G$525,2,FALSE),#REF!,2),VLOOKUP($C198,'Orçamento N_DESON.'!$D$11:$G$525,3,FALSE))) ->  | E198: =VLOOKUP($C198,'Orçamento N_DESON.'!$D$11:$S$82,2,FALSE) ->  | F198: =Dados!$C$7 -> 2022-03-01 | G198: =VLOOKUP($C198,'Orçamento N_DESON.'!$D$11:$S$82,4,FALSE) ->  | H198: =IFERROR(VLOOKUP($C198,'Orçamento N_DESON.'!$D$11:$S$82,6,FALSE),0) -> 0 | I198: =VLOOKUP($C198,'Orçamento N_DESON.'!$D$11:$S$82,5,FALSE) ->  | J198: =VLOOKUP($C198,'Orçamento N_DESON.'!$D$11:$S$82,12,FALSE) ->  | K198: =IFERROR(VLOOKUP($C198,'Orçamento N_DESON.'!$D$11:$S$82,16,FALSE),0) -> 0 | L198: =VLOOKUP($C198,'Orçamento N_DESON.'!$D$11:$S$82,11,FALSE) ->  | M198: =Encargos!$F$44 -> 1.1122
A199: ='Identificação-TCE'!$A$13 -> 1 | B199: =IF(AND(G199<>"",H199>0,I199<>"",J199<>0,K199<>0),COUNT($B$11:B198)+1,"") ->  | C199: =IF('Orçamento N_DESON.'!#REF!=0,0,'Orçamento N_DESON.'!#REF!) ->  | D199: =IF('Orçamento N_DESON.'!#REF!=Aux.!$G$11,"CONTRATACAO_PUBLICA",IF(VLOOKUP($C199,'Orçamento N_DESON.'!$D$11:$G$525,3,FALSE)="INDEXADO",VLOOKUP(VLOOKUP($C199,'Orçamento N_DESON.'!$D$11:$G$525,2,FALSE),#REF!,2),VLOOKUP($C199,'Orçamento N_DESON.'!$D$11:$G$525,3,FALSE))) ->  | E199: =VLOOKUP($C199,'Orçamento N_DESON.'!$D$11:$S$82,2,FALSE) ->  | F199: =Dados!$C$7 -> 2022-03-01 | G199: =VLOOKUP($C199,'Orçamento N_DESON.'!$D$11:$S$82,4,FALSE) ->  | H199: =IFERROR(VLOOKUP($C199,'Orçamento N_DESON.'!$D$11:$S$82,6,FALSE),0) -> 0 | I199: =VLOOKUP($C199,'Orçamento N_DESON.'!$D$11:$S$82,5,FALSE) ->  | J199: =VLOOKUP($C199,'Orçamento N_DESON.'!$D$11:$S$82,12,FALSE) ->  | K199: =IFERROR(VLOOKUP($C199,'Orçamento N_DESON.'!$D$11:$S$82,16,FALSE),0) -> 0 | L199: =VLOOKUP($C199,'Orçamento N_DESON.'!$D$11:$S$82,11,FALSE) ->  | M199: =Encargos!$F$44 -> 1.1122
A200: ='Identificação-TCE'!$A$13 -> 1 | B200: =IF(AND(G200<>"",H200>0,I200<>"",J200<>0,K200<>0),COUNT($B$11:B199)+1,"") ->  | C200: =IF('Orçamento N_DESON.'!#REF!=0,0,'Orçamento N_DESON.'!#REF!) ->  | D200: =IF('Orçamento N_DESON.'!#REF!=Aux.!$G$11,"CONTRATACAO_PUBLICA",IF(VLOOKUP($C200,'Orçamento N_DESON.'!$D$11:$G$525,3,FALSE)="INDEXADO",VLOOKUP(VLOOKUP($C200,'Orçamento N_DESON.'!$D$11:$G$525,2,FALSE),#REF!,2),VLOOKUP($C200,'Orçamento N_DESON.'!$D$11:$G$525,3,FALSE))) ->  | E200: =VLOOKUP($C200,'Orçamento N_DESON.'!$D$11:$S$82,2,FALSE) ->  | F200: =Dados!$C$7 -> 2022-03-01 | G200: =VLOOKUP($C200,'Orçamento N_DESON.'!$D$11:$S$82,4,FALSE) ->  | H200: =IFERROR(VLOOKUP($C200,'Orçamento N_DESON.'!$D$11:$S$82,6,FALSE),0) -> 0 | I200: =VLOOKUP($C200,'Orçamento N_DESON.'!$D$11:$S$82,5,FALSE) ->  | J200: =VLOOKUP($C200,'Orçamento N_DESON.'!$D$11:$S$82,12,FALSE) ->  | K200: =IFERROR(VLOOKUP($C200,'Orçamento N_DESON.'!$D$11:$S$82,16,FALSE),0) -> 0 | L200: =VLOOKUP($C200,'Orçamento N_DESON.'!$D$11:$S$82,11,FALSE) ->  | M200: =Encargos!$F$44 -> 1.1122
A201: ='Identificação-TCE'!$A$13 -> 1 | B201: =IF(AND(G201<>"",H201>0,I201<>"",J201<>0,K201<>0),COUNT($B$11:B200)+1,"") ->  | C201: =IF('Orçamento N_DESON.'!#REF!=0,0,'Orçamento N_DESON.'!#REF!) ->  | D201: =IF('Orçamento N_DESON.'!#REF!=Aux.!$G$11,"CONTRATACAO_PUBLICA",IF(VLOOKUP($C201,'Orçamento N_DESON.'!$D$11:$G$525,3,FALSE)="INDEXADO",VLOOKUP(VLOOKUP($C201,'Orçamento N_DESON.'!$D$11:$G$525,2,FALSE),#REF!,2),VLOOKUP($C201,'Orçamento N_DESON.'!$D$11:$G$525,3,FALSE))) ->  | E201: =VLOOKUP($C201,'Orçamento N_DESON.'!$D$11:$S$82,2,FALSE) ->  | F201: =Dados!$C$7 -> 2022-03-01 | G201: =VLOOKUP($C201,'Orçamento N_DESON.'!$D$11:$S$82,4,FALSE) ->  | H201: =IFERROR(VLOOKUP($C201,'Orçamento N_DESON.'!$D$11:$S$82,6,FALSE),0) -> 0 | I201: =VLOOKUP($C201,'Orçamento N_DESON.'!$D$11:$S$82,5,FALSE) ->  | J201: =VLOOKUP($C201,'Orçamento N_DESON.'!$D$11:$S$82,12,FALSE) ->  | K201: =IFERROR(VLOOKUP($C201,'Orçamento N_DESON.'!$D$11:$S$82,16,FALSE),0) -> 0 | L201: =VLOOKUP($C201,'Orçamento N_DESON.'!$D$11:$S$82,11,FALSE) ->  | M201: =Encargos!$F$44 -> 1.1122
... 1486 more rows

Sheet Proposta-TCE (hidden)
A1: PROPOSTA
A2: Modalidade | E2: N° | G2: Ano
A3: Descrição do Objeto | C3: =Dados!C5 -> Contratação Projetos - Cozinha Comunitária
A4: Licitante | G4: CNPJ*
A5: Tipo de Objeto
A6: Preço Total Proposto | C6: =SUM(H12:H1148) -> 42004.1
A7: Atenção! Se existirem itens sem preço proposto, deixe a célula do preço unitário proposto em branco.
A8: Para incluir itens da proposta, selecione as células A13 a K13 e arraste para baixo, de acordo com o número de itens cadastrado na planilha Orçamento-base.
A9: *Campos de preenchimento obrigatório | F9: **Obrigatório só para Obras e Serviços de Engenharia
A10: Nº do lote | B10: Nº Ordem | C10: Nº Item | D10: Descrição do item | E10: Proposta | O10: Equipamento | Q10: Mão de Obra | S10: Material
E11: Qtd. | F11: Unid. | G11: Preço unitário (R$)* | H11: Preço Total (R$) | I11: % BDI** | J11: % Encargos Sociais** | K11: Percentual de Desconto | L11: Pr. Unit. Material | M11: Pr. Unit. Mão de obra | N11: Pr. Unit. Equipamento | O11: Preço total | P11: Preço unit. | Q11: Preço total | R11: Preço unit. | S11: Preço total | T11: Preço unit.
A12: 1 | B12: ='Orçamento-TCE'!B12 -> 1 | C12: ='Orçamento-TCE'!C12 -> 1.1 | D12: ='Orçamento-TCE'!G12 -> Anteprojeto | E12: ='Orçamento-TCE'!H12 -> 1 | F12: ='Orçamento-TCE'!I12 -> UN | G12: =IFERROR(VLOOKUP($C12,'Orçamento N_DESON.'!$D$11:$S$82,12,FALSE),0) -> 2058.56 | H12: =IFERROR(VLOOKUP($C12,'Orçamento N_DESON.'!$D$11:$S$82,16,FALSE),0) -> 2058.56 | I12: =VLOOKUP($C12,'Orçamento N_DESON.'!$D$11:$S$82,11,FALSE) -> 0.1538 | J12: =Encargos!$F$44 -> 1.1122 | L12: =T12 -> 0 | M12: =R12 -> 2058.56 | N12: =P12 -> 0 | O12: =VLOOKUP($C12,'Orçamento N_DESON.'!$D$11:$S$82,13,FALSE) -> 0 | P12: =O12/E12 -> 0 | Q12: =VLOOKUP($C12,'Orçamento N_DESON.'!$D$11:$S$82,14,FALSE) -> 2058.56 | R12: =Q12/E12 -> 2058.56 | S12: =VLOOKUP($C12,'Orçamento N_DESON.'!$D$11:$S$82,15,FALSE) -> 0 | T12: =S12/E12 -> 0
A13: 1 | B13: ='Orçamento-TCE'!B13 -> 2 | C13: ='Orçamento-TCE'!C13 -> 1.2 | D13: ='Orçamento-TCE'!G13 -> Projeto Legal | E13: ='Orçamento-TCE'!H13 -> 1 | F13: ='Orçamento-TCE'!I13 -> UN | G13: =IFERROR(VLOOKUP($C13,'Orçamento N_DESON.'!$D$11:$S$82,12,FALSE),0) -> 2744.75 | H13: =IFERROR(VLOOKUP($C13,'Orçamento N_DESON.'!$D$11:$S$82,16,FALSE),0) -> 2744.75 | I13: =VLOOKUP($C13,'Orçamento N_DESON.'!$D$11:$S$82,11,FALSE) -> 0.1538 | J13: =Encargos!$F$44 -> 1.1122 | L13: =T13 -> 0 | M13: =R13 -> 2744.75 | N13: =P13 -> 0 | O13: =VLOOKUP($C13,'Orçamento N_DESON.'!$D$11:$S$82,13,FALSE) -> 0 | P13: =O13/E13 -> 0 | Q13: =VLOOKUP($C13,'Orçamento N_DESON.'!$D$11:$S$82,14,FALSE) -> 2744.75 | R13: =Q13/E13 -> 2744.75 | S13: =VLOOKUP($C13,'Orçamento N_DESON.'!$D$11:$S$82,15,FALSE) -> 0 | T13: =S13/E13 -> 0
A14: 1 | B14: ='Orçamento-TCE'!B14 -> 3 | C14: ='Orçamento-TCE'!C14 -> 1.3 | D14: ='Orçamento-TCE'!G14 -> Projeto executivo de arquitetura | E14: ='Orçamento-TCE'!H14 -> 250 | F14: ='Orçamento-TCE'!I14 -> M2 | G14: =IFERROR(VLOOKUP($C14,'Orçamento N_DESON.'!$D$11:$S$82,12,FALSE),0) -> 11.12 | H14: =IFERROR(VLOOKUP($C14,'Orçamento N_DESON.'!$D$11:$S$82,16,FALSE),0) -> 2780 | I14: =VLOOKUP($C14,'Orçamento N_DESON.'!$D$11:$S$82,11,FALSE) -> 0.1538 | J14: =Encargos!$F$44 -> 1.1122 | L14: 0 | M14: 11.12 | N14: 0 | O14: =VLOOKUP($C14,'Orçamento N_DESON.'!$D$11:$S$82,13,FALSE) -> 0 | P14: 0 | Q14: =VLOOKUP($C14,'Orçamento N_DESON.'!$D$11:$S$82,14,FALSE) -> 2780 | R14: 11.12 | S14: =VLOOKUP($C14,'Orçamento N_DESON.'!$D$11:$S$82,15,FALSE) -> 0 | T14: 0
A15: 1 | B15: ='Orçamento-TCE'!B15 -> 4 | C15: ='Orçamento-TCE'!C15 -> 1.4 | D15: ='Orçamento-TCE'!G15 -> Projeto de paisagismo - 0m² a 2.000m² | E15: ='Orçamento-TCE'!H15 -> 1000 | F15: ='Orçamento-TCE'!I15 -> M2 | G15: =IFERROR(VLOOKUP($C15,'Orçamento N_DESON.'!$D$11:$S$82,12,FALSE),0) -> 3.18 | H15: =IFERROR(VLOOKUP($C15,'Orçamento N_DESON.'!$D$11:$S$82,16,FALSE),0) -> 3180 | I15: =VLOOKUP($C15,'Orçamento N_DESON.'!$D$11:$S$82,11,FALSE) -> 0.1538 | J15: =Encargos!$F$44 -> 1.1122 | L15: 0 | M15: 3.18 | N15: 0 | O15: =VLOOKUP($C15,'Orçamento N_DESON.'!$D$11:$S$82,13,FALSE) -> 0 | P15: 0 | Q15: =VLOOKUP($C15,'Orçamento N_DESON.'!$D$11:$S$82,14,FALSE) -> 3180 | R15: 3.18 | S15: =VLOOKUP($C15,'Orçamento N_DESON.'!$D$11:$S$82,15,FALSE) -> 0 | T15: 0
A16: 1 | B16: ='Orçamento-TCE'!B16 ->  | C16: ='Orçamento-TCE'!C16 ->  | D16: ='Orçamento-TCE'!G16 ->  | E16: ='Orçamento-TCE'!H16 -> 0 | F16: ='Orçamento-TCE'!I16 ->  | G16: =IFERROR(VLOOKUP($C16,'Orçamento N_DESON.'!$D$11:$S$82,12,FALSE),0) -> 0 | H16: =IFERROR(VLOOKUP($C16,'Orçamento N_DESON.'!$D$11:$S$82,16,FALSE),0) -> 0 | I16: =VLOOKUP($C16,'Orçamento N_DESON.'!$D$11:$S$82,11,FALSE) ->  | J16: =Encargos!$F$44 -> 1.1122 | O16: =VLOOKUP($C16,'Orçamento N_DESON.'!$D$11:$S$82,13,FALSE) ->  | Q16: =VLOOKUP($C16,'Orçamento N_DESON.'!$D$11:$S$82,14,FALSE) ->  | S16: =VLOOKUP($C16,'Orçamento N_DESON.'!$D$11:$S$82,15,FALSE) -> 
A17: 1 | B17: ='Orçamento-TCE'!B17 ->  | C17: ='Orçamento-TCE'!C17 ->  | D17: ='Orçamento-TCE'!G17 ->  | E17: ='Orçamento-TCE'!H17 -> 0 | F17: ='Orçamento-TCE'!I17 ->  | G17: =IFERROR(VLOOKUP($C17,'Orçamento N_DESON.'!$D$11:$S$82,12,FALSE),0) -> 0 | H17: =IFERROR(VLOOKUP($C17,'Orçamento N_DESON.'!$D$11:$S$82,16,FALSE),0) -> 0 | I17: =VLOOKUP($C17,'Orçamento N_DESON.'!$D$11:$S$82,11,FALSE) ->  | J17: =Encargos!$F$44 -> 1.1122 | O17: =VLOOKUP($C17,'Orçamento N_DESON.'!$D$11:$S$82,13,FALSE) ->  | Q17: =VLOOKUP($C17,'Orçamento N_DESON.'!$D$11:$S$82,14,FALSE) ->  | S17: =VLOOKUP($C17,'Orçamento N_DESON.'!$D$11:$S$82,15,FALSE) -> 
A18: 1 | B18: ='Orçamento-TCE'!B18 ->  | C18: ='Orçamento-TCE'!C18 ->  | D18: ='Orçamento-TCE'!G18 ->  | E18: ='Orçamento-TCE'!H18 -> 0 | F18: ='Orçamento-TCE'!I18 ->  | G18: =IFERROR(VLOOKUP($C18,'Orçamento N_DESON.'!$D$11:$S$82,12,FALSE),0) -> 0 | H18: =IFERROR(VLOOKUP($C18,'Orçamento N_DESON.'!$D$11:$S$82,16,FALSE),0) -> 0 | I18: =VLOOKUP($C18,'Orçamento N_DESON.'!$D$11:$S$82,11,FALSE) ->  | J18: =Encargos!$F$44 -> 1.1122 | O18: =VLOOKUP($C18,'Orçamento N_DESON.'!$D$11:$S$82,13,FALSE) ->  | Q18: =VLOOKUP($C18,'Orçamento N_DESON.'!$D$11:$S$82,14,FALSE) ->  | S18: =VLOOKUP($C18,'Orçamento N_DESON.'!$D$11:$S$82,15,FALSE) -> 
A19: 1 | B19: ='Orçamento-TCE'!B19 ->  | C19: ='Orçamento-TCE'!C19 ->  | D19: ='Orçamento-TCE'!G19 ->  | E19: ='Orçamento-TCE'!H19 -> 0 | F19: ='Orçamento-TCE'!I19 ->  | G19: =IFERROR(VLOOKUP($C19,'Orçamento N_DESON.'!$D$11:$S$82,12,FALSE),0) -> 0 | H19: =IFERROR(VLOOKUP($C19,'Orçamento N_DESON.'!$D$11:$S$82,16,FALSE),0) -> 0 | I19: =VLOOKUP($C19,'Orçamento N_DESON.'!$D$11:$S$82,11,FALSE) ->  | J19: =Encargos!$F$44 -> 1.1122 | O19: =VLOOKUP($C19,'Orçamento N_DESON.'!$D$11:$S$82,13,FALSE) ->  | Q19: =VLOOKUP($C19,'Orçamento N_DESON.'!$D$11:$S$82,14,FALSE) ->  | S19: =VLOOKUP($C19,'Orçamento N_DESON.'!$D$11:$S$82,15,FALSE) -> 
A20: 1 | B20: ='Orçamento-TCE'!B20 ->  | C20: ='Orçamento-TCE'!C20 ->  | D20: ='Orçamento-TCE'!G20 ->  | E20: ='Orçamento-TCE'!H20 -> 0 | F20: ='Orçamento-TCE'!I20 ->  | G20: =IFERROR(VLOOKUP($C20,'Orçamento N_DESON.'!$D$11:$S$82,12,FALSE),0) -> 0 | H20: =IFERROR(VLOOKUP($C20,'Orçamento N_DESON.'!$D$11:$S$82,16,FALSE),0) -> 0 | I20: =VLOOKUP($C20,'Orçamento N_DESON.'!$D$11:$S$82,11,FALSE) ->  | J20: =Encargos!$F$44 -> 1.1122 | O20: =VLOOKUP($C20,'Orçamento N_DESON.'!$D$11:$S$82,13,FALSE) ->  | Q20: =VLOOKUP($C20,'Orçamento N_DESON.'!$D$11:$S$82,14,FALSE) ->  | S20: =VLOOKUP($C20,'Orçamento N_DESON.'!$D$11:$S$82,15,FALSE) -> 
A21: 1 | B21: ='Orçamento-TCE'!B21 ->  | C21: ='Orçamento-TCE'!C21 ->  | D21: ='Orçamento-TCE'!G21 ->  | E21: ='Orçamento-TCE'!H21 -> 0 | F21: ='Orçamento-TCE'!I21 ->  | G21: =IFERROR(VLOOKUP($C21,'Orçamento N_DESON.'!$D$11:$S$82,12,FALSE),0) -> 0 | H21: =IFERROR(VLOOKUP($C21,'Orçamento N_DESON.'!$D$11:$S$82,16,FALSE),0) -> 0 | I21: =VLOOKUP($C21,'Orçamento N_DESON.'!$D$11:$S$82,11,FALSE) ->  | J21: =Encargos!$F$44 -> 1.1122 | O21: =VLOOKUP($C21,'Orçamento N_DESON.'!$D$11:$S$82,13,FALSE) ->  | Q21: =VLOOKUP($C21,'Orçamento N_DESON.'!$D$11:$S$82,14,FALSE) ->  | S21: =VLOOKUP($C21,'Orçamento N_DESON.'!$D$11:$S$82,15,FALSE) -> 
A22: 1 | B22: ='Orçamento-TCE'!B22 ->  | C22: ='Orçamento-TCE'!C22 ->  | D22: ='Orçamento-TCE'!G22 ->  | E22: ='Orçamento-TCE'!H22 -> 0 | F22: ='Orçamento-TCE'!I22 ->  | G22: =IFERROR(VLOOKUP($C22,'Orçamento N_DESON.'!$D$11:$S$82,12,FALSE),0) -> 0 | H22: =IFERROR(VLOOKUP($C22,'Orçamento N_DESON.'!$D$11:$S$82,16,FALSE),0) -> 0 | I22: =VLOOKUP($C22,'Orçamento N_DESON.'!$D$11:$S$82,11,FALSE) ->  | J22: =Encargos!$F$44 -> 1.1122 | O22: =VLOOKUP($C22,'Orçamento N_DESON.'!$D$11:$S$82,13,FALSE) ->  | Q22: =VLOOKUP($C22,'Orçamento N_DESON.'!$D$11:$S$82,14,FALSE) ->  | S22: =VLOOKUP($C22,'Orçamento N_DESON.'!$D$11:$S$82,15,FALSE) -> 
A23: 1 | B23: ='Orçamento-TCE'!B23 ->  | C23: ='Orçamento-TCE'!C23 ->  | D23: ='Orçamento-TCE'!G23 ->  | E23: ='Orçamento-TCE'!H23 -> 0 | F23: ='Orçamento-TCE'!I23 ->  | G23: =IFERROR(VLOOKUP($C23,'Orçamento N_DESON.'!$D$11:$S$82,12,FALSE),0) -> 0 | H23: =IFERROR(VLOOKUP($C23,'Orçamento N_DESON.'!$D$11:$S$82,16,FALSE),0) -> 0 | I23: =VLOOKUP($C23,'Orçamento N_DESON.'!$D$11:$S$82,11,FALSE) ->  | J23: =Encargos!$F$44 -> 1.1122 | O23: =VLOOKUP($C23,'Orçamento N_DESON.'!$D$11:$S$82,13,FALSE) ->  | Q23: =VLOOKUP($C23,'Orçamento N_DESON.'!$D$11:$S$82,14,FALSE) ->  | S23: =VLOOKUP($C23,'Orçamento N_DESON.'!$D$11:$S$82,15,FALSE) -> 
A24: 1 | B24: ='Orçamento-TCE'!B24 ->  | C24: ='Orçamento-TCE'!C24 ->  | D24: ='Orçamento-TCE'!G24 ->  | E24: ='Orçamento-TCE'!H24 -> 0 | F24: ='Orçamento-TCE'!I24 ->  | G24: =IFERROR(VLOOKUP($C24,'Orçamento N_DESON.'!$D$11:$S$82,12,FALSE),0) -> 0 | H24: =IFERROR(VLOOKUP($C24,'Orçamento N_DESON.'!$D$11:$S$82,16,FALSE),0) -> 0 | I24: =VLOOKUP($C24,'Orçamento N_DESON.'!$D$11:$S$82,11,FALSE) ->  | J24: =Encargos!$F$44 -> 1.1122 | O24: =VLOOKUP($C24,'Orçamento N_DESON.'!$D$11:$S$82,13,FALSE) ->  | Q24: =VLOOKUP($C24,'Orçamento N_DESON.'!$D$11:$S$82,14,FALSE) ->  | S24: =VLOOKUP($C24,'Orçamento N_DESON.'!$D$11:$S$82,15,FALSE) -> 
A25: 1 | B25: ='Orçamento-TCE'!B25 ->  | C25: ='Orçamento-TCE'!C25 ->  | D25: ='Orçamento-TCE'!G25 ->  | E25: ='Orçamento-TCE'!H25 -> 0 | F25: ='Orçamento-TCE'!I25 ->  | G25: =IFERROR(VLOOKUP($C25,'Orçamento N_DESON.'!$D$11:$S$82,12,FALSE),0) -> 0 | H25: =IFERROR(VLOOKUP($C25,'Orçamento N_DESON.'!$D$11:$S$82,16,FALSE),0) -> 0 | I25: =VLOOKUP($C25,'Orçamento N_DESON.'!$D$11:$S$82,11,FALSE) ->  | J25: =Encargos!$F$44 -> 1.1122 | O25: =VLOOKUP($C25,'Orçamento N_DESON.'!$D$11:$S$82,13,FALSE) ->  | Q25: =VLOOKUP($C25,'Orçamento N_DESON.'!$D$11:$S$82,14,FALSE) ->  | S25: =VLOOKUP($C25,'Orçamento N_DESON.'!$D$11:$S$82,15,FALSE) -> 
A26: 1 | B26: ='Orçamento-TCE'!B26 ->  | C26: ='Orçamento-TCE'!C26 ->  | D26: ='Orçamento-TCE'!G26 ->  | E26: ='Orçamento-TCE'!H26 -> 0 | F26: ='Orçamento-TCE'!I26 ->  | G26: =IFERROR(VLOOKUP($C26,'Orçamento N_DESON.'!$D$11:$S$82,12,FALSE),0) -> 0 | H26: =IFERROR(VLOOKUP($C26,'Orçamento N_DESON.'!$D$11:$S$82,16,FALSE),0) -> 0 | I26: =VLOOKUP($C26,'Orçamento N_DESON.'!$D$11:$S$82,11,FALSE) ->  | J26: =Encargos!$F$44 -> 1.1122 | O26: =VLOOKUP($C26,'Orçamento N_DESON.'!$D$11:$S$82,13,FALSE) ->  | Q26: =VLOOKUP($C26,'Orçamento N_DESON.'!$D$11:$S$82,14,FALSE) ->  | S26: =VLOOKUP($C26,'Orçamento N_DESON.'!$D$11:$S$82,15,FALSE) -> 
A27: 1 | B27: ='Orçamento-TCE'!B27 ->  | C27: ='Orçamento-TCE'!C27 ->  | D27: ='Orçamento-TCE'!G27 ->  | E27: ='Orçamento-TCE'!H27 -> 0 | F27: ='Orçamento-TCE'!I27 ->  | G27: =IFERROR(VLOOKUP($C27,'Orçamento N_DESON.'!$D$11:$S$82,12,FALSE),0) -> 0 | H27: =IFERROR(VLOOKUP($C27,'Orçamento N_DESON.'!$D$11:$S$82,16,FALSE),0) -> 0 | I27: =VLOOKUP($C27,'Orçamento N_DESON.'!$D$11:$S$82,11,FALSE) ->  | J27: =Encargos!$F$44 -> 1.1122 | O27: =VLOOKUP($C27,'Orçamento N_DESON.'!$D$11:$S$82,13,FALSE) ->  | Q27: =VLOOKUP($C27,'Orçamento N_DESON.'!$D$11:$S$82,14,FALSE) ->  | S27: =VLOOKUP($C27,'Orçamento N_DESON.'!$D$11:$S$82,15,FALSE) -> 
A28: 1 | B28: ='Orçamento-TCE'!B28 ->  | C28: ='Orçamento-TCE'!C28 ->  | D28: ='Orçamento-TCE'!G28 ->  | E28: ='Orçamento-TCE'!H28 -> 0 | F28: ='Orçamento-TCE'!I28 ->  | G28: =IFERROR(VLOOKUP($C28,'Orçamento N_DESON.'!$D$11:$S$82,12,FALSE),0) -> 0 | H28: =IFERROR(VLOOKUP($C28,'Orçamento N_DESON.'!$D$11:$S$82,16,FALSE),0) -> 0 | I28: =VLOOKUP($C28,'Orçamento N_DESON.'!$D$11:$S$82,11,FALSE) ->  | J28: =Encargos!$F$44 -> 1.1122 | O28: =VLOOKUP($C28,'Orçamento N_DESON.'!$D$11:$S$82,13,FALSE) ->  | Q28: =VLOOKUP($C28,'Orçamento N_DESON.'!$D$11:$S$82,14,FALSE) ->  | S28: =VLOOKUP($C28,'Orçamento N_DESON.'!$D$11:$S$82,15,FALSE) -> 
A29: 1 | B29: ='Orçamento-TCE'!B29 ->  | C29: ='Orçamento-TCE'!C29 ->  | D29: ='Orçamento-TCE'!G29 ->  | E29: ='Orçamento-TCE'!H29 -> 0 | F29: ='Orçamento-TCE'!I29 ->  | G29: =IFERROR(VLOOKUP($C29,'Orçamento N_DESON.'!$D$11:$S$82,12,FALSE),0) -> 0 | H29: =IFERROR(VLOOKUP($C29,'Orçamento N_DESON.'!$D$11:$S$82,16,FALSE),0) -> 0 | I29: =VLOOKUP($C29,'Orçamento N_DESON.'!$D$11:$S$82,11,FALSE) ->  | J29: =Encargos!$F$44 -> 1.1122 | O29: =VLOOKUP($C29,'Orçamento N_DESON.'!$D$11:$S$82,13,FALSE) ->  | Q29: =VLOOKUP($C29,'Orçamento N_DESON.'!$D$11:$S$82,14,FALSE) ->  | S29: =VLOOKUP($C29,'Orçamento N_DESON.'!$D$11:$S$82,15,FALSE) -> 
A30: 1 | B30: ='Orçamento-TCE'!B30 ->  | C30: ='Orçamento-TCE'!C30 ->  | D30: ='Orçamento-TCE'!G30 ->  | E30: ='Orçamento-TCE'!H30 -> 0 | F30: ='Orçamento-TCE'!I30 ->  | G30: =IFERROR(VLOOKUP($C30,'Orçamento N_DESON.'!$D$11:$S$82,12,FALSE),0) -> 0 | H30: =IFERROR(VLOOKUP($C30,'Orçamento N_DESON.'!$D$11:$S$82,16,FALSE),0) -> 0 | I30: =VLOOKUP($C30,'Orçamento N_DESON.'!$D$11:$S$82,11,FALSE) ->  | J30: =Encargos!$F$44 -> 1.1122 | O30: =VLOOKUP($C30,'Orçamento N_DESON.'!$D$11:$S$82,13,FALSE) ->  | Q30: =VLOOKUP($C30,'Orçamento N_DESON.'!$D$11:$S$82,14,FALSE) ->  | S30: =VLOOKUP($C30,'Orçamento N_DESON.'!$D$11:$S$82,15,FALSE) -> 
A31: 1 | B31: ='Orçamento-TCE'!B31 ->  | C31: ='Orçamento-TCE'!C31 ->  | D31: ='Orçamento-TCE'!G31 ->  | E31: ='Orçamento-TCE'!H31 -> 0 | F31: ='Orçamento-TCE'!I31 ->  | G31: =IFERROR(VLOOKUP($C31,'Orçamento N_DESON.'!$D$11:$S$82,12,FALSE),0) -> 0 | H31: =IFERROR(VLOOKUP($C31,'Orçamento N_DESON.'!$D$11:$S$82,16,FALSE),0) -> 0 | I31: =VLOOKUP($C31,'Orçamento N_DESON.'!$D$11:$S$82,11,FALSE) ->  | J31: =Encargos!$F$44 -> 1.1122 | O31: =VLOOKUP($C31,'Orçamento N_DESON.'!$D$11:$S$82,13,FALSE) ->  | Q31: =VLOOKUP($C31,'Orçamento N_DESON.'!$D$11:$S$82,14,FALSE) ->  | S31: =VLOOKUP($C31,'Orçamento N_DESON.'!$D$11:$S$82,15,FALSE) -> 
A32: 1 | B32: ='Orçamento-TCE'!B32 ->  | C32: ='Orçamento-TCE'!C32 ->  | D32: ='Orçamento-TCE'!G32 ->  | E32: ='Orçamento-TCE'!H32 -> 0 | F32: ='Orçamento-TCE'!I32 ->  | G32: =IFERROR(VLOOKUP($C32,'Orçamento N_DESON.'!$D$11:$S$82,12,FALSE),0) -> 0 | H32: =IFERROR(VLOOKUP($C32,'Orçamento N_DESON.'!$D$11:$S$82,16,FALSE),0) -> 0 | I32: =VLOOKUP($C32,'Orçamento N_DESON.'!$D$11:$S$82,11,FALSE) ->  | J32: =Encargos!$F$44 -> 1.1122 | O32: =VLOOKUP($C32,'Orçamento N_DESON.'!$D$11:$S$82,13,FALSE) ->  | Q32: =VLOOKUP($C32,'Orçamento N_DESON.'!$D$11:$S$82,14,FALSE) ->  | S32: =VLOOKUP($C32,'Orçamento N_DESON.'!$D$11:$S$82,15,FALSE) -> 
A33: 1 | B33: ='Orçamento-TCE'!B33 ->  | C33: ='Orçamento-TCE'!C33 ->  | D33: ='Orçamento-TCE'!G33 ->  | E33: ='Orçamento-TCE'!H33 -> 0 | F33: ='Orçamento-TCE'!I33 ->  | G33: =IFERROR(VLOOKUP($C33,'Orçamento N_DESON.'!$D$11:$S$82,12,FALSE),0) -> 0 | H33: =IFERROR(VLOOKUP($C33,'Orçamento N_DESON.'!$D$11:$S$82,16,FALSE),0) -> 0 | I33: =VLOOKUP($C33,'Orçamento N_DESON.'!$D$11:$S$82,11,FALSE) ->  | J33: =Encargos!$F$44 -> 1.1122 | O33: =VLOOKUP($C33,'Orçamento N_DESON.'!$D$11:$S$82,13,FALSE) ->  | Q33: =VLOOKUP($C33,'Orçamento N_DESON.'!$D$11:$S$82,14,FALSE) ->  | S33: =VLOOKUP($C33,'Orçamento N_DESON.'!$D$11:$S$82,15,FALSE) -> 
A34: 1 | B34: ='Orçamento-TCE'!B34 ->  | C34: ='Orçamento-TCE'!C34 ->  | D34: ='Orçamento-TCE'!G34 ->  | E34: ='Orçamento-TCE'!H34 -> 0 | F34: ='Orçamento-TCE'!I34 ->  | G34: =IFERROR(VLOOKUP($C34,'Orçamento N_DESON.'!$D$11:$S$82,12,FALSE),0) -> 0 | H34: =IFERROR(VLOOKUP($C34,'Orçamento N_DESON.'!$D$11:$S$82,16,FALSE),0) -> 0 | I34: =VLOOKUP($C34,'Orçamento N_DESON.'!$D$11:$S$82,11,FALSE) ->  | J34: =Encargos!$F$44 -> 1.1122 | O34: =VLOOKUP($C34,'Orçamento N_DESON.'!$D$11:$S$82,13,FALSE) ->  | Q34: =VLOOKUP($C34,'Orçamento N_DESON.'!$D$11:$S$82,14,FALSE) ->  | S34: =VLOOKUP($C34,'Orçamento N_DESON.'!$D$11:$S$82,15,FALSE) -> 
A35: 1 | B35: ='Orçamento-TCE'!B35 ->  | C35: ='Orçamento-TCE'!C35 ->  | D35: ='Orçamento-TCE'!G35 ->  | E35: ='Orçamento-TCE'!H35 -> 0 | F35: ='Orçamento-TCE'!I35 ->  | G35: =IFERROR(VLOOKUP($C35,'Orçamento N_DESON.'!$D$11:$S$82,12,FALSE),0) -> 0 | H35: =IFERROR(VLOOKUP($C35,'Orçamento N_DESON.'!$D$11:$S$82,16,FALSE),0) -> 0 | I35: =VLOOKUP($C35,'Orçamento N_DESON.'!$D$11:$S$82,11,FALSE) ->  | J35: =Encargos!$F$44 -> 1.1122 | O35: =VLOOKUP($C35,'Orçamento N_DESON.'!$D$11:$S$82,13,FALSE) ->  | Q35: =VLOOKUP($C35,'Orçamento N_DESON.'!$D$11:$S$82,14,FALSE) ->  | S35: =VLOOKUP($C35,'Orçamento N_DESON.'!$D$11:$S$82,15,FALSE) -> 
A36: 1 | B36: ='Orçamento-TCE'!B36 ->  | C36: ='Orçamento-TCE'!C36 ->  | D36: ='Orçamento-TCE'!G36 ->  | E36: ='Orçamento-TCE'!H36 -> 0 | F36: ='Orçamento-TCE'!I36 ->  | G36: =IFERROR(VLOOKUP($C36,'Orçamento N_DESON.'!$D$11:$S$82,12,FALSE),0) -> 0 | H36: =IFERROR(VLOOKUP($C36,'Orçamento N_DESON.'!$D$11:$S$82,16,FALSE),0) -> 0 | I36: =VLOOKUP($C36,'Orçamento N_DESON.'!$D$11:$S$82,11,FALSE) ->  | J36: =Encargos!$F$44 -> 1.1122 | O36: =VLOOKUP($C36,'Orçamento N_DESON.'!$D$11:$S$82,13,FALSE) ->  | Q36: =VLOOKUP($C36,'Orçamento N_DESON.'!$D$11:$S$82,14,FALSE) ->  | S36: =VLOOKUP($C36,'Orçamento N_DESON.'!$D$11:$S$82,15,FALSE) -> 
A37: 1 | B37: ='Orçamento-TCE'!B37 ->  | C37: ='Orçamento-TCE'!C37 ->  | D37: ='Orçamento-TCE'!G37 ->  | E37: ='Orçamento-TCE'!H37 -> 0 | F37: ='Orçamento-TCE'!I37 ->  | G37: =IFERROR(VLOOKUP($C37,'Orçamento N_DESON.'!$D$11:$S$82,12,FALSE),0) -> 0 | H37: =IFERROR(VLOOKUP($C37,'Orçamento N_DESON.'!$D$11:$S$82,16,FALSE),0) -> 0 | I37: =VLOOKUP($C37,'Orçamento N_DESON.'!$D$11:$S$82,11,FALSE) ->  | J37: =Encargos!$F$44 -> 1.1122 | O37: =VLOOKUP($C37,'Orçamento N_DESON.'!$D$11:$S$82,13,FALSE) ->  | Q37: =VLOOKUP($C37,'Orçamento N_DESON.'!$D$11:$S$82,14,FALSE) ->  | S37: =VLOOKUP($C37,'Orçamento N_DESON.'!$D$11:$S$82,15,FALSE) -> 
A38: 1 | B38: ='Orçamento-TCE'!B38 ->  | C38: ='Orçamento-TCE'!C38 ->  | D38: ='Orçamento-TCE'!G38 ->  | E38: ='Orçamento-TCE'!H38 -> 0 | F38: ='Orçamento-TCE'!I38 ->  | G38: =IFERROR(VLOOKUP($C38,'Orçamento N_DESON.'!$D$11:$S$82,12,FALSE),0) -> 0 | H38: =IFERROR(VLOOKUP($C38,'Orçamento N_DESON.'!$D$11:$S$82,16,FALSE),0) -> 0 | I38: =VLOOKUP($C38,'Orçamento N_DESON.'!$D$11:$S$82,11,FALSE) ->  | J38: =Encargos!$F$44 -> 1.1122 | O38: =VLOOKUP($C38,'Orçamento N_DESON.'!$D$11:$S$82,13,FALSE) ->  | Q38: =VLOOKUP($C38,'Orçamento N_DESON.'!$D$11:$S$82,14,FALSE) ->  | S38: =VLOOKUP($C38,'Orçamento N_DESON.'!$D$11:$S$82,15,FALSE) -> 
A39: 1 | B39: ='Orçamento-TCE'!B39 ->  | C39: ='Orçamento-TCE'!C39 ->  | D39: ='Orçamento-TCE'!G39 ->  | E39: ='Orçamento-TCE'!H39 -> 0 | F39: ='Orçamento-TCE'!I39 ->  | G39: =IFERROR(VLOOKUP($C39,'Orçamento N_DESON.'!$D$11:$S$82,12,FALSE),0) -> 0 | H39: =IFERROR(VLOOKUP($C39,'Orçamento N_DESON.'!$D$11:$S$82,16,FALSE),0) -> 0 | I39: =VLOOKUP($C39,'Orçamento N_DESON.'!$D$11:$S$82,11,FALSE) ->  | J39: =Encargos!$F$44 -> 1.1122 | O39: =VLOOKUP($C39,'Orçamento N_DESON.'!$D$11:$S$82,13,FALSE) ->  | Q39: =VLOOKUP($C39,'Orçamento N_DESON.'!$D$11:$S$82,14,FALSE) ->  | S39: =VLOOKUP($C39,'Orçamento N_DESON.'!$D$11:$S$82,15,FALSE) -> 
A40: 1 | B40: ='Orçamento-TCE'!B40 ->  | C40: ='Orçamento-TCE'!C40 ->  | D40: ='Orçamento-TCE'!G40 ->  | E40: ='Orçamento-TCE'!H40 -> 0 | F40: ='Orçamento-TCE'!I40 ->  | G40: =IFERROR(VLOOKUP($C40,'Orçamento N_DESON.'!$D$11:$S$82,12,FALSE),0) -> 0 | H40: =IFERROR(VLOOKUP($C40,'Orçamento N_DESON.'!$D$11:$S$82,16,FALSE),0) -> 0 | I40: =VLOOKUP($C40,'Orçamento N_DESON.'!$D$11:$S$82,11,FALSE) ->  | J40: =Encargos!$F$44 -> 1.1122 | O40: =VLOOKUP($C40,'Orçamento N_DESON.'!$D$11:$S$82,13,FALSE) ->  | Q40: =VLOOKUP($C40,'Orçamento N_DESON.'!$D$11:$S$82,14,FALSE) ->  | S40: =VLOOKUP($C40,'Orçamento N_DESON.'!$D$11:$S$82,15,FALSE) -> 
A41: 1 | B41: ='Orçamento-TCE'!B41 ->  | C41: ='Orçamento-TCE'!C41 ->  | D41: ='Orçamento-TCE'!G41 ->  | E41: ='Orçamento-TCE'!H41 -> 0 | F41: ='Orçamento-TCE'!I41 ->  | G41: =IFERROR(VLOOKUP($C41,'Orçamento N_DESON.'!$D$11:$S$82,12,FALSE),0) -> 0 | H41: =IFERROR(VLOOKUP($C41,'Orçamento N_DESON.'!$D$11:$S$82,16,FALSE),0) -> 0 | I41: =VLOOKUP($C41,'Orçamento N_DESON.'!$D$11:$S$82,11,FALSE) ->  | J41: =Encargos!$F$44 -> 1.1122 | O41: =VLOOKUP($C41,'Orçamento N_DESON.'!$D$11:$S$82,13,FALSE) ->  | Q41: =VLOOKUP($C41,'Orçamento N_DESON.'!$D$11:$S$82,14,FALSE) ->  | S41: =VLOOKUP($C41,'Orçamento N_DESON.'!$D$11:$S$82,15,FALSE) -> 
A42: 1 | B42: ='Orçamento-TCE'!B42 ->  | C42: ='Orçamento-TCE'!C42 ->  | D42: ='Orçamento-TCE'!G42 ->  | E42: ='Orçamento-TCE'!H42 -> 0 | F42: ='Orçamento-TCE'!I42 ->  | G42: =IFERROR(VLOOKUP($C42,'Orçamento N_DESON.'!$D$11:$S$82,12,FALSE),0) -> 0 | H42: =IFERROR(VLOOKUP($C42,'Orçamento N_DESON.'!$D$11:$S$82,16,FALSE),0) -> 0 | I42: =VLOOKUP($C42,'Orçamento N_DESON.'!$D$11:$S$82,11,FALSE) ->  | J42: =Encargos!$F$44 -> 1.1122 | O42: =VLOOKUP($C42,'Orçamento N_DESON.'!$D$11:$S$82,13,FALSE) ->  | Q42: =VLOOKUP($C42,'Orçamento N_DESON.'!$D$11:$S$82,14,FALSE) ->  | S42: =VLOOKUP($C42,'Orçamento N_DESON.'!$D$11:$S$82,15,FALSE) -> 
A43: 1 | B43: ='Orçamento-TCE'!B43 ->  | C43: ='Orçamento-TCE'!C43 ->  | D43: ='Orçamento-TCE'!G43 ->  | E43: ='Orçamento-TCE'!H43 -> 0 | F43: ='Orçamento-TCE'!I43 ->  | G43: =IFERROR(VLOOKUP($C43,'Orçamento N_DESON.'!$D$11:$S$82,12,FALSE),0) -> 0 | H43: =IFERROR(VLOOKUP($C43,'Orçamento N_DESON.'!$D$11:$S$82,16,FALSE),0) -> 0 | I43: =VLOOKUP($C43,'Orçamento N_DESON.'!$D$11:$S$82,11,FALSE) ->  | J43: =Encargos!$F$44 -> 1.1122 | O43: =VLOOKUP($C43,'Orçamento N_DESON.'!$D$11:$S$82,13,FALSE) ->  | Q43: =VLOOKUP($C43,'Orçamento N_DESON.'!$D$11:$S$82,14,FALSE) ->  | S43: =VLOOKUP($C43,'Orçamento N_DESON.'!$D$11:$S$82,15,FALSE) -> 
A44: 1 | B44: ='Orçamento-TCE'!B44 ->  | C44: ='Orçamento-TCE'!C44 ->  | D44: ='Orçamento-TCE'!G44 ->  | E44: ='Orçamento-TCE'!H44 -> 0 | F44: ='Orçamento-TCE'!I44 ->  | G44: =IFERROR(VLOOKUP($C44,'Orçamento N_DESON.'!$D$11:$S$82,12,FALSE),0) -> 0 | H44: =IFERROR(VLOOKUP($C44,'Orçamento N_DESON.'!$D$11:$S$82,16,FALSE),0) -> 0 | I44: =VLOOKUP($C44,'Orçamento N_DESON.'!$D$11:$S$82,11,FALSE) ->  | J44: =Encargos!$F$44 -> 1.1122 | O44: =VLOOKUP($C44,'Orçamento N_DESON.'!$D$11:$S$82,13,FALSE) ->  | Q44: =VLOOKUP($C44,'Orçamento N_DESON.'!$D$11:$S$82,14,FALSE) ->  | S44: =VLOOKUP($C44,'Orçamento N_DESON.'!$D$11:$S$82,15,FALSE) -> 
A45: 1 | B45: ='Orçamento-TCE'!B45 ->  | C45: ='Orçamento-TCE'!C45 ->  | D45: ='Orçamento-TCE'!G45 ->  | E45: ='Orçamento-TCE'!H45 -> 0 | F45: ='Orçamento-TCE'!I45 ->  | G45: =IFERROR(VLOOKUP($C45,'Orçamento N_DESON.'!$D$11:$S$82,12,FALSE),0) -> 0 | H45: =IFERROR(VLOOKUP($C45,'Orçamento N_DESON.'!$D$11:$S$82,16,FALSE),0) -> 0 | I45: =VLOOKUP($C45,'Orçamento N_DESON.'!$D$11:$S$82,11,FALSE) ->  | J45: =Encargos!$F$44 -> 1.1122 | O45: =VLOOKUP($C45,'Orçamento N_DESON.'!$D$11:$S$82,13,FALSE) ->  | Q45: =VLOOKUP($C45,'Orçamento N_DESON.'!$D$11:$S$82,14,FALSE) ->  | S45: =VLOOKUP($C45,'Orçamento N_DESON.'!$D$11:$S$82,15,FALSE) -> 
A46: 1 | B46: ='Orçamento-TCE'!B46 ->  | C46: ='Orçamento-TCE'!C46 ->  | D46: ='Orçamento-TCE'!G46 ->  | E46: ='Orçamento-TCE'!H46 -> 0 | F46: ='Orçamento-TCE'!I46 ->  | G46: =IFERROR(VLOOKUP($C46,'Orçamento N_DESON.'!$D$11:$S$82,12,FALSE),0) -> 0 | H46: =IFERROR(VLOOKUP($C46,'Orçamento N_DESON.'!$D$11:$S$82,16,FALSE),0) -> 0 | I46: =VLOOKUP($C46,'Orçamento N_DESON.'!$D$11:$S$82,11,FALSE) ->  | J46: =Encargos!$F$44 -> 1.1122 | O46: =VLOOKUP($C46,'Orçamento N_DESON.'!$D$11:$S$82,13,FALSE) ->  | Q46: =VLOOKUP($C46,'Orçamento N_DESON.'!$D$11:$S$82,14,FALSE) ->  | S46: =VLOOKUP($C46,'Orçamento N_DESON.'!$D$11:$S$82,15,FALSE) -> 
A47: 1 | B47: ='Orçamento-TCE'!B47 ->  | C47: ='Orçamento-TCE'!C47 ->  | D47: ='Orçamento-TCE'!G47 ->  | E47: ='Orçamento-TCE'!H47 -> 0 | F47: ='Orçamento-TCE'!I47 ->  | G47: =IFERROR(VLOOKUP($C47,'Orçamento N_DESON.'!$D$11:$S$82,12,FALSE),0) -> 0 | H47: =IFERROR(VLOOKUP($C47,'Orçamento N_DESON.'!$D$11:$S$82,16,FALSE),0) -> 0 | I47: =VLOOKUP($C47,'Orçamento N_DESON.'!$D$11:$S$82,11,FALSE) ->  | J47: =Encargos!$F$44 -> 1.1122 | O47: =VLOOKUP($C47,'Orçamento N_DESON.'!$D$11:$S$82,13,FALSE) ->  | Q47: =VLOOKUP($C47,'Orçamento N_DESON.'!$D$11:$S$82,14,FALSE) ->  | S47: =VLOOKUP($C47,'Orçamento N_DESON.'!$D$11:$S$82,15,FALSE) -> 
A48: 1 | B48: ='Orçamento-TCE'!B48 ->  | C48: ='Orçamento-TCE'!C48 ->  | D48: ='Orçamento-TCE'!G48 ->  | E48: ='Orçamento-TCE'!H48 -> 0 | F48: ='Orçamento-TCE'!I48 ->  | G48: =IFERROR(VLOOKUP($C48,'Orçamento N_DESON.'!$D$11:$S$82,12,FALSE),0) -> 0 | H48: =IFERROR(VLOOKUP($C48,'Orçamento N_DESON.'!$D$11:$S$82,16,FALSE),0) -> 0 | I48: =VLOOKUP($C48,'Orçamento N_DESON.'!$D$11:$S$82,11,FALSE) ->  | J48: =Encargos!$F$44 -> 1.1122 | O48: =VLOOKUP($C48,'Orçamento N_DESON.'!$D$11:$S$82,13,FALSE) ->  | Q48: =VLOOKUP($C48,'Orçamento N_DESON.'!$D$11:$S$82,14,FALSE) ->  | S48: =VLOOKUP($C48,'Orçamento N_DESON.'!$D$11:$S$82,15,FALSE) -> 
A49: 1 | B49: ='Orçamento-TCE'!B49 ->  | C49: ='Orçamento-TCE'!C49 ->  | D49: ='Orçamento-TCE'!G49 ->  | E49: ='Orçamento-TCE'!H49 -> 0 | F49: ='Orçamento-TCE'!I49 ->  | G49: =IFERROR(VLOOKUP($C49,'Orçamento N_DESON.'!$D$11:$S$82,12,FALSE),0) -> 0 | H49: =IFERROR(VLOOKUP($C49,'Orçamento N_DESON.'!$D$11:$S$82,16,FALSE),0) -> 0 | I49: =VLOOKUP($C49,'Orçamento N_DESON.'!$D$11:$S$82,11,FALSE) ->  | J49: =Encargos!$F$44 -> 1.1122 | O49: =VLOOKUP($C49,'Orçamento N_DESON.'!$D$11:$S$82,13,FALSE) ->  | Q49: =VLOOKUP($C49,'Orçamento N_DESON.'!$D$11:$S$82,14,FALSE) ->  | S49: =VLOOKUP($C49,'Orçamento N_DESON.'!$D$11:$S$82,15,FALSE) -> 
A50: 1 | B50: ='Orçamento-TCE'!B50 ->  | C50: ='Orçamento-TCE'!C50 ->  | D50: ='Orçamento-TCE'!G50 ->  | E50: ='Orçamento-TCE'!H50 -> 0 | F50: ='Orçamento-TCE'!I50 ->  | G50: =IFERROR(VLOOKUP($C50,'Orçamento N_DESON.'!$D$11:$S$82,12,FALSE),0) -> 0 | H50: =IFERROR(VLOOKUP($C50,'Orçamento N_DESON.'!$D$11:$S$82,16,FALSE),0) -> 0 | I50: =VLOOKUP($C50,'Orçamento N_DESON.'!$D$11:$S$82,11,FALSE) ->  | J50: =Encargos!$F$44 -> 1.1122 | O50: =VLOOKUP($C50,'Orçamento N_DESON.'!$D$11:$S$82,13,FALSE) ->  | Q50: =VLOOKUP($C50,'Orçamento N_DESON.'!$D$11:$S$82,14,FALSE) ->  | S50: =VLOOKUP($C50,'Orçamento N_DESON.'!$D$11:$S$82,15,FALSE) -> 
A51: 1 | B51: ='Orçamento-TCE'!B51 ->  | C51: ='Orçamento-TCE'!C51 ->  | D51: ='Orçamento-TCE'!G51 ->  | E51: ='Orçamento-TCE'!H51 -> 0 | F51: ='Orçamento-TCE'!I51 ->  | G51: =IFERROR(VLOOKUP($C51,'Orçamento N_DESON.'!$D$11:$S$82,12,FALSE),0) -> 0 | H51: =IFERROR(VLOOKUP($C51,'Orçamento N_DESON.'!$D$11:$S$82,16,FALSE),0) -> 0 | I51: =VLOOKUP($C51,'Orçamento N_DESON.'!$D$11:$S$82,11,FALSE) ->  | J51: =Encargos!$F$44 -> 1.1122 | O51: =VLOOKUP($C51,'Orçamento N_DESON.'!$D$11:$S$82,13,FALSE) ->  | Q51: =VLOOKUP($C51,'Orçamento N_DESON.'!$D$11:$S$82,14,FALSE) ->  | S51: =VLOOKUP($C51,'Orçamento N_DESON.'!$D$11:$S$82,15,FALSE) -> 
A52: 1 | B52: ='Orçamento-TCE'!B52 ->  | C52: ='Orçamento-TCE'!C52 ->  | D52: ='Orçamento-TCE'!G52 ->  | E52: ='Orçamento-TCE'!H52 -> 0 | F52: ='Orçamento-TCE'!I52 ->  | G52: =IFERROR(VLOOKUP($C52,'Orçamento N_DESON.'!$D$11:$S$82,12,FALSE),0) -> 0 | H52: =IFERROR(VLOOKUP($C52,'Orçamento N_DESON.'!$D$11:$S$82,16,FALSE),0) -> 0 | I52: =VLOOKUP($C52,'Orçamento N_DESON.'!$D$11:$S$82,11,FALSE) ->  | J52: =Encargos!$F$44 -> 1.1122 | O52: =VLOOKUP($C52,'Orçamento N_DESON.'!$D$11:$S$82,13,FALSE) ->  | Q52: =VLOOKUP($C52,'Orçamento N_DESON.'!$D$11:$S$82,14,FALSE) ->  | S52: =VLOOKUP($C52,'Orçamento N_DESON.'!$D$11:$S$82,15,FALSE) -> 
A53: 1 | B53: ='Orçamento-TCE'!B53 ->  | C53: ='Orçamento-TCE'!C53 ->  | D53: ='Orçamento-TCE'!G53 ->  | E53: ='Orçamento-TCE'!H53 -> 0 | F53: ='Orçamento-TCE'!I53 ->  | G53: =IFERROR(VLOOKUP($C53,'Orçamento N_DESON.'!$D$11:$S$82,12,FALSE),0) -> 0 | H53: =IFERROR(VLOOKUP($C53,'Orçamento N_DESON.'!$D$11:$S$82,16,FALSE),0) -> 0 | I53: =VLOOKUP($C53,'Orçamento N_DESON.'!$D$11:$S$82,11,FALSE) ->  | J53: =Encargos!$F$44 -> 1.1122 | O53: =VLOOKUP($C53,'Orçamento N_DESON.'!$D$11:$S$82,13,FALSE) ->  | Q53: =VLOOKUP($C53,'Orçamento N_DESON.'!$D$11:$S$82,14,FALSE) ->  | S53: =VLOOKUP($C53,'Orçamento N_DESON.'!$D$11:$S$82,15,FALSE) -> 
A54: 1 | B54: ='Orçamento-TCE'!B54 ->  | C54: ='Orçamento-TCE'!C54 ->  | D54: ='Orçamento-TCE'!G54 ->  | E54: ='Orçamento-TCE'!H54 -> 0 | F54: ='Orçamento-TCE'!I54 ->  | G54: =IFERROR(VLOOKUP($C54,'Orçamento N_DESON.'!$D$11:$S$82,12,FALSE),0) -> 0 | H54: =IFERROR(VLOOKUP($C54,'Orçamento N_DESON.'!$D$11:$S$82,16,FALSE),0) -> 0 | I54: =VLOOKUP($C54,'Orçamento N_DESON.'!$D$11:$S$82,11,FALSE) ->  | J54: =Encargos!$F$44 -> 1.1122 | O54: =VLOOKUP($C54,'Orçamento N_DESON.'!$D$11:$S$82,13,FALSE) ->  | Q54: =VLOOKUP($C54,'Orçamento N_DESON.'!$D$11:$S$82,14,FALSE) ->  | S54: =VLOOKUP($C54,'Orçamento N_DESON.'!$D$11:$S$82,15,FALSE) -> 
A55: 1 | B55: ='Orçamento-TCE'!B55 ->  | C55: ='Orçamento-TCE'!C55 ->  | D55: ='Orçamento-TCE'!G55 ->  | E55: ='Orçamento-TCE'!H55 -> 0 | F55: ='Orçamento-TCE'!I55 ->  | G55: =IFERROR(VLOOKUP($C55,'Orçamento N_DESON.'!$D$11:$S$82,12,FALSE),0) -> 0 | H55: =IFERROR(VLOOKUP($C55,'Orçamento N_DESON.'!$D$11:$S$82,16,FALSE),0) -> 0 | I55: =VLOOKUP($C55,'Orçamento N_DESON.'!$D$11:$S$82,11,FALSE) ->  | J55: =Encargos!$F$44 -> 1.1122 | O55: =VLOOKUP($C55,'Orçamento N_DESON.'!$D$11:$S$82,13,FALSE) ->  | Q55: =VLOOKUP($C55,'Orçamento N_DESON.'!$D$11:$S$82,14,FALSE) ->  | S55: =VLOOKUP($C55,'Orçamento N_DESON.'!$D$11:$S$82,15,FALSE) -> 
A56: 1 | B56: ='Orçamento-TCE'!B56 ->  | C56: ='Orçamento-TCE'!C56 ->  | D56: ='Orçamento-TCE'!G56 ->  | E56: ='Orçamento-TCE'!H56 -> 0 | F56: ='Orçamento-TCE'!I56 ->  | G56: =IFERROR(VLOOKUP($C56,'Orçamento N_DESON.'!$D$11:$S$82,12,FALSE),0) -> 0 | H56: =IFERROR(VLOOKUP($C56,'Orçamento N_DESON.'!$D$11:$S$82,16,FALSE),0) -> 0 | I56: =VLOOKUP($C56,'Orçamento N_DESON.'!$D$11:$S$82,11,FALSE) ->  | J56: =Encargos!$F$44 -> 1.1122 | O56: =VLOOKUP($C56,'Orçamento N_DESON.'!$D$11:$S$82,13,FALSE) ->  | Q56: =VLOOKUP($C56,'Orçamento N_DESON.'!$D$11:$S$82,14,FALSE) ->  | S56: =VLOOKUP($C56,'Orçamento N_DESON.'!$D$11:$S$82,15,FALSE) -> 
A57: 1 | B57: ='Orçamento-TCE'!B57 ->  | C57: ='Orçamento-TCE'!C57 ->  | D57: ='Orçamento-TCE'!G57 ->  | E57: ='Orçamento-TCE'!H57 -> 0 | F57: ='Orçamento-TCE'!I57 ->  | G57: =IFERROR(VLOOKUP($C57,'Orçamento N_DESON.'!$D$11:$S$82,12,FALSE),0) -> 0 | H57: =IFERROR(VLOOKUP($C57,'Orçamento N_DESON.'!$D$11:$S$82,16,FALSE),0) -> 0 | I57: =VLOOKUP($C57,'Orçamento N_DESON.'!$D$11:$S$82,11,FALSE) ->  | J57: =Encargos!$F$44 -> 1.1122 | O57: =VLOOKUP($C57,'Orçamento N_DESON.'!$D$11:$S$82,13,FALSE) ->  | Q57: =VLOOKUP($C57,'Orçamento N_DESON.'!$D$11:$S$82,14,FALSE) ->  | S57: =VLOOKUP($C57,'Orçamento N_DESON.'!$D$11:$S$82,15,FALSE) -> 
A58: 1 | B58: ='Orçamento-TCE'!B58 ->  | C58: ='Orçamento-TCE'!C58 ->  | D58: ='Orçamento-TCE'!G58 ->  | E58: ='Orçamento-TCE'!H58 -> 0 | F58: ='Orçamento-TCE'!I58 ->  | G58: =IFERROR(VLOOKUP($C58,'Orçamento N_DESON.'!$D$11:$S$82,12,FALSE),0) -> 0 | H58: =IFERROR(VLOOKUP($C58,'Orçamento N_DESON.'!$D$11:$S$82,16,FALSE),0) -> 0 | I58: =VLOOKUP($C58,'Orçamento N_DESON.'!$D$11:$S$82,11,FALSE) ->  | J58: =Encargos!$F$44 -> 1.1122 | O58: =VLOOKUP($C58,'Orçamento N_DESON.'!$D$11:$S$82,13,FALSE) ->  | Q58: =VLOOKUP($C58,'Orçamento N_DESON.'!$D$11:$S$82,14,FALSE) ->  | S58: =VLOOKUP($C58,'Orçamento N_DESON.'!$D$11:$S$82,15,FALSE) -> 
A59: 1 | B59: ='Orçamento-TCE'!B59 ->  | C59: ='Orçamento-TCE'!C59 ->  | D59: ='Orçamento-TCE'!G59 ->  | E59: ='Orçamento-TCE'!H59 -> 0 | F59: ='Orçamento-TCE'!I59 ->  | G59: =IFERROR(VLOOKUP($C59,'Orçamento N_DESON.'!$D$11:$S$82,12,FALSE),0) -> 0 | H59: =IFERROR(VLOOKUP($C59,'Orçamento N_DESON.'!$D$11:$S$82,16,FALSE),0) -> 0 | I59: =VLOOKUP($C59,'Orçamento N_DESON.'!$D$11:$S$82,11,FALSE) ->  | J59: =Encargos!$F$44 -> 1.1122 | O59: =VLOOKUP($C59,'Orçamento N_DESON.'!$D$11:$S$82,13,FALSE) ->  | Q59: =VLOOKUP($C59,'Orçamento N_DESON.'!$D$11:$S$82,14,FALSE) ->  | S59: =VLOOKUP($C59,'Orçamento N_DESON.'!$D$11:$S$82,15,FALSE) -> 
A60: 1 | B60: ='Orçamento-TCE'!B60 ->  | C60: ='Orçamento-TCE'!C60 ->  | D60: ='Orçamento-TCE'!G60 ->  | E60: ='Orçamento-TCE'!H60 -> 0 | F60: ='Orçamento-TCE'!I60 ->  | G60: =IFERROR(VLOOKUP($C60,'Orçamento N_DESON.'!$D$11:$S$82,12,FALSE),0) -> 0 | H60: =IFERROR(VLOOKUP($C60,'Orçamento N_DESON.'!$D$11:$S$82,16,FALSE),0) -> 0 | I60: =VLOOKUP($C60,'Orçamento N_DESON.'!$D$11:$S$82,11,FALSE) ->  | J60: =Encargos!$F$44 -> 1.1122 | O60: =VLOOKUP($C60,'Orçamento N_DESON.'!$D$11:$S$82,13,FALSE) ->  | Q60: =VLOOKUP($C60,'Orçamento N_DESON.'!$D$11:$S$82,14,FALSE) ->  | S60: =VLOOKUP($C60,'Orçamento N_DESON.'!$D$11:$S$82,15,FALSE) -> 
A61: 1 | B61: ='Orçamento-TCE'!B61 ->  | C61: ='Orçamento-TCE'!C61 ->  | D61: ='Orçamento-TCE'!G61 ->  | E61: ='Orçamento-TCE'!H61 -> 0 | F61: ='Orçamento-TCE'!I61 ->  | G61: =IFERROR(VLOOKUP($C61,'Orçamento N_DESON.'!$D$11:$S$82,12,FALSE),0) -> 0 | H61: =IFERROR(VLOOKUP($C61,'Orçamento N_DESON.'!$D$11:$S$82,16,FALSE),0) -> 0 | I61: =VLOOKUP($C61,'Orçamento N_DESON.'!$D$11:$S$82,11,FALSE) ->  | J61: =Encargos!$F$44 -> 1.1122 | O61: =VLOOKUP($C61,'Orçamento N_DESON.'!$D$11:$S$82,13,FALSE) ->  | Q61: =VLOOKUP($C61,'Orçamento N_DESON.'!$D$11:$S$82,14,FALSE) ->  | S61: =VLOOKUP($C61,'Orçamento N_DESON.'!$D$11:$S$82,15,FALSE) -> 
A62: 1 | B62: ='Orçamento-TCE'!B62 ->  | C62: ='Orçamento-TCE'!C62 -> 0 | D62: ='Orçamento-TCE'!G62 ->  | E62: ='Orçamento-TCE'!H62 -> 0 | F62: ='Orçamento-TCE'!I62 ->  | G62: =IFERROR(VLOOKUP($C62,'Orçamento N_DESON.'!$D$11:$S$82,12,FALSE),0) -> 0 | H62: =IFERROR(VLOOKUP($C62,'Orçamento N_DESON.'!$D$11:$S$82,16,FALSE),0) -> 0 | I62: =VLOOKUP($C62,'Orçamento N_DESON.'!$D$11:$S$82,11,FALSE) ->  | J62: =Encargos!$F$44 -> 1.1122 | O62: =VLOOKUP($C62,'Orçamento N_DESON.'!$D$11:$S$82,13,FALSE) ->  | Q62: =VLOOKUP($C62,'Orçamento N_DESON.'!$D$11:$S$82,14,FALSE) ->  | S62: =VLOOKUP($C62,'Orçamento N_DESON.'!$D$11:$S$82,15,FALSE) -> 
A63: 1 | B63: ='Orçamento-TCE'!B63 ->  | C63: ='Orçamento-TCE'!C63 -> 0 | D63: ='Orçamento-TCE'!G63 ->  | E63: ='Orçamento-TCE'!H63 -> 0 | F63: ='Orçamento-TCE'!I63 ->  | G63: =IFERROR(VLOOKUP($C63,'Orçamento N_DESON.'!$D$11:$S$82,12,FALSE),0) -> 0 | H63: =IFERROR(VLOOKUP($C63,'Orçamento N_DESON.'!$D$11:$S$82,16,FALSE),0) -> 0 | I63: =VLOOKUP($C63,'Orçamento N_DESON.'!$D$11:$S$82,11,FALSE) ->  | J63: =Encargos!$F$44 -> 1.1122 | O63: =VLOOKUP($C63,'Orçamento N_DESON.'!$D$11:$S$82,13,FALSE) ->  | Q63: =VLOOKUP($C63,'Orçamento N_DESON.'!$D$11:$S$82,14,FALSE) ->  | S63: =VLOOKUP($C63,'Orçamento N_DESON.'!$D$11:$S$82,15,FALSE) -> 
A64: 1 | B64: ='Orçamento-TCE'!B64 ->  | C64: ='Orçamento-TCE'!C64 -> 0 | D64: ='Orçamento-TCE'!G64 ->  | E64: ='Orçamento-TCE'!H64 -> 0 | F64: ='Orçamento-TCE'!I64 ->  | G64: =IFERROR(VLOOKUP($C64,'Orçamento N_DESON.'!$D$11:$S$82,12,FALSE),0) -> 0 | H64: =IFERROR(VLOOKUP($C64,'Orçamento N_DESON.'!$D$11:$S$82,16,FALSE),0) -> 0 | I64: =VLOOKUP($C64,'Orçamento N_DESON.'!$D$11:$S$82,11,FALSE) ->  | J64: =Encargos!$F$44 -> 1.1122 | O64: =VLOOKUP($C64,'Orçamento N_DESON.'!$D$11:$S$82,13,FALSE) ->  | Q64: =VLOOKUP($C64,'Orçamento N_DESON.'!$D$11:$S$82,14,FALSE) ->  | S64: =VLOOKUP($C64,'Orçamento N_DESON.'!$D$11:$S$82,15,FALSE) -> 
A65: 1 | B65: ='Orçamento-TCE'!B65 ->  | C65: ='Orçamento-TCE'!C65 -> 0 | D65: ='Orçamento-TCE'!G65 ->  | E65: ='Orçamento-TCE'!H65 -> 0 | F65: ='Orçamento-TCE'!I65 ->  | G65: =IFERROR(VLOOKUP($C65,'Orçamento N_DESON.'!$D$11:$S$82,12,FALSE),0) -> 0 | H65: =IFERROR(VLOOKUP($C65,'Orçamento N_DESON.'!$D$11:$S$82,16,FALSE),0) -> 0 | I65: =VLOOKUP($C65,'Orçamento N_DESON.'!$D$11:$S$82,11,FALSE) ->  | J65: =Encargos!$F$44 -> 1.1122 | O65: =VLOOKUP($C65,'Orçamento N_DESON.'!$D$11:$S$82,13,FALSE) ->  | Q65: =VLOOKUP($C65,'Orçamento N_DESON.'!$D$11:$S$82,14,FALSE) ->  | S65: =VLOOKUP($C65,'Orçamento N_DESON.'!$D$11:$S$82,15,FALSE) -> 
A66: 1 | B66: ='Orçamento-TCE'!B66 -> 5 | C66: ='Orçamento-TCE'!C66 -> 2.1 | D66: ='Orçamento-TCE'!G66 -> Projeto estrutural, incluindo fundações de concreto armado. Obs:o cálculo da área equivale à área construída acrescida da área de cobertura (para compensar a fundação) | E66: ='Orçamento-TCE'!H66 -> 500 | F66: ='Orçamento-TCE'!I66 -> M2 | G66: =IFERROR(VLOOKUP($C66,'Orçamento N_DESON.'!$D$11:$S$82,12,FALSE),0) -> 10.37 | H66: =IFERROR(VLOOKUP($C66,'Orçamento N_DESON.'!$D$11:$S$82,16,FALSE),0) -> 5185 | I66: =VLOOKUP($C66,'Orçamento N_DESON.'!$D$11:$S$82,11,FALSE) -> 0.1538 | J66: =Encargos!$F$44 -> 1.1122 | L66: 0 | M66: 10.37 | N66: 0 | O66: =VLOOKUP($C66,'Orçamento N_DESON.'!$D$11:$S$82,13,FALSE) -> 0 | P66: 0 | Q66: =VLOOKUP($C66,'Orçamento N_DESON.'!$D$11:$S$82,14,FALSE) -> 5185 | R66: 10.37 | S66: =VLOOKUP($C66,'Orçamento N_DESON.'!$D$11:$S$82,15,FALSE) -> 0 | T66: 0
A67: 1 | B67: ='Orçamento-TCE'!B67 -> 6 | C67: ='Orçamento-TCE'!C67 -> 2.2 | D67: ='Orçamento-TCE'!G67 -> Projeto hidráulico - água fria | E67: ='Orçamento-TCE'!H67 -> 250 | F67: ='Orçamento-TCE'!I67 -> M2 | G67: =IFERROR(VLOOKUP($C67,'Orçamento N_DESON.'!$D$11:$S$82,12,FALSE),0) -> 3.12 | H67: =IFERROR(VLOOKUP($C67,'Orçamento N_DESON.'!$D$11:$S$82,16,FALSE),0) -> 780 | I67: =VLOOKUP($C67,'Orçamento N_DESON.'!$D$11:$S$82,11,FALSE) -> 0.1538 | J67: =Encargos!$F$44 -> 1.1122 | L67: 0 | M67: 3.12 | N67: 0 | O67: =VLOOKUP($C67,'Orçamento N_DESON.'!$D$11:$S$82,13,FALSE) -> 0 | P67: 0 | Q67: =VLOOKUP($C67,'Orçamento N_DESON.'!$D$11:$S$82,14,FALSE) -> 780 | R67: 3.12 | S67: =VLOOKUP($C67,'Orçamento N_DESON.'!$D$11:$S$82,15,FALSE) -> 0 | T67: 0
A68: 1 | B68: ='Orçamento-TCE'!B68 -> 7 | C68: ='Orçamento-TCE'!C68 -> 2.3 | D68: ='Orçamento-TCE'!G68 -> Projeto Hidráulico - Àgua Quente | E68: ='Orçamento-TCE'!H68 -> 1 | F68: ='Orçamento-TCE'!I68 -> UN | G68: =IFERROR(VLOOKUP($C68,'Orçamento N_DESON.'!$D$11:$S$82,12,FALSE),0) -> 1029.28 | H68: =IFERROR(VLOOKUP($C68,'Orçamento N_DESON.'!$D$11:$S$82,16,FALSE),0) -> 1029.28 | I68: =VLOOKUP($C68,'Orçamento N_DESON.'!$D$11:$S$82,11,FALSE) -> 0.1538 | J68: =Encargos!$F$44 -> 1.1122 | L68: 0 | M68: 1029.28 | N68: 0 | O68: =VLOOKUP($C68,'Orçamento N_DESON.'!$D$11:$S$82,13,FALSE) -> 0 | P68: 0 | Q68: =VLOOKUP($C68,'Orçamento N_DESON.'!$D$11:$S$82,14,FALSE) -> 1029.28 | R68: 1029.28 | S68: =VLOOKUP($C68,'Orçamento N_DESON.'!$D$11:$S$82,15,FALSE) -> 0 | T68: 0
A69: 1 | B69: ='Orçamento-TCE'!B69 -> 8 | C69: ='Orçamento-TCE'!C69 -> 2.4 | D69: ='Orçamento-TCE'!G69 -> Projeto de rede de esgoto eanitário com tratamento simples - (fossa e filtro, sumidouro ou DAFA) | E69: ='Orçamento-TCE'!H69 -> 250 | F69: ='Orçamento-TCE'!I69 -> M2 | G69: =IFERROR(VLOOKUP($C69,'Orçamento N_DESON.'!$D$11:$S$82,12,FALSE),0) -> 3.12 | H69: =IFERROR(VLOOKUP($C69,'Orçamento N_DESON.'!$D$11:$S$82,16,FALSE),0) -> 780 | I69: =VLOOKUP($C69,'Orçamento N_DESON.'!$D$11:$S$82,11,FALSE) -> 0.1538 | J69: =Encargos!$F$44 -> 1.1122 | L69: 0 | M69: 3.12 | N69: 0 | O69: =VLOOKUP($C69,'Orçamento N_DESON.'!$D$11:$S$82,13,FALSE) -> 0 | P69: 0 | Q69: =VLOOKUP($C69,'Orçamento N_DESON.'!$D$11:$S$82,14,FALSE) -> 780 | R69: 3.12 | S69: =VLOOKUP($C69,'Orçamento N_DESON.'!$D$11:$S$82,15,FALSE) -> 0 | T69: 0
A70: 1 | B70: ='Orçamento-TCE'!B70 -> 9 | C70: ='Orçamento-TCE'!C70 -> 2.5 | D70: ='Orçamento-TCE'!G70 -> Projeto de Drenagem Pluvial. Obs: incluindo a drenagem da climatização | E70: ='Orçamento-TCE'!H70 -> 500 | F70: ='Orçamento-TCE'!I70 -> M2 | G70: =IFERROR(VLOOKUP($C70,'Orçamento N_DESON.'!$D$11:$S$82,12,FALSE),0) -> 1.74 | H70: =IFERROR(VLOOKUP($C70,'Orçamento N_DESON.'!$D$11:$S$82,16,FALSE),0) -> 870 | I70: =VLOOKUP($C70,'Orçamento N_DESON.'!$D$11:$S$82,11,FALSE) -> 0.1538 | J70: =Encargos!$F$44 -> 1.1122 | L70: 0 | M70: 1.74 | N70: 0 | O70: =VLOOKUP($C70,'Orçamento N_DESON.'!$D$11:$S$82,13,FALSE) -> 0 | P70: 0 | Q70: =VLOOKUP($C70,'Orçamento N_DESON.'!$D$11:$S$82,14,FALSE) -> 870 | R70: 1.74 | S70: =VLOOKUP($C70,'Orçamento N_DESON.'!$D$11:$S$82,15,FALSE) -> 0 | T70: 0
A71: 1 | B71: ='Orçamento-TCE'!B71 -> 10 | C71: ='Orçamento-TCE'!C71 -> 2.6 | D71: ='Orçamento-TCE'!G71 -> Projeto de Captação e Reaproveitamento de Águas Pluviais | E71: ='Orçamento-TCE'!H71 -> 1 | F71: ='Orçamento-TCE'!I71 -> UN | G71: =IFERROR(VLOOKUP($C71,'Orçamento N_DESON.'!$D$11:$S$82,12,FALSE),0) -> 1543.92 | H71: =IFERROR(VLOOKUP($C71,'Orçamento N_DESON.'!$D$11:$S$82,16,FALSE),0) -> 1543.92 | I71: =VLOOKUP($C71,'Orçamento N_DESON.'!$D$11:$S$82,11,FALSE) -> 0.1538 | J71: =Encargos!$F$44 -> 1.1122 | L71: 0 | M71: 1543.92 | N71: 0 | O71: =VLOOKUP($C71,'Orçamento N_DESON.'!$D$11:$S$82,13,FALSE) -> 0 | P71: 0 | Q71: =VLOOKUP($C71,'Orçamento N_DESON.'!$D$11:$S$82,14,FALSE) -> 1543.92 | R71: 1543.92 | S71: =VLOOKUP($C71,'Orçamento N_DESON.'!$D$11:$S$82,15,FALSE) -> 0 | T71: 0
A72: 1 | B72: ='Orçamento-TCE'!B72 -> 11 | C72: ='Orçamento-TCE'!C72 -> 2.7 | D72: ='Orçamento-TCE'!G72 -> Projeto de Bacia de Amortecimento | E72: ='Orçamento-TCE'!H72 -> 1 | F72: ='Orçamento-TCE'!I72 -> UN | G72: =IFERROR(VLOOKUP($C72,'Orçamento N_DESON.'!$D$11:$S$82,12,FALSE),0) -> 2094.28 | H72: =IFERROR(VLOOKUP($C72,'Orçamento N_DESON.'!$D$11:$S$82,16,FALSE),0) -> 2094.28 | I72: =VLOOKUP($C72,'Orçamento N_DESON.'!$D$11:$S$82,11,FALSE) -> 0.1538 | J72: =Encargos!$F$44 -> 1.1122 | L72: 0 | M72: 2094.28 | N72: 0 | O72: =VLOOKUP($C72,'Orçamento N_DESON.'!$D$11:$S$82,13,FALSE) -> 0 | P72: 0 | Q72: =VLOOKUP($C72,'Orçamento N_DESON.'!$D$11:$S$82,14,FALSE) -> 2094.28 | R72: 2094.28 | S72: =VLOOKUP($C72,'Orçamento N_DESON.'!$D$11:$S$82,15,FALSE) -> 0 | T72: 0
A73: 1 | B73: ='Orçamento-TCE'!B73 -> 12 | C73: ='Orçamento-TCE'!C73 -> 2.8 | D73: ='Orçamento-TCE'!G73 -> Projeto de Ventilação e Exaustão dos Ambientes Internos | E73: ='Orçamento-TCE'!H73 -> 1 | F73: ='Orçamento-TCE'!I73 -> UN | G73: =IFERROR(VLOOKUP($C73,'Orçamento N_DESON.'!$D$11:$S$82,12,FALSE),0) -> 1163.49 | H73: =IFERROR(VLOOKUP($C73,'Orçamento N_DESON.'!$D$11:$S$82,16,FALSE),0) -> 1163.49 | I73: =VLOOKUP($C73,'Orçamento N_DESON.'!$D$11:$S$82,11,FALSE) -> 0.1538 | J73: =Encargos!$F$44 -> 1.1122 | L73: 0 | M73: 1163.49 | N73: 0 | O73: =VLOOKUP($C73,'Orçamento N_DESON.'!$D$11:$S$82,13,FALSE) -> 0 | P73: 0 | Q73: =VLOOKUP($C73,'Orçamento N_DESON.'!$D$11:$S$82,14,FALSE) -> 1163.49 | R73: 1163.49 | S73: =VLOOKUP($C73,'Orçamento N_DESON.'!$D$11:$S$82,15,FALSE) -> 0 | T73: 0
A74: 1 | B74: ='Orçamento-TCE'!B74 -> 13 | C74: ='Orçamento-TCE'!C74 -> 2.9 | D74: ='Orçamento-TCE'!G74 -> Projeto de GLP | E74: ='Orçamento-TCE'!H74 -> 1 | F74: ='Orçamento-TCE'!I74 -> UN | G74: =IFERROR(VLOOKUP($C74,'Orçamento N_DESON.'!$D$11:$S$82,12,FALSE),0) -> 1163.49 | H74: =IFERROR(VLOOKUP($C74,'Orçamento N_DESON.'!$D$11:$S$82,16,FALSE),0) -> 1163.49 | I74: =VLOOKUP($C74,'Orçamento N_DESON.'!$D$11:$S$82,11,FALSE) -> 0.1538 | J74: =Encargos!$F$44 -> 1.1122 | L74: 0 | M74: 1163.49 | N74: 0 | O74: =VLOOKUP($C74,'Orçamento N_DESON.'!$D$11:$S$82,13,FALSE) -> 0 | P74: 0 | Q74: =VLOOKUP($C74,'Orçamento N_DESON.'!$D$11:$S$82,14,FALSE) -> 1163.49 | R74: 1163.49 | S74: =VLOOKUP($C74,'Orçamento N_DESON.'!$D$11:$S$82,15,FALSE) -> 0 | T74: 0
A75: 1 | B75: ='Orçamento-TCE'!B75 -> 14 | C75: ='Orçamento-TCE'!C75 -> 2.10 | D75: ='Orçamento-TCE'!G75 -> Projeto de instalação elétrica de baixa tensão | E75: ='Orçamento-TCE'!H75 -> 400 | F75: ='Orçamento-TCE'!I75 -> M2 | G75: =IFERROR(VLOOKUP($C75,'Orçamento N_DESON.'!$D$11:$S$82,12,FALSE),0) -> 7.24 | H75: =IFERROR(VLOOKUP($C75,'Orçamento N_DESON.'!$D$11:$S$82,16,FALSE),0) -> 2896 | I75: =VLOOKUP($C75,'Orçamento N_DESON.'!$D$11:$S$82,11,FALSE) -> 0.1538 | J75: =Encargos!$F$44 -> 1.1122 | L75: 0 | M75: 7.24 | N75: 0 | O75: =VLOOKUP($C75,'Orçamento N_DESON.'!$D$11:$S$82,13,FALSE) -> 0 | P75: 0 | Q75: =VLOOKUP($C75,'Orçamento N_DESON.'!$D$11:$S$82,14,FALSE) -> 2896 | R75: 7.24 | S75: =VLOOKUP($C75,'Orçamento N_DESON.'!$D$11:$S$82,15,FALSE) -> 0 | T75: 0
A76: 1 | B76: ='Orçamento-TCE'!B76 -> 15 | C76: ='Orçamento-TCE'!C76 -> 2.11 | D76: ='Orçamento-TCE'!G76 -> Projeto Luminotécnico | E76: ='Orçamento-TCE'!H76 -> 1 | F76: ='Orçamento-TCE'!I76 -> UN | G76: =IFERROR(VLOOKUP($C76,'Orçamento N_DESON.'!$D$11:$S$82,12,FALSE),0) -> 2030.11 | H76: =IFERROR(VLOOKUP($C76,'Orçamento N_DESON.'!$D$11:$S$82,16,FALSE),0) -> 2030.11 | I76: =VLOOKUP($C76,'Orçamento N_DESON.'!$D$11:$S$82,11,FALSE) -> 0.1538 | J76: =Encargos!$F$44 -> 1.1122 | L76: 0 | M76: 2030.11 | N76: 0 | O76: =VLOOKUP($C76,'Orçamento N_DESON.'!$D$11:$S$82,13,FALSE) -> 0 | P76: 0 | Q76: =VLOOKUP($C76,'Orçamento N_DESON.'!$D$11:$S$82,14,FALSE) -> 2030.11 | R76: 2030.11 | S76: =VLOOKUP($C76,'Orçamento N_DESON.'!$D$11:$S$82,15,FALSE) -> 0 | T76: 0
A77: 1 | B77: ='Orçamento-TCE'!B77 -> 16 | C77: ='Orçamento-TCE'!C77 -> 2.12 | D77: ='Orçamento-TCE'!G77 -> Projeto de sistema de proteção contra descargas atmosféricas | E77: ='Orçamento-TCE'!H77 -> 250 | F77: ='Orçamento-TCE'!I77 -> M2 | G77: =IFERROR(VLOOKUP($C77,'Orçamento N_DESON.'!$D$11:$S$82,12,FALSE),0) -> 1.15 | H77: =IFERROR(VLOOKUP($C77,'Orçamento N_DESON.'!$D$11:$S$82,16,FALSE),0) -> 287.5 | I77: =VLOOKUP($C77,'Orçamento N_DESON.'!$D$11:$S$82,11,FALSE) -> 0.1538 | J77: =Encargos!$F$44 -> 1.1122 | L77: =T77 -> 0 | M77: =R77 -> 1.15 | N77: =P77 -> 0 | O77: =VLOOKUP($C77,'Orçamento N_DESON.'!$D$11:$S$82,13,FALSE) -> 0 | P77: =O77/E77 -> 0 | Q77: =VLOOKUP($C77,'Orçamento N_DESON.'!$D$11:$S$82,14,FALSE) -> 287.5 | R77: =Q77/E77 -> 1.15 | S77: =VLOOKUP($C77,'Orçamento N_DESON.'!$D$11:$S$82,15,FALSE) -> 0 | T77: =S77/E77 -> 0
A78: 1 | B78: ='Orçamento-TCE'!B78 -> 17 | C78: ='Orçamento-TCE'!C78 -> 2.13 | D78: ='Orçamento-TCE'!G78 -> Projeto de Lógica | E78: ='Orçamento-TCE'!H78 -> 1 | F78: ='Orçamento-TCE'!I78 -> UN | G78: =IFERROR(VLOOKUP($C78,'Orçamento N_DESON.'!$D$11:$S$82,12,FALSE),0) -> 1127.83 | H78: =IFERROR(VLOOKUP($C78,'Orçamento N_DESON.'!$D$11:$S$82,16,FALSE),0) -> 1127.83 | I78: =VLOOKUP($C78,'Orçamento N_DESON.'!$D$11:$S$82,11,FALSE) -> 0.1538 | J78: =Encargos!$F$44 -> 1.1122 | L78: 0 | M78: 1127.83 | N78: 0 | O78: =VLOOKUP($C78,'Orçamento N_DESON.'!$D$11:$S$82,13,FALSE) -> 0 | P78: 0 | Q78: =VLOOKUP($C78,'Orçamento N_DESON.'!$D$11:$S$82,14,FALSE) -> 1127.83 | R78: 1127.83 | S78: =VLOOKUP($C78,'Orçamento N_DESON.'!$D$11:$S$82,15,FALSE) -> 0 | T78: 0
A79: 1 | B79: ='Orçamento-TCE'!B79 -> 18 | C79: ='Orçamento-TCE'!C79 -> 2.14 | D79: ='Orçamento-TCE'!G79 -> Projeto de combate a incêndio (com extintor) | E79: ='Orçamento-TCE'!H79 -> 250 | F79: ='Orçamento-TCE'!I79 -> M2 | G79: =IFERROR(VLOOKUP($C79,'Orçamento N_DESON.'!$D$11:$S$82,12,FALSE),0) -> 2.24 | H79: =IFERROR(VLOOKUP($C79,'Orçamento N_DESON.'!$D$11:$S$82,16,FALSE),0) -> 560 | I79: =VLOOKUP($C79,'Orçamento N_DESON.'!$D$11:$S$82,11,FALSE) -> 0.1538 | J79: =Encargos!$F$44 -> 1.1122 | L79: 0 | M79: 2.24 | N79: 0 | O79: =VLOOKUP($C79,'Orçamento N_DESON.'!$D$11:$S$82,13,FALSE) -> 0 | P79: 0 | Q79: =VLOOKUP($C79,'Orçamento N_DESON.'!$D$11:$S$82,14,FALSE) -> 560 | R79: 2.24 | S79: =VLOOKUP($C79,'Orçamento N_DESON.'!$D$11:$S$82,15,FALSE) -> 0 | T79: 0
A80: 1 | B80: ='Orçamento-TCE'!B80 -> 19 | C80: ='Orçamento-TCE'!C80 -> 2.15 | D80: ='Orçamento-TCE'!G80 -> Projeto de Sistema de Iluminação de Emergência | E80: ='Orçamento-TCE'!H80 -> 1 | F80: ='Orçamento-TCE'!I80 -> UN | G80: =IFERROR(VLOOKUP($C80,'Orçamento N_DESON.'!$D$11:$S$82,12,FALSE),0) -> 1127.83 | H80: =IFERROR(VLOOKUP($C80,'Orçamento N_DESON.'!$D$11:$S$82,16,FALSE),0) -> 1127.83 | I80: =VLOOKUP($C80,'Orçamento N_DESON.'!$D$11:$S$82,11,FALSE) -> 0.1538 | J80: =Encargos!$F$44 -> 1.1122 | L80: 0 | M80: 1127.83 | N80: 0 | O80: =VLOOKUP($C80,'Orçamento N_DESON.'!$D$11:$S$82,13,FALSE) -> 0 | P80: 0 | Q80: =VLOOKUP($C80,'Orçamento N_DESON.'!$D$11:$S$82,14,FALSE) -> 1127.83 | R80: 1127.83 | S80: =VLOOKUP($C80,'Orçamento N_DESON.'!$D$11:$S$82,15,FALSE) -> 0 | T80: 0
A81: 1 | B81: ='Orçamento-TCE'!B81 -> 20 | C81: ='Orçamento-TCE'!C81 -> 2.16 | D81: ='Orçamento-TCE'!G81 -> Laudo Técnico de Instalações Elétricas | E81: ='Orçamento-TCE'!H81 -> 1 | F81: ='Orçamento-TCE'!I81 -> UN | G81: =IFERROR(VLOOKUP($C81,'Orçamento N_DESON.'!$D$11:$S$82,12,FALSE),0) -> 902.27 | H81: =IFERROR(VLOOKUP($C81,'Orçamento N_DESON.'!$D$11:$S$82,16,FALSE),0) -> 902.27 | I81: =VLOOKUP($C81,'Orçamento N_DESON.'!$D$11:$S$82,11,FALSE) -> 0.1538 | J81: =Encargos!$F$44 -> 1.1122 | L81: 0 | M81: 902.27 | N81: 0 | O81: =VLOOKUP($C81,'Orçamento N_DESON.'!$D$11:$S$82,13,FALSE) -> 0 | P81: 0 | Q81: =VLOOKUP($C81,'Orçamento N_DESON.'!$D$11:$S$82,14,FALSE) -> 902.27 | R81: 902.27 | S81: =VLOOKUP($C81,'Orçamento N_DESON.'!$D$11:$S$82,15,FALSE) -> 0 | T81: 0
A82: 1 | B82: ='Orçamento-TCE'!B82 -> 21 | C82: ='Orçamento-TCE'!C82 -> 2.17 | D82: ='Orçamento-TCE'!G82 -> Laudo Técnico de Estabilidade Estrutural | E82: ='Orçamento-TCE'!H82 -> 1 | F82: ='Orçamento-TCE'!I82 -> UN | G82: =IFERROR(VLOOKUP($C82,'Orçamento N_DESON.'!$D$11:$S$82,12,FALSE),0) -> 1057.52 | H82: =IFERROR(VLOOKUP($C82,'Orçamento N_DESON.'!$D$11:$S$82,16,FALSE),0) -> 1057.52 | I82: =VLOOKUP($C82,'Orçamento N_DESON.'!$D$11:$S$82,11,FALSE) -> 0.1538 | J82: =Encargos!$F$44 -> 1.1122 | L82: 0 | M82: 1057.52 | N82: 0 | O82: =VLOOKUP($C82,'Orçamento N_DESON.'!$D$11:$S$82,13,FALSE) -> 0 | P82: 0 | Q82: =VLOOKUP($C82,'Orçamento N_DESON.'!$D$11:$S$82,14,FALSE) -> 1057.52 | R82: 1057.52 | S82: =VLOOKUP($C82,'Orçamento N_DESON.'!$D$11:$S$82,15,FALSE) -> 0 | T82: 0
A83: 1 | B83: ='Orçamento-TCE'!B83 -> 22 | C83: ='Orçamento-TCE'!C83 -> 2.18 | D83: ='Orçamento-TCE'!G83 -> Laudo Técnico de Controle de Materiais de Acabamento e Revestimento | E83: ='Orçamento-TCE'!H83 -> 1 | F83: ='Orçamento-TCE'!I83 -> UN | G83: =IFERROR(VLOOKUP($C83,'Orçamento N_DESON.'!$D$11:$S$82,12,FALSE),0) -> 1057.52 | H83: =IFERROR(VLOOKUP($C83,'Orçamento N_DESON.'!$D$11:$S$82,16,FALSE),0) -> 1057.52 | I83: =VLOOKUP($C83,'Orçamento N_DESON.'!$D$11:$S$82,11,FALSE) -> 0.1538 | J83: =Encargos!$F$44 -> 1.1122 | L83: 0 | M83: 1057.52 | N83: 0 | O83: =VLOOKUP($C83,'Orçamento N_DESON.'!$D$11:$S$82,13,FALSE) -> 0 | P83: 0 | Q83: =VLOOKUP($C83,'Orçamento N_DESON.'!$D$11:$S$82,14,FALSE) -> 1057.52 | R83: 1057.52 | S83: =VLOOKUP($C83,'Orçamento N_DESON.'!$D$11:$S$82,15,FALSE) -> 0 | T83: 0
A84: 1 | B84: ='Orçamento-TCE'!B84 ->  | C84: ='Orçamento-TCE'!C84 -> 2.19 | D84: ='Orçamento-TCE'!G84 -> - | E84: ='Orçamento-TCE'!H84 -> 0 | F84: ='Orçamento-TCE'!I84 -> - | G84: =IFERROR(VLOOKUP($C84,'Orçamento N_DESON.'!$D$11:$S$82,12,FALSE),0) -> - | H84: =IFERROR(VLOOKUP($C84,'Orçamento N_DESON.'!$D$11:$S$82,16,FALSE),0) -> 0 | I84: =VLOOKUP($C84,'Orçamento N_DESON.'!$D$11:$S$82,11,FALSE) -> - | J84: =Encargos!$F$44 -> 1.1122 | O84: =VLOOKUP($C84,'Orçamento N_DESON.'!$D$11:$S$82,13,FALSE) -> 0 | Q84: =VLOOKUP($C84,'Orçamento N_DESON.'!$D$11:$S$82,14,FALSE) -> 0 | S84: =VLOOKUP($C84,'Orçamento N_DESON.'!$D$11:$S$82,15,FALSE) -> 0
A85: 1 | B85: ='Orçamento-TCE'!B85 ->  | C85: ='Orçamento-TCE'!C85 -> 2.20 | D85: ='Orçamento-TCE'!G85 -> - | E85: ='Orçamento-TCE'!H85 -> 0 | F85: ='Orçamento-TCE'!I85 -> - | G85: =IFERROR(VLOOKUP($C85,'Orçamento N_DESON.'!$D$11:$S$82,12,FALSE),0) -> - | H85: =IFERROR(VLOOKUP($C85,'Orçamento N_DESON.'!$D$11:$S$82,16,FALSE),0) -> 0 | I85: =VLOOKUP($C85,'Orçamento N_DESON.'!$D$11:$S$82,11,FALSE) -> - | J85: =Encargos!$F$44 -> 1.1122 | O85: =VLOOKUP($C85,'Orçamento N_DESON.'!$D$11:$S$82,13,FALSE) -> 0 | Q85: =VLOOKUP($C85,'Orçamento N_DESON.'!$D$11:$S$82,14,FALSE) -> 0 | S85: =VLOOKUP($C85,'Orçamento N_DESON.'!$D$11:$S$82,15,FALSE) -> 0
A86: 1 | B86: ='Orçamento-TCE'!B86 ->  | C86: ='Orçamento-TCE'!C86 -> 2.21 | D86: ='Orçamento-TCE'!G86 -> - | E86: ='Orçamento-TCE'!H86 -> 0 | F86: ='Orçamento-TCE'!I86 -> - | G86: =IFERROR(VLOOKUP($C86,'Orçamento N_DESON.'!$D$11:$S$82,12,FALSE),0) -> - | H86: =IFERROR(VLOOKUP($C86,'Orçamento N_DESON.'!$D$11:$S$82,16,FALSE),0) -> 0 | I86: =VLOOKUP($C86,'Orçamento N_DESON.'!$D$11:$S$82,11,FALSE) -> - | J86: =Encargos!$F$44 -> 1.1122 | O86: =VLOOKUP($C86,'Orçamento N_DESON.'!$D$11:$S$82,13,FALSE) -> 0 | Q86: =VLOOKUP($C86,'Orçamento N_DESON.'!$D$11:$S$82,14,FALSE) -> 0 | S86: =VLOOKUP($C86,'Orçamento N_DESON.'!$D$11:$S$82,15,FALSE) -> 0
A87: 1 | B87: ='Orçamento-TCE'!B87 ->  | C87: ='Orçamento-TCE'!C87 -> 2.22 | D87: ='Orçamento-TCE'!G87 -> - | E87: ='Orçamento-TCE'!H87 -> 0 | F87: ='Orçamento-TCE'!I87 -> - | G87: =IFERROR(VLOOKUP($C87,'Orçamento N_DESON.'!$D$11:$S$82,12,FALSE),0) -> - | H87: =IFERROR(VLOOKUP($C87,'Orçamento N_DESON.'!$D$11:$S$82,16,FALSE),0) -> 0 | I87: =VLOOKUP($C87,'Orçamento N_DESON.'!$D$11:$S$82,11,FALSE) -> - | J87: =Encargos!$F$44 -> 1.1122 | O87: =VLOOKUP($C87,'Orçamento N_DESON.'!$D$11:$S$82,13,FALSE) -> 0 | Q87: =VLOOKUP($C87,'Orçamento N_DESON.'!$D$11:$S$82,14,FALSE) -> 0 | S87: =VLOOKUP($C87,'Orçamento N_DESON.'!$D$11:$S$82,15,FALSE) -> 0
A88: 1 | B88: ='Orçamento-TCE'!B88 ->  | C88: ='Orçamento-TCE'!C88 -> 2.23 | D88: ='Orçamento-TCE'!G88 -> - | E88: ='Orçamento-TCE'!H88 -> 0 | F88: ='Orçamento-TCE'!I88 -> - | G88: =IFERROR(VLOOKUP($C88,'Orçamento N_DESON.'!$D$11:$S$82,12,FALSE),0) -> - | H88: =IFERROR(VLOOKUP($C88,'Orçamento N_DESON.'!$D$11:$S$82,16,FALSE),0) -> 0 | I88: =VLOOKUP($C88,'Orçamento N_DESON.'!$D$11:$S$82,11,FALSE) -> - | J88: =Encargos!$F$44 -> 1.1122 | O88: =VLOOKUP($C88,'Orçamento N_DESON.'!$D$11:$S$82,13,FALSE) -> 0 | Q88: =VLOOKUP($C88,'Orçamento N_DESON.'!$D$11:$S$82,14,FALSE) -> 0 | S88: =VLOOKUP($C88,'Orçamento N_DESON.'!$D$11:$S$82,15,FALSE) -> 0
A89: 1 | B89: ='Orçamento-TCE'!B89 ->  | C89: ='Orçamento-TCE'!C89 -> 2.24 | D89: ='Orçamento-TCE'!G89 -> - | E89: ='Orçamento-TCE'!H89 -> 0 | F89: ='Orçamento-TCE'!I89 -> - | G89: =IFERROR(VLOOKUP($C89,'Orçamento N_DESON.'!$D$11:$S$82,12,FALSE),0) -> - | H89: =IFERROR(VLOOKUP($C89,'Orçamento N_DESON.'!$D$11:$S$82,16,FALSE),0) -> 0 | I89: =VLOOKUP($C89,'Orçamento N_DESON.'!$D$11:$S$82,11,FALSE) -> - | J89: =Encargos!$F$44 -> 1.1122 | O89: =VLOOKUP($C89,'Orçamento N_DESON.'!$D$11:$S$82,13,FALSE) -> 0 | Q89: =VLOOKUP($C89,'Orçamento N_DESON.'!$D$11:$S$82,14,FALSE) -> 0 | S89: =VLOOKUP($C89,'Orçamento N_DESON.'!$D$11:$S$82,15,FALSE) -> 0
A90: 1 | B90: ='Orçamento-TCE'!B90 ->  | C90: ='Orçamento-TCE'!C90 -> 2.25 | D90: ='Orçamento-TCE'!G90 -> - | E90: ='Orçamento-TCE'!H90 -> 0 | F90: ='Orçamento-TCE'!I90 -> - | G90: =IFERROR(VLOOKUP($C90,'Orçamento N_DESON.'!$D$11:$S$82,12,FALSE),0) -> - | H90: =IFERROR(VLOOKUP($C90,'Orçamento N_DESON.'!$D$11:$S$82,16,FALSE),0) -> 0 | I90: =VLOOKUP($C90,'Orçamento N_DESON.'!$D$11:$S$82,11,FALSE) -> - | J90: =Encargos!$F$44 -> 1.1122 | O90: =VLOOKUP($C90,'Orçamento N_DESON.'!$D$11:$S$82,13,FALSE) -> 0 | Q90: =VLOOKUP($C90,'Orçamento N_DESON.'!$D$11:$S$82,14,FALSE) -> 0 | S90: =VLOOKUP($C90,'Orçamento N_DESON.'!$D$11:$S$82,15,FALSE) -> 0
A91: 1 | B91: ='Orçamento-TCE'!B91 ->  | C91: ='Orçamento-TCE'!C91 -> 2.26 | D91: ='Orçamento-TCE'!G91 -> - | E91: ='Orçamento-TCE'!H91 -> 0 | F91: ='Orçamento-TCE'!I91 -> - | G91: =IFERROR(VLOOKUP($C91,'Orçamento N_DESON.'!$D$11:$S$82,12,FALSE),0) -> - | H91: =IFERROR(VLOOKUP($C91,'Orçamento N_DESON.'!$D$11:$S$82,16,FALSE),0) -> 0 | I91: =VLOOKUP($C91,'Orçamento N_DESON.'!$D$11:$S$82,11,FALSE) -> - | J91: =Encargos!$F$44 -> 1.1122 | O91: =VLOOKUP($C91,'Orçamento N_DESON.'!$D$11:$S$82,13,FALSE) -> 0 | Q91: =VLOOKUP($C91,'Orçamento N_DESON.'!$D$11:$S$82,14,FALSE) -> 0 | S91: =VLOOKUP($C91,'Orçamento N_DESON.'!$D$11:$S$82,15,FALSE) -> 0
A92: 1 | B92: ='Orçamento-TCE'!B92 ->  | C92: ='Orçamento-TCE'!C92 -> 2.27 | D92: ='Orçamento-TCE'!G92 -> - | E92: ='Orçamento-TCE'!H92 -> 0 | F92: ='Orçamento-TCE'!I92 -> - | G92: =IFERROR(VLOOKUP($C92,'Orçamento N_DESON.'!$D$11:$S$82,12,FALSE),0) -> - | H92: =IFERROR(VLOOKUP($C92,'Orçamento N_DESON.'!$D$11:$S$82,16,FALSE),0) -> 0 | I92: =VLOOKUP($C92,'Orçamento N_DESON.'!$D$11:$S$82,11,FALSE) -> - | J92: =Encargos!$F$44 -> 1.1122 | O92: =VLOOKUP($C92,'Orçamento N_DESON.'!$D$11:$S$82,13,FALSE) -> 0 | Q92: =VLOOKUP($C92,'Orçamento N_DESON.'!$D$11:$S$82,14,FALSE) -> 0 | S92: =VLOOKUP($C92,'Orçamento N_DESON.'!$D$11:$S$82,15,FALSE) -> 0
A93: 1 | B93: ='Orçamento-TCE'!B93 ->  | C93: ='Orçamento-TCE'!C93 -> 2.28 | D93: ='Orçamento-TCE'!G93 -> - | E93: ='Orçamento-TCE'!H93 -> 0 | F93: ='Orçamento-TCE'!I93 -> - | G93: =IFERROR(VLOOKUP($C93,'Orçamento N_DESON.'!$D$11:$S$82,12,FALSE),0) -> - | H93: =IFERROR(VLOOKUP($C93,'Orçamento N_DESON.'!$D$11:$S$82,16,FALSE),0) -> 0 | I93: =VLOOKUP($C93,'Orçamento N_DESON.'!$D$11:$S$82,11,FALSE) -> - | J93: =Encargos!$F$44 -> 1.1122 | O93: =VLOOKUP($C93,'Orçamento N_DESON.'!$D$11:$S$82,13,FALSE) -> 0 | Q93: =VLOOKUP($C93,'Orçamento N_DESON.'!$D$11:$S$82,14,FALSE) -> 0 | S93: =VLOOKUP($C93,'Orçamento N_DESON.'!$D$11:$S$82,15,FALSE) -> 0
A94: 1 | B94: ='Orçamento-TCE'!B94 ->  | C94: ='Orçamento-TCE'!C94 -> 2.29 | D94: ='Orçamento-TCE'!G94 -> - | E94: ='Orçamento-TCE'!H94 -> 0 | F94: ='Orçamento-TCE'!I94 -> - | G94: =IFERROR(VLOOKUP($C94,'Orçamento N_DESON.'!$D$11:$S$82,12,FALSE),0) -> - | H94: =IFERROR(VLOOKUP($C94,'Orçamento N_DESON.'!$D$11:$S$82,16,FALSE),0) -> 0 | I94: =VLOOKUP($C94,'Orçamento N_DESON.'!$D$11:$S$82,11,FALSE) -> - | J94: =Encargos!$F$44 -> 1.1122 | O94: =VLOOKUP($C94,'Orçamento N_DESON.'!$D$11:$S$82,13,FALSE) -> 0 | Q94: =VLOOKUP($C94,'Orçamento N_DESON.'!$D$11:$S$82,14,FALSE) -> 0 | S94: =VLOOKUP($C94,'Orçamento N_DESON.'!$D$11:$S$82,15,FALSE) -> 0
A95: 1 | B95: ='Orçamento-TCE'!B95 ->  | C95: ='Orçamento-TCE'!C95 -> 2.30 | D95: ='Orçamento-TCE'!G95 -> - | E95: ='Orçamento-TCE'!H95 -> 0 | F95: ='Orçamento-TCE'!I95 -> - | G95: =IFERROR(VLOOKUP($C95,'Orçamento N_DESON.'!$D$11:$S$82,12,FALSE),0) -> - | H95: =IFERROR(VLOOKUP($C95,'Orçamento N_DESON.'!$D$11:$S$82,16,FALSE),0) -> 0 | I95: =VLOOKUP($C95,'Orçamento N_DESON.'!$D$11:$S$82,11,FALSE) -> - | J95: =Encargos!$F$44 -> 1.1122 | O95: =VLOOKUP($C95,'Orçamento N_DESON.'!$D$11:$S$82,13,FALSE) -> 0 | Q95: =VLOOKUP($C95,'Orçamento N_DESON.'!$D$11:$S$82,14,FALSE) -> 0 | S95: =VLOOKUP($C95,'Orçamento N_DESON.'!$D$11:$S$82,15,FALSE) -> 0
A96: 1 | B96: ='Orçamento-TCE'!B96 ->  | C96: ='Orçamento-TCE'!C96 -> 2.31 | D96: ='Orçamento-TCE'!G96 -> - | E96: ='Orçamento-TCE'!H96 -> 0 | F96: ='Orçamento-TCE'!I96 -> - | G96: =IFERROR(VLOOKUP($C96,'Orçamento N_DESON.'!$D$11:$S$82,12,FALSE),0) -> - | H96: =IFERROR(VLOOKUP($C96,'Orçamento N_DESON.'!$D$11:$S$82,16,FALSE),0) -> 0 | I96: =VLOOKUP($C96,'Orçamento N_DESON.'!$D$11:$S$82,11,FALSE) -> - | J96: =Encargos!$F$44 -> 1.1122 | O96: =VLOOKUP($C96,'Orçamento N_DESON.'!$D$11:$S$82,13,FALSE) -> 0 | Q96: =VLOOKUP($C96,'Orçamento N_DESON.'!$D$11:$S$82,14,FALSE) -> 0 | S96: =VLOOKUP($C96,'Orçamento N_DESON.'!$D$11:$S$82,15,FALSE) -> 0
A97: 1 | B97: ='Orçamento-TCE'!B97 ->  | C97: ='Orçamento-TCE'!C97 -> 2.32 | D97: ='Orçamento-TCE'!G97 -> - | E97: ='Orçamento-TCE'!H97 -> 0 | F97: ='Orçamento-TCE'!I97 -> - | G97: =IFERROR(VLOOKUP($C97,'Orçamento N_DESON.'!$D$11:$S$82,12,FALSE),0) -> - | H97: =IFERROR(VLOOKUP($C97,'Orçamento N_DESON.'!$D$11:$S$82,16,FALSE),0) -> 0 | I97: =VLOOKUP($C97,'Orçamento N_DESON.'!$D$11:$S$82,11,FALSE) -> - | J97: =Encargos!$F$44 -> 1.1122 | O97: =VLOOKUP($C97,'Orçamento N_DESON.'!$D$11:$S$82,13,FALSE) -> 0 | Q97: =VLOOKUP($C97,'Orçamento N_DESON.'!$D$11:$S$82,14,FALSE) -> 0 | S97: =VLOOKUP($C97,'Orçamento N_DESON.'!$D$11:$S$82,15,FALSE) -> 0
A98: 1 | B98: ='Orçamento-TCE'!B98 ->  | C98: ='Orçamento-TCE'!C98 -> 2.33 | D98: ='Orçamento-TCE'!G98 -> - | E98: ='Orçamento-TCE'!H98 -> 0 | F98: ='Orçamento-TCE'!I98 -> - | G98: =IFERROR(VLOOKUP($C98,'Orçamento N_DESON.'!$D$11:$S$82,12,FALSE),0) -> - | H98: =IFERROR(VLOOKUP($C98,'Orçamento N_DESON.'!$D$11:$S$82,16,FALSE),0) -> 0 | I98: =VLOOKUP($C98,'Orçamento N_DESON.'!$D$11:$S$82,11,FALSE) -> - | J98: =Encargos!$F$44 -> 1.1122 | O98: =VLOOKUP($C98,'Orçamento N_DESON.'!$D$11:$S$82,13,FALSE) -> 0 | Q98: =VLOOKUP($C98,'Orçamento N_DESON.'!$D$11:$S$82,14,FALSE) -> 0 | S98: =VLOOKUP($C98,'Orçamento N_DESON.'!$D$11:$S$82,15,FALSE) -> 0
A99: 1 | B99: ='Orçamento-TCE'!B99 ->  | C99: ='Orçamento-TCE'!C99 -> 2.34 | D99: ='Orçamento-TCE'!G99 -> - | E99: ='Orçamento-TCE'!H99 -> 0 | F99: ='Orçamento-TCE'!I99 -> - | G99: =IFERROR(VLOOKUP($C99,'Orçamento N_DESON.'!$D$11:$S$82,12,FALSE),0) -> - | H99: =IFERROR(VLOOKUP($C99,'Orçamento N_DESON.'!$D$11:$S$82,16,FALSE),0) -> 0 | I99: =VLOOKUP($C99,'Orçamento N_DESON.'!$D$11:$S$82,11,FALSE) -> - | J99: =Encargos!$F$44 -> 1.1122 | O99: =VLOOKUP($C99,'Orçamento N_DESON.'!$D$11:$S$82,13,FALSE) -> 0 | Q99: =VLOOKUP($C99,'Orçamento N_DESON.'!$D$11:$S$82,14,FALSE) -> 0 | S99: =VLOOKUP($C99,'Orçamento N_DESON.'!$D$11:$S$82,15,FALSE) -> 0
A100: 1 | B100: ='Orçamento-TCE'!B100 ->  | C100: ='Orçamento-TCE'!C100 -> 2.35 | D100: ='Orçamento-TCE'!G100 -> - | E100: ='Orçamento-TCE'!H100 -> 0 | F100: ='Orçamento-TCE'!I100 -> - | G100: =IFERROR(VLOOKUP($C100,'Orçamento N_DESON.'!$D$11:$S$82,12,FALSE),0) -> - | H100: =IFERROR(VLOOKUP($C100,'Orçamento N_DESON.'!$D$11:$S$82,16,FALSE),0) -> 0 | I100: =VLOOKUP($C100,'Orçamento N_DESON.'!$D$11:$S$82,11,FALSE) -> - | J100: =Encargos!$F$44 -> 1.1122 | O100: =VLOOKUP($C100,'Orçamento N_DESON.'!$D$11:$S$82,13,FALSE) -> 0 | Q100: =VLOOKUP($C100,'Orçamento N_DESON.'!$D$11:$S$82,14,FALSE) -> 0 | S100: =VLOOKUP($C100,'Orçamento N_DESON.'!$D$11:$S$82,15,FALSE) -> 0
A101: 1 | B101: ='Orçamento-TCE'!B101 ->  | C101: ='Orçamento-TCE'!C101 -> 2.36 | D101: ='Orçamento-TCE'!G101 -> - | E101: ='Orçamento-TCE'!H101 -> 0 | F101: ='Orçamento-TCE'!I101 -> - | G101: =IFERROR(VLOOKUP($C101,'Orçamento N_DESON.'!$D$11:$S$82,12,FALSE),0) -> - | H101: =IFERROR(VLOOKUP($C101,'Orçamento N_DESON.'!$D$11:$S$82,16,FALSE),0) -> 0 | I101: =VLOOKUP($C101,'Orçamento N_DESON.'!$D$11:$S$82,11,FALSE) -> - | J101: =Encargos!$F$44 -> 1.1122 | O101: =VLOOKUP($C101,'Orçamento N_DESON.'!$D$11:$S$82,13,FALSE) -> 0 | Q101: =VLOOKUP($C101,'Orçamento N_DESON.'!$D$11:$S$82,14,FALSE) -> 0 | S101: =VLOOKUP($C101,'Orçamento N_DESON.'!$D$11:$S$82,15,FALSE) -> 0
A102: 1 | B102: ='Orçamento-TCE'!B102 ->  | C102: ='Orçamento-TCE'!C102 -> 2.37 | D102: ='Orçamento-TCE'!G102 -> - | E102: ='Orçamento-TCE'!H102 -> 0 | F102: ='Orçamento-TCE'!I102 -> - | G102: =IFERROR(VLOOKUP($C102,'Orçamento N_DESON.'!$D$11:$S$82,12,FALSE),0) -> - | H102: =IFERROR(VLOOKUP($C102,'Orçamento N_DESON.'!$D$11:$S$82,16,FALSE),0) -> 0 | I102: =VLOOKUP($C102,'Orçamento N_DESON.'!$D$11:$S$82,11,FALSE) -> - | J102: =Encargos!$F$44 -> 1.1122 | O102: =VLOOKUP($C102,'Orçamento N_DESON.'!$D$11:$S$82,13,FALSE) -> 0 | Q102: =VLOOKUP($C102,'Orçamento N_DESON.'!$D$11:$S$82,14,FALSE) -> 0 | S102: =VLOOKUP($C102,'Orçamento N_DESON.'!$D$11:$S$82,15,FALSE) -> 0
A103: 1 | B103: ='Orçamento-TCE'!B103 ->  | C103: ='Orçamento-TCE'!C103 -> 2.38 | D103: ='Orçamento-TCE'!G103 -> - | E103: ='Orçamento-TCE'!H103 -> 0 | F103: ='Orçamento-TCE'!I103 -> - | G103: =IFERROR(VLOOKUP($C103,'Orçamento N_DESON.'!$D$11:$S$82,12,FALSE),0) -> - | H103: =IFERROR(VLOOKUP($C103,'Orçamento N_DESON.'!$D$11:$S$82,16,FALSE),0) -> 0 | I103: =VLOOKUP($C103,'Orçamento N_DESON.'!$D$11:$S$82,11,FALSE) -> - | J103: =Encargos!$F$44 -> 1.1122 | O103: =VLOOKUP($C103,'Orçamento N_DESON.'!$D$11:$S$82,13,FALSE) -> 0 | Q103: =VLOOKUP($C103,'Orçamento N_DESON.'!$D$11:$S$82,14,FALSE) -> 0 | S103: =VLOOKUP($C103,'Orçamento N_DESON.'!$D$11:$S$82,15,FALSE) -> 0
A104: 1 | B104: ='Orçamento-TCE'!B104 ->  | C104: ='Orçamento-TCE'!C104 -> 2.39 | D104: ='Orçamento-TCE'!G104 -> - | E104: ='Orçamento-TCE'!H104 -> 0 | F104: ='Orçamento-TCE'!I104 -> - | G104: =IFERROR(VLOOKUP($C104,'Orçamento N_DESON.'!$D$11:$S$82,12,FALSE),0) -> - | H104: =IFERROR(VLOOKUP($C104,'Orçamento N_DESON.'!$D$11:$S$82,16,FALSE),0) -> 0 | I104: =VLOOKUP($C104,'Orçamento N_DESON.'!$D$11:$S$82,11,FALSE) -> - | J104: =Encargos!$F$44 -> 1.1122 | O104: =VLOOKUP($C104,'Orçamento N_DESON.'!$D$11:$S$82,13,FALSE) -> 0 | Q104: =VLOOKUP($C104,'Orçamento N_DESON.'!$D$11:$S$82,14,FALSE) -> 0 | S104: =VLOOKUP($C104,'Orçamento N_DESON.'!$D$11:$S$82,15,FALSE) -> 0
A105: 1 | B105: ='Orçamento-TCE'!B105 ->  | C105: ='Orçamento-TCE'!C105 -> 2.40 | D105: ='Orçamento-TCE'!G105 -> - | E105: ='Orçamento-TCE'!H105 -> 0 | F105: ='Orçamento-TCE'!I105 -> - | G105: =IFERROR(VLOOKUP($C105,'Orçamento N_DESON.'!$D$11:$S$82,12,FALSE),0) -> - | H105: =IFERROR(VLOOKUP($C105,'Orçamento N_DESON.'!$D$11:$S$82,16,FALSE),0) -> 0 | I105: =VLOOKUP($C105,'Orçamento N_DESON.'!$D$11:$S$82,11,FALSE) -> - | J105: =Encargos!$F$44 -> 1.1122 | O105: =VLOOKUP($C105,'Orçamento N_DESON.'!$D$11:$S$82,13,FALSE) -> 0 | Q105: =VLOOKUP($C105,'Orçamento N_DESON.'!$D$11:$S$82,14,FALSE) -> 0 | S105: =VLOOKUP($C105,'Orçamento N_DESON.'!$D$11:$S$82,15,FALSE) -> 0
A106: 1 | B106: ='Orçamento-TCE'!B106 ->  | C106: ='Orçamento-TCE'!C106 -> 2.41 | D106: ='Orçamento-TCE'!G106 -> - | E106: ='Orçamento-TCE'!H106 -> 0 | F106: ='Orçamento-TCE'!I106 -> - | G106: =IFERROR(VLOOKUP($C106,'Orçamento N_DESON.'!$D$11:$S$82,12,FALSE),0) -> - | H106: =IFERROR(VLOOKUP($C106,'Orçamento N_DESON.'!$D$11:$S$82,16,FALSE),0) -> 0 | I106: =VLOOKUP($C106,'Orçamento N_DESON.'!$D$11:$S$82,11,FALSE) -> - | J106: =Encargos!$F$44 -> 1.1122 | O106: =VLOOKUP($C106,'Orçamento N_DESON.'!$D$11:$S$82,13,FALSE) -> 0 | Q106: =VLOOKUP($C106,'Orçamento N_DESON.'!$D$11:$S$82,14,FALSE) -> 0 | S106: =VLOOKUP($C106,'Orçamento N_DESON.'!$D$11:$S$82,15,FALSE) -> 0
A107: 1 | B107: ='Orçamento-TCE'!B107 ->  | C107: ='Orçamento-TCE'!C107 -> 2.42 | D107: ='Orçamento-TCE'!G107 -> - | E107: ='Orçamento-TCE'!H107 -> 0 | F107: ='Orçamento-TCE'!I107 -> - | G107: =IFERROR(VLOOKUP($C107,'Orçamento N_DESON.'!$D$11:$S$82,12,FALSE),0) -> - | H107: =IFERROR(VLOOKUP($C107,'Orçamento N_DESON.'!$D$11:$S$82,16,FALSE),0) -> 0 | I107: =VLOOKUP($C107,'Orçamento N_DESON.'!$D$11:$S$82,11,FALSE) -> - | J107: =Encargos!$F$44 -> 1.1122 | O107: =VLOOKUP($C107,'Orçamento N_DESON.'!$D$11:$S$82,13,FALSE) -> 0 | Q107: =VLOOKUP($C107,'Orçamento N_DESON.'!$D$11:$S$82,14,FALSE) -> 0 | S107: =VLOOKUP($C107,'Orçamento N_DESON.'!$D$11:$S$82,15,FALSE) -> 0
A108: 1 | B108: ='Orçamento-TCE'!B108 ->  | C108: ='Orçamento-TCE'!C108 -> 2.43 | D108: ='Orçamento-TCE'!G108 -> - | E108: ='Orçamento-TCE'!H108 -> 0 | F108: ='Orçamento-TCE'!I108 -> - | G108: =IFERROR(VLOOKUP($C108,'Orçamento N_DESON.'!$D$11:$S$82,12,FALSE),0) -> - | H108: =IFERROR(VLOOKUP($C108,'Orçamento N_DESON.'!$D$11:$S$82,16,FALSE),0) -> 0 | I108: =VLOOKUP($C108,'Orçamento N_DESON.'!$D$11:$S$82,11,FALSE) -> - | J108: =Encargos!$F$44 -> 1.1122 | O108: =VLOOKUP($C108,'Orçamento N_DESON.'!$D$11:$S$82,13,FALSE) -> 0 | Q108: =VLOOKUP($C108,'Orçamento N_DESON.'!$D$11:$S$82,14,FALSE) -> 0 | S108: =VLOOKUP($C108,'Orçamento N_DESON.'!$D$11:$S$82,15,FALSE) -> 0
A109: 1 | B109: ='Orçamento-TCE'!B109 ->  | C109: ='Orçamento-TCE'!C109 -> 2.44 | D109: ='Orçamento-TCE'!G109 -> - | E109: ='Orçamento-TCE'!H109 -> 0 | F109: ='Orçamento-TCE'!I109 -> - | G109: =IFERROR(VLOOKUP($C109,'Orçamento N_DESON.'!$D$11:$S$82,12,FALSE),0) -> - | H109: =IFERROR(VLOOKUP($C109,'Orçamento N_DESON.'!$D$11:$S$82,16,FALSE),0) -> 0 | I109: =VLOOKUP($C109,'Orçamento N_DESON.'!$D$11:$S$82,11,FALSE) -> - | J109: =Encargos!$F$44 -> 1.1122 | O109: =VLOOKUP($C109,'Orçamento N_DESON.'!$D$11:$S$82,13,FALSE) -> 0 | Q109: =VLOOKUP($C109,'Orçamento N_DESON.'!$D$11:$S$82,14,FALSE) -> 0 | S109: =VLOOKUP($C109,'Orçamento N_DESON.'!$D$11:$S$82,15,FALSE) -> 0
A110: 1 | B110: ='Orçamento-TCE'!B110 ->  | C110: ='Orçamento-TCE'!C110 -> 2.45 | D110: ='Orçamento-TCE'!G110 -> - | E110: ='Orçamento-TCE'!H110 -> 0 | F110: ='Orçamento-TCE'!I110 -> - | G110: =IFERROR(VLOOKUP($C110,'Orçamento N_DESON.'!$D$11:$S$82,12,FALSE),0) -> - | H110: =IFERROR(VLOOKUP($C110,'Orçamento N_DESON.'!$D$11:$S$82,16,FALSE),0) -> 0 | I110: =VLOOKUP($C110,'Orçamento N_DESON.'!$D$11:$S$82,11,FALSE) -> - | J110: =Encargos!$F$44 -> 1.1122 | O110: =VLOOKUP($C110,'Orçamento N_DESON.'!$D$11:$S$82,13,FALSE) -> 0 | Q110: =VLOOKUP($C110,'Orçamento N_DESON.'!$D$11:$S$82,14,FALSE) -> 0 | S110: =VLOOKUP($C110,'Orçamento N_DESON.'!$D$11:$S$82,15,FALSE) -> 0
A111: 1 | B111: ='Orçamento-TCE'!B111 ->  | C111: ='Orçamento-TCE'!C111 -> 2.46 | D111: ='Orçamento-TCE'!G111 -> - | E111: ='Orçamento-TCE'!H111 -> 0 | F111: ='Orçamento-TCE'!I111 -> - | G111: =IFERROR(VLOOKUP($C111,'Orçamento N_DESON.'!$D$11:$S$82,12,FALSE),0) -> - | H111: =IFERROR(VLOOKUP($C111,'Orçamento N_DESON.'!$D$11:$S$82,16,FALSE),0) -> 0 | I111: =VLOOKUP($C111,'Orçamento N_DESON.'!$D$11:$S$82,11,FALSE) -> - | J111: =Encargos!$F$44 -> 1.1122 | O111: =VLOOKUP($C111,'Orçamento N_DESON.'!$D$11:$S$82,13,FALSE) -> 0 | Q111: =VLOOKUP($C111,'Orçamento N_DESON.'!$D$11:$S$82,14,FALSE) -> 0 | S111: =VLOOKUP($C111,'Orçamento N_DESON.'!$D$11:$S$82,15,FALSE) -> 0
A112: 1 | B112: ='Orçamento-TCE'!B112 ->  | C112: ='Orçamento-TCE'!C112 -> 2.47 | D112: ='Orçamento-TCE'!G112 -> - | E112: ='Orçamento-TCE'!H112 -> 0 | F112: ='Orçamento-TCE'!I112 -> - | G112: =IFERROR(VLOOKUP($C112,'Orçamento N_DESON.'!$D$11:$S$82,12,FALSE),0) -> - | H112: =IFERROR(VLOOKUP($C112,'Orçamento N_DESON.'!$D$11:$S$82,16,FALSE),0) -> 0 | I112: =VLOOKUP($C112,'Orçamento N_DESON.'!$D$11:$S$82,11,FALSE) -> - | J112: =Encargos!$F$44 -> 1.1122 | O112: =VLOOKUP($C112,'Orçamento N_DESON.'!$D$11:$S$82,13,FALSE) -> 0 | Q112: =VLOOKUP($C112,'Orçamento N_DESON.'!$D$11:$S$82,14,FALSE) -> 0 | S112: =VLOOKUP($C112,'Orçamento N_DESON.'!$D$11:$S$82,15,FALSE) -> 0
A113: 1 | B113: ='Orçamento-TCE'!B113 ->  | C113: ='Orçamento-TCE'!C113 -> 2.48 | D113: ='Orçamento-TCE'!G113 -> - | E113: ='Orçamento-TCE'!H113 -> 0 | F113: ='Orçamento-TCE'!I113 -> - | G113: =IFERROR(VLOOKUP($C113,'Orçamento N_DESON.'!$D$11:$S$82,12,FALSE),0) -> - | H113: =IFERROR(VLOOKUP($C113,'Orçamento N_DESON.'!$D$11:$S$82,16,FALSE),0) -> 0 | I113: =VLOOKUP($C113,'Orçamento N_DESON.'!$D$11:$S$82,11,FALSE) -> - | J113: =Encargos!$F$44 -> 1.1122 | O113: =VLOOKUP($C113,'Orçamento N_DESON.'!$D$11:$S$82,13,FALSE) -> 0 | Q113: =VLOOKUP($C113,'Orçamento N_DESON.'!$D$11:$S$82,14,FALSE) -> 0 | S113: =VLOOKUP($C113,'Orçamento N_DESON.'!$D$11:$S$82,15,FALSE) -> 0
A114: 1 | B114: ='Orçamento-TCE'!B114 ->  | C114: ='Orçamento-TCE'!C114 -> 2.49 | D114: ='Orçamento-TCE'!G114 -> - | E114: ='Orçamento-TCE'!H114 -> 0 | F114: ='Orçamento-TCE'!I114 -> - | G114: =IFERROR(VLOOKUP($C114,'Orçamento N_DESON.'!$D$11:$S$82,12,FALSE),0) -> - | H114: =IFERROR(VLOOKUP($C114,'Orçamento N_DESON.'!$D$11:$S$82,16,FALSE),0) -> 0 | I114: =VLOOKUP($C114,'Orçamento N_DESON.'!$D$11:$S$82,11,FALSE) -> - | J114: =Encargos!$F$44 -> 1.1122 | O114: =VLOOKUP($C114,'Orçamento N_DESON.'!$D$11:$S$82,13,FALSE) -> 0 | Q114: =VLOOKUP($C114,'Orçamento N_DESON.'!$D$11:$S$82,14,FALSE) -> 0 | S114: =VLOOKUP($C114,'Orçamento N_DESON.'!$D$11:$S$82,15,FALSE) -> 0
A115: 1 | B115: ='Orçamento-TCE'!B115 ->  | C115: ='Orçamento-TCE'!C115 -> 2.50 | D115: ='Orçamento-TCE'!G115 -> - | E115: ='Orçamento-TCE'!H115 -> 0 | F115: ='Orçamento-TCE'!I115 -> - | G115: =IFERROR(VLOOKUP($C115,'Orçamento N_DESON.'!$D$11:$S$82,12,FALSE),0) -> - | H115: =IFERROR(VLOOKUP($C115,'Orçamento N_DESON.'!$D$11:$S$82,16,FALSE),0) -> 0 | I115: =VLOOKUP($C115,'Orçamento N_DESON.'!$D$11:$S$82,11,FALSE) -> - | J115: =Encargos!$F$44 -> 1.1122 | O115: =VLOOKUP($C115,'Orçamento N_DESON.'!$D$11:$S$82,13,FALSE) -> 0 | Q115: =VLOOKUP($C115,'Orçamento N_DESON.'!$D$11:$S$82,14,FALSE) -> 0 | S115: =VLOOKUP($C115,'Orçamento N_DESON.'!$D$11:$S$82,15,FALSE) -> 0
A116: 1 | B116: ='Orçamento-TCE'!B116 ->  | C116: ='Orçamento-TCE'!C116 -> 0 | D116: ='Orçamento-TCE'!G116 ->  | E116: ='Orçamento-TCE'!H116 -> 0 | F116: ='Orçamento-TCE'!I116 ->  | G116: =IFERROR(VLOOKUP($C116,'Orçamento N_DESON.'!$D$11:$S$82,12,FALSE),0) -> 0 | H116: =IFERROR(VLOOKUP($C116,'Orçamento N_DESON.'!$D$11:$S$82,16,FALSE),0) -> 0 | I116: =VLOOKUP($C116,'Orçamento N_DESON.'!$D$11:$S$82,11,FALSE) ->  | J116: =Encargos!$F$44 -> 1.1122 | O116: =VLOOKUP($C116,'Orçamento N_DESON.'!$D$11:$S$82,13,FALSE) ->  | Q116: =VLOOKUP($C116,'Orçamento N_DESON.'!$D$11:$S$82,14,FALSE) ->  | S116: =VLOOKUP($C116,'Orçamento N_DESON.'!$D$11:$S$82,15,FALSE) -> 
A117: 1 | B117: ='Orçamento-TCE'!B117 ->  | C117: ='Orçamento-TCE'!C117 -> 0 | D117: ='Orçamento-TCE'!G117 ->  | E117: ='Orçamento-TCE'!H117 -> 0 | F117: ='Orçamento-TCE'!I117 ->  | G117: =IFERROR(VLOOKUP($C117,'Orçamento N_DESON.'!$D$11:$S$82,12,FALSE),0) -> 0 | H117: =IFERROR(VLOOKUP($C117,'Orçamento N_DESON.'!$D$11:$S$82,16,FALSE),0) -> 0 | I117: =VLOOKUP($C117,'Orçamento N_DESON.'!$D$11:$S$82,11,FALSE) ->  | J117: =Encargos!$F$44 -> 1.1122 | O117: =VLOOKUP($C117,'Orçamento N_DESON.'!$D$11:$S$82,13,FALSE) ->  | Q117: =VLOOKUP($C117,'Orçamento N_DESON.'!$D$11:$S$82,14,FALSE) ->  | S117: =VLOOKUP($C117,'Orçamento N_DESON.'!$D$11:$S$82,15,FALSE) -> 
A118: 1 | B118: ='Orçamento-TCE'!B118 ->  | C118: ='Orçamento-TCE'!C118 -> 0 | D118: ='Orçamento-TCE'!G118 ->  | E118: ='Orçamento-TCE'!H118 -> 0 | F118: ='Orçamento-TCE'!I118 ->  | G118: =IFERROR(VLOOKUP($C118,'Orçamento N_DESON.'!$D$11:$S$82,12,FALSE),0) -> 0 | H118: =IFERROR(VLOOKUP($C118,'Orçamento N_DESON.'!$D$11:$S$82,16,FALSE),0) -> 0 | I118: =VLOOKUP($C118,'Orçamento N_DESON.'!$D$11:$S$82,11,FALSE) ->  | J118: =Encargos!$F$44 -> 1.1122 | O118: =VLOOKUP($C118,'Orçamento N_DESON.'!$D$11:$S$82,13,FALSE) ->  | Q118: =VLOOKUP($C118,'Orçamento N_DESON.'!$D$11:$S$82,14,FALSE) ->  | S118: =VLOOKUP($C118,'Orçamento N_DESON.'!$D$11:$S$82,15,FALSE) -> 
A119: 1 | B119: ='Orçamento-TCE'!B119 ->  | C119: ='Orçamento-TCE'!C119 -> 0 | D119: ='Orçamento-TCE'!G119 ->  | E119: ='Orçamento-TCE'!H119 -> 0 | F119: ='Orçamento-TCE'!I119 ->  | G119: =IFERROR(VLOOKUP($C119,'Orçamento N_DESON.'!$D$11:$S$82,12,FALSE),0) -> 0 | H119: =IFERROR(VLOOKUP($C119,'Orçamento N_DESON.'!$D$11:$S$82,16,FALSE),0) -> 0 | I119: =VLOOKUP($C119,'Orçamento N_DESON.'!$D$11:$S$82,11,FALSE) ->  | J119: =Encargos!$F$44 -> 1.1122 | O119: =VLOOKUP($C119,'Orçamento N_DESON.'!$D$11:$S$82,13,FALSE) ->  | Q119: =VLOOKUP($C119,'Orçamento N_DESON.'!$D$11:$S$82,14,FALSE) ->  | S119: =VLOOKUP($C119,'Orçamento N_DESON.'!$D$11:$S$82,15,FALSE) -> 
A120: 1 | B120: ='Orçamento-TCE'!B120 -> 23 | C120: ='Orçamento-TCE'!C120 -> 3.1 | D120: ='Orçamento-TCE'!G120 -> Planilha Detalhada de Custos | E120: ='Orçamento-TCE'!H120 -> 1 | F120: ='Orçamento-TCE'!I120 -> UN | G120: =IFERROR(VLOOKUP($C120,'Orçamento N_DESON.'!$D$11:$S$82,12,FALSE),0) -> 3257.77 | H120: =IFERROR(VLOOKUP($C120,'Orçamento N_DESON.'!$D$11:$S$82,16,FALSE),0) -> 3257.77 | I120: =VLOOKUP($C120,'Orçamento N_DESON.'!$D$11:$S$82,11,FALSE) -> 0.1538 | J120: =Encargos!$F$44 -> 1.1122 | L120: 0 | M120: 3257.77 | N120: 0 | O120: =VLOOKUP($C120,'Orçamento N_DESON.'!$D$11:$S$82,13,FALSE) -> 0 | P120: 0 | Q120: =VLOOKUP($C120,'Orçamento N_DESON.'!$D$11:$S$82,14,FALSE) -> 3257.77 | R120: 3257.77 | S120: =VLOOKUP($C120,'Orçamento N_DESON.'!$D$11:$S$82,15,FALSE) -> 0 | T120: 0
A121: 1 | B121: ='Orçamento-TCE'!B121 -> 24 | C121: ='Orçamento-TCE'!C121 -> 3.2 | D121: ='Orçamento-TCE'!G121 -> Cronograma Físico-Financeiro | E121: ='Orçamento-TCE'!H121 -> 1 | F121: ='Orçamento-TCE'!I121 -> UN | G121: =IFERROR(VLOOKUP($C121,'Orçamento N_DESON.'!$D$11:$S$82,12,FALSE),0) -> 930.79 | H121: =IFERROR(VLOOKUP($C121,'Orçamento N_DESON.'!$D$11:$S$82,16,FALSE),0) -> 930.79 | I121: =VLOOKUP($C121,'Orçamento N_DESON.'!$D$11:$S$82,11,FALSE) -> 0.1538 | J121: =Encargos!$F$44 -> 1.1122 | L121: 0 | M121: 930.79 | N121: 0 | O121: =VLOOKUP($C121,'Orçamento N_DESON.'!$D$11:$S$82,13,FALSE) -> 0 | P121: 0 | Q121: =VLOOKUP($C121,'Orçamento N_DESON.'!$D$11:$S$82,14,FALSE) -> 930.79 | R121: 930.79 | S121: =VLOOKUP($C121,'Orçamento N_DESON.'!$D$11:$S$82,15,FALSE) -> 0 | T121: 0
A122: 1 | B122: ='Orçamento-TCE'!B122 -> 25 | C122: ='Orçamento-TCE'!C122 -> 3.3 | D122: ='Orçamento-TCE'!G122 -> Memorial de Serviços Técnicos | E122: ='Orçamento-TCE'!H122 -> 1 | F122: ='Orçamento-TCE'!I122 -> UN | G122: =IFERROR(VLOOKUP($C122,'Orçamento N_DESON.'!$D$11:$S$82,12,FALSE),0) -> 1396.19 | H122: =IFERROR(VLOOKUP($C122,'Orçamento N_DESON.'!$D$11:$S$82,16,FALSE),0) -> 1396.19 | I122: =VLOOKUP($C122,'Orçamento N_DESON.'!$D$11:$S$82,11,FALSE) -> 0.1538 | J122: =Encargos!$F$44 -> 1.1122 | L122: 0 | M122: 1396.19 | N122: 0 | O122: =VLOOKUP($C122,'Orçamento N_DESON.'!$D$11:$S$82,13,FALSE) -> 0 | P122: 0 | Q122: =VLOOKUP($C122,'Orçamento N_DESON.'!$D$11:$S$82,14,FALSE) -> 1396.19 | R122: 1396.19 | S122: =VLOOKUP($C122,'Orçamento N_DESON.'!$D$11:$S$82,15,FALSE) -> 0 | T122: 0
A123: 1 | B123: ='Orçamento-TCE'!B123 ->  | C123: ='Orçamento-TCE'!C123 ->  | D123: ='Orçamento-TCE'!G123 ->  | E123: ='Orçamento-TCE'!H123 -> 0 | F123: ='Orçamento-TCE'!I123 ->  | G123: =IFERROR(VLOOKUP($C123,'Orçamento N_DESON.'!$D$11:$S$82,12,FALSE),0) -> 0 | H123: =IFERROR(VLOOKUP($C123,'Orçamento N_DESON.'!$D$11:$S$82,16,FALSE),0) -> 0 | I123: =VLOOKUP($C123,'Orçamento N_DESON.'!$D$11:$S$82,11,FALSE) ->  | J123: =Encargos!$F$44 -> 1.1122 | O123: =VLOOKUP($C123,'Orçamento N_DESON.'!$D$11:$S$82,13,FALSE) ->  | Q123: =VLOOKUP($C123,'Orçamento N_DESON.'!$D$11:$S$82,14,FALSE) ->  | S123: =VLOOKUP($C123,'Orçamento N_DESON.'!$D$11:$S$82,15,FALSE) -> 
A124: 1 | B124: ='Orçamento-TCE'!B124 ->  | C124: ='Orçamento-TCE'!C124 ->  | D124: ='Orçamento-TCE'!G124 ->  | E124: ='Orçamento-TCE'!H124 -> 0 | F124: ='Orçamento-TCE'!I124 ->  | G124: =IFERROR(VLOOKUP($C124,'Orçamento N_DESON.'!$D$11:$S$82,12,FALSE),0) -> 0 | H124: =IFERROR(VLOOKUP($C124,'Orçamento N_DESON.'!$D$11:$S$82,16,FALSE),0) -> 0 | I124: =VLOOKUP($C124,'Orçamento N_DESON.'!$D$11:$S$82,11,FALSE) ->  | J124: =Encargos!$F$44 -> 1.1122 | O124: =VLOOKUP($C124,'Orçamento N_DESON.'!$D$11:$S$82,13,FALSE) ->  | Q124: =VLOOKUP($C124,'Orçamento N_DESON.'!$D$11:$S$82,14,FALSE) ->  | S124: =VLOOKUP($C124,'Orçamento N_DESON.'!$D$11:$S$82,15,FALSE) -> 
A125: 1 | B125: ='Orçamento-TCE'!B125 ->  | C125: ='Orçamento-TCE'!C125 ->  | D125: ='Orçamento-TCE'!G125 ->  | E125: ='Orçamento-TCE'!H125 -> 0 | F125: ='Orçamento-TCE'!I125 ->  | G125: =IFERROR(VLOOKUP($C125,'Orçamento N_DESON.'!$D$11:$S$82,12,FALSE),0) -> 0 | H125: =IFERROR(VLOOKUP($C125,'Orçamento N_DESON.'!$D$11:$S$82,16,FALSE),0) -> 0 | I125: =VLOOKUP($C125,'Orçamento N_DESON.'!$D$11:$S$82,11,FALSE) ->  | J125: =Encargos!$F$44 -> 1.1122 | O125: =VLOOKUP($C125,'Orçamento N_DESON.'!$D$11:$S$82,13,FALSE) ->  | Q125: =VLOOKUP($C125,'Orçamento N_DESON.'!$D$11:$S$82,14,FALSE) ->  | S125: =VLOOKUP($C125,'Orçamento N_DESON.'!$D$11:$S$82,15,FALSE) -> 
A126: 1 | B126: ='Orçamento-TCE'!B126 ->  | C126: ='Orçamento-TCE'!C126 ->  | D126: ='Orçamento-TCE'!G126 ->  | E126: ='Orçamento-TCE'!H126 -> 0 | F126: ='Orçamento-TCE'!I126 ->  | G126: =IFERROR(VLOOKUP($C126,'Orçamento N_DESON.'!$D$11:$S$82,12,FALSE),0) -> 0 | H126: =IFERROR(VLOOKUP($C126,'Orçamento N_DESON.'!$D$11:$S$82,16,FALSE),0) -> 0 | I126: =VLOOKUP($C126,'Orçamento N_DESON.'!$D$11:$S$82,11,FALSE) ->  | J126: =Encargos!$F$44 -> 1.1122 | O126: =VLOOKUP($C126,'Orçamento N_DESON.'!$D$11:$S$82,13,FALSE) ->  | Q126: =VLOOKUP($C126,'Orçamento N_DESON.'!$D$11:$S$82,14,FALSE) ->  | S126: =VLOOKUP($C126,'Orçamento N_DESON.'!$D$11:$S$82,15,FALSE) -> 
A127: 1 | B127: ='Orçamento-TCE'!B127 ->  | C127: ='Orçamento-TCE'!C127 ->  | D127: ='Orçamento-TCE'!G127 ->  | E127: ='Orçamento-TCE'!H127 -> 0 | F127: ='Orçamento-TCE'!I127 ->  | G127: =IFERROR(VLOOKUP($C127,'Orçamento N_DESON.'!$D$11:$S$82,12,FALSE),0) -> 0 | H127: =IFERROR(VLOOKUP($C127,'Orçamento N_DESON.'!$D$11:$S$82,16,FALSE),0) -> 0 | I127: =VLOOKUP($C127,'Orçamento N_DESON.'!$D$11:$S$82,11,FALSE) ->  | J127: =Encargos!$F$44 -> 1.1122 | O127: =VLOOKUP($C127,'Orçamento N_DESON.'!$D$11:$S$82,13,FALSE) ->  | Q127: =VLOOKUP($C127,'Orçamento N_DESON.'!$D$11:$S$82,14,FALSE) ->  | S127: =VLOOKUP($C127,'Orçamento N_DESON.'!$D$11:$S$82,15,FALSE) -> 
A128: 1 | B128: ='Orçamento-TCE'!B128 ->  | C128: ='Orçamento-TCE'!C128 ->  | D128: ='Orçamento-TCE'!G128 ->  | E128: ='Orçamento-TCE'!H128 -> 0 | F128: ='Orçamento-TCE'!I128 ->  | G128: =IFERROR(VLOOKUP($C128,'Orçamento N_DESON.'!$D$11:$S$82,12,FALSE),0) -> 0 | H128: =IFERROR(VLOOKUP($C128,'Orçamento N_DESON.'!$D$11:$S$82,16,FALSE),0) -> 0 | I128: =VLOOKUP($C128,'Orçamento N_DESON.'!$D$11:$S$82,11,FALSE) ->  | J128: =Encargos!$F$44 -> 1.1122 | O128: =VLOOKUP($C128,'Orçamento N_DESON.'!$D$11:$S$82,13,FALSE) ->  | Q128: =VLOOKUP($C128,'Orçamento N_DESON.'!$D$11:$S$82,14,FALSE) ->  | S128: =VLOOKUP($C128,'Orçamento N_DESON.'!$D$11:$S$82,15,FALSE) -> 
A129: 1 | B129: ='Orçamento-TCE'!B129 ->  | C129: ='Orçamento-TCE'!C129 ->  | D129: ='Orçamento-TCE'!G129 ->  | E129: ='Orçamento-TCE'!H129 -> 0 | F129: ='Orçamento-TCE'!I129 ->  | G129: =IFERROR(VLOOKUP($C129,'Orçamento N_DESON.'!$D$11:$S$82,12,FALSE),0) -> 0 | H129: =IFERROR(VLOOKUP($C129,'Orçamento N_DESON.'!$D$11:$S$82,16,FALSE),0) -> 0 | I129: =VLOOKUP($C129,'Orçamento N_DESON.'!$D$11:$S$82,11,FALSE) ->  | J129: =Encargos!$F$44 -> 1.1122 | O129: =VLOOKUP($C129,'Orçamento N_DESON.'!$D$11:$S$82,13,FALSE) ->  | Q129: =VLOOKUP($C129,'Orçamento N_DESON.'!$D$11:$S$82,14,FALSE) ->  | S129: =VLOOKUP($C129,'Orçamento N_DESON.'!$D$11:$S$82,15,FALSE) -> 
A130: 1 | B130: ='Orçamento-TCE'!B130 ->  | C130: ='Orçamento-TCE'!C130 ->  | D130: ='Orçamento-TCE'!G130 ->  | E130: ='Orçamento-TCE'!H130 -> 0 | F130: ='Orçamento-TCE'!I130 ->  | G130: =IFERROR(VLOOKUP($C130,'Orçamento N_DESON.'!$D$11:$S$82,12,FALSE),0) -> 0 | H130: =IFERROR(VLOOKUP($C130,'Orçamento N_DESON.'!$D$11:$S$82,16,FALSE),0) -> 0 | I130: =VLOOKUP($C130,'Orçamento N_DESON.'!$D$11:$S$82,11,FALSE) ->  | J130: =Encargos!$F$44 -> 1.1122 | O130: =VLOOKUP($C130,'Orçamento N_DESON.'!$D$11:$S$82,13,FALSE) ->  | Q130: =VLOOKUP($C130,'Orçamento N_DESON.'!$D$11:$S$82,14,FALSE) ->  | S130: =VLOOKUP($C130,'Orçamento N_DESON.'!$D$11:$S$82,15,FALSE) -> 
A131: 1 | B131: ='Orçamento-TCE'!B131 ->  | C131: ='Orçamento-TCE'!C131 ->  | D131: ='Orçamento-TCE'!G131 ->  | E131: ='Orçamento-TCE'!H131 -> 0 | F131: ='Orçamento-TCE'!I131 ->  | G131: =IFERROR(VLOOKUP($C131,'Orçamento N_DESON.'!$D$11:$S$82,12,FALSE),0) -> 0 | H131: =IFERROR(VLOOKUP($C131,'Orçamento N_DESON.'!$D$11:$S$82,16,FALSE),0) -> 0 | I131: =VLOOKUP($C131,'Orçamento N_DESON.'!$D$11:$S$82,11,FALSE) ->  | J131: =Encargos!$F$44 -> 1.1122 | O131: =VLOOKUP($C131,'Orçamento N_DESON.'!$D$11:$S$82,13,FALSE) ->  | Q131: =VLOOKUP($C131,'Orçamento N_DESON.'!$D$11:$S$82,14,FALSE) ->  | S131: =VLOOKUP($C131,'Orçamento N_DESON.'!$D$11:$S$82,15,FALSE) -> 
A132: 1 | B132: ='Orçamento-TCE'!B132 ->  | C132: ='Orçamento-TCE'!C132 ->  | D132: ='Orçamento-TCE'!G132 ->  | E132: ='Orçamento-TCE'!H132 -> 0 | F132: ='Orçamento-TCE'!I132 ->  | G132: =IFERROR(VLOOKUP($C132,'Orçamento N_DESON.'!$D$11:$S$82,12,FALSE),0) -> 0 | H132: =IFERROR(VLOOKUP($C132,'Orçamento N_DESON.'!$D$11:$S$82,16,FALSE),0) -> 0 | I132: =VLOOKUP($C132,'Orçamento N_DESON.'!$D$11:$S$82,11,FALSE) ->  | J132: =Encargos!$F$44 -> 1.1122 | O132: =VLOOKUP($C132,'Orçamento N_DESON.'!$D$11:$S$82,13,FALSE) ->  | Q132: =VLOOKUP($C132,'Orçamento N_DESON.'!$D$11:$S$82,14,FALSE) ->  | S132: =VLOOKUP($C132,'Orçamento N_DESON.'!$D$11:$S$82,15,FALSE) -> 
A133: 1 | B133: ='Orçamento-TCE'!B133 ->  | C133: ='Orçamento-TCE'!C133 ->  | D133: ='Orçamento-TCE'!G133 ->  | E133: ='Orçamento-TCE'!H133 -> 0 | F133: ='Orçamento-TCE'!I133 ->  | G133: =IFERROR(VLOOKUP($C133,'Orçamento N_DESON.'!$D$11:$S$82,12,FALSE),0) -> 0 | H133: =IFERROR(VLOOKUP($C133,'Orçamento N_DESON.'!$D$11:$S$82,16,FALSE),0) -> 0 | I133: =VLOOKUP($C133,'Orçamento N_DESON.'!$D$11:$S$82,11,FALSE) ->  | J133: =Encargos!$F$44 -> 1.1122 | O133: =VLOOKUP($C133,'Orçamento N_DESON.'!$D$11:$S$82,13,FALSE) ->  | Q133: =VLOOKUP($C133,'Orçamento N_DESON.'!$D$11:$S$82,14,FALSE) ->  | S133: =VLOOKUP($C133,'Orçamento N_DESON.'!$D$11:$S$82,15,FALSE) -> 
A134: 1 | B134: ='Orçamento-TCE'!B134 ->  | C134: ='Orçamento-TCE'!C134 ->  | D134: ='Orçamento-TCE'!G134 ->  | E134: ='Orçamento-TCE'!H134 -> 0 | F134: ='Orçamento-TCE'!I134 ->  | G134: =IFERROR(VLOOKUP($C134,'Orçamento N_DESON.'!$D$11:$S$82,12,FALSE),0) -> 0 | H134: =IFERROR(VLOOKUP($C134,'Orçamento N_DESON.'!$D$11:$S$82,16,FALSE),0) -> 0 | I134: =VLOOKUP($C134,'Orçamento N_DESON.'!$D$11:$S$82,11,FALSE) ->  | J134: =Encargos!$F$44 -> 1.1122 | O134: =VLOOKUP($C134,'Orçamento N_DESON.'!$D$11:$S$82,13,FALSE) ->  | Q134: =VLOOKUP($C134,'Orçamento N_DESON.'!$D$11:$S$82,14,FALSE) ->  | S134: =VLOOKUP($C134,'Orçamento N_DESON.'!$D$11:$S$82,15,FALSE) -> 
A135: 1 | B135: ='Orçamento-TCE'!B135 ->  | C135: ='Orçamento-TCE'!C135 ->  | D135: ='Orçamento-TCE'!G135 ->  | E135: ='Orçamento-TCE'!H135 -> 0 | F135: ='Orçamento-TCE'!I135 ->  | G135: =IFERROR(VLOOKUP($C135,'Orçamento N_DESON.'!$D$11:$S$82,12,FALSE),0) -> 0 | H135: =IFERROR(VLOOKUP($C135,'Orçamento N_DESON.'!$D$11:$S$82,16,FALSE),0) -> 0 | I135: =VLOOKUP($C135,'Orçamento N_DESON.'!$D$11:$S$82,11,FALSE) ->  | J135: =Encargos!$F$44 -> 1.1122 | O135: =VLOOKUP($C135,'Orçamento N_DESON.'!$D$11:$S$82,13,FALSE) ->  | Q135: =VLOOKUP($C135,'Orçamento N_DESON.'!$D$11:$S$82,14,FALSE) ->  | S135: =VLOOKUP($C135,'Orçamento N_DESON.'!$D$11:$S$82,15,FALSE) -> 
A136: 1 | B136: ='Orçamento-TCE'!B136 ->  | C136: ='Orçamento-TCE'!C136 ->  | D136: ='Orçamento-TCE'!G136 ->  | E136: ='Orçamento-TCE'!H136 -> 0 | F136: ='Orçamento-TCE'!I136 ->  | G136: =IFERROR(VLOOKUP($C136,'Orçamento N_DESON.'!$D$11:$S$82,12,FALSE),0) -> 0 | H136: =IFERROR(VLOOKUP($C136,'Orçamento N_DESON.'!$D$11:$S$82,16,FALSE),0) -> 0 | I136: =VLOOKUP($C136,'Orçamento N_DESON.'!$D$11:$S$82,11,FALSE) ->  | J136: =Encargos!$F$44 -> 1.1122 | O136: =VLOOKUP($C136,'Orçamento N_DESON.'!$D$11:$S$82,13,FALSE) ->  | Q136: =VLOOKUP($C136,'Orçamento N_DESON.'!$D$11:$S$82,14,FALSE) ->  | S136: =VLOOKUP($C136,'Orçamento N_DESON.'!$D$11:$S$82,15,FALSE) -> 
A137: 1 | B137: ='Orçamento-TCE'!B137 ->  | C137: ='Orçamento-TCE'!C137 ->  | D137: ='Orçamento-TCE'!G137 ->  | E137: ='Orçamento-TCE'!H137 -> 0 | F137: ='Orçamento-TCE'!I137 ->  | G137: =IFERROR(VLOOKUP($C137,'Orçamento N_DESON.'!$D$11:$S$82,12,FALSE),0) -> 0 | H137: =IFERROR(VLOOKUP($C137,'Orçamento N_DESON.'!$D$11:$S$82,16,FALSE),0) -> 0 | I137: =VLOOKUP($C137,'Orçamento N_DESON.'!$D$11:$S$82,11,FALSE) ->  | J137: =Encargos!$F$44 -> 1.1122 | O137: =VLOOKUP($C137,'Orçamento N_DESON.'!$D$11:$S$82,13,FALSE) ->  | Q137: =VLOOKUP($C137,'Orçamento N_DESON.'!$D$11:$S$82,14,FALSE) ->  | S137: =VLOOKUP($C137,'Orçamento N_DESON.'!$D$11:$S$82,15,FALSE) -> 
A138: 1 | B138: ='Orçamento-TCE'!B138 ->  | C138: ='Orçamento-TCE'!C138 ->  | D138: ='Orçamento-TCE'!G138 ->  | E138: ='Orçamento-TCE'!H138 -> 0 | F138: ='Orçamento-TCE'!I138 ->  | G138: =IFERROR(VLOOKUP($C138,'Orçamento N_DESON.'!$D$11:$S$82,12,FALSE),0) -> 0 | H138: =IFERROR(VLOOKUP($C138,'Orçamento N_DESON.'!$D$11:$S$82,16,FALSE),0) -> 0 | I138: =VLOOKUP($C138,'Orçamento N_DESON.'!$D$11:$S$82,11,FALSE) ->  | J138: =Encargos!$F$44 -> 1.1122 | O138: =VLOOKUP($C138,'Orçamento N_DESON.'!$D$11:$S$82,13,FALSE) ->  | Q138: =VLOOKUP($C138,'Orçamento N_DESON.'!$D$11:$S$82,14,FALSE) ->  | S138: =VLOOKUP($C138,'Orçamento N_DESON.'!$D$11:$S$82,15,FALSE) -> 
A139: 1 | B139: ='Orçamento-TCE'!B139 ->  | C139: ='Orçamento-TCE'!C139 ->  | D139: ='Orçamento-TCE'!G139 ->  | E139: ='Orçamento-TCE'!H139 -> 0 | F139: ='Orçamento-TCE'!I139 ->  | G139: =IFERROR(VLOOKUP($C139,'Orçamento N_DESON.'!$D$11:$S$82,12,FALSE),0) -> 0 | H139: =IFERROR(VLOOKUP($C139,'Orçamento N_DESON.'!$D$11:$S$82,16,FALSE),0) -> 0 | I139: =VLOOKUP($C139,'Orçamento N_DESON.'!$D$11:$S$82,11,FALSE) ->  | J139: =Encargos!$F$44 -> 1.1122 | O139: =VLOOKUP($C139,'Orçamento N_DESON.'!$D$11:$S$82,13,FALSE) ->  | Q139: =VLOOKUP($C139,'Orçamento N_DESON.'!$D$11:$S$82,14,FALSE) ->  | S139: =VLOOKUP($C139,'Orçamento N_DESON.'!$D$11:$S$82,15,FALSE) -> 
A140: 1 | B140: ='Orçamento-TCE'!B140 ->  | C140: ='Orçamento-TCE'!C140 ->  | D140: ='Orçamento-TCE'!G140 ->  | E140: ='Orçamento-TCE'!H140 -> 0 | F140: ='Orçamento-TCE'!I140 ->  | G140: =IFERROR(VLOOKUP($C140,'Orçamento N_DESON.'!$D$11:$S$82,12,FALSE),0) -> 0 | H140: =IFERROR(VLOOKUP($C140,'Orçamento N_DESON.'!$D$11:$S$82,16,FALSE),0) -> 0 | I140: =VLOOKUP($C140,'Orçamento N_DESON.'!$D$11:$S$82,11,FALSE) ->  | J140: =Encargos!$F$44 -> 1.1122 | O140: =VLOOKUP($C140,'Orçamento N_DESON.'!$D$11:$S$82,13,FALSE) ->  | Q140: =VLOOKUP($C140,'Orçamento N_DESON.'!$D$11:$S$82,14,FALSE) ->  | S140: =VLOOKUP($C140,'Orçamento N_DESON.'!$D$11:$S$82,15,FALSE) -> 
A141: 1 | B141: ='Orçamento-TCE'!B141 ->  | C141: ='Orçamento-TCE'!C141 ->  | D141: ='Orçamento-TCE'!G141 ->  | E141: ='Orçamento-TCE'!H141 -> 0 | F141: ='Orçamento-TCE'!I141 ->  | G141: =IFERROR(VLOOKUP($C141,'Orçamento N_DESON.'!$D$11:$S$82,12,FALSE),0) -> 0 | H141: =IFERROR(VLOOKUP($C141,'Orçamento N_DESON.'!$D$11:$S$82,16,FALSE),0) -> 0 | I141: =VLOOKUP($C141,'Orçamento N_DESON.'!$D$11:$S$82,11,FALSE) ->  | J141: =Encargos!$F$44 -> 1.1122 | L141: =T141 ->  | M141: =R141 ->  | N141: =P141 ->  | O141: =VLOOKUP($C141,'Orçamento N_DESON.'!$D$11:$S$82,13,FALSE) ->  | P141: =O141/E141 ->  | Q141: =VLOOKUP($C141,'Orçamento N_DESON.'!$D$11:$S$82,14,FALSE) ->  | R141: =Q141/E141 ->  | S141: =VLOOKUP($C141,'Orçamento N_DESON.'!$D$11:$S$82,15,FALSE) ->  | T141: =S141/E141 -> 
A142: 1 | B142: ='Orçamento-TCE'!B142 ->  | C142: ='Orçamento-TCE'!C142 ->  | D142: ='Orçamento-TCE'!G142 ->  | E142: ='Orçamento-TCE'!H142 -> 0 | F142: ='Orçamento-TCE'!I142 ->  | G142: =IFERROR(VLOOKUP($C142,'Orçamento N_DESON.'!$D$11:$S$82,12,FALSE),0) -> 0 | H142: =IFERROR(VLOOKUP($C142,'Orçamento N_DESON.'!$D$11:$S$82,16,FALSE),0) -> 0 | I142: =VLOOKUP($C142,'Orçamento N_DESON.'!$D$11:$S$82,11,FALSE) ->  | J142: =Encargos!$F$44 -> 1.1122 | O142: =VLOOKUP($C142,'Orçamento N_DESON.'!$D$11:$S$82,13,FALSE) ->  | Q142: =VLOOKUP($C142,'Orçamento N_DESON.'!$D$11:$S$82,14,FALSE) ->  | S142: =VLOOKUP($C142,'Orçamento N_DESON.'!$D$11:$S$82,15,FALSE) -> 
A143: 1 | B143: ='Orçamento-TCE'!B143 ->  | C143: ='Orçamento-TCE'!C143 ->  | D143: ='Orçamento-TCE'!G143 ->  | E143: ='Orçamento-TCE'!H143 -> 0 | F143: ='Orçamento-TCE'!I143 ->  | G143: =IFERROR(VLOOKUP($C143,'Orçamento N_DESON.'!$D$11:$S$82,12,FALSE),0) -> 0 | H143: =IFERROR(VLOOKUP($C143,'Orçamento N_DESON.'!$D$11:$S$82,16,FALSE),0) -> 0 | I143: =VLOOKUP($C143,'Orçamento N_DESON.'!$D$11:$S$82,11,FALSE) ->  | J143: =Encargos!$F$44 -> 1.1122 | O143: =VLOOKUP($C143,'Orçamento N_DESON.'!$D$11:$S$82,13,FALSE) ->  | Q143: =VLOOKUP($C143,'Orçamento N_DESON.'!$D$11:$S$82,14,FALSE) ->  | S143: =VLOOKUP($C143,'Orçamento N_DESON.'!$D$11:$S$82,15,FALSE) -> 
A144: 1 | B144: ='Orçamento-TCE'!B144 ->  | C144: ='Orçamento-TCE'!C144 ->  | D144: ='Orçamento-TCE'!G144 ->  | E144: ='Orçamento-TCE'!H144 -> 0 | F144: ='Orçamento-TCE'!I144 ->  | G144: =IFERROR(VLOOKUP($C144,'Orçamento N_DESON.'!$D$11:$S$82,12,FALSE),0) -> 0 | H144: =IFERROR(VLOOKUP($C144,'Orçamento N_DESON.'!$D$11:$S$82,16,FALSE),0) -> 0 | I144: =VLOOKUP($C144,'Orçamento N_DESON.'!$D$11:$S$82,11,FALSE) ->  | J144: =Encargos!$F$44 -> 1.1122 | O144: =VLOOKUP($C144,'Orçamento N_DESON.'!$D$11:$S$82,13,FALSE) ->  | Q144: =VLOOKUP($C144,'Orçamento N_DESON.'!$D$11:$S$82,14,FALSE) ->  | S144: =VLOOKUP($C144,'Orçamento N_DESON.'!$D$11:$S$82,15,FALSE) -> 
A145: 1 | B145: ='Orçamento-TCE'!B145 ->  | C145: ='Orçamento-TCE'!C145 ->  | D145: ='Orçamento-TCE'!G145 ->  | E145: ='Orçamento-TCE'!H145 -> 0 | F145: ='Orçamento-TCE'!I145 ->  | G145: =IFERROR(VLOOKUP($C145,'Orçamento N_DESON.'!$D$11:$S$82,12,FALSE),0) -> 0 | H145: =IFERROR(VLOOKUP($C145,'Orçamento N_DESON.'!$D$11:$S$82,16,FALSE),0) -> 0 | I145: =VLOOKUP($C145,'Orçamento N_DESON.'!$D$11:$S$82,11,FALSE) ->  | J145: =Encargos!$F$44 -> 1.1122 | O145: =VLOOKUP($C145,'Orçamento N_DESON.'!$D$11:$S$82,13,FALSE) ->  | Q145: =VLOOKUP($C145,'Orçamento N_DESON.'!$D$11:$S$82,14,FALSE) ->  | S145: =VLOOKUP($C145,'Orçamento N_DESON.'!$D$11:$S$82,15,FALSE) -> 
A146: 1 | B146: ='Orçamento-TCE'!B146 ->  | C146: ='Orçamento-TCE'!C146 ->  | D146: ='Orçamento-TCE'!G146 ->  | E146: ='Orçamento-TCE'!H146 -> 0 | F146: ='Orçamento-TCE'!I146 ->  | G146: =IFERROR(VLOOKUP($C146,'Orçamento N_DESON.'!$D$11:$S$82,12,FALSE),0) -> 0 | H146: =IFERROR(VLOOKUP($C146,'Orçamento N_DESON.'!$D$11:$S$82,16,FALSE),0) -> 0 | I146: =VLOOKUP($C146,'Orçamento N_DESON.'!$D$11:$S$82,11,FALSE) ->  | J146: =Encargos!$F$44 -> 1.1122 | O146: =VLOOKUP($C146,'Orçamento N_DESON.'!$D$11:$S$82,13,FALSE) ->  | Q146: =VLOOKUP($C146,'Orçamento N_DESON.'!$D$11:$S$82,14,FALSE) ->  | S146: =VLOOKUP($C146,'Orçamento N_DESON.'!$D$11:$S$82,15,FALSE) -> 
A147: 1 | B147: ='Orçamento-TCE'!B147 ->  | C147: ='Orçamento-TCE'!C147 ->  | D147: ='Orçamento-TCE'!G147 ->  | E147: ='Orçamento-TCE'!H147 -> 0 | F147: ='Orçamento-TCE'!I147 ->  | G147: =IFERROR(VLOOKUP($C147,'Orçamento N_DESON.'!$D$11:$S$82,12,FALSE),0) -> 0 | H147: =IFERROR(VLOOKUP($C147,'Orçamento N_DESON.'!$D$11:$S$82,16,FALSE),0) -> 0 | I147: =VLOOKUP($C147,'Orçamento N_DESON.'!$D$11:$S$82,11,FALSE) ->  | J147: =Encargos!$F$44 -> 1.1122 | O147: =VLOOKUP($C147,'Orçamento N_DESON.'!$D$11:$S$82,13,FALSE) ->  | Q147: =VLOOKUP($C147,'Orçamento N_DESON.'!$D$11:$S$82,14,FALSE) ->  | S147: =VLOOKUP($C147,'Orçamento N_DESON.'!$D$11:$S$82,15,FALSE) -> 
A148: 1 | B148: ='Orçamento-TCE'!B148 ->  | C148: ='Orçamento-TCE'!C148 ->  | D148: ='Orçamento-TCE'!G148 ->  | E148: ='Orçamento-TCE'!H148 -> 0 | F148: ='Orçamento-TCE'!I148 ->  | G148: =IFERROR(VLOOKUP($C148,'Orçamento N_DESON.'!$D$11:$S$82,12,FALSE),0) -> 0 | H148: =IFERROR(VLOOKUP($C148,'Orçamento N_DESON.'!$D$11:$S$82,16,FALSE),0) -> 0 | I148: =VLOOKUP($C148,'Orçamento N_DESON.'!$D$11:$S$82,11,FALSE) ->  | J148: =Encargos!$F$44 -> 1.1122 | O148: =VLOOKUP($C148,'Orçamento N_DESON.'!$D$11:$S$82,13,FALSE) ->  | Q148: =VLOOKUP($C148,'Orçamento N_DESON.'!$D$11:$S$82,14,FALSE) ->  | S148: =VLOOKUP($C148,'Orçamento N_DESON.'!$D$11:$S$82,15,FALSE) -> 
